{"text_format":"1","workbook":"xlsx","n_sheets":26,"sheets":["Eingabe","Gesamt","NRW-Junior","NRW-Senior","NRW-Elite-XL","NRW-Elite-XL-18","Prog","NRW-Open","Ort-Junior","Ort-Senior","Ort-Elite-XL","Ort-Elite-XL-18","Ort-Open","Gast-Junior","Gast-Senior","Gast-Elite-XL","Gast-Elite-XL-18","Gast-Open","Ort-End-Junior","Ort-End-Senior","Ort-End-Elite-XL","Ort-End-Elite-XL-18","Ort-End-Open","Version","Hinweise","Protokoll"],"not_rendered":{"charts":0,"images":0,"macros":1,"external_links":0,"defined_names":22,"comments":1,"pivot_tables":0},"unopened":[{"sheet":"Prog","index":6,"reason":"part_missing"}],"bounds":{"document_bytes":16777216,"sheet_cells":100000,"rows_first":2000,"rows_last":500,"rows_between":2000,"halvings":0,"cell_chars":16384,"cell_head_chars":4096},"cells_cut":0,"cells_raw":0,"read":"whole","date_system":"1900"}

{"sheet":"Eingabe","index":0,"n_rows":21,"n_cols":6,"rows_kept":21,"cut":false,"hidden":true,"merged":[[1,1,1,5],[18,1,18,2],[19,1,19,2],[20,1,20,2],[18,4,18,5],[19,4,19,5],[20,4,20,5]]}
[]
[null,"Zeitmessung Seifenkisten Derby Mettingen"]
[]
[]
[null,"V6.2"]
[null,null,"Bahn 1 PR",null,"Bahn 2 PB"]
[]
[null,"Lauf ",4,null,4]
[]
[null,"Start-Nr",921,116,999]
[]
[null,"Zeit",34.92]
[]
[null,null,"Hauptlauf / Endlauf  ?",null,"Hauptlauf"]
[null,"Hauptlauf-Daten übertragen und gespeichet"]
[null,null,"1542 PR  00:00:35.518",null,null,"  "]
[null,{"$f":"LOOKUP(C10,Gesamt!A3:A999,Gesamt!B3:B999)","v":"Open"},"1543 PR  00:00:34.925",null,null,{"$f":"LOOKUP(E10,Gesamt!A3:A999,Gesamt!B3:B999)","v":"! ! !"}]
[]
[null,{"$f":"LOOKUP(C10,Gesamt!A3:A999,Gesamt!E3:E999)","v":"Sabrina"},null,null,{"$f":"LOOKUP(E10,Gesamt!A3:A999,Gesamt!E3:E999)","v":"! ! !"}]
[null,{"$f":"LOOKUP(C10,Gesamt!A3:A999,Gesamt!D3:D999)","v":"Wetter"},null,null,{"$f":"LOOKUP(E10,Gesamt!A3:A999,Gesamt!D3:D999)","v":"Einzel"}]
[null,{"$f":"LOOKUP(C10,Gesamt!A3:A999,Gesamt!F3:F999)","v":"Billerbeck"},null,null,{"$f":"LOOKUP(E10,Gesamt!A3:A999,Gesamt!F3:F999)","v":"Start"}]

{"sheet":"Gesamt","index":1,"n_rows":852,"n_cols":20,"rows_kept":852,"cut":false,"hidden":true,"merged":[]}
[null,null,null,null,"Bahn 1","Bahn 2",1,1,1,1,1,1,"Lauf gewertet?\n0 oder 1",1,1,1,1,1,1]
["Nr","Klasse","NRW","Name","Vorname","Verein","H1","H2","H3","H4","H5","H6","Summe","E1","E2","E3","E4","E5","E6","Summe"]
[101,"JUN",null,"Paschedag","Mia","Stromberg",35.39,35.26,35.46,35.22,null,null,{"$f":"(G3*$G$1 +H3*$H$1+I3*$I$1+J3*$J$1 +K3*$K$1+L3*$L$1)","v":141.33000000000001},null,null,null,null,null,null,{"$f":"(N3*$N$1 +O3*$O$1+P3*$P$1+Q3*$Q$1 +R3*$R$1+S3*$S$1)","v":0}]
[102,"JUN",null,"Zaruba","Max","Mettingen",null,null,null,null,null,null,{"$f":"(G4*$G$1 +H4*$H$1+I4*$I$1+J4*$J$1 +K4*$K$1+L4*$L$1)","v":0},null,null,null,null,null,null,{"$f":"(N4*$N$1 +O4*$O$1+P4*$P$1+Q4*$Q$1 +R4*$R$1+S4*$S$1)","v":0}]
[103,"JUN",null,"Meyer","Johann","Mettingen",null,null,null,null,null,null,0,null,null,null,null,null,null,0]
[104,"JUN",null,"Lampe","Ida","Mettingen",35.24,35.25,35.369999999999997,35.25,null,null,141.11000000000001,null,null,null,null,null,null,0]
[105,"JUN",null,"Freudenstein","Romy","Mettingen",35.36,35.17,35.44,35.340000000000003,null,null,141.31,null,null,null,null,null,null,0]
[106,"JUN",null,"Meyhoff","Moritz","Mettingen",null,null,null,null,null,null,0,null,null,null,null,null,null,0]
[107,"JUN",null,"Szabowski","Mara","Billerbeck",null,null,null,null,null,null,0,null,null,null,null,null,null,0]
[108,"JUN",null,"Plath","Marvin","Mettingen",35.380000000000003,35.520000000000003,35.4,35.49,null,null,141.79,null,null,null,null,null,null,0]
[109,"JUN",null,"Gahler","Hendrik","Mettingen",35.590000000000003,35.409999999999997,35.51,35.450000000000003,null,null,141.96,null,null,null,null,null,null,0]
[110,"JUN",null,"Angenendt","Philip","Billerbeck",null,null,null,null,null,null,0,null,null,null,null,null,null,0]
[111,"JUN",null,"Reutter","Willi","Stromberg",null,null,null,null,null,null,0,null,null,null,null,null,null,0]
[112,"JUN",null,"Jandt","Julius","Bergkamen",null,null,null,null,null,null,0,null,null,null,null,null,null,0]
[113,"JUN",null,"Bednarski","Max","Mettingen",35.54,35.659999999999997,35.97,35.630000000000003,null,null,142.80000000000001,null,null,null,null,null,null,0]
[114,"JUN",null,"Reutter","Elisabeth","Stromberg",null,null,null,null,null,null,0,null,null,null,null,null,null,0]
[115,"JUN",null,"Heuermann","Clara",null,null,null,null,null,null,null,0,null,null,null,null,null,null,0]
[116,"JUN",null,"Schier","Finn","Stromberg",35.54,35.42,35.51,35.54,null,null,142.01,null,null,null,null,null,null,0]
[117,"JUN",null,"Crook","Florian","Mettingen",null,null,null,null,null,null,0,null,null,null,null,null,null,0]
[118,"JUN",null,"Kockmeyer","Emily","Mettingen",null,null,null,null,null,null,0,null,null,null,null,null,null,0]
[119,"JUN",null,"Schlag","Lucas","Mettingen",null,null,null,null,null,null,0,null,null,null,null,null,null,0]
[120,"JUN",null,"Stoffers","Martha","Stromberg",null,null,null,null,null,null,0,null,null,null,null,null,null,0]
[121,"JUN",null,"Schickentanz","Marius","Bergkamen",null,null,null,null,null,null,0,null,null,null,null,null,null,0]
[122,"JUN",null,"Krüger","Michelle","Billerbeck",null,null,null,null,null,null,0,null,null,null,null,null,null,0]
[123,"JUN",null,"Grützner","Lennox","Billerbeck",null,null,null,null,null,null,0,null,null,null,null,null,null,0]
[124,"JUN",null,"Enders","Julius","Billerbeck",null,null,null,null,null,null,0,null,null,null,null,null,null,0]
[125,"JUN",null,"Plath","Johanna","Mettingen",35.44,35.520000000000003,35.44,35.549999999999997,null,null,141.94999999999999,null,null,null,null,null,null,0]
[126,"JUN",null,"Demleitner","Angelika","Bergkamen",null,null,null,null,null,null,0,null,null,null,null,null,null,0]
[127,"JUN",null,"Claus","Florentina","Bergkamen",null,null,null,null,null,null,0,null,null,null,null,null,null,0]
[128,"JUN",null,"Pufahl","Maximilian","Mettingen",35.799999999999997,35.299999999999997,35.51,35.43,null,null,142.04,null,null,null,null,null,null,0]
[129,"JUN",null,"Bednarski","Jonathan","Mettingen",35.700000000000003,null,null,null,null,1000,1035.7,null,null,null,null,null,null,0]
[130,"JUN",null,null,null,null,null,null,null,null,null,null,0,null,null,null,null,null,null,0]
[131,"JUN",null,null,null,null,null,null,null,null,null,null,0,null,null,null,null,null,null,0]
[132,"JUN",null,null,null,null,null,null,null,null,null,null,0,null,null,null,null,null,null,0]
[133,"JUN",null,null,null,null,null,null,null,null,null,null,0,null,null,null,null,null,null,0]
[134,"JUN",null,null,null,null,null,null,null,null,null,null,0,null,null,null,null,null,null,0]
[135,"JUN",null,null,null,null,null,null,null,null,null,null,0,null,null,null,null,null,null,0]
[136,null,null,null,null,null,null,null,null,null,null,null,0,null,null,null,null,null,null,0]
[137,null,null,null,null,null,null,null,null,null,null,null,0,null,null,null,null,null,null,0]
[138,null,null,null,null,null,null,null,null,null,null,null,0,null,null,null,null,null,null,0]
[139,null,null,null,null,null,null,null,null,null,null,null,0,null,null,null,null,null,null,0]
[140,null,null,null,null,null,null,null,null,null,null,null,0,null,null,null,null,null,null,0]
[141,null,null,null,null,null,null,null,null,null,null,null,0,null,null,null,null,null,null,0]
[142,null,null,null,null,null,null,null,null,null,null,null,0,null,null,null,null,null,null,0]
[143,null,null,null,null,null,null,null,null,null,null,null,0,null,null,null,null,null,null,0]
[144,null,null,null,null,null,null,null,null,null,null,null,0,null,null,null,null,null,null,0]
[145,null,null,null,null,null,null,null,null,null,null,null,0,null,null,null,null,null,null,0]
[146,null,null,null,null,null,null,null,null,null,null,null,0,null,null,null,null,null,null,0]
[147,null,null,null,null,null,null,null,null,null,null,null,0,null,null,null,null,null,null,0]
[148,null,null,null,null,null,null,null,null,null,null,null,0,null,null,null,null,null,null,0]
[149,null,null,null,null,null,null,null,null,null,null,null,0,null,null,null,null,null,null,0]
[150,null,null,null,null,null,null,null,null,null,null,null,0,null,null,null,null,null,null,0]
[151,null,null,null,null,null,null,null,null,null,null,null,0,null,null,null,null,null,null,0]
[152,null,null,null,null,null,null,null,null,null,null,null,0,null,null,null,null,null,null,0]
[153,null,null,null,null,null,null,null,null,null,null,null,0,null,null,null,null,null,null,0]
[154,null,null,null,null,null,null,null,null,null,null,null,0,null,null,null,null,null,null,0]
[155,null,null,null,null,null,null,null,null,null,null,null,0,null,null,null,null,null,null,0]
[156,null,null,null,null,null,null,null,null,null,null,null,0,null,null,null,null,null,null,0]
[157,null,null,null,null,null,null,null,null,null,null,null,0,null,null,null,null,null,null,0]
[158,null,null,null,null,null,null,null,null,null,null,null,0,null,null,null,null,null,null,0]
[159,null,null,null,null,null,null,null,null,null,null,null,0,null,null,null,null,null,null,0]
[160,null,null,null,null,null,null,null,null,null,null,null,0,null,null,null,null,null,null,0]
[161,null,null,null,null,null,null,null,null,null,null,null,0,null,null,null,null,null,null,0]
[162,null,null,null,null,null,null,null,null,null,null,null,0,null,null,null,null,null,null,0]
[163,null,null,null,null,null,null,null,null,null,null,null,0,null,null,null,null,null,null,0]
[164,null,null,null,null,null,null,null,null,null,null,null,0,null,null,null,null,null,null,0]
[165,null,null,null,null,null,null,null,null,null,null,null,0,null,null,null,null,null,null,0]
[166,null,null,null,null,null,null,null,null,null,null,null,{"$f":"(G68*$G$1 +H68*$H$1+I68*$I$1+J68*$J$1 +K68*$K$1+L68*$L$1)","v":0},null,null,null,null,null,null,{"$f":"(N68*$N$1 +O68*$O$1+P68*$P$1+Q68*$Q$1 +R68*$R$1+S68*$S$1)","v":0}]
[167,null,null,null,null,null,null,null,null,null,null,null,0,null,null,null,null,null,null,0]
[168,null,null,null,null,null,null,null,null,null,null,null,0,null,null,null,null,null,null,0]
[169,null,null,null,null,null,null,null,null,null,null,null,0,null,null,null,null,null,null,0]
[170,null,null,null,null,null,null,null,null,null,null,null,0,null,null,null,null,null,null,0]
[171,null,null,null,null,null,null,null,null,null,null,null,0,null,null,null,null,null,null,0]
[172,null,null,null,null,null,null,null,null,null,null,null,0,null,null,null,null,null,null,0]
[173,null,null,null,null,null,null,null,null,null,null,null,0,null,null,null,null,null,null,0]
[174,null,null,null,null,null,null,null,null,null,null,null,0,null,null,null,null,null,null,0]
[175,null,null,null,null,null,null,null,null,null,null,null,0,null,null,null,null,null,null,0]
[176,null,null,null,null,null,null,null,null,null,null,null,0,null,null,null,null,null,null,0]
[177,null,null,null,null,null,null,null,null,null,null,null,0,null,null,null,null,null,null,0]
[178,null,null,null,null,null,null,null,null,null,null,null,0,null,null,null,null,null,null,0]
[179,null,null,null,null,null,null,null,null,null,null,null,0,null,null,null,null,null,null,0]
[180,null,null,null,null,null,null,null,null,null,null,null,0,null,null,null,null,null,null,0]
[181,null,null,null,null,null,null,null,null,null,null,null,0,null,null,null,null,null,null,0]
[182,null,null,null,null,null,null,null,null,null,null,null,0,null,null,null,null,null,null,0]
[183,null,null,null,null,null,null,null,null,null,null,null,0,null,null,null,null,null,null,0]
[184,null,null,null,null,null,null,null,null,null,null,null,0,null,null,null,null,null,null,0]
[185,null,null,null,null,null,null,null,null,null,null,null,0,null,null,null,null,null,null,0]
[186,null,null,null,null,null,null,null,null,null,null,null,0,null,null,null,null,null,null,0]
[187,null,null,null,null,null,null,null,null,null,null,null,0,null,null,null,null,null,null,0]
[188,null,null,null,null,null,null,null,null,null,null,null,0,null,null,null,null,null,null,0]
[189,null,null,null,null,null,null,null,null,null,null,null,0,null,null,null,null,null,null,0]
[190,null,null,null,null,null,null,null,null,null,null,null,0,null,null,null,null,null,null,0]
[191,null,null,null,null,null,null,null,null,null,null,null,0,null,null,null,null,null,null,0]
[192,null,null,null,null,null,null,null,null,null,null,null,0,null,null,null,null,null,null,0]
[193,null,null,null,null,null,null,null,null,null,null,null,0,null,null,null,null,null,null,0]
[194,null,null,null,null,null,null,null,null,null,null,null,0,null,null,null,null,null,null,0]
[195,null,null,null,null,null,null,null,null,null,null,null,0,null,null,null,null,null,null,0]
[196,null,null,null,null,null,null,null,null,null,null,null,0,null,null,null,null,null,null,0]
[197,null,null,null,null,null,null,null,null,null,null,null,0,null,null,null,null,null,null,0]
[198,null,null,null,null,null,null,null,null,null,null,null,0,null,null,null,null,null,null,0]
[199,null,null,null,null,null,null,null,null,null,null,null,0,null,null,null,null,null,null,0]
[200,null,null,null,null,null,null,null,null,null,null,null,0,null,null,null,null,null,null,0]
[201,null,null,null,null,null,null,null,null,null,null,null,0,null,null,null,null,null,null,0]
[202,null,null,null,null,null,null,null,null,null,null,null,0,null,null,null,null,null,null,0]
[203,null,null,null,null,null,null,null,null,null,null,null,0,null,null,null,null,null,null,0]
[204,null,null,null,null,null,null,null,null,null,null,null,0,null,null,null,null,null,null,0]
[205,null,null,null,null,null,null,null,null,null,null,null,0,null,null,null,null,null,null,0]
[206,null,null,null,null,null,null,null,null,null,null,null,0,null,null,null,null,null,null,0]
[207,null,null,null,null,null,null,null,null,null,null,null,0,null,null,null,null,null,null,0]
[208,null,null,null,null,null,null,null,null,null,null,null,0,null,null,null,null,null,null,0]
[209,null,null,null,null,null,null,null,null,null,null,null,0,null,null,null,null,null,null,0]
[210,null,null,null,null,null,null,null,null,null,null,null,0,null,null,null,null,null,null,0]
[211,null,null,null,null,null,null,null,null,null,null,null,0,null,null,null,null,null,null,0]
[212,null,null,null,null,null,null,null,null,null,null,null,0,null,null,null,null,null,null,0]
[213,null,null,null,null,null,null,null,null,null,null,null,0,null,null,null,null,null,null,0]
[214,null,null,null,null,null,null,null,null,null,null,null,0,null,null,null,null,null,null,0]
[215,null,null,null,null,null,null,null,null,null,null,null,0,null,null,null,null,null,null,0]
[216,null,null,null,null,null,null,null,null,null,null,null,0,null,null,null,null,null,null,0]
[217,null,null,null,null,null,null,null,null,null,null,null,0,null,null,null,null,null,null,0]
[218,null,null,null,null,null,null,null,null,null,null,null,0,null,null,null,null,null,null,0]
[219,null,null,null,null,null,null,null,null,null,null,null,0,null,null,null,null,null,null,0]
[220,null,null,null,null,null,null,null,null,null,null,null,0,null,null,null,null,null,null,0]
[221,null,null,null,null,null,null,null,null,null,null,null,0,null,null,null,null,null,null,0]
[222,null,null,null,null,null,null,null,null,null,null,null,0,null,null,null,null,null,null,0]
[223,null,null,null,null,null,null,null,null,null,null,null,0,null,null,null,null,null,null,0]
[224,null,null,null,null,null,null,null,null,null,null,null,0,null,null,null,null,null,null,0]
[225,null,null,null,null,null,null,null,null,null,null,null,0,null,null,null,null,null,null,0]
[226,null,null,null,null,null,null,null,null,null,null,null,0,null,null,null,null,null,null,0]
[227,null,null,null,null,null,null,null,null,null,null,null,0,null,null,null,null,null,null,0]
[228,null,null,null,null,null,null,null,null,null,null,null,0,null,null,null,null,null,null,0]
[229,null,null,null,null,null,null,null,null,null,null,null,0,null,null,null,null,null,null,0]
[230,null,null,null,null,null,null,null,null,null,null,null,{"$f":"(G132*$G$1 +H132*$H$1+I132*$I$1+J132*$J$1 +K132*$K$1+L132*$L$1)","v":0},null,null,null,null,null,null,{"$f":"(N132*$N$1 +O132*$O$1+P132*$P$1+Q132*$Q$1 +R132*$R$1+S132*$S$1)","v":0}]
[231,null,null,null,null,null,null,null,null,null,null,null,0,null,null,null,null,null,null,0]
[232,null,null,null,null,null,null,null,null,null,null,null,0,null,null,null,null,null,null,0]
[233,null,null,null,null,null,null,null,null,null,null,null,0,null,null,null,null,null,null,0]
[234,null,null,null,null,null,null,null,null,null,null,null,0,null,null,null,null,null,null,0]
[235,null,null,null,null,null,null,null,null,null,null,null,0,null,null,null,null,null,null,0]
[236,null,null,null,null,null,null,null,null,null,null,null,0,null,null,null,null,null,null,0]
[237,null,null,null,null,null,null,null,null,null,null,null,0,null,null,null,null,null,null,0]
[238,null,null,null,null,null,null,null,null,null,null,null,0,null,null,null,null,null,null,0]
[239,null,null,null,null,null,null,null,null,null,null,null,0,null,null,null,null,null,null,0]
[240,null,null,null,null,null,null,null,null,null,null,null,0,null,null,null,null,null,null,0]
[241,null,null,null,null,null,null,null,null,null,null,null,0,null,null,null,null,null,null,0]
[242,null,null,null,null,null,null,null,null,null,null,null,0,null,null,null,null,null,null,0]
[243,null,null,null,null,null,null,null,null,null,null,null,0,null,null,null,null,null,null,0]
[244,null,null,null,null,null,null,null,null,null,null,null,0,null,null,null,null,null,null,0]
[245,null,null,null,null,null,null,null,null,null,null,null,0,null,null,null,null,null,null,0]
[246,null,null,null,null,null,null,null,null,null,null,null,0,null,null,null,null,null,null,0]
[247,null,null,null,null,null,null,null,null,null,null,null,0,null,null,null,null,null,null,0]
[248,null,null,null,null,null,null,null,null,null,null,null,0,null,null,null,null,null,null,0]
[249,null,null,null,null,null,null,null,null,null,null,null,0,null,null,null,null,null,null,0]
[250,null,null,null,null,null,null,null,null,null,null,null,0,null,null,null,null,null,null,0]
[251,null,null,null,null,null,null,null,null,null,null,null,0,null,null,null,null,null,null,0]
[252,null,null,null,null,null,null,null,null,null,null,null,0,null,null,null,null,null,null,0]
[253,null,null,null,null,null,null,null,null,null,null,null,0,null,null,null,null,null,null,0]
[254,null,null,null,null,null,null,null,null,null,null,null,0,null,null,null,null,null,null,0]
[255,null,null,null,null,null,null,null,null,null,null,null,0,null,null,null,null,null,null,0]
[256,null,null,null,null,null,null,null,null,null,null,null,0,null,null,null,null,null,null,0]
[257,null,null,null,null,null,null,null,null,null,null,null,0,null,null,null,null,null,null,0]
[258,null,null,null,null,null,null,null,null,null,null,null,0,null,null,null,null,null,null,0]
[259,null,null,null,null,null,null,null,null,null,null,null,0,null,null,null,null,null,null,0]
[260,null,null,null,null,null,null,null,null,null,null,null,0,null,null,null,null,null,null,0]
[261,null,null,null,null,null,null,null,null,null,null,null,0,null,null,null,null,null,null,0]
[262,null,null,null,null,null,null,null,null,null,null,null,0,null,null,null,null,null,null,0]
[263,null,null,null,null,null,null,null,null,null,null,null,0,null,null,null,null,null,null,0]
[264,null,null,null,null,null,null,null,null,null,null,null,0,null,null,null,null,null,null,0]
[265,null,null,null,null,null,null,null,null,null,null,null,0,null,null,null,null,null,null,0]
[266,null,null,null,null,null,null,null,null,null,null,null,0,null,null,null,null,null,null,0]
[267,null,null,null,null,null,null,null,null,null,null,null,0,null,null,null,null,null,null,0]
[268,null,null,null,null,null,null,null,null,null,null,null,0,null,null,null,null,null,null,0]
[269,null,null,null,null,null,null,null,null,null,null,null,0,null,null,null,null,null,null,0]
[270,null,null,null,null,null,null,null,null,null,null,null,0,null,null,null,null,null,null,0]
[271,null,null,null,null,null,null,null,null,null,null,null,0,null,null,null,null,null,null,0]
[272,null,null,null,null,null,null,null,null,null,null,null,0,null,null,null,null,null,null,0]
[273,null,null,null,null,null,null,null,null,null,null,null,0,null,null,null,null,null,null,0]
[274,null,null,null,null,null,null,null,null,null,null,null,0,null,null,null,null,null,null,0]
[275,null,null,null,null,null,null,null,null,null,null,null,0,null,null,null,null,null,null,0]
[276,null,null,null,null,null,null,null,null,null,null,null,0,null,null,null,null,null,null,0]
[277,null,null,null,null,null,null,null,null,null,null,null,0,null,null,null,null,null,null,0]
[278,null,null,null,null,null,null,null,null,null,null,null,0,null,null,null,null,null,null,0]
[279,null,null,null,null,null,null,null,null,null,null,null,0,null,null,null,null,null,null,0]
[280,null,null,null,null,null,null,null,null,null,null,null,0,null,null,null,null,null,null,0]
[281,null,null,null,null,null,null,null,null,null,null,null,0,null,null,null,null,null,null,0]
[282,null,null,null,null,null,null,null,null,null,null,null,0,null,null,null,null,null,null,0]
[283,null,null,null,null,null,null,null,null,null,null,null,0,null,null,null,null,null,null,0]
[284,null,null,null,null,null,null,null,null,null,null,null,0,null,null,null,null,null,null,0]
[285,null,null,null,null,null,null,null,null,null,null,null,0,null,null,null,null,null,null,0]
[286,null,null,null,null,null,null,null,null,null,null,null,0,null,null,null,null,null,null,0]
[287,null,null,null,null,null,null,null,null,null,null,null,0,null,null,null,null,null,null,0]
[288,null,null,null,null,null,null,null,null,null,null,null,0,null,null,null,null,null,null,0]
[289,null,null,null,null,null,null,null,null,null,null,null,0,null,null,null,null,null,null,0]
[290,null,null,null,null,null,null,null,null,null,null,null,0,null,null,null,null,null,null,0]
[291,null,null,null,null,null,null,null,null,null,null,null,0,null,null,null,null,null,null,0]
[292,null,null,null,null,null,null,null,null,null,null,null,0,null,null,null,null,null,null,0]
[293,null,null,null,null,null,null,null,null,null,null,null,0,null,null,null,null,null,null,0]
[294,null,null,null,null,null,null,null,null,null,null,null,{"$f":"(G196*$G$1 +H196*$H$1+I196*$I$1+J196*$J$1 +K196*$K$1+L196*$L$1)","v":0},null,null,null,null,null,null,{"$f":"(N196*$N$1 +O196*$O$1+P196*$P$1+Q196*$Q$1 +R196*$R$1+S196*$S$1)","v":0}]
[295,null,null,null,null,null,null,null,null,null,null,null,0,null,null,null,null,null,null,0]
[296,null,null,null,null,null,null,null,null,null,null,null,0,null,null,null,null,null,null,0]
[297,null,null,null,null,null,null,null,null,null,null,null,0,null,null,null,null,null,null,0]
[298,null,null,null,null,null,null,null,null,null,null,null,0,null,null,null,null,null,null,0]
[299,null,null,null,null,null,null,null,null,null,null,null,0,null,null,null,null,null,null,0]
[300,null,null,null,null,null,null,null,null,null,null,null,0,null,null,null,null,null,null,0]
[301,"SEN",null,"Zaruba","Pia","Mettingen",null,null,null,null,null,null,0,null,null,null,null,null,null,0]
[302,"SEN",null,"Gößling","Jule","Mettingen",34.299999999999997,34.44,34.409999999999997,34.43,null,null,137.58000000000001,null,null,null,null,null,null,0]
[303,"SEN",null,"Kessling","Sophie","Mettingen",34.43,34.450000000000003,34.65,34.28,null,null,137.81,null,null,null,null,null,null,0]
[304,"SEN",null,"Lutterbach","Roman","Simmerath",34.450000000000003,34.54,34.450000000000003,34.86,null,null,138.30000000000001,null,null,null,null,null,null,0]
[305,"SEN",null,"Lampe","Pia","Mettingen",34.299999999999997,34.159999999999997,34.299999999999997,34.46,null,null,137.22,null,null,null,null,null,null,0]
[306,"SEN",null,"Freudenstein","Rieke","Mettingen",34.299999999999997,34.340000000000003,34.43,34.33,null,null,137.4,null,null,null,null,null,null,0]
[307,"SEN",null,"Neuhaus","Robin","Mettingen",34.43,34.31,34.6,34.229999999999997,null,null,137.57,null,null,null,null,null,null,0]
[308,"SEN",null,"Becker","Robin","Bergkamen",34.43,34.49,34.44,34.619999999999997,null,null,137.97999999999999,null,null,null,null,null,null,0]
[309,"SEN",null,"Lutterbach","Eric","Simmerath",34.6,34.340000000000003,34.619999999999997,34.520000000000003,null,null,138.08000000000001,null,null,null,null,null,null,0]
[310,"SEN",null,"Meyer","Henry","Mettingen",34.24,34.340000000000003,34.31,34.44,null,null,137.33000000000001,null,null,null,null,null,null,0]
[311,"SEN",null,"Förster","Maurice","Simmerath",null,null,null,null,null,null,0,null,null,null,null,null,null,0]
[312,"SEN",null,"Hipper","Charlotte","Billerbeck",null,null,null,null,null,null,0,null,null,null,null,null,null,0]
[313,"SEN",null,"Neinert ","Joey","Billerbeck",null,null,null,null,null,null,0,null,null,null,null,null,null,0]
[314,"SEN",null,"Wetter","Stefanie","Billerbeck",null,null,null,null,null,null,0,null,null,null,null,null,null,0]
[315,"SEN",null,"Lammers","Laura","ConAction",34.6,34.549999999999997,34.729999999999997,34.64,null,null,138.52000000000001,null,null,null,null,null,null,0]
[316,"SEN",null,"Niermann","David","Mettingen",null,null,null,null,null,null,0,null,null,null,null,null,null,0]
[317,"SEN",null,"Sälter","Hennes","Mettingen",null,null,null,null,null,null,0,null,null,null,null,null,null,0]
[318,"SEN",null,"Wratny","Nikolai","Bergkamen",null,null,null,null,null,null,0,null,null,null,null,null,null,0]
[319,"SEN",null,"Sonneborn","Ina","Stromberg",null,null,null,null,null,null,0,null,null,null,null,null,null,0]
[320,"SEN",null,"Ricker","Sarah","Billerbeck",34.44,34.68,34.64,34.72,null,null,138.47999999999999,null,null,null,null,null,null,0]
[321,"SEN",null,"Steinberg","Kimberly","Billerbeck",39.43,35.04,38.630000000000003,36.799999999999997,null,null,149.9,null,null,null,null,null,null,0]
[322,"SEN",null,"Szabowski","Mara","Billerbeck",null,null,null,null,null,null,0,null,null,null,null,null,null,0]
[323,"SEN",null,"Sternberg","Luise","Billerbeck",null,null,null,null,null,null,0,null,null,null,null,null,null,0]
[324,"SEN",null,"Zaruba","Max","Mettingen",34.33,34.46,34.409999999999997,34.44,null,null,137.63999999999999,null,null,null,null,null,null,0]
[325,"SEN",null,"Meyer","Johann","Mettingen",34.39,34.369999999999997,34.479999999999997,34.32,null,null,137.56,null,null,null,null,null,null,0]
[326,"SEN",null,null,null,null,null,null,null,null,null,null,0,null,null,null,null,null,null,0]
[327,"SEN",null,null,null,null,null,null,null,null,null,null,0,null,null,null,null,null,null,0]
[328,"SEN",null,null,null,null,null,null,null,null,null,null,0,null,null,null,null,null,null,0]
[329,"SEN",null,null,null,null,null,null,null,null,null,null,0,null,null,null,null,null,null,0]
[330,"SEN",null,null,null,null,null,null,null,null,null,null,0,null,null,null,null,null,null,0]
[331,"SEN",null,null,null,null,null,null,null,null,null,null,0,null,null,null,null,null,null,0]
[332,"SEN",null,null,null,null,null,null,null,null,null,null,0,null,null,null,null,null,null,0]
[333,"SEN",null,null,null,null,null,null,null,null,null,null,0,null,null,null,null,null,null,0]
[334,"SEN",null,null,null,null,null,null,null,null,null,null,0,null,null,null,null,null,null,0]
[335,"SEN",null,null,null,null,null,null,null,null,null,null,0,null,null,null,null,null,null,0]
[336,"SEN",null,null,null,null,null,null,null,null,null,null,0,null,null,null,null,null,null,0]
[337,"SEN",null,null,null,null,null,null,null,null,null,null,0,null,null,null,null,null,null,0]
[338,"SEN",null,null,null,null,null,null,null,null,null,null,0,null,null,null,null,null,null,0]
[339,null,null,null,null,null,null,null,null,null,null,null,0,null,null,null,null,null,null,0]
[340,null,null,null,null,null,null,null,null,null,null,null,0,null,null,null,null,null,null,0]
[341,null,null,null,null,null,null,null,null,null,null,null,0,null,null,null,null,null,null,0]
[342,null,null,null,null,null,null,null,null,null,null,null,0,null,null,null,null,null,null,0]
[343,null,null,null,null,null,null,null,null,null,null,null,0,null,null,null,null,null,null,0]
[344,null,null,null,null,null,null,null,null,null,null,null,0,null,null,null,null,null,null,0]
[345,null,null,null,null,null,null,null,null,null,null,null,0,null,null,null,null,null,null,0]
[346,null,null,null,null,null,null,null,null,null,null,null,0,null,null,null,null,null,null,0]
[347,null,null,null,null,null,null,null,null,null,null,null,0,null,null,null,null,null,null,0]
[348,null,null,null,null,null,null,null,null,null,null,null,0,null,null,null,null,null,null,0]
[349,null,null,null,null,null,null,null,null,null,null,null,0,null,null,null,null,null,null,0]
[350,null,null,null,null,null,null,null,null,null,null,null,0,null,null,null,null,null,null,0]
[351,null,null,null,null,null,null,null,null,null,null,null,0,null,null,null,null,null,null,0]
[352,null,null,null,null,null,null,null,null,null,null,null,0,null,null,null,null,null,null,0]
[353,null,null,null,null,null,null,null,null,null,null,null,0,null,null,null,null,null,null,0]
[354,null,null,null,null,null,null,null,null,null,null,null,0,null,null,null,null,null,null,0]
[355,null,null,null,null,null,null,null,null,null,null,null,0,null,null,null,null,null,null,0]
[356,null,null,null,null,null,null,null,null,null,null,null,0,null,null,null,null,null,null,0]
[357,null,null,null,null,null,null,null,null,null,null,null,0,null,null,null,null,null,null,0]
[358,null,null,null,null,null,null,null,null,null,null,null,{"$f":"(G260*$G$1 +H260*$H$1+I260*$I$1+J260*$J$1 +K260*$K$1+L260*$L$1)","v":0},null,null,null,null,null,null,{"$f":"(N260*$N$1 +O260*$O$1+P260*$P$1+Q260*$Q$1 +R260*$R$1+S260*$S$1)","v":0}]
[359,null,null,null,null,null,null,null,null,null,null,null,0,null,null,null,null,null,null,0]
[360,null,null,null,null,null,null,null,null,null,null,null,0,null,null,null,null,null,null,0]
[361,null,null,null,null,null,null,null,null,null,null,null,0,null,null,null,null,null,null,0]
[362,null,null,null,null,null,null,null,null,null,null,null,0,null,null,null,null,null,null,0]
[363,null,null,null,null,null,null,null,null,null,null,null,0,null,null,null,null,null,null,0]
[364,null,null,null,null,null,null,null,null,null,null,null,0,null,null,null,null,null,null,0]
[365,null,null,null,null,null,null,null,null,null,null,null,0,null,null,null,null,null,null,0]
[366,null,null,null,null,null,null,null,null,null,null,null,0,null,null,null,null,null,null,0]
[367,null,null,null,null,null,null,null,null,null,null,null,0,null,null,null,null,null,null,0]
[368,null,null,null,null,null,null,null,null,null,null,null,0,null,null,null,null,null,null,0]
[369,null,null,null,null,null,null,null,null,null,null,null,0,null,null,null,null,null,null,0]
[370,null,null,null,null,null,null,null,null,null,null,null,0,null,null,null,null,null,null,0]
[371,null,null,null,null,null,null,null,null,null,null,null,0,null,null,null,null,null,null,0]
[372,null,null,null,null,null,null,null,null,null,null,null,0,null,null,null,null,null,null,0]
[373,null,null,null,null,null,null,null,null,null,null,null,0,null,null,null,null,null,null,0]
[374,null,null,null,null,null,null,null,null,null,null,null,0,null,null,null,null,null,null,0]
[375,null,null,null,null,null,null,null,null,null,null,null,0,null,null,null,null,null,null,0]
[376,null,null,null,null,null,null,null,null,null,null,null,0,null,null,null,null,null,null,0]
[377,null,null,null,null,null,null,null,null,null,null,null,0,null,null,null,null,null,null,0]
[378,null,null,null,null,null,null,null,null,null,null,null,0,null,null,null,null,null,null,0]
[379,null,null,null,null,null,null,null,null,null,null,null,0,null,null,null,null,null,null,0]
[380,null,null,null,null,null,null,null,null,null,null,null,0,null,null,null,null,null,null,0]
[381,null,null,null,null,null,null,null,null,null,null,null,0,null,null,null,null,null,null,0]
[382,null,null,null,null,null,null,null,null,null,null,null,0,null,null,null,null,null,null,0]
[383,null,null,null,null,null,null,null,null,null,null,null,0,null,null,null,null,null,null,0]
[384,null,null,null,null,null,null,null,null,null,null,null,0,null,null,null,null,null,null,0]
[385,null,null,null,null,null,null,null,null,null,null,null,0,null,null,null,null,null,null,0]
[386,null,null,null,null,null,null,null,null,null,null,null,0,null,null,null,null,null,null,0]
[387,null,null,null,null,null,null,null,null,null,null,null,0,null,null,null,null,null,null,0]
[388,null,null,null,null,null,null,null,null,null,null,null,0,null,null,null,null,null,null,0]
[389,null,null,null,null,null,null,null,null,null,null,null,0,null,null,null,null,null,null,0]
[390,null,null,null,null,null,null,null,null,null,null,null,0,null,null,null,null,null,null,0]
[391,null,null,null,null,null,null,null,null,null,null,null,0,null,null,null,null,null,null,0]
[392,null,null,null,null,null,null,null,null,null,null,null,0,null,null,null,null,null,null,0]
[393,null,null,null,null,null,null,null,null,null,null,null,0,null,null,null,null,null,null,0]
[394,null,null,null,null,null,null,null,null,null,null,null,0,null,null,null,null,null,null,0]
[395,null,null,null,null,null,null,null,null,null,null,null,0,null,null,null,null,null,null,0]
[396,null,null,null,null,null,null,null,null,null,null,null,0,null,null,null,null,null,null,0]
[397,null,null,null,null,null,null,null,null,null,null,null,0,null,null,null,null,null,null,0]
[398,null,null,null,null,null,null,null,null,null,null,null,0,null,null,null,null,null,null,0]
[399,null,null,null,null,null,null,null,null,null,null,null,0,null,null,null,null,null,null,0]
[400,null,null,null,null,null,null,null,null,null,null,null,0,null,null,null,null,null,null,0]
[401,null,null,null,null,null,null,null,null,null,null,null,0,null,null,null,null,null,null,0]
[402,null,null,null,null,null,null,null,null,null,null,null,0,null,null,null,null,null,null,0]
[403,null,null,null,null,null,null,null,null,null,null,null,0,null,null,null,null,null,null,0]
[404,null,null,null,null,null,null,null,null,null,null,null,0,null,null,null,null,null,null,0]
[405,null,null,null,null,null,null,null,null,null,null,null,0,null,null,null,null,null,null,0]
[406,null,null,null,null,null,null,null,null,null,null,null,0,null,null,null,null,null,null,0]
[407,null,null,null,null,null,null,null,null,null,null,null,0,null,null,null,null,null,null,0]
[408,null,null,null,null,null,null,null,null,null,null,null,0,null,null,null,null,null,null,0]
[409,null,null,null,null,null,null,null,null,null,null,null,0,null,null,null,null,null,null,0]
[410,null,null,null,null,null,null,null,null,null,null,null,0,null,null,null,null,null,null,0]
[411,null,null,null,null,null,null,null,null,null,null,null,0,null,null,null,null,null,null,0]
[412,null,null,null,null,null,null,null,null,null,null,null,0,null,null,null,null,null,null,0]
[413,null,null,null,null,null,null,null,null,null,null,null,0,null,null,null,null,null,null,0]
[414,null,null,null,null,null,null,null,null,null,null,null,0,null,null,null,null,null,null,0]
[415,null,null,null,null,null,null,null,null,null,null,null,0,null,null,null,null,null,null,0]
[416,null,null,null,null,null,null,null,null,null,null,null,0,null,null,null,null,null,null,0]
[417,null,null,null,null,null,null,null,null,null,null,null,0,null,null,null,null,null,null,0]
[418,null,null,null,null,null,null,null,null,null,null,null,0,null,null,null,null,null,null,0]
[419,null,null,null,null,null,null,null,null,null,null,null,0,null,null,null,null,null,null,0]
[420,null,null,null,null,null,null,null,null,null,null,null,0,null,null,null,null,null,null,0]
[421,null,null,null,null,null,null,null,null,null,null,null,0,null,null,null,null,null,null,0]
[422,null,null,null,null,null,null,null,null,null,null,null,{"$f":"(G324*$G$1 +H324*$H$1+I324*$I$1+J324*$J$1 +K324*$K$1+L324*$L$1)","v":0},null,null,null,null,null,null,{"$f":"(N324*$N$1 +O324*$O$1+P324*$P$1+Q324*$Q$1 +R324*$R$1+S324*$S$1)","v":0}]
[423,null,null,null,null,null,null,null,null,null,null,null,0,null,null,null,null,null,null,0]
[424,null,null,null,null,null,null,null,null,null,null,null,0,null,null,null,null,null,null,0]
[425,null,null,null,null,null,null,null,null,null,null,null,0,null,null,null,null,null,null,0]
[426,null,null,null,null,null,null,null,null,null,null,null,0,null,null,null,null,null,null,0]
[427,null,null,null,null,null,null,null,null,null,null,null,0,null,null,null,null,null,null,0]
[428,null,null,null,null,null,null,null,null,null,null,null,0,null,null,null,null,null,null,0]
[429,null,null,null,null,null,null,null,null,null,null,null,0,null,null,null,null,null,null,0]
[430,null,null,null,null,null,null,null,null,null,null,null,0,null,null,null,null,null,null,0]
[431,null,null,null,null,null,null,null,null,null,null,null,0,null,null,null,null,null,null,0]
[432,null,null,null,null,null,null,null,null,null,null,null,0,null,null,null,null,null,null,0]
[433,null,null,null,null,null,null,null,null,null,null,null,0,null,null,null,null,null,null,0]
[434,null,null,null,null,null,null,null,null,null,null,null,0,null,null,null,null,null,null,0]
[435,null,null,null,null,null,null,null,null,null,null,null,0,null,null,null,null,null,null,0]
[436,null,null,null,null,null,null,null,null,null,null,null,0,null,null,null,null,null,null,0]
[437,null,null,null,null,null,null,null,null,null,null,null,0,null,null,null,null,null,null,0]
[438,null,null,null,null,null,null,null,null,null,null,null,0,null,null,null,null,null,null,0]
[439,null,null,null,null,null,null,null,null,null,null,null,0,null,null,null,null,null,null,0]
[440,null,null,null,null,null,null,null,null,null,null,null,0,null,null,null,null,null,null,0]
[441,null,null,null,null,null,null,null,null,null,null,null,0,null,null,null,null,null,null,0]
[442,null,null,null,null,null,null,null,null,null,null,null,0,null,null,null,null,null,null,0]
[443,null,null,null,null,null,null,null,null,null,null,null,0,null,null,null,null,null,null,0]
[444,null,null,null,null,null,null,null,null,null,null,null,0,null,null,null,null,null,null,0]
[445,null,null,null,null,null,null,null,null,null,null,null,0,null,null,null,null,null,null,0]
[446,null,null,null,null,null,null,null,null,null,null,null,0,null,null,null,null,null,null,0]
[447,null,null,null,null,null,null,null,null,null,null,null,0,null,null,null,null,null,null,0]
[448,null,null,null,null,null,null,null,null,null,null,null,0,null,null,null,null,null,null,0]
[449,null,null,null,null,null,null,null,null,null,null,null,0,null,null,null,null,null,null,0]
[450,null,null,null,null,null,null,null,null,null,null,null,0,null,null,null,null,null,null,0]
[451,null,null,null,null,null,null,null,null,null,null,null,0,null,null,null,null,null,null,0]
[452,null,null,null,null,null,null,null,null,null,null,null,0,null,null,null,null,null,null,0]
[453,null,null,null,null,null,null,null,null,null,null,null,0,null,null,null,null,null,null,0]
[454,null,null,null,null,null,null,null,null,null,null,null,0,null,null,null,null,null,null,0]
[455,null,null,null,null,null,null,null,null,null,null,null,0,null,null,null,null,null,null,0]
[456,null,null,null,null,null,null,null,null,null,null,null,0,null,null,null,null,null,null,0]
[457,null,null,null,null,null,null,null,null,null,null,null,0,null,null,null,null,null,null,0]
[458,null,null,null,null,null,null,null,null,null,null,null,0,null,null,null,null,null,null,0]
[459,null,null,null,null,null,null,null,null,null,null,null,0,null,null,null,null,null,null,0]
[460,null,null,null,null,null,null,null,null,null,null,null,0,null,null,null,null,null,null,0]
[461,null,null,null,null,null,null,null,null,null,null,null,0,null,null,null,null,null,null,0]
[462,null,null,null,null,null,null,null,null,null,null,null,0,null,null,null,null,null,null,0]
[463,null,null,null,null,null,null,null,null,null,null,null,0,null,null,null,null,null,null,0]
[464,null,null,null,null,null,null,null,null,null,null,null,0,null,null,null,null,null,null,0]
[465,null,null,null,null,null,null,null,null,null,null,null,0,null,null,null,null,null,null,0]
[466,null,null,null,null,null,null,null,null,null,null,null,0,null,null,null,null,null,null,0]
[467,null,null,null,null,null,null,null,null,null,null,null,0,null,null,null,null,null,null,0]
[468,null,null,null,null,null,null,null,null,null,null,null,0,null,null,null,null,null,null,0]
[469,null,null,null,null,null,null,null,null,null,null,null,0,null,null,null,null,null,null,0]
[470,null,null,null,null,null,null,null,null,null,null,null,0,null,null,null,null,null,null,0]
[471,null,null,null,null,null,null,null,null,null,null,null,0,null,null,null,null,null,null,0]
[472,null,null,null,null,null,null,null,null,null,null,null,0,null,null,null,null,null,null,0]
[473,null,null,null,null,null,null,null,null,null,null,null,0,null,null,null,null,null,null,0]
[474,null,null,null,null,null,null,null,null,null,null,null,0,null,null,null,null,null,null,0]
[475,null,null,null,null,null,null,null,null,null,null,null,0,null,null,null,null,null,null,0]
[476,null,null,null,null,null,null,null,null,null,null,null,0,null,null,null,null,null,null,0]
[477,null,null,null,null,null,null,null,null,null,null,null,0,null,null,null,null,null,null,0]
[478,null,null,null,null,null,null,null,null,null,null,null,0,null,null,null,null,null,null,0]
[479,null,null,null,null,null,null,null,null,null,null,null,0,null,null,null,null,null,null,0]
[480,null,null,null,null,null,null,null,null,null,null,null,0,null,null,null,null,null,null,0]
[481,null,null,null,null,null,null,null,null,null,null,null,0,null,null,null,null,null,null,0]
[482,null,null,null,null,null,null,null,null,null,null,null,0,null,null,null,null,null,null,0]
[483,null,null,null,null,null,null,null,null,null,null,null,0,null,null,null,null,null,null,0]
[484,null,null,null,null,null,null,null,null,null,null,null,0,null,null,null,null,null,null,0]
[485,null,null,null,null,null,null,null,null,null,null,null,0,null,null,null,null,null,null,0]
[486,null,null,null,null,null,null,null,null,null,null,null,{"$f":"(G388*$G$1 +H388*$H$1+I388*$I$1+J388*$J$1 +K388*$K$1+L388*$L$1)","v":0},null,null,null,null,null,null,{"$f":"(N388*$N$1 +O388*$O$1+P388*$P$1+Q388*$Q$1 +R388*$R$1+S388*$S$1)","v":0}]
[487,null,null,null,null,null,null,null,null,null,null,null,0,null,null,null,null,null,null,0]
[488,null,null,null,null,null,null,null,null,null,null,null,0,null,null,null,null,null,null,0]
[489,null,null,null,null,null,null,null,null,null,null,null,0,null,null,null,null,null,null,0]
[490,null,null,null,null,null,null,null,null,null,null,null,0,null,null,null,null,null,null,0]
[491,null,null,null,null,null,null,null,null,null,null,null,0,null,null,null,null,null,null,0]
[492,null,null,null,null,null,null,null,null,null,null,null,0,null,null,null,null,null,null,0]
[493,null,null,null,null,null,null,null,null,null,null,null,0,null,null,null,null,null,null,0]
[494,null,null,null,null,null,null,null,null,null,null,null,0,null,null,null,null,null,null,0]
[495,null,null,null,null,null,null,null,null,null,null,null,0,null,null,null,null,null,null,0]
[496,null,null,null,null,null,null,null,null,null,null,null,0,null,null,null,null,null,null,0]
[497,null,null,null,null,null,null,null,null,null,null,null,0,null,null,null,null,null,null,0]
[498,null,null,null,null,null,null,null,null,null,null,null,0,null,null,null,null,null,null,0]
[499,null,null,null,null,null,null,null,null,null,null,null,0,null,null,null,null,null,null,0]
[500,null,null,null,null,null,null,null,null,null,null,null,0,null,null,null,null,null,null,0]
[501,"EXL",null,"Ricker","Jana-Lena","Billerbeck",34.78,34.65,34.729999999999997,34.799999999999997,null,null,138.96,null,null,null,null,null,null,0]
[502,"EXL",null,"Schmidt","Marvin","ConAction",34.54,34.61,34.54,34.770000000000003,null,null,138.46,null,null,null,null,null,null,0]
[503,"EXL",null,"Wetter","Sabrina","Billerbeck",null,null,null,null,null,null,0,null,null,null,null,null,null,0]
[504,"EXL",null,"Schlösser","Timon","Stromberg",35.049999999999997,34.78,34.950000000000003,34.86,null,null,139.63999999999999,null,null,null,null,null,null,0]
[505,"EXL",null,"Niessen","Nicolas","Simmerath",34.89,34.83,34.79,34.840000000000003,null,null,139.35,null,null,null,null,null,null,0]
[506,"EXL",null,"Elges","Erik","Stromberg",34.68,34.729999999999997,34.86,34.65,null,null,138.91999999999999,null,null,null,null,null,null,0]
[507,"EXL",null,"Marx","Fabian","ConAction",34.64,34.799999999999997,34.729999999999997,34.67,null,null,138.84,null,null,null,null,null,null,0]
[508,"EXL",null,null,null,null,null,null,null,null,null,null,0,null,null,null,null,null,null,0]
[509,"EXL",null,null,null,null,null,null,null,null,null,null,0,null,null,null,null,null,null,0]
[510,"EXL",null,null,null,null,null,null,null,null,null,null,0,null,null,null,null,null,null,0]
[511,"EXL",null,null,null,null,null,null,null,null,null,null,0,null,null,null,null,null,null,0]
[512,null,null,null,null,null,null,null,null,null,null,null,0,null,null,null,null,null,null,0]
[513,null,null,null,null,null,null,null,null,null,null,null,0,null,null,null,null,null,null,0]
[514,null,null,null,null,null,null,null,null,null,null,null,0,null,null,null,null,null,null,0]
[515,null,null,null,null,null,null,null,null,null,null,null,0,null,null,null,null,null,null,0]
[516,null,null,null,null,null,null,null,null,null,null,null,0,null,null,null,null,null,null,0]
[517,null,null,null,null,null,null,null,null,null,null,null,0,null,null,null,null,null,null,0]
[518,null,null,null,null,null,null,null,null,null,null,null,0,null,null,null,null,null,null,0]
[519,null,null,null,null,null,null,null,null,null,null,null,0,null,null,null,null,null,null,0]
[520,null,null,null,null,null,null,null,null,null,null,null,0,null,null,null,null,null,null,0]
[521,null,null,null,null,null,null,null,null,null,null,null,0,null,null,null,null,null,null,0]
[522,null,null,null,null,null,null,null,null,null,null,null,0,null,null,null,null,null,null,0]
[523,null,null,null,null,null,null,null,null,null,null,null,0,null,null,null,null,null,null,0]
[524,null,null,null,null,null,null,null,null,null,null,null,0,null,null,null,null,null,null,0]
[525,null,null,null,null,null,null,null,null,null,null,null,0,null,null,null,null,null,null,0]
[526,null,null,null,null,null,null,null,null,null,null,null,0,null,null,null,null,null,null,0]
[527,null,null,null,null,null,null,null,null,null,null,null,0,null,null,null,null,null,null,0]
[528,null,null,null,null,null,null,null,null,null,null,null,0,null,null,null,null,null,null,0]
[529,null,null,null,null,null,null,null,null,null,null,null,0,null,null,null,null,null,null,0]
[530,null,null,null,null,null,null,null,null,null,null,null,0,null,null,null,null,null,null,0]
[531,null,null,null,null,null,null,null,null,null,null,null,0,null,null,null,null,null,null,0]
[532,null,null,null,null,null,null,null,null,null,null,null,0,null,null,null,null,null,null,0]
[533,null,null,null,null,null,null,null,null,null,null,null,0,null,null,null,null,null,null,0]
[534,null,null,null,null,null,null,null,null,null,null,null,0,null,null,null,null,null,null,0]
[535,null,null,null,null,null,null,null,null,null,null,null,0,null,null,null,null,null,null,0]
[536,null,null,null,null,null,null,null,null,null,null,null,0,null,null,null,null,null,null,0]
[537,null,null,null,null,null,null,null,null,null,null,null,0,null,null,null,null,null,null,0]
[538,null,null,null,null,null,null,null,null,null,null,null,0,null,null,null,null,null,null,0]
[539,null,null,null,null,null,null,null,null,null,null,null,0,null,null,null,null,null,null,0]
[540,null,null,null,null,null,null,null,null,null,null,null,0,null,null,null,null,null,null,0]
[541,null,null,null,null,null,null,null,null,null,null,null,0,null,null,null,null,null,null,0]
[542,null,null,null,null,null,null,null,null,null,null,null,0,null,null,null,null,null,null,0]
[543,null,null,null,null,null,null,null,null,null,null,null,0,null,null,null,null,null,null,0]
[544,null,null,null,null,null,null,null,null,null,null,null,0,null,null,null,null,null,null,0]
[545,null,null,null,null,null,null,null,null,null,null,null,0,null,null,null,null,null,null,0]
[546,null,null,null,null,null,null,null,null,null,null,null,0,null,null,null,null,null,null,0]
[547,null,null,null,null,null,null,null,null,null,null,null,0,null,null,null,null,null,null,0]
[548,null,null,null,null,null,null,null,null,null,null,null,0,null,null,null,null,null,null,0]
[549,null,null,null,null,null,null,null,null,null,null,null,0,null,null,null,null,null,null,0]
[550,null,null,null,null,null,null,null,null,null,null,null,{"$f":"(G452*$G$1 +H452*$H$1+I452*$I$1+J452*$J$1 +K452*$K$1+L452*$L$1)","v":0},null,null,null,null,null,null,{"$f":"(N452*$N$1 +O452*$O$1+P452*$P$1+Q452*$Q$1 +R452*$R$1+S452*$S$1)","v":0}]
[551,null,null,null,null,null,null,null,null,null,null,null,0,null,null,null,null,null,null,0]
[552,null,null,null,null,null,null,null,null,null,null,null,0,null,null,null,null,null,null,0]
[553,null,null,null,null,null,null,null,null,null,null,null,0,null,null,null,null,null,null,0]
[554,null,null,null,null,null,null,null,null,null,null,null,0,null,null,null,null,null,null,0]
[555,null,null,null,null,null,null,null,null,null,null,null,0,null,null,null,null,null,null,0]
[556,null,null,null,null,null,null,null,null,null,null,null,0,null,null,null,null,null,null,0]
[557,null,null,null,null,null,null,null,null,null,null,null,0,null,null,null,null,null,null,0]
[558,null,null,null,null,null,null,null,null,null,null,null,0,null,null,null,null,null,null,0]
[559,null,null,null,null,null,null,null,null,null,null,null,0,null,null,null,null,null,null,0]
[560,null,null,null,null,null,null,null,null,null,null,null,0,null,null,null,null,null,null,0]
[561,null,null,null,null,null,null,null,null,null,null,null,0,null,null,null,null,null,null,0]
[562,null,null,null,null,null,null,null,null,null,null,null,0,null,null,null,null,null,null,0]
[563,null,null,null,null,null,null,null,null,null,null,null,0,null,null,null,null,null,null,0]
[564,null,null,null,null,null,null,null,null,null,null,null,0,null,null,null,null,null,null,0]
[565,null,null,null,null,null,null,null,null,null,null,null,0,null,null,null,null,null,null,0]
[566,null,null,null,null,null,null,null,null,null,null,null,0,null,null,null,null,null,null,0]
[567,null,null,null,null,null,null,null,null,null,null,null,0,null,null,null,null,null,null,0]
[568,null,null,null,null,null,null,null,null,null,null,null,0,null,null,null,null,null,null,0]
[569,null,null,null,null,null,null,null,null,null,null,null,0,null,null,null,null,null,null,0]
[570,null,null,null,null,null,null,null,null,null,null,null,0,null,null,null,null,null,null,0]
[571,null,null,null,null,null,null,null,null,null,null,null,0,null,null,null,null,null,null,0]
[572,null,null,null,null,null,null,null,null,null,null,null,0,null,null,null,null,null,null,0]
[573,null,null,null,null,null,null,null,null,null,null,null,0,null,null,null,null,null,null,0]
[574,null,null,null,null,null,null,null,null,null,null,null,0,null,null,null,null,null,null,0]
[575,null,null,null,null,null,null,null,null,null,null,null,0,null,null,null,null,null,null,0]
[576,null,null,null,null,null,null,null,null,null,null,null,0,null,null,null,null,null,null,0]
[577,null,null,null,null,null,null,null,null,null,null,null,0,null,null,null,null,null,null,0]
[578,null,null,null,null,null,null,null,null,null,null,null,0,null,null,null,null,null,null,0]
[579,null,null,null,null,null,null,null,null,null,null,null,0,null,null,null,null,null,null,0]
[580,null,null,null,null,null,null,null,null,null,null,null,0,null,null,null,null,null,null,0]
[581,null,null,null,null,null,null,null,null,null,null,null,0,null,null,null,null,null,null,0]
[582,null,null,null,null,null,null,null,null,null,null,null,0,null,null,null,null,null,null,0]
[583,null,null,null,null,null,null,null,null,null,null,null,0,null,null,null,null,null,null,0]
[584,null,null,null,null,null,null,null,null,null,null,null,0,null,null,null,null,null,null,0]
[585,null,null,null,null,null,null,null,null,null,null,null,0,null,null,null,null,null,null,0]
[586,null,null,null,null,null,null,null,null,null,null,null,0,null,null,null,null,null,null,0]
[587,null,null,null,null,null,null,null,null,null,null,null,0,null,null,null,null,null,null,0]
[588,null,null,null,null,null,null,null,null,null,null,null,0,null,null,null,null,null,null,0]
[589,null,null,null,null,null,null,null,null,null,null,null,0,null,null,null,null,null,null,0]
[590,null,null,null,null,null,null,null,null,null,null,null,0,null,null,null,null,null,null,0]
[591,null,null,null,null,null,null,null,null,null,null,null,0,null,null,null,null,null,null,0]
[592,null,null,null,null,null,null,null,null,null,null,null,0,null,null,null,null,null,null,0]
[593,null,null,null,null,null,null,null,null,null,null,null,0,null,null,null,null,null,null,0]
[594,null,null,null,null,null,null,null,null,null,null,null,0,null,null,null,null,null,null,0]
[595,null,null,null,null,null,null,null,null,null,null,null,0,null,null,null,null,null,null,0]
[596,null,null,null,null,null,null,null,null,null,null,null,0,null,null,null,null,null,null,0]
[597,null,null,null,null,null,null,null,null,null,null,null,0,null,null,null,null,null,null,0]
[598,null,null,null,null,null,null,null,null,null,null,null,0,null,null,null,null,null,null,0]
[599,null,null,null,null,null,null,null,null,null,null,null,0,null,null,null,null,null,null,0]
[600,null,null,null,null,null,null,null,null,null,null,null,0,null,null,null,null,null,null,0]
[601,null,null,null,null,null,null,null,null,null,null,null,0,null,null,null,null,null,null,0]
[602,null,null,null,null,null,null,null,null,null,null,null,0,null,null,null,null,null,null,0]
[603,null,null,null,null,null,null,null,null,null,null,null,0,null,null,null,null,null,null,0]
[604,null,null,null,null,null,null,null,null,null,null,null,0,null,null,null,null,null,null,0]
[605,null,null,null,null,null,null,null,null,null,null,null,0,null,null,null,null,null,null,0]
[606,null,null,null,null,null,null,null,null,null,null,null,0,null,null,null,null,null,null,0]
[607,null,null,null,null,null,null,null,null,null,null,null,0,null,null,null,null,null,null,0]
[608,null,null,null,null,null,null,null,null,null,null,null,0,null,null,null,null,null,null,0]
[609,null,null,null,null,null,null,null,null,null,null,null,0,null,null,null,null,null,null,0]
[610,null,null,null,null,null,null,null,null,null,null,null,0,null,null,null,null,null,null,0]
[611,null,null,null,null,null,null,null,null,null,null,null,0,null,null,null,null,null,null,0]
[612,null,null,null,null,null,null,null,null,null,null,null,0,null,null,null,null,null,null,0]
[613,null,null,null,null,null,null,null,null,null,null,null,0,null,null,null,null,null,null,0]
[614,null,null,null,null,null,null,null,null,null,null,null,{"$f":"(G516*$G$1 +H516*$H$1+I516*$I$1+J516*$J$1 +K516*$K$1+L516*$L$1)","v":0},null,null,null,null,null,null,{"$f":"(N516*$N$1 +O516*$O$1+P516*$P$1+Q516*$Q$1 +R516*$R$1+S516*$S$1)","v":0}]
[615,null,null,null,null,null,null,null,null,null,null,null,0,null,null,null,null,null,null,0]
[616,null,null,null,null,null,null,null,null,null,null,null,0,null,null,null,null,null,null,0]
[617,null,null,null,null,null,null,null,null,null,null,null,0,null,null,null,null,null,null,0]
[618,null,null,null,null,null,null,null,null,null,null,null,0,null,null,null,null,null,null,0]
[619,null,null,null,null,null,null,null,null,null,null,null,0,null,null,null,null,null,null,0]
[620,null,null,null,null,null,null,null,null,null,null,null,0,null,null,null,null,null,null,0]
[621,null,null,null,null,null,null,null,null,null,null,null,0,null,null,null,null,null,null,0]
[622,null,null,null,null,null,null,null,null,null,null,null,0,null,null,null,null,null,null,0]
[623,null,null,null,null,null,null,null,null,null,null,null,0,null,null,null,null,null,null,0]
[624,null,null,null,null,null,null,null,null,null,null,null,0,null,null,null,null,null,null,0]
[625,null,null,null,null,null,null,null,null,null,null,null,0,null,null,null,null,null,null,0]
[626,null,null,null,null,null,null,null,null,null,null,null,0,null,null,null,null,null,null,0]
[627,null,null,null,null,null,null,null,null,null,null,null,0,null,null,null,null,null,null,0]
[628,null,null,null,null,null,null,null,null,null,null,null,0,null,null,null,null,null,null,0]
[629,null,null,null,null,null,null,null,null,null,null,null,0,null,null,null,null,null,null,0]
[630,null,null,null,null,null,null,null,null,null,null,null,0,null,null,null,null,null,null,0]
[631,null,null,null,null,null,null,null,null,null,null,null,0,null,null,null,null,null,null,0]
[632,null,null,null,null,null,null,null,null,null,null,null,0,null,null,null,null,null,null,0]
[633,null,null,null,null,null,null,null,null,null,null,null,0,null,null,null,null,null,null,0]
[634,null,null,null,null,null,null,null,null,null,null,null,0,null,null,null,null,null,null,0]
[635,null,null,null,null,null,null,null,null,null,null,null,0,null,null,null,null,null,null,0]
[636,null,null,null,null,null,null,null,null,null,null,null,0,null,null,null,null,null,null,0]
[637,null,null,null,null,null,null,null,null,null,null,null,0,null,null,null,null,null,null,0]
[638,null,null,null,null,null,null,null,null,null,null,null,0,null,null,null,null,null,null,0]
[639,null,null,null,null,null,null,null,null,null,null,null,0,null,null,null,null,null,null,0]
[640,null,null,null,null,null,null,null,null,null,null,null,0,null,null,null,null,null,null,0]
[641,null,null,null,null,null,null,null,null,null,null,null,0,null,null,null,null,null,null,0]
[642,null,null,null,null,null,null,null,null,null,null,null,0,null,null,null,null,null,null,0]
[643,null,null,null,null,null,null,null,null,null,null,null,0,null,null,null,null,null,null,0]
[644,null,null,null,null,null,null,null,null,null,null,null,0,null,null,null,null,null,null,0]
[645,null,null,null,null,null,null,null,null,null,null,null,0,null,null,null,null,null,null,0]
[646,null,null,null,null,null,null,null,null,null,null,null,0,null,null,null,null,null,null,0]
[647,null,null,null,null,null,null,null,null,null,null,null,0,null,null,null,null,null,null,0]
[648,null,null,null,null,null,null,null,null,null,null,null,0,null,null,null,null,null,null,0]
[649,null,null,null,null,null,null,null,null,null,null,null,0,null,null,null,null,null,null,0]
[650,null,null,null,null,null,null,null,null,null,null,null,0,null,null,null,null,null,null,0]
[651,null,null,null,null,null,null,null,null,null,null,null,0,null,null,null,null,null,null,0]
[652,null,null,null,null,null,null,null,null,null,null,null,0,null,null,null,null,null,null,0]
[653,null,null,null,null,null,null,null,null,null,null,null,0,null,null,null,null,null,null,0]
[654,null,null,null,null,null,null,null,null,null,null,null,0,null,null,null,null,null,null,0]
[655,null,null,null,null,null,null,null,null,null,null,null,0,null,null,null,null,null,null,0]
[656,null,null,null,null,null,null,null,null,null,null,null,0,null,null,null,null,null,null,0]
[657,null,null,null,null,null,null,null,null,null,null,null,0,null,null,null,null,null,null,0]
[658,null,null,null,null,null,null,null,null,null,null,null,0,null,null,null,null,null,null,0]
[659,null,null,null,null,null,null,null,null,null,null,null,0,null,null,null,null,null,null,0]
[660,null,null,null,null,null,null,null,null,null,null,null,0,null,null,null,null,null,null,0]
[661,null,null,null,null,null,null,null,null,null,null,null,0,null,null,null,null,null,null,0]
[662,null,null,null,null,null,null,null,null,null,null,null,0,null,null,null,null,null,null,0]
[663,null,null,null,null,null,null,null,null,null,null,null,0,null,null,null,null,null,null,0]
[664,null,null,null,null,null,null,null,null,null,null,null,0,null,null,null,null,null,null,0]
[665,null,null,null,null,null,null,null,null,null,null,null,0,null,null,null,null,null,null,0]
[666,null,null,null,null,null,null,null,null,null,null,null,0,null,null,null,null,null,null,0]
[667,null,null,null,null,null,null,null,null,null,null,null,0,null,null,null,null,null,null,0]
[668,null,null,null,null,null,null,null,null,null,null,null,0,null,null,null,null,null,null,0]
[669,null,null,null,null,null,null,null,null,null,null,null,0,null,null,null,null,null,null,0]
[670,null,null,null,null,null,null,null,null,null,null,null,0,null,null,null,null,null,null,0]
[671,null,null,null,null,null,null,null,null,null,null,null,0,null,null,null,null,null,null,0]
[672,null,null,null,null,null,null,null,null,null,null,null,0,null,null,null,null,null,null,0]
[673,null,null,null,null,null,null,null,null,null,null,null,0,null,null,null,null,null,null,0]
[674,null,null,null,null,null,null,null,null,null,null,null,0,null,null,null,null,null,null,0]
[675,null,null,null,null,null,null,null,null,null,null,null,0,null,null,null,null,null,null,0]
[676,null,null,null,null,null,null,null,null,null,null,null,0,null,null,null,null,null,null,0]
[677,null,null,null,null,null,null,null,null,null,null,null,0,null,null,null,null,null,null,0]
[678,null,null,null,null,null,null,null,null,null,null,null,{"$f":"(G580*$G$1 +H580*$H$1+I580*$I$1+J580*$J$1 +K580*$K$1+L580*$L$1)","v":0},null,null,null,null,null,null,{"$f":"(N580*$N$1 +O580*$O$1+P580*$P$1+Q580*$Q$1 +R580*$R$1+S580*$S$1)","v":0}]
[679,null,null,null,null,null,null,null,null,null,null,null,0,null,null,null,null,null,null,0]
[680,null,null,null,null,null,null,null,null,null,null,null,0,null,null,null,null,null,null,0]
[681,null,null,null,null,null,null,null,null,null,null,null,0,null,null,null,null,null,null,0]
[682,null,null,null,null,null,null,null,null,null,null,null,0,null,null,null,null,null,null,0]
[683,null,null,null,null,null,null,null,null,null,null,null,0,null,null,null,null,null,null,0]
[684,null,null,null,null,null,null,null,null,null,null,null,0,null,null,null,null,null,null,0]
[685,null,null,null,null,null,null,null,null,null,null,null,0,null,null,null,null,null,null,0]
[686,null,null,null,null,null,null,null,null,null,null,null,0,null,null,null,null,null,null,0]
[687,null,null,null,null,null,null,null,null,null,null,null,0,null,null,null,null,null,null,0]
[688,null,null,null,null,null,null,null,null,null,null,null,0,null,null,null,null,null,null,0]
[689,null,null,null,null,null,null,null,null,null,null,null,0,null,null,null,null,null,null,0]
[690,null,null,null,null,null,null,null,null,null,null,null,0,null,null,null,null,null,null,0]
[691,null,null,null,null,null,null,null,null,null,null,null,0,null,null,null,null,null,null,0]
[692,null,null,null,null,null,null,null,null,null,null,null,0,null,null,null,null,null,null,0]
[693,null,null,null,null,null,null,null,null,null,null,null,0,null,null,null,null,null,null,0]
[694,null,null,null,null,null,null,null,null,null,null,null,0,null,null,null,null,null,null,0]
[695,null,null,null,null,null,null,null,null,null,null,null,0,null,null,null,null,null,null,0]
[696,null,null,null,null,null,null,null,null,null,null,null,0,null,null,null,null,null,null,0]
[697,null,null,null,null,null,null,null,null,null,null,null,0,null,null,null,null,null,null,0]
[698,null,null,null,null,null,null,null,null,null,null,null,0,null,null,null,null,null,null,0]
[699,null,null,null,null,null,null,null,null,null,null,null,0,null,null,null,null,null,null,0]
[700,null,null,null,null,null,null,null,null,null,null,null,0,null,null,null,null,null,null,0]
[701,"EXL18",null,"Wettendorf","Kathrin","Stromberg",34.54,34.54,34.67,34.58,null,null,138.33000000000001,null,null,null,null,null,null,0]
[702,"EXL18",null,"Voß","Marie-Charlotte","Bergkamen",34.35,34.54,34.44,34.520000000000003,null,null,137.85,null,null,null,null,null,null,0]
[703,"EXL18",null,"Schmidt","Imke","ConAction",34.6,34.61,34.590000000000003,34.53,null,null,138.33000000000001,null,null,null,null,null,null,0]
[704,"EXL18",null,"Näther","Jacqueline","Xanten",null,null,null,null,null,null,0,null,null,null,null,null,null,0]
[705,"EXL18",null,"Freudenstein","Thomas","Mettingen",34.549999999999997,34.74,34.58,34.659999999999997,null,null,138.53,null,null,null,null,null,null,0]
[706,"EXL18",null,"Ricker","Oliver","Billerbeck",null,null,null,null,null,null,0,null,null,null,null,null,null,0]
[707,"EXL18",null,"Lange","Florian","Mettingen",34.75,34.65,35.04,34.72,null,null,139.16,null,null,null,null,null,null,0]
[708,"EXL18",null,"Kelch","Maria","Bergkamen",34.79,34.86,35.06,34.880000000000003,null,null,139.59,null,null,null,null,null,null,0]
[709,"EXL18",null,"Schröer","Sabrina","Mettingen",34.78,34.75,35.020000000000003,34.590000000000003,null,null,139.13999999999999,null,null,null,null,null,null,0]
[710,"EXL18",null,"Roeben","Frank","Simmerath",null,null,null,null,null,null,0,null,null,null,null,null,null,0]
[711,"EXL18",null,"Leismann","Pascal","Mettingen",null,null,null,null,null,null,0,null,null,null,null,null,null,0]
[712,"EXL18",null,"Rohls","Sebastian","Stromberg",34.46,34.590000000000003,34.619999999999997,34.450000000000003,null,null,138.12,null,null,null,null,null,null,0]
[713,"EXL18",null,"Isaac","Marvin","Simmerath",null,null,null,null,null,null,0,null,null,null,null,null,null,0]
[714,"EXL18",null,"Ricker","Kristina","Billerbeck",34.58,35.06,34.79,34.840000000000003,null,null,139.27000000000001,null,null,null,null,null,null,0]
[715,"EXL18",null,"Lance","Arnold","Klüsserath",null,null,null,null,null,null,0,null,null,null,null,null,null,0]
[716,"EXL18",null,"Ricker","Claudia","Billerbeck",null,null,null,null,null,null,0,null,null,null,null,null,null,0]
[717,"EXL18",null,"Brüggemann","Jenny","Havixbeck",null,null,null,null,null,null,0,null,null,null,null,null,null,0]
[718,"EXL18",null,"Stagge","Jonas",null,null,null,null,null,null,null,0,null,null,null,null,null,null,0]
[719,"EXL18",null,"Meyer","Patrick","Simmerath",null,null,null,null,null,null,0,null,null,null,null,null,null,0]
[720,"EXL18",null,"Wetter","Sebastian","Billerbeck",null,null,null,null,null,null,0,null,null,null,null,null,null,0]
[721,"EXL18",null,"Leismann","Dominik","Mettingen",34.590000000000003,34.67,34.74,34.549999999999997,null,null,138.55000000000001,null,null,null,null,null,null,0]
[722,"EXL18",null,"van Loo","Julian","ConAction",34.5,34.700000000000003,34.61,34.56,null,null,138.37,null,null,null,null,null,null,0]
[723,"EXL18",null,"Sulitze","Jessica","Bergkamen",35.04,34.799999999999997,35.11,34.840000000000003,null,null,139.79,null,null,null,null,null,null,0]
[724,"EXL18",null,null,null,null,null,null,null,null,null,null,0,null,null,null,null,null,null,0]
[725,"EXL18",null,"Leismann","Pascal","SV Losaurach",34.49,34.65,34.75,34.590000000000003,null,null,138.47999999999999,null,null,null,null,null,null,0]
[726,"EXL18",null,null,null,null,null,null,null,null,null,null,0,null,null,null,null,null,null,0]
[727,"EXL18",null,null,null,null,null,null,null,null,null,null,0,null,null,null,null,null,null,0]
[728,"EXL18",null,null,null,null,null,null,null,null,null,null,0,null,null,null,null,null,null,0]
[729,"EXL18",null,null,null,null,null,null,null,null,null,null,0,null,null,null,null,null,null,0]
[730,"EXL18",null,null,null,null,null,null,null,null,null,null,0,null,null,null,null,null,null,0]
[731,"EXL18",null,null,null,null,null,null,null,null,null,null,0,null,null,null,null,null,null,0]
[732,"EXL18",null,null,null,null,null,null,null,null,null,null,0,null,null,null,null,null,null,0]
[733,"EXL18",null,null,null,null,null,null,null,null,null,null,0,null,null,null,null,null,null,0]
[734,"EXL18",null,null,null,null,null,null,null,null,null,null,0,null,null,null,null,null,null,0]
[735,null,null,null,null,null,null,null,null,null,null,null,0,null,null,null,null,null,null,0]
[736,null,null,null,null,null,null,null,null,null,null,null,0,null,null,null,null,null,null,0]
[737,null,null,null,null,null,null,null,null,null,null,null,0,null,null,null,null,null,null,0]
[738,null,null,null,null,null,null,null,null,null,null,null,0,null,null,null,null,null,null,0]
[739,null,null,null,null,null,null,null,null,null,null,null,0,null,null,null,null,null,null,0]
[740,null,null,null,null,null,null,null,null,null,null,null,0,null,null,null,null,null,null,0]
[741,null,null,null,null,null,null,null,null,null,null,null,0,null,null,null,null,null,null,0]
[742,null,null,null,null,null,null,null,null,null,null,null,{"$f":"(G644*$G$1 +H644*$H$1+I644*$I$1+J644*$J$1 +K644*$K$1+L644*$L$1)","v":0},null,null,null,null,null,null,{"$f":"(N644*$N$1 +O644*$O$1+P644*$P$1+Q644*$Q$1 +R644*$R$1+S644*$S$1)","v":0}]
[743,null,null,null,null,null,null,null,null,null,null,null,0,null,null,null,null,null,null,0]
[744,null,null,null,null,null,null,null,null,null,null,null,0,null,null,null,null,null,null,0]
[745,null,null,null,null,null,null,null,null,null,null,null,0,null,null,null,null,null,null,0]
[746,null,null,null,null,null,null,null,null,null,null,null,0,null,null,null,null,null,null,0]
[747,null,null,null,null,null,null,null,null,null,null,null,0,null,null,null,null,null,null,0]
[748,null,null,null,null,null,null,null,null,null,null,null,0,null,null,null,null,null,null,0]
[749,null,null,null,null,null,null,null,null,null,null,null,0,null,null,null,null,null,null,0]
[750,null,null,null,null,null,null,null,null,null,null,null,0,null,null,null,null,null,null,0]
[751,null,null,null,null,null,null,null,null,null,null,null,0,null,null,null,null,null,null,0]
[752,null,null,null,null,null,null,null,null,null,null,null,0,null,null,null,null,null,null,0]
[753,null,null,null,null,null,null,null,null,null,null,null,0,null,null,null,null,null,null,0]
[754,null,null,null,null,null,null,null,null,null,null,null,0,null,null,null,null,null,null,0]
[755,null,null,null,null,null,null,null,null,null,null,null,0,null,null,null,null,null,null,0]
[756,null,null,null,null,null,null,null,null,null,null,null,0,null,null,null,null,null,null,0]
[757,null,null,null,null,null,null,null,null,null,null,null,0,null,null,null,null,null,null,0]
[758,null,null,null,null,null,null,null,null,null,null,null,0,null,null,null,null,null,null,0]
[759,null,null,null,null,null,null,null,null,null,null,null,0,null,null,null,null,null,null,0]
[760,null,null,null,null,null,null,null,null,null,null,null,0,null,null,null,null,null,null,0]
[761,null,null,null,null,null,null,null,null,null,null,null,0,null,null,null,null,null,null,0]
[762,null,null,null,null,null,null,null,null,null,null,null,0,null,null,null,null,null,null,0]
[763,null,null,null,null,null,null,null,null,null,null,null,0,null,null,null,null,null,null,0]
[764,null,null,null,null,null,null,null,null,null,null,null,0,null,null,null,null,null,null,0]
[765,null,null,null,null,null,null,null,null,null,null,null,0,null,null,null,null,null,null,0]
[766,null,null,null,null,null,null,null,null,null,null,null,0,null,null,null,null,null,null,0]
[767,null,null,null,null,null,null,null,null,null,null,null,0,null,null,null,null,null,null,0]
[768,null,null,null,null,null,null,null,null,null,null,null,0,null,null,null,null,null,null,0]
[769,null,null,null,null,null,null,null,null,null,null,null,0,null,null,null,null,null,null,0]
[770,null,null,null,null,null,null,null,null,null,null,null,0,null,null,null,null,null,null,0]
[771,null,null,null,null,null,null,null,null,null,null,null,0,null,null,null,null,null,null,0]
[772,null,null,null,null,null,null,null,null,null,null,null,0,null,null,null,null,null,null,0]
[773,null,null,null,null,null,null,null,null,null,null,null,0,null,null,null,null,null,null,0]
[774,null,null,null,null,null,null,null,null,null,null,null,0,null,null,null,null,null,null,0]
[775,null,null,null,null,null,null,null,null,null,null,null,0,null,null,null,null,null,null,0]
[776,null,null,null,null,null,null,null,null,null,null,null,0,null,null,null,null,null,null,0]
[777,null,null,null,null,null,null,null,null,null,null,null,0,null,null,null,null,null,null,0]
[778,null,null,null,null,null,null,null,null,null,null,null,0,null,null,null,null,null,null,0]
[779,null,null,null,null,null,null,null,null,null,null,null,0,null,null,null,null,null,null,0]
[780,null,null,null,null,null,null,null,null,null,null,null,0,null,null,null,null,null,null,0]
[781,null,null,null,null,null,null,null,null,null,null,null,0,null,null,null,null,null,null,0]
[782,null,null,null,null,null,null,null,null,null,null,null,0,null,null,null,null,null,null,0]
[783,null,null,null,null,null,null,null,null,null,null,null,0,null,null,null,null,null,null,0]
[784,null,null,null,null,null,null,null,null,null,null,null,0,null,null,null,null,null,null,0]
[785,null,null,null,null,null,null,null,null,null,null,null,0,null,null,null,null,null,null,0]
[786,null,null,null,null,null,null,null,null,null,null,null,0,null,null,null,null,null,null,0]
[787,null,null,null,null,null,null,null,null,null,null,null,0,null,null,null,null,null,null,0]
[788,null,null,null,null,null,null,null,null,null,null,null,0,null,null,null,null,null,null,0]
[789,null,null,null,null,null,null,null,null,null,null,null,0,null,null,null,null,null,null,0]
[790,null,null,null,null,null,null,null,null,null,null,null,0,null,null,null,null,null,null,0]
[791,null,null,null,null,null,null,null,null,null,null,null,0,null,null,null,null,null,null,0]
[792,null,null,null,null,null,null,null,null,null,null,null,0,null,null,null,null,null,null,0]
[793,null,null,null,null,null,null,null,null,null,null,null,0,null,null,null,null,null,null,0]
[794,null,null,null,null,null,null,null,null,null,null,null,0,null,null,null,null,null,null,0]
[795,null,null,null,null,null,null,null,null,null,null,null,0,null,null,null,null,null,null,0]
[796,null,null,null,null,null,null,null,null,null,null,null,0,null,null,null,null,null,null,0]
[797,null,null,null,null,null,null,null,null,null,null,null,0,null,null,null,null,null,null,0]
[798,null,null,null,null,null,null,null,null,null,null,null,0,null,null,null,null,null,null,0]
[799,null,null,null,null,null,null,null,null,null,null,null,0,null,null,null,null,null,null,0]
[800,null,null,null,null,null,null,null,null,null,null,null,0,null,null,null,null,null,null,0]
[801,null,null,null,null,null,null,null,null,null,null,null,0,null,null,null,null,null,null,0]
[802,null,null,null,null,null,null,null,null,null,null,null,0,null,null,null,null,null,null,0]
[803,null,null,null,null,null,null,null,null,null,null,null,0,null,null,null,null,null,null,0]
[804,null,null,null,null,null,null,null,null,null,null,null,0,null,null,null,null,null,null,0]
[805,null,null,null,null,null,null,null,null,null,null,null,0,null,null,null,null,null,null,0]
[806,null,null,null,null,null,null,null,null,null,null,null,{"$f":"(G708*$G$1 +H708*$H$1+I708*$I$1+J708*$J$1 +K708*$K$1+L708*$L$1)","v":0},null,null,null,null,null,null,{"$f":"(N708*$N$1 +O708*$O$1+P708*$P$1+Q708*$Q$1 +R708*$R$1+S708*$S$1)","v":0}]
[807,null,null,null,null,null,null,null,null,null,null,null,0,null,null,null,null,null,null,0]
[808,null,null,null,null,null,null,null,null,null,null,null,0,null,null,null,null,null,null,0]
[809,null,null,null,null,null,null,null,null,null,null,null,0,null,null,null,null,null,null,0]
[810,null,null,null,null,null,null,null,null,null,null,null,0,null,null,null,null,null,null,0]
[811,null,null,null,null,null,null,null,null,null,null,null,0,null,null,null,null,null,null,0]
[812,null,null,null,null,null,null,null,null,null,null,null,0,null,null,null,null,null,null,0]
[813,null,null,null,null,null,null,null,null,null,null,null,0,null,null,null,null,null,null,0]
[814,null,null,null,null,null,null,null,null,null,null,null,0,null,null,null,null,null,null,0]
[815,null,null,null,null,null,null,null,null,null,null,null,0,null,null,null,null,null,null,0]
[816,null,null,null,null,null,null,null,null,null,null,null,0,null,null,null,null,null,null,0]
[817,null,null,null,null,null,null,null,null,null,null,null,0,null,null,null,null,null,null,0]
[818,null,null,null,null,null,null,null,null,null,null,null,0,null,null,null,null,null,null,0]
[819,null,null,null,null,null,null,null,null,null,null,null,0,null,null,null,null,null,null,0]
[820,null,null,null,null,null,null,null,null,null,null,null,0,null,null,null,null,null,null,0]
[821,null,null,null,null,null,null,null,null,null,null,null,0,null,null,null,null,null,null,0]
[822,null,null,null,null,null,null,null,null,null,null,null,0,null,null,null,null,null,null,0]
[823,null,null,null,null,null,null,null,null,null,null,null,0,null,null,null,null,null,null,0]
[824,null,null,null,null,null,null,null,null,null,null,null,0,null,null,null,null,null,null,0]
[825,null,null,null,null,null,null,null,null,null,null,null,0,null,null,null,null,null,null,0]
[826,null,null,null,null,null,null,null,null,null,null,null,0,null,null,null,null,null,null,0]
[827,null,null,null,null,null,null,null,null,null,null,null,0,null,null,null,null,null,null,0]
[828,null,null,null,null,null,null,null,null,null,null,null,0,null,null,null,null,null,null,0]
[829,null,null,null,null,null,null,null,null,null,null,null,0,null,null,null,null,null,null,0]
[830,null,null,null,null,null,null,null,null,null,null,null,0,null,null,null,null,null,null,0]
[831,null,null,null,null,null,null,null,null,null,null,null,0,null,null,null,null,null,null,0]
[832,null,null,null,null,null,null,null,null,null,null,null,0,null,null,null,null,null,null,0]
[833,null,null,null,null,null,null,null,null,null,null,null,0,null,null,null,null,null,null,0]
[834,null,null,null,null,null,null,null,null,null,null,null,0,null,null,null,null,null,null,0]
[835,null,null,null,null,null,null,null,null,null,null,null,0,null,null,null,null,null,null,0]
[836,null,null,null,null,null,null,null,null,null,null,null,0,null,null,null,null,null,null,0]
[837,null,null,null,null,null,null,null,null,null,null,null,0,null,null,null,null,null,null,0]
[838,null,null,null,null,null,null,null,null,null,null,null,0,null,null,null,null,null,null,0]
[839,null,null,null,null,null,null,null,null,null,null,null,0,null,null,null,null,null,null,0]
[840,null,null,null,null,null,null,null,null,null,null,null,0,null,null,null,null,null,null,0]
[841,null,null,null,null,null,null,null,null,null,null,null,0,null,null,null,null,null,null,0]
[842,null,null,null,null,null,null,null,null,null,null,null,0,null,null,null,null,null,null,0]
[843,null,null,null,null,null,null,null,null,null,null,null,0,null,null,null,null,null,null,0]
[844,null,null,null,null,null,null,null,null,null,null,null,0,null,null,null,null,null,null,0]
[845,null,null,null,null,null,null,null,null,null,null,null,0,null,null,null,null,null,null,0]
[846,null,null,null,null,null,null,null,null,null,null,null,0,null,null,null,null,null,null,0]
[847,null,null,null,null,null,null,null,null,null,null,null,0,null,null,null,null,null,null,0]
[848,null,null,null,null,null,null,null,null,null,null,null,0,null,null,null,null,null,null,0]
[849,null,null,null,null,null,null,null,null,null,null,null,0,null,null,null,null,null,null,0]
[850,null,null,null,null,null,null,null,null,null,null,null,0,null,null,null,null,null,null,0]
[851,null,null,null,null,null,null,null,null,null,null,null,0,null,null,null,null,null,null,0]
[852,null,null,null,null,null,null,null,null,null,null,null,0,null,null,null,null,null,null,0]
[853,null,null,null,null,null,null,null,null,null,null,null,0,null,null,null,null,null,null,0]
[854,null,null,null,null,null,null,null,null,null,null,null,0,null,null,null,null,null,null,0]
[855,null,null,null,null,null,null,null,null,null,null,null,0,null,null,null,null,null,null,0]
[856,null,null,null,null,null,null,null,null,null,null,null,0,null,null,null,null,null,null,0]
[857,null,null,null,null,null,null,null,null,null,null,null,0,null,null,null,null,null,null,0]
[858,null,null,null,null,null,null,null,null,null,null,null,0,null,null,null,null,null,null,0]
[859,null,null,null,null,null,null,null,null,null,null,null,0,null,null,null,null,null,null,0]
[860,null,null,null,null,null,null,null,null,null,null,null,0,null,null,null,null,null,null,0]
[861,null,null,null,null,null,null,null,null,null,null,null,0,null,null,null,null,null,null,0]
[862,null,null,null,null,null,null,null,null,null,null,null,0,null,null,null,null,null,null,0]
[863,null,null,null,null,null,null,null,null,null,null,null,0,null,null,null,null,null,null,0]
[864,null,null,null,null,null,null,null,null,null,null,null,0,null,null,null,null,null,null,0]
[865,null,null,null,null,null,null,null,null,null,null,null,0,null,null,null,null,null,null,0]
[866,null,null,null,null,null,null,null,null,null,null,null,0,null,null,null,null,null,null,0]
[867,null,null,null,null,null,null,null,null,null,null,null,0,null,null,null,null,null,null,0]
[868,null,null,null,null,null,null,null,null,null,null,null,0,null,null,null,null,null,null,0]
[869,null,null,null,null,null,null,null,null,null,null,null,0,null,null,null,null,null,null,0]
[870,null,null,null,null,null,null,null,null,null,null,null,{"$f":"(G772*$G$1 +H772*$H$1+I772*$I$1+J772*$J$1 +K772*$K$1+L772*$L$1)","v":0},null,null,null,null,null,null,{"$f":"(N772*$N$1 +O772*$O$1+P772*$P$1+Q772*$Q$1 +R772*$R$1+S772*$S$1)","v":0}]
[871,null,null,null,null,null,null,null,null,null,null,null,0,null,null,null,null,null,null,0]
[872,null,null,null,null,null,null,null,null,null,null,null,0,null,null,null,null,null,null,0]
[873,null,null,null,null,null,null,null,null,null,null,null,0,null,null,null,null,null,null,0]
[874,null,null,null,null,null,null,null,null,null,null,null,0,null,null,null,null,null,null,0]
[875,null,null,null,null,null,null,null,null,null,null,null,0,null,null,null,null,null,null,0]
[876,null,null,null,null,null,null,null,null,null,null,null,0,null,null,null,null,null,null,0]
[877,null,null,null,null,null,null,null,null,null,null,null,0,null,null,null,null,null,null,0]
[878,null,null,null,null,null,null,null,null,null,null,null,0,null,null,null,null,null,null,0]
[879,null,null,null,null,null,null,null,null,null,null,null,0,null,null,null,null,null,null,0]
[880,null,null,null,null,null,null,null,null,null,null,null,0,null,null,null,null,null,null,0]
[881,null,null,null,null,null,null,null,null,null,null,null,0,null,null,null,null,null,null,0]
[882,null,null,null,null,null,null,null,null,null,null,null,0,null,null,null,null,null,null,0]
[883,null,null,null,null,null,null,null,null,null,null,null,0,null,null,null,null,null,null,0]
[884,null,null,null,null,null,null,null,null,null,null,null,0,null,null,null,null,null,null,0]
[885,null,null,null,null,null,null,null,null,null,null,null,0,null,null,null,null,null,null,0]
[886,null,null,null,null,null,null,null,null,null,null,null,0,null,null,null,null,null,null,0]
[887,null,null,null,null,null,null,null,null,null,null,null,0,null,null,null,null,null,null,0]
[888,null,null,null,null,null,null,null,null,null,null,null,0,null,null,null,null,null,null,0]
[889,null,null,null,null,null,null,null,null,null,null,null,0,null,null,null,null,null,null,0]
[890,null,null,null,null,null,null,null,null,null,null,null,0,null,null,null,null,null,null,0]
[891,null,null,null,null,null,null,null,null,null,null,null,0,null,null,null,null,null,null,0]
[892,null,null,null,null,null,null,null,null,null,null,null,0,null,null,null,null,null,null,0]
[893,null,null,null,null,null,null,null,null,null,null,null,0,null,null,null,null,null,null,0]
[894,null,null,null,null,null,null,null,null,null,null,null,0,null,null,null,null,null,null,0]
[895,null,null,null,null,null,null,null,null,null,null,null,0,null,null,null,null,null,null,0]
[896,null,null,null,null,null,null,null,null,null,null,null,0,null,null,null,null,null,null,0]
[897,null,null,null,null,null,null,null,null,null,null,null,0,null,null,null,null,null,null,0]
[898,null,null,null,null,null,null,null,null,null,null,null,0,null,null,null,null,null,null,0]
[899,null,null,null,null,null,null,null,null,null,null,null,0,null,null,null,null,null,null,0]
[900,null,null,null,null,null,null,null,null,null,null,null,0,null,null,null,null,null,null,0]
[901,"Open",null,"Schmidt","Michael","ConAction",34.68,34.479999999999997,34.85,34.61,null,null,{"$f":"IF($G$1=1,\nIF(H803>1,(ABS(G803-H803)),0)+\nIF(I803>1,(ABS(G803-I803)),0)+\nIF(J803>1,(ABS(G803-J803)),0)+\nIF(K803>1,(ABS(G803-K803)),0)+\nIF(L803>1,(ABS(G803-L803)),0),\n\nIF(I803>1,(ABS(H803-I803)),0)+\nIF(J803>1,(ABS(H803-J803)),0)+\nIF(K803>1,(ABS(H803-K803)),0) )","v":0.44},null,null,null,null,null,null,{"$f":"IF($N$1=1,IF(O803>1,(ABS(N803-O803)),0)+IF(P803>1,(ABS(N803-P803)),0)+IF(Q803>1,(ABS(N803-Q803)),0),IF(P803>1,(ABS(O803-P803)),0)+IF(Q803>1,(ABS(O803-Q803)),0)+IF(R803>1,(ABS(O803-R803)),0) )","v":0}]
[902,"Open",null,"Gaidosch","Udo","Overath",36.65,36.130000000000003,36.94,36.369999999999997,null,null,{"$f":"IF($G$1=1,\nIF(H804>1,(ABS(G804-H804)),0)+\nIF(I804>1,(ABS(G804-I804)),0)+\nIF(J804>1,(ABS(G804-J804)),0)+\nIF(K804>1,(ABS(G804-K804)),0)+\nIF(L804>1,(ABS(G804-L804)),0),\n\nIF(I804>1,(ABS(H804-I804)),0)+\nIF(J804>1,(ABS(H804-J804)),0)+\nIF(K804>1,(ABS(H804-K804)),0) )","v":1.0900000000000001},null,null,null,null,null,null,{"$f":"IF($N$1=1,IF(O804>1,(ABS(N804-O804)),0)+IF(P804>1,(ABS(N804-P804)),0)+IF(Q804>1,(ABS(N804-Q804)),0),IF(P804>1,(ABS(O804-P804)),0)+IF(Q804>1,(ABS(O804-Q804)),0)+IF(R804>1,(ABS(O804-R804)),0) )","v":0}]
[903,"Open",null,"Ricker","Andreas","Billerbeck",null,null,null,null,null,null,0,null,null,null,null,null,null,0]
[904,"Open",null,"Gerigk-Lorenz","Frank","Overath",36.17,35.4,36.04,36.049999999999997,null,null,1.02,null,null,null,null,null,null,0]
[905,"Open",null,"Heuermann","Holger",null,null,null,null,null,null,null,0,null,null,null,null,null,null,0]
[906,"Open",null,"Drücker","Gavin","Schloß Holte-Stuckenbrock",36.11,35.75,36.04,35.94,null,null,0.6,null,null,null,null,null,null,0]
[907,"Open",null,"Crook","Florian","Mettingen",35.44,35.520000000000003,35.4,35.51,null,null,0.19,null,null,null,null,null,null,0]
[908,"Open",null,"Drücker","Guido","Schloß Holte-Stuckenbrock",34.92,35.22,35.19,35.450000000000003,null,null,1.1000000000000001,null,null,null,null,null,null,0]
[909,"Open",null,"Pufal","Max","Lengerich",null,null,null,null,null,null,0,null,null,null,null,null,null,0]
[910,"Open",null,"Heuermann","Emily","Simmerath",null,null,null,null,null,null,0,null,null,null,null,null,null,0]
[911,"Open",null,"Meyhoff","Thomas","Mettingen",null,null,null,null,null,null,0,null,null,null,null,null,null,0]
[912,"Open",null,"Pahlings","Anna","ConAction",null,null,null,null,null,null,0,null,null,null,null,null,null,0]
[913,"Open",null,"Pahlings","Kai","ConAction",null,null,null,null,null,null,0,null,null,null,null,null,null,0]
[914,"Open",null,"Enders","Simon","Billerbeck",null,null,null,null,null,null,0,null,null,null,null,null,null,0]
[915,"Open",null,"Szabowski","Peter","Billerbeck",null,null,null,null,null,null,0,null,null,null,null,null,null,0]
[916,"Open",null,"Szabowski","Marco","Billerbeck",null,null,null,null,null,null,0,null,null,null,null,null,null,0]
[917,"Open",null,"Schlösser","Jürgen","Stromberg",null,null,null,null,null,null,0,null,null,null,null,null,null,0]
[918,"Open",null,"Szabowski","Mara","Billerbeck",null,null,null,null,null,null,0,null,null,null,null,null,null,0]
[919,"Open",null,"Pahlings","Iris","ConAction",null,null,null,null,null,null,0,null,null,null,null,null,null,0]
[920,"Open",null,"Pahlings","Detlev","ConAction",null,null,null,null,null,null,0,null,null,null,null,null,null,0]
[921,"Open",null,"Wetter","Sabrina","Billerbeck",34.86,35.049999999999997,34.97,34.92,null,null,0.36,null,null,null,null,null,null,0]
[922,"Open",null,null,null,null,null,null,null,null,null,null,0,null,null,null,null,null,null,0]
[923,"Open",null,null,null,null,null,null,null,null,null,null,0,null,null,null,null,null,null,0]
[924,"Open",null,null,null,null,null,null,null,null,null,null,0,null,null,null,null,null,null,0]
[925,"Open",null,null,null,null,null,null,null,null,null,null,0,null,null,null,null,null,null,0]
[926,"Open",null,null,null,null,null,null,null,null,null,null,0,null,null,null,null,null,null,0]
[927,"Open",null,null,null,null,null,null,null,null,null,null,0,null,null,null,null,null,null,0]
[928,"Open",null,null,null,null,null,null,null,null,null,null,0,null,null,null,null,null,null,0]
[929,null,null,null,null,null,null,null,null,null,null,null,0,null,null,null,null,null,null,0]
[930,null,null,null,null,null,null,null,null,null,null,null,0,null,null,null,null,null,null,0]
[931,null,null,null,null,null,null,null,null,null,null,null,0,null,null,null,null,null,null,0]
[932,null,null,null,null,null,null,null,null,null,null,null,0,null,null,null,null,null,null,0]
[933,null,null,null,null,null,null,null,null,null,null,null,0,null,null,null,null,null,null,0]
[934,null,null,null,null,null,null,null,null,null,null,null,0,null,null,null,null,null,null,0]
[935,null,null,null,null,null,null,null,null,null,null,null,0,null,null,null,null,null,null,0]
[936,null,null,null,null,null,null,null,null,null,null,null,0,null,null,null,null,null,null,0]
[937,null,null,null,null,null,null,null,null,null,null,null,0,null,null,null,null,null,null,0]
[938,null,null,null,null,null,null,null,null,null,null,null,0,null,null,null,null,null,null,0]
[939,null,null,null,null,null,null,null,null,null,null,null,0,null,null,null,null,null,null,0]
[940,null,null,null,null,null,null,null,null,null,null,null,0,null,null,null,null,null,null,0]
[941,null,null,null,null,null,null,null,null,null,null,null,0,null,null,null,null,null,null,0]
[942,null,null,null,null,null,null,null,null,null,null,null,0,null,null,null,null,null,null,0]
[943,null,null,null,null,null,null,null,null,null,null,null,0,null,null,null,null,null,null,0]
[944,null,null,null,null,null,null,null,null,null,null,null,0,null,null,null,null,null,null,0]
[945,null,null,null,null,null,null,null,null,null,null,null,0,null,null,null,null,null,null,0]
[946,null,null,null,null,null,null,null,null,null,null,null,0,null,null,null,null,null,null,0]
[947,null,null,null,null,null,null,null,null,null,null,null,0,null,null,null,null,null,null,0]
[948,null,null,null,null,null,null,null,null,null,null,null,0,null,null,null,null,null,null,0]
[949,null,null,null,null,null,null,null,null,null,null,null,0,null,null,null,null,null,null,0]
[999,"! ! !",null,"Einzel","! ! !","Start",null,null,null,null,null,null,null," "]

{"sheet":"NRW-Junior","index":2,"n_rows":203,"n_cols":16,"rows_kept":203,"cut":false,"hidden":false,"merged":[]}
["DSKD  Derby 25.06.2017 Mettingen/Osnabrück"]
["  NRW-Qualifikation JUNIOR - Klasse  "]
[]
["Wird der Lauf gewertet?   dann 0 oder 1 eintragen",null,null,null,null,null,1,1,1,1,1,1]
["Bestzeit je Lauf",null,null,null,null,null,{"$f":"MIN(G9:G203)","v":35.24},35.17,35.369999999999997,35.22,0,200]
[]
["Start\nNummer","Gruppe","startet","Name","Vorname","Verein","Lauf 1","Lauf 2","Lauf 3","Lauf 4","Lauf 5","Lauf 6","Summe der gewerteten Läufe",null,"Platz","Urkunde"]
[]
[104,"JUN",null,"Lampe","Ida","Mettingen",35.24,35.25,35.369999999999997,35.25,null,null,{"$f":"(G9*$G$4+H9*$H$4+I9*$I$4+J9*$J$4+K9*$K$4+L9*$L$4)","v":141.11000000000001},{"$f":"IF(M9>0,M9*-1,-1000)","v":-141.11000000000001},{"$f":"IF(M9>0,RANK(N9,N:N),0)","v":1}]
[102,"JUN",null,"Zaruba","Max","Mettingen",null,null,null,null,null,null,{"$f":"(G10*$G$4+H10*$H$4+I10*$I$4+J10*$J$4+K10*$K$4+L10*$L$4)","v":0},{"$f":"IF(M10>0,M10*-1,-1000)","v":-1000},{"$f":"IF(M10>0,RANK(N10,N:N),0)","v":0}]
[103,"JUN",null,"Meyer","Johann","Mettingen",null,null,null,null,null,null,{"$f":"(G11*$G$4+H11*$H$4+I11*$I$4+J11*$J$4+K11*$K$4+L11*$L$4)","v":0},{"$f":"IF(M11>0,M11*-1,-1000)","v":-1000},{"$f":"IF(M11>0,RANK(N11,N:N),0)","v":0}]
[105,"JUN",null,"Freudenstein","Romy","Mettingen",35.36,35.17,35.44,35.340000000000003,null,null,{"$f":"(G12*$G$4+H12*$H$4+I12*$I$4+J12*$J$4+K12*$K$4+L12*$L$4)","v":141.31},{"$f":"IF(M12>0,M12*-1,-1000)","v":-141.31},{"$f":"IF(M12>0,RANK(N12,N:N),0)","v":2}]
[101,"JUN",null,"Paschedag","Mia","Stromberg",35.39,35.26,35.46,35.22,null,null,{"$f":"(G13*$G$4+H13*$H$4+I13*$I$4+J13*$J$4+K13*$K$4+L13*$L$4)","v":141.33000000000001},{"$f":"IF(M13>0,M13*-1,-1000)","v":-141.33000000000001},{"$f":"IF(M13>0,RANK(N13,N:N),0)","v":3}]
[106,"JUN",null,"Meyhoff","Moritz","Mettingen",null,null,null,null,null,null,{"$f":"(G14*$G$4+H14*$H$4+I14*$I$4+J14*$J$4+K14*$K$4+L14*$L$4)","v":0},{"$f":"IF(M14>0,M14*-1,-1000)","v":-1000},{"$f":"IF(M14>0,RANK(N14,N:N),0)","v":0}]
[107,"JUN",null,"Szabowski","Mara","Billerbeck",null,null,null,null,null,null,{"$f":"(G15*$G$4+H15*$H$4+I15*$I$4+J15*$J$4+K15*$K$4+L15*$L$4)","v":0},{"$f":"IF(M15>0,M15*-1,-1000)","v":-1000},{"$f":"IF(M15>0,RANK(N15,N:N),0)","v":0}]
[108,"JUN",null,"Plath","Marvin","Mettingen",35.380000000000003,35.520000000000003,35.4,35.49,null,null,{"$f":"(G16*$G$4+H16*$H$4+I16*$I$4+J16*$J$4+K16*$K$4+L16*$L$4)","v":141.79},{"$f":"IF(M16>0,M16*-1,-1000)","v":-141.79},{"$f":"IF(M16>0,RANK(N16,N:N),0)","v":4}]
[125,"JUN",null,"Plath","Johanna","Mettingen",35.44,35.520000000000003,35.44,35.549999999999997,null,null,{"$f":"(G17*$G$4+H17*$H$4+I17*$I$4+J17*$J$4+K17*$K$4+L17*$L$4)","v":141.94999999999999},{"$f":"IF(M17>0,M17*-1,-1000)","v":-141.94999999999999},{"$f":"IF(M17>0,RANK(N17,N:N),0)","v":5}]
[110,"JUN",null,"Angenendt","Philip","Billerbeck",null,null,null,null,null,null,{"$f":"(G18*$G$4+H18*$H$4+I18*$I$4+J18*$J$4+K18*$K$4+L18*$L$4)","v":0},{"$f":"IF(M18>0,M18*-1,-1000)","v":-1000},{"$f":"IF(M18>0,RANK(N18,N:N),0)","v":0}]
[111,"JUN",null,"Reutter","Willi","Stromberg",null,null,null,null,null,null,{"$f":"(G19*$G$4+H19*$H$4+I19*$I$4+J19*$J$4+K19*$K$4+L19*$L$4)","v":0},{"$f":"IF(M19>0,M19*-1,-1000)","v":-1000},{"$f":"IF(M19>0,RANK(N19,N:N),0)","v":0}]
[112,"JUN",null,"Jandt","Julius","Bergkamen",null,null,null,null,null,null,{"$f":"(G20*$G$4+H20*$H$4+I20*$I$4+J20*$J$4+K20*$K$4+L20*$L$4)","v":0},{"$f":"IF(M20>0,M20*-1,-1000)","v":-1000},{"$f":"IF(M20>0,RANK(N20,N:N),0)","v":0}]
[109,"JUN",null,"Gahler","Hendrik","Mettingen",35.590000000000003,35.409999999999997,35.51,35.450000000000003,null,null,{"$f":"(G21*$G$4+H21*$H$4+I21*$I$4+J21*$J$4+K21*$K$4+L21*$L$4)","v":141.96},{"$f":"IF(M21>0,M21*-1,-1000)","v":-141.96},{"$f":"IF(M21>0,RANK(N21,N:N),0)","v":6}]
[114,"JUN",null,"Reutter","Elisabeth","Stromberg",null,null,null,null,null,null,{"$f":"(G22*$G$4+H22*$H$4+I22*$I$4+J22*$J$4+K22*$K$4+L22*$L$4)","v":0},{"$f":"IF(M22>0,M22*-1,-1000)","v":-1000},{"$f":"IF(M22>0,RANK(N22,N:N),0)","v":0}]
[115,"JUN",null,"Heuermann","Clara",null,null,null,null,null,null,null,{"$f":"(G23*$G$4+H23*$H$4+I23*$I$4+J23*$J$4+K23*$K$4+L23*$L$4)","v":0},{"$f":"IF(M23>0,M23*-1,-1000)","v":-1000},{"$f":"IF(M23>0,RANK(N23,N:N),0)","v":0}]
[116,"JUN",null,"Schier","Finn","Stromberg",35.54,35.42,35.51,35.54,null,null,{"$f":"(G24*$G$4+H24*$H$4+I24*$I$4+J24*$J$4+K24*$K$4+L24*$L$4)","v":142.01},{"$f":"IF(M24>0,M24*-1,-1000)","v":-142.01},{"$f":"IF(M24>0,RANK(N24,N:N),0)","v":7}]
[117,"JUN",null,"Crook","Florian","Mettingen",null,null,null,null,null,null,{"$f":"(G25*$G$4+H25*$H$4+I25*$I$4+J25*$J$4+K25*$K$4+L25*$L$4)","v":0},{"$f":"IF(M25>0,M25*-1,-1000)","v":-1000},{"$f":"IF(M25>0,RANK(N25,N:N),0)","v":0}]
[118,"JUN",null,"Kockmeyer","Emily","Mettingen",null,null,null,null,null,null,{"$f":"(G26*$G$4+H26*$H$4+I26*$I$4+J26*$J$4+K26*$K$4+L26*$L$4)","v":0},{"$f":"IF(M26>0,M26*-1,-1000)","v":-1000},{"$f":"IF(M26>0,RANK(N26,N:N),0)","v":0}]
[119,"JUN",null,"Schlag","Lucas","Mettingen",null,null,null,null,null,null,{"$f":"(G27*$G$4+H27*$H$4+I27*$I$4+J27*$J$4+K27*$K$4+L27*$L$4)","v":0},{"$f":"IF(M27>0,M27*-1,-1000)","v":-1000},{"$f":"IF(M27>0,RANK(N27,N:N),0)","v":0}]
[120,"JUN",null,"Stoffers","Martha","Stromberg",null,null,null,null,null,null,{"$f":"(G28*$G$4+H28*$H$4+I28*$I$4+J28*$J$4+K28*$K$4+L28*$L$4)","v":0},{"$f":"IF(M28>0,M28*-1,-1000)","v":-1000},{"$f":"IF(M28>0,RANK(N28,N:N),0)","v":0}]
[121,"JUN",null,"Schickentanz","Marius","Bergkamen",null,null,null,null,null,null,{"$f":"(G29*$G$4+H29*$H$4+I29*$I$4+J29*$J$4+K29*$K$4+L29*$L$4)","v":0},{"$f":"IF(M29>0,M29*-1,-1000)","v":-1000},{"$f":"IF(M29>0,RANK(N29,N:N),0)","v":0}]
[122,"JUN",null,"Krüger","Michelle","Billerbeck",null,null,null,null,null,null,{"$f":"(G30*$G$4+H30*$H$4+I30*$I$4+J30*$J$4+K30*$K$4+L30*$L$4)","v":0},{"$f":"IF(M30>0,M30*-1,-1000)","v":-1000},{"$f":"IF(M30>0,RANK(N30,N:N),0)","v":0}]
[123,"JUN",null,"Grützner","Lennox","Billerbeck",null,null,null,null,null,null,{"$f":"(G31*$G$4+H31*$H$4+I31*$I$4+J31*$J$4+K31*$K$4+L31*$L$4)","v":0},{"$f":"IF(M31>0,M31*-1,-1000)","v":-1000},{"$f":"IF(M31>0,RANK(N31,N:N),0)","v":0}]
[124,"JUN",null,"Enders","Julius","Billerbeck",null,null,null,null,null,null,{"$f":"(G32*$G$4+H32*$H$4+I32*$I$4+J32*$J$4+K32*$K$4+L32*$L$4)","v":0},{"$f":"IF(M32>0,M32*-1,-1000)","v":-1000},{"$f":"IF(M32>0,RANK(N32,N:N),0)","v":0}]
[128,"JUN",null,"Pufahl","Maximilian","Mettingen",35.799999999999997,35.299999999999997,35.51,35.43,null,null,{"$f":"(G33*$G$4+H33*$H$4+I33*$I$4+J33*$J$4+K33*$K$4+L33*$L$4)","v":142.04},{"$f":"IF(M33>0,M33*-1,-1000)","v":-142.04},{"$f":"IF(M33>0,RANK(N33,N:N),0)","v":8}]
[126,"JUN",null,"Demleitner","Angelika","Bergkamen",null,null,null,null,null,null,{"$f":"(G34*$G$4+H34*$H$4+I34*$I$4+J34*$J$4+K34*$K$4+L34*$L$4)","v":0},{"$f":"IF(M34>0,M34*-1,-1000)","v":-1000},{"$f":"IF(M34>0,RANK(N34,N:N),0)","v":0}]
[127,"JUN",null,"Claus","Florentina","Bergkamen",null,null,null,null,null,null,{"$f":"(G35*$G$4+H35*$H$4+I35*$I$4+J35*$J$4+K35*$K$4+L35*$L$4)","v":0},{"$f":"IF(M35>0,M35*-1,-1000)","v":-1000},{"$f":"IF(M35>0,RANK(N35,N:N),0)","v":0}]
[113,"JUN",null,"Bednarski","Max","Mettingen",35.54,35.659999999999997,35.97,35.630000000000003,null,null,{"$f":"(G36*$G$4+H36*$H$4+I36*$I$4+J36*$J$4+K36*$K$4+L36*$L$4)","v":142.80000000000001},{"$f":"IF(M36>0,M36*-1,-1000)","v":-142.80000000000001},{"$f":"IF(M36>0,RANK(N36,N:N),0)","v":9}]
[129,"JUN",null,"Bednarski","Jonathan","Mettingen",35.700000000000003,null,null,null,null,200,{"$f":"(G37*$G$4+H37*$H$4+I37*$I$4+J37*$J$4+K37*$K$4+L37*$L$4)","v":235.7},{"$f":"IF(M37>0,M37*-1,-1000)","v":-235.7},{"$f":"IF(M37>0,RANK(N37,N:N),0)","v":10}]
[130,"JUN",null,null,null,null,null,null,null,null,null,null,{"$f":"(G38*$G$4+H38*$H$4+I38*$I$4+J38*$J$4+K38*$K$4+L38*$L$4)","v":0},{"$f":"IF(M38>0,M38*-1,-1000)","v":-1000},{"$f":"IF(M38>0,RANK(N38,N:N),0)","v":0}]
[131,"JUN",null,null,null,null,null,null,null,null,null,null,0,-1000,0]
[132,"JUN",null,null,null,null,null,null,null,null,null,null,0,-1000,0]
[133,"JUN",null,null,null,null,null,null,null,null,null,null,{"$f":"(G41*$G$4+H41*$H$4+I41*$I$4+J41*$J$4+K41*$K$4+L41*$L$4)","v":0},{"$f":"IF(M41>0,M41*-1,-1000)","v":-1000},{"$f":"IF(M41>0,RANK(N41,N:N),0)","v":0}]
[134,"JUN",null,null,null,null,null,null,null,null,null,null,0,-1000,0]
[135,"JUN",null,null,null,null,null,null,null,null,null,null,0,-1000,0]
[136,"JUN",null,null,null,null,null,null,null,null,null,null,0,-1000,0]
[137,"JUN",null,null,null,null,null,null,null,null,null,null,0,-1000,0]
[138,"JUN",null,null,null,null,null,null,null,null,null,null,0,-1000,0]
[139,"JUN",null,null,null,null,null,null,null,null,null,null,0,-1000,0]
[140,"JUN",null,null,null,null,null,null,null,null,null,null,0,-1000,0]
[141,"JUN",null,null,null,null,null,null,null,null,null,null,0,-1000,0]
[142,"JUN",null,null,null,null,null,null,null,null,null,null,0,-1000,0]
[143,"JUN",null,null,null,null,null,null,null,null,null,null,0,-1000,0]
[144,"JUN",null,null,null,null,null,null,null,null,null,null,0,-1000,0]
[145,"JUN",null,null,null,null,null,null,null,null,null,null,0,-1000,0]
[146,"JUN",null,null,null,null,null,null,null,null,null,null,0,-1000,0]
[147,"JUN",null,null,null,null,null,null,null,null,null,null,0,-1000,0]
[148,"JUN",null,null,null,null,null,null,null,null,null,null,0,-1000,0]
[149,"JUN",null,null,null,null,null,null,null,null,null,null,0,-1000,0]
[null,null,null,null,null,null,null,null,null,null,null,null,0,-1000,0]
[null,null,null,null,null,null,null,null,null,null,null,null,0,-1000,0]
[null,null,null,null,null,null,null,null,null,null,null,null,0,-1000,0]
[null,null,null,null,null,null,null,null,null,null,null,null,0,-1000,0]
[null,null,null,null,null,null,null,null,null,null,null,null,0,-1000,0]
[null,null,null,null,null,null,null,null,null,null,null,null,0,-1000,0]
[null,null,null,null,null,null,null,null,null,null,null,null,0,-1000,0]
[null,null,null,null,null,null,null,null,null,null,null,null,0,-1000,0]
[null,null,null,null,null,null,null,null,null,null,null,null,0,-1000,0]
[null,null,null,null,null,null,null,null,null,null,null,null,0,-1000,0]
[null,null,null,null,null,null,null,null,null,null,null,null,0,-1000,0]
[null,null,null,null,null,null,null,null,null,null,null,null,0,-1000,0]
[null,null,null,null,null,null,null,null,null,null,null,null,0,-1000,0]
[null,null,null,null,null,null,null,null,null,null,null,null,0,-1000,0]
[null,null,null,null,null,null,null,null,null,null,null,null,0,-1000,0]
[null,null,null,null,null,null,null,null,null,null,null,null,{"$f":"(G73*$G$4+H73*$H$4+I73*$I$4+J73*$J$4+K73*$K$4+L73*$L$4)","v":0},{"$f":"IF(M73>0,M73*-1,-1000)","v":-1000},{"$f":"IF(M73>0,RANK(N73,N:N),0)","v":0}]
[null,null,null,null,null,null,null,null,null,null,null,null,0,-1000,0]
[null,null,null,null,null,null,null,null,null,null,null,null,0,-1000,0]
[null,null,null,null,null,null,null,null,null,null,null,null,0,-1000,0]
[null,null,null,null,null,null,null,null,null,null,null,null,0,-1000,0]
[null,null,null,null,null,null,null,null,null,null,null,null,0,-1000,0]
[null,null,null,null,null,null,null,null,null,null,null,null,0,-1000,0]
[null,null,null,null,null,null,null,null,null,null,null,null,0,-1000,0]
[null,null,null,null,null,null,null,null,null,null,null,null,0,-1000,0]
[null,null,null,null,null,null,null,null,null,null,null,null,0,-1000,0]
[null,null,null,null,null,null,null,null,null,null,null,null,0,-1000,0]
[null,null,null,null,null,null,null,null,null,null,null,null,0,-1000,0]
[null,null,null,null,null,null,null,null,null,null,null,null,0,-1000,0]
[null,null,null,null,null,null,null,null,null,null,null,null,0,-1000,0]
[null,null,null,null,null,null,null,null,null,null,null,null,0,-1000,0]
[null,null,null,null,null,null,null,null,null,null,null,null,0,-1000,0]
[null,null,null,null,null,null,null,null,null,null,null,null,0,-1000,0]
[null,null,null,null,null,null,null,null,null,null,null,null,0,-1000,0]
[null,null,null,null,null,null,null,null,null,null,null,null,0,-1000,0]
[null,null,null,null,null,null,null,null,null,null,null,null,0,-1000,0]
[null,null,null,null,null,null,null,null,null,null,null,null,0,-1000,0]
[null,null,null,null,null,null,null,null,null,null,null,null,0,-1000,0]
[null,null,null,null,null,null,null,null,null,null,null,null,0,-1000,0]
[null,null,null,null,null,null,null,null,null,null,null,null,0,-1000,0]
[null,null,null,null,null,null,null,null,null,null,null,null,0,-1000,0]
[null,null,null,null,null,null,null,null,null,null,null,null,0,-1000,0]
[null,null,null,null,null,null,null,null,null,null,null,null,0,-1000,0]
[null,null,null,null,null,null,null,null,null,null,null,null,0,-1000,0]
[null,null,null,null,null,null,null,null,null,null,null,null,0,-1000,0]
[null,null,null,null,null,null,null,null,null,null,null,null,0,-1000,0]
[null,null,null,null,null,null,null,null,null,null,null,null,0,-1000,0]
[null,null,null,null,null,null,null,null,null,null,null,null,0,-1000,0]
[null,null,null,null,null,null,null,null,null,null,null,null,{"$f":"(G105*$G$4+H105*$H$4+I105*$I$4+J105*$J$4+K105*$K$4+L105*$L$4)","v":0},{"$f":"IF(M105>0,M105*-1,-1000)","v":-1000},{"$f":"IF(M105>0,RANK(N105,N:N),0)","v":0}]
[null,null,null,null,null,null,null,null,null,null,null,null,0,-1000,0]
[null,null,null,null,null,null,null,null,null,null,null,null,0,-1000,0]
[null,null,null,null,null,null,null,null,null,null,null,null,0,-1000,0]
[null,null,null,null,null,null,null,null,null,null,null,null,0,-1000,0]
[null,null,null,null,null,null,null,null,null,null,null,null,0,-1000,0]
[null,null,null,null,null,null,null,null,null,null,null,null,0,-1000,0]
[null,null,null,null,null,null,null,null,null,null,null,null,0,-1000,0]
[null,null,null,null,null,null,null,null,null,null,null,null,0,-1000,0]
[null,null,null,null,null,null,null,null,null,null,null,null,0,-1000,0]
[null,null,null,null,null,null,null,null,null,null,null,null,0,-1000,0]
[null,null,null,null,null,null,null,null,null,null,null,null,0,-1000,0]
[null,null,null,null,null,null,null,null,null,null,null,null,0,-1000,0]
[null,null,null,null,null,null,null,null,null,null,null,null,0,-1000,0]
[null,null,null,null,null,null,null,null,null,null,null,null,0,-1000,0]
[null,null,null,null,null,null,null,null,null,null,null,null,0,-1000,0]
[null,null,null,null,null,null,null,null,null,null,null,null,0,-1000,0]
[null,null,null,null,null,null,null,null,null,null,null,null,0,-1000,0]
[null,null,null,null,null,null,null,null,null,null,null,null,0,-1000,0]
[null,null,null,null,null,null,null,null,null,null,null,null,0,-1000,0]
[null,null,null,null,null,null,null,null,null,null,null,null,0,-1000,0]
[null,null,null,null,null,null,null,null,null,null,null,null,0,-1000,0]
[null,null,null,null,null,null,null,null,null,null,null,null,0,-1000,0]
[null,null,null,null,null,null,null,null,null,null,null,null,0,-1000,0]
[null,null,null,null,null,null,null,null,null,null,null,null,0,-1000,0]
[null,null,null,null,null,null,null,null,null,null,null,null,0,-1000,0]
[null,null,null,null,null,null,null,null,null,null,null,null,0,-1000,0]
[null,null,null,null,null,null,null,null,null,null,null,null,0,-1000,0]
[null,null,null,null,null,null,null,null,null,null,null,null,0,-1000,0]
[null,null,null,null,null,null,null,null,null,null,null,null,0,-1000,0]
[null,null,null,null,null,null,null,null,null,null,null,null,0,-1000,0]
[null,null,null,null,null,null,null,null,null,null,null,null,0,-1000,0]
[null,null,null,null,null,null,null,null,null,null,null,null,{"$f":"(G137*$G$4+H137*$H$4+I137*$I$4+J137*$J$4+K137*$K$4+L137*$L$4)","v":0},{"$f":"IF(M137>0,M137*-1,-1000)","v":-1000},{"$f":"IF(M137>0,RANK(N137,N:N),0)","v":0}]
[null,null,null,null,null,null,null,null,null,null,null,null,0,-1000,0]
[null,null,null,null,null,null,null,null,null,null,null,null,0,-1000,0]
[null,null,null,null,null,null,null,null,null,null,null,null,0,-1000,0]
[null,null,null,null,null,null,null,null,null,null,null,null,0,-1000,0]
[null,null,null,null,null,null,null,null,null,null,null,null,0,-1000,0]
[null,null,null,null,null,null,null,null,null,null,null,null,0,-1000,0]
[null,null,null,null,null,null,null,null,null,null,null,null,0,-1000,0]
[null,null,null,null,null,null,null,null,null,null,null,null,0,-1000,0]
[null,null,null,null,null,null,null,null,null,null,null,null,0,-1000,0]
[null,null,null,null,null,null,null,null,null,null,null,null,0,-1000,0]
[null,null,null,null,null,null,null,null,null,null,null,null,0,-1000,0]
[null,null,null,null,null,null,null,null,null,null,null,null,0,-1000,0]
[null,null,null,null,null,null,null,null,null,null,null,null,0,-1000,0]
[null,null,null,null,null,null,null,null,null,null,null,null,0,-1000,0]
[null,null,null,null,null,null,null,null,null,null,null,null,0,-1000,0]
[null,null,null,null,null,null,null,null,null,null,null,null,0,-1000,0]
[null,null,null,null,null,null,null,null,null,null,null,null,0,-1000,0]
[null,null,null,null,null,null,null,null,null,null,null,null,0,-1000,0]
[null,null,null,null,null,null,null,null,null,null,null,null,0,-1000,0]
[null,null,null,null,null,null,null,null,null,null,null,null,0,-1000,0]
[null,null,null,null,null,null,null,null,null,null,null,null,0,-1000,0]
[null,null,null,null,null,null,null,null,null,null,null,null,0,-1000,0]
[null,null,null,null,null,null,null,null,null,null,null,null,0,-1000,0]
[null,null,null,null,null,null,null,null,null,null,null,null,0,-1000,0]
[null,null,null,null,null,null,null,null,null,null,null,null,0,-1000,0]
[null,null,null,null,null,null,null,null,null,null,null,null,0,-1000,0]
[null,null,null,null,null,null,null,null,null,null,null,null,0,-1000,0]
[null,null,null,null,null,null,null,null,null,null,null,null,0,-1000,0]
[null,null,null,null,null,null,null,null,null,null,null,null,0,-1000,0]
[null,null,null,null,null,null,null,null,null,null,null,null,0,-1000,0]
[null,null,null,null,null,null,null,null,null,null,null,null,0,-1000,0]
[null,null,null,null,null,null,null,null,null,null,null,null,{"$f":"(G169*$G$4+H169*$H$4+I169*$I$4+J169*$J$4+K169*$K$4+L169*$L$4)","v":0},{"$f":"IF(M169>0,M169*-1,-1000)","v":-1000},{"$f":"IF(M169>0,RANK(N169,N:N),0)","v":0}]
[null,null,null,null,null,null,null,null,null,null,null,null,0,-1000,0]
[null,null,null,null,null,null,null,null,null,null,null,null,0,-1000,0]
[null,null,null,null,null,null,null,null,null,null,null,null,0,-1000,0]
[null,null,null,null,null,null,null,null,null,null,null,null,0,-1000,0]
[null,null,null,null,null,null,null,null,null,null,null,null,0,-1000,0]
[null,null,null,null,null,null,null,null,null,null,null,null,0,-1000,0]
[null,null,null,null,null,null,null,null,null,null,null,null,0,-1000,0]
[null,null,null,null,null,null,null,null,null,null,null,null,0,-1000,0]
[null,null,null,null,null,null,null,null,null,null,null,null,0,-1000,0]
[null,null,null,null,null,null,null,null,null,null,null,null,0,-1000,0]
[null,null,null,null,null,null,null,null,null,null,null,null,0,-1000,0]
[null,null,null,null,null,null,null,null,null,null,null,null,0,-1000,0]
[null,null,null,null,null,null,null,null,null,null,null,null,0,-1000,0]
[null,null,null,null,null,null,null,null,null,null,null,null,0,-1000,0]
[null,null,null,null,null,null,null,null,null,null,null,null,0,-1000,0]
[null,null,null,null,null,null,null,null,null,null,null,null,0,-1000,0]
[null,null,null,null,null,null,null,null,null,null,null,null,0,-1000,0]
[null,null,null,null,null,null,null,null,null,null,null,null,0,-1000,0]
[null,null,null,null,null,null,null,null,null,null,null,null,0,-1000,0]
[null,null,null,null,null,null,null,null,null,null,null,null,0,-1000,0]
[null,null,null,null,null,null,null,null,null,null,null,null,0,-1000,0]
[null,null,null,null,null,null,null,null,null,null,null,null,0,-1000,0]
[null,null,null,null,null,null,null,null,null,null,null,null,0,-1000,0]
[null,null,null,null,null,null,null,null,null,null,null,null,0,-1000,0]
[null,null,null,null,null,null,null,null,null,null,null,null,0,-1000,0]
[null,null,null,null,null,null,null,null,null,null,null,null,0,-1000,0]
[null,null,null,null,null,null,null,null,null,null,null,null,0,-1000,0]
[null,null,null,null,null,null,null,null,null,null,null,null,0,-1000,0]
[null,null,null,null,null,null,null,null,null,null,null,null,0,-1000,0]
[null,null,null,null,null,null,null,null,null,null,null,null,0,-1000,0]
[null,null,null,null,null,null,null,null,null,null,null,null,0,-1000,0]
[null,null,null,null,null,null,null,null,null,null,null,null,{"$f":"(G201*$G$4+H201*$H$4+I201*$I$4+J201*$J$4+K201*$K$4+L201*$L$4)","v":0},{"$f":"IF(M201>0,M201*-1,-1000)","v":-1000},{"$f":"IF(M201>0,RANK(N201,N:N),0)","v":0}]
[null,null,null,null,null,null,null,null,null,null,null,null,0,-1000,0]
[null,null,null,null,null,null,null,null,null,null,null,null,0,-1000,0]

{"sheet":"NRW-Senior","index":3,"n_rows":203,"n_cols":16,"rows_kept":203,"cut":false,"hidden":false,"merged":[]}
["DSKD  Derby 25.06.2017 Mettingen/Osnabrück"]
["  NRW-Qualifikation SENIOR - Klasse  "]
[]
["Wird der Lauf gewertet?   dann 0 oder 1 eintragen",null,null,null,null,null,1,1,1,1,1,1]
["Bestzeit je Lauf",null,null,null,null,null,{"$f":"MIN(G9:G203)","v":34.24},34.159999999999997,34.299999999999997,34.229999999999997,0,0]
[]
["Start\nNummer","Gruppe","startet","Name","Vorname","Verein","Lauf 1","Lauf 2","Lauf 3","Lauf 4","Lauf 5","Lauf 6","Summe der gewerteten Läufe",null,"Platz","Urkunde"]
[]
[301,"SEN",null,"Zaruba","Pia","Mettingen",null,null,null,null,null,null,{"$f":"(G9*$G$4+H9*$H$4+I9*$I$4+J9*$J$4+K9*$K$4+L9*$L$4)","v":0},{"$f":"IF(M9>0,M9*-1,-1000)","v":-1000},{"$f":"IF(M9>0,RANK(N9,N:N),0)","v":0}]
[311,"SEN",null,"Förster","Maurice","Simmerath",null,null,null,null,null,null,0,-1000,0]
[312,"SEN",null,"Hipper","Charlotte","Billerbeck",null,null,null,null,null,null,0,-1000,0]
[313,"SEN",null,"Neinert ","Joey","Billerbeck",null,null,null,null,null,null,0,-1000,0]
[314,"SEN",null,"Wetter","Stefanie","Billerbeck",null,null,null,null,null,null,0,-1000,0]
[316,"SEN",null,"Niermann","David","Mettingen",null,null,null,null,null,null,0,-1000,0]
[317,"SEN",null,"Sälter","Hennes","Mettingen",null,null,null,null,null,null,0,-1000,0]
[318,"SEN",null,"Wratny","Nikolai","Bergkamen",null,null,null,null,null,null,0,-1000,0]
[319,"SEN",null,"Sonneborn","Ina","Stromberg",null,null,null,null,null,null,0,-1000,0]
[322,"SEN",null,"Szabowski","Mara","Billerbeck",null,null,null,null,null,null,0,-1000,0]
[323,"SEN",null,"Sternberg","Luise","Billerbeck",null,null,null,null,null,null,0,-1000,0]
[326,"SEN",null,null,null,null,null,null,null,null,null,null,0,-1000,0]
[327,"SEN",null,null,null,null,null,null,null,null,null,null,0,-1000,0]
[328,"SEN",null,null,null,null,null,null,null,null,null,null,0,-1000,0]
[329,"SEN",null,null,null,null,null,null,null,null,null,null,0,-1000,0]
[330,"SEN",null,null,null,null,null,null,null,null,null,null,0,-1000,0]
[331,"SEN",null,null,null,null,null,null,null,null,null,null,0,-1000,0]
[332,"SEN",null,null,null,null,null,null,null,null,null,null,0,-1000,0]
[333,"SEN",null,null,null,null,null,null,null,null,null,null,0,-1000,0]
[334,"SEN",null,null,null,null,null,null,null,null,null,null,0,-1000,0]
[335,"SEN",null,null,null,null,null,null,null,null,null,null,0,-1000,0]
[336,"SEN",null,null,null,null,null,null,null,null,null,null,0,-1000,0]
[337,"SEN",null,null,null,null,null,null,null,null,null,null,0,-1000,0]
[338,"SEN",null,null,null,null,null,null,null,null,null,null,0,-1000,0]
[339,"SEN",null,null,null,null,null,null,null,null,null,null,0,-1000,0]
[340,"SEN",null,null,null,null,null,null,null,null,null,null,0,-1000,0]
[341,"SEN",null,null,null,null,null,null,null,null,null,null,0,-1000,0]
[342,"SEN",null,null,null,"Mettingen",null,null,null,null,null,null,0,-1000,0]
[null,null,null,null,null,null,null,null,null,null,null,null,0,-1000,0]
[null,null,null,null,null,null,null,null,null,null,null,null,0,-1000,0]
[null,null,null,null,null,null,null,null,null,null,null,null,0,-1000,0]
[null,null,null,null,null,null,null,null,null,null,null,null,0,-1000,0]
[null,null,null,null,null,null,null,null,null,null,null,null,{"$f":"(G41*$G$4+H41*$H$4+I41*$I$4+J41*$J$4+K41*$K$4+L41*$L$4)","v":0},{"$f":"IF(M41>0,M41*-1,-1000)","v":-1000},{"$f":"IF(M41>0,RANK(N41,N:N),0)","v":0}]
[null,null,null,null,null,null,null,null,null,null,null,null,0,-1000,0]
[null,null,null,null,null,null,null,null,null,null,null,null,0,-1000,0]
[null,null,null,null,null,null,null,null,null,null,null,null,0,-1000,0]
[null,null,null,null,null,null,null,null,null,null,null,null,0,-1000,0]
[null,null,null,null,null,null,null,null,null,null,null,null,0,-1000,0]
[null,null,null,null,null,null,null,null,null,null,null,null,0,-1000,0]
[null,null,null,null,null,null,null,null,null,null,null,null,0,-1000,0]
[null,null,null,null,null,null,null,null,null,null,null,null,0,-1000,0]
[null,null,null,null,null,null,null,null,null,null,null,null,0,-1000,0]
[null,null,null,null,null,null,null,null,null,null,null,null,0,-1000,0]
[null,null,null,null,null,null,null,null,null,null,null,null,0,-1000,0]
[null,null,null,null,null,null,null,null,null,null,null,null,0,-1000,0]
[null,null,null,null,null,null,null,null,null,null,null,null,0,-1000,0]
[null,null,null,null,null,null,null,null,null,null,null,null,0,-1000,0]
[null,null,null,null,null,null,null,null,null,null,null,null,0,-1000,0]
[null,null,null,null,null,null,null,null,null,null,null,null,0,-1000,0]
[null,null,null,null,null,null,null,null,null,null,null,null,0,-1000,0]
[null,null,null,null,null,null,null,null,null,null,null,null,0,-1000,0]
[null,null,null,null,null,null,null,null,null,null,null,null,0,-1000,0]
[null,null,null,null,null,null,null,null,null,null,null,null,0,-1000,0]
[null,null,null,null,null,null,null,null,null,null,null,null,0,-1000,0]
[null,null,null,null,null,null,null,null,null,null,null,null,0,-1000,0]
[null,null,null,null,null,null,null,null,null,null,null,null,0,-1000,0]
[null,null,null,null,null,null,null,null,null,null,null,null,0,-1000,0]
[null,null,null,null,null,null,null,null,null,null,null,null,0,-1000,0]
[null,null,null,null,null,null,null,null,null,null,null,null,0,-1000,0]
[null,null,null,null,null,null,null,null,null,null,null,null,0,-1000,0]
[null,null,null,null,null,null,null,null,null,null,null,null,0,-1000,0]
[null,null,null,null,null,null,null,null,null,null,null,null,0,-1000,0]
[null,null,null,null,null,null,null,null,null,null,null,null,0,-1000,0]
[null,null,null,null,null,null,null,null,null,null,null,null,0,-1000,0]
[null,null,null,null,null,null,null,null,null,null,null,null,{"$f":"(G73*$G$4+H73*$H$4+I73*$I$4+J73*$J$4+K73*$K$4+L73*$L$4)","v":0},{"$f":"IF(M73>0,M73*-1,-1000)","v":-1000},{"$f":"IF(M73>0,RANK(N73,N:N),0)","v":0}]
[null,null,null,null,null,null,null,null,null,null,null,null,0,-1000,0]
[null,null,null,null,null,null,null,null,null,null,null,null,0,-1000,0]
[null,null,null,null,null,null,null,null,null,null,null,null,0,-1000,0]
[null,null,null,null,null,null,null,null,null,null,null,null,0,-1000,0]
[null,null,null,null,null,null,null,null,null,null,null,null,0,-1000,0]
[null,null,null,null,null,null,null,null,null,null,null,null,0,-1000,0]
[null,null,null,null,null,null,null,null,null,null,null,null,0,-1000,0]
[null,null,null,null,null,null,null,null,null,null,null,null,0,-1000,0]
[null,null,null,null,null,null,null,null,null,null,null,null,0,-1000,0]
[null,null,null,null,null,null,null,null,null,null,null,null,0,-1000,0]
[null,null,null,null,null,null,null,null,null,null,null,null,0,-1000,0]
[null,null,null,null,null,null,null,null,null,null,null,null,0,-1000,0]
[null,null,null,null,null,null,null,null,null,null,null,null,0,-1000,0]
[null,null,null,null,null,null,null,null,null,null,null,null,0,-1000,0]
[null,null,null,null,null,null,null,null,null,null,null,null,0,-1000,0]
[null,null,null,null,null,null,null,null,null,null,null,null,0,-1000,0]
[null,null,null,null,null,null,null,null,null,null,null,null,0,-1000,0]
[null,null,null,null,null,null,null,null,null,null,null,null,0,-1000,0]
[null,null,null,null,null,null,null,null,null,null,null,null,0,-1000,0]
[null,null,null,null,null,null,null,null,null,null,null,null,0,-1000,0]
[null,null,null,null,null,null,null,null,null,null,null,null,0,-1000,0]
[null,null,null,null,null,null,null,null,null,null,null,null,0,-1000,0]
[null,null,null,null,null,null,null,null,null,null,null,null,0,-1000,0]
[null,null,null,null,null,null,null,null,null,null,null,null,0,-1000,0]
[null,null,null,null,null,null,null,null,null,null,null,null,0,-1000,0]
[null,null,null,null,null,null,null,null,null,null,null,null,0,-1000,0]
[null,null,null,null,null,null,null,null,null,null,null,null,0,-1000,0]
[null,null,null,null,null,null,null,null,null,null,null,null,0,-1000,0]
[null,null,null,null,null,null,null,null,null,null,null,null,0,-1000,0]
[null,null,null,null,null,null,null,null,null,null,null,null,0,-1000,0]
[null,null,null,null,null,null,null,null,null,null,null,null,0,-1000,0]
[null,null,null,null,null,null,null,null,null,null,null,null,{"$f":"(G105*$G$4+H105*$H$4+I105*$I$4+J105*$J$4+K105*$K$4+L105*$L$4)","v":0},{"$f":"IF(M105>0,M105*-1,-1000)","v":-1000},{"$f":"IF(M105>0,RANK(N105,N:N),0)","v":0}]
[null,null,null,null,null,null,null,null,null,null,null,null,0,-1000,0]
[null,null,null,null,null,null,null,null,null,null,null,null,0,-1000,0]
[null,null,null,null,null,null,null,null,null,null,null,null,0,-1000,0]
[null,null,null,null,null,null,null,null,null,null,null,null,0,-1000,0]
[null,null,null,null,null,null,null,null,null,null,null,null,0,-1000,0]
[null,null,null,null,null,null,null,null,null,null,null,null,0,-1000,0]
[null,null,null,null,null,null,null,null,null,null,null,null,0,-1000,0]
[null,null,null,null,null,null,null,null,null,null,null,null,0,-1000,0]
[null,null,null,null,null,null,null,null,null,null,null,null,0,-1000,0]
[null,null,null,null,null,null,null,null,null,null,null,null,0,-1000,0]
[null,null,null,null,null,null,null,null,null,null,null,null,0,-1000,0]
[null,null,null,null,null,null,null,null,null,null,null,null,0,-1000,0]
[null,null,null,null,null,null,null,null,null,null,null,null,0,-1000,0]
[null,null,null,null,null,null,null,null,null,null,null,null,0,-1000,0]
[null,null,null,null,null,null,null,null,null,null,null,null,0,-1000,0]
[null,null,null,null,null,null,null,null,null,null,null,null,0,-1000,0]
[null,null,null,null,null,null,null,null,null,null,null,null,0,-1000,0]
[null,null,null,null,null,null,null,null,null,null,null,null,0,-1000,0]
[null,null,null,null,null,null,null,null,null,null,null,null,0,-1000,0]
[null,null,null,null,null,null,null,null,null,null,null,null,0,-1000,0]
[null,null,null,null,null,null,null,null,null,null,null,null,0,-1000,0]
[null,null,null,null,null,null,null,null,null,null,null,null,0,-1000,0]
[null,null,null,null,null,null,null,null,null,null,null,null,0,-1000,0]
[null,null,null,null,null,null,null,null,null,null,null,null,0,-1000,0]
[null,null,null,null,null,null,null,null,null,null,null,null,0,-1000,0]
[null,null,null,null,null,null,null,null,null,null,null,null,0,-1000,0]
[null,null,null,null,null,null,null,null,null,null,null,null,0,-1000,0]
[null,null,null,null,null,null,null,null,null,null,null,null,0,-1000,0]
[null,null,null,null,null,null,null,null,null,null,null,null,0,-1000,0]
[null,null,null,null,null,null,null,null,null,null,null,null,0,-1000,0]
[null,null,null,null,null,null,null,null,null,null,null,null,0,-1000,0]
[null,null,null,null,null,null,null,null,null,null,null,null,{"$f":"(G137*$G$4+H137*$H$4+I137*$I$4+J137*$J$4+K137*$K$4+L137*$L$4)","v":0},{"$f":"IF(M137>0,M137*-1,-1000)","v":-1000},{"$f":"IF(M137>0,RANK(N137,N:N),0)","v":0}]
[null,null,null,null,null,null,null,null,null,null,null,null,0,-1000,0]
[null,null,null,null,null,null,null,null,null,null,null,null,0,-1000,0]
[null,null,null,null,null,null,null,null,null,null,null,null,0,-1000,0]
[null,null,null,null,null,null,null,null,null,null,null,null,0,-1000,0]
[null,null,null,null,null,null,null,null,null,null,null,null,0,-1000,0]
[null,null,null,null,null,null,null,null,null,null,null,null,0,-1000,0]
[null,null,null,null,null,null,null,null,null,null,null,null,0,-1000,0]
[null,null,null,null,null,null,null,null,null,null,null,null,0,-1000,0]
[null,null,null,null,null,null,null,null,null,null,null,null,0,-1000,0]
[null,null,null,null,null,null,null,null,null,null,null,null,0,-1000,0]
[null,null,null,null,null,null,null,null,null,null,null,null,0,-1000,0]
[null,null,null,null,null,null,null,null,null,null,null,null,0,-1000,0]
[null,null,null,null,null,null,null,null,null,null,null,null,0,-1000,0]
[null,null,null,null,null,null,null,null,null,null,null,null,0,-1000,0]
[null,null,null,null,null,null,null,null,null,null,null,null,0,-1000,0]
[null,null,null,null,null,null,null,null,null,null,null,null,0,-1000,0]
[null,null,null,null,null,null,null,null,null,null,null,null,0,-1000,0]
[null,null,null,null,null,null,null,null,null,null,null,null,0,-1000,0]
[null,null,null,null,null,null,null,null,null,null,null,null,0,-1000,0]
[null,null,null,null,null,null,null,null,null,null,null,null,0,-1000,0]
[null,null,null,null,null,null,null,null,null,null,null,null,0,-1000,0]
[null,null,null,null,null,null,null,null,null,null,null,null,0,-1000,0]
[null,null,null,null,null,null,null,null,null,null,null,null,0,-1000,0]
[null,null,null,null,null,null,null,null,null,null,null,null,0,-1000,0]
[null,null,null,null,null,null,null,null,null,null,null,null,0,-1000,0]
[null,null,null,null,null,null,null,null,null,null,null,null,0,-1000,0]
[null,null,null,null,null,null,null,null,null,null,null,null,0,-1000,0]
[null,null,null,null,null,null,null,null,null,null,null,null,0,-1000,0]
[null,null,null,null,null,null,null,null,null,null,null,null,0,-1000,0]
[null,null,null,null,null,null,null,null,null,null,null,null,0,-1000,0]
[null,null,null,null,null,null,null,null,null,null,null,null,0,-1000,0]
[null,null,null,null,null,null,null,null,null,null,null,null,{"$f":"(G169*$G$4+H169*$H$4+I169*$I$4+J169*$J$4+K169*$K$4+L169*$L$4)","v":0},{"$f":"IF(M169>0,M169*-1,-1000)","v":-1000},{"$f":"IF(M169>0,RANK(N169,N:N),0)","v":0}]
[null,null,null,null,null,null,null,null,null,null,null,null,0,-1000,0]
[null,null,null,null,null,null,null,null,null,null,null,null,0,-1000,0]
[null,null,null,null,null,null,null,null,null,null,null,null,0,-1000,0]
[null,null,null,null,null,null,null,null,null,null,null,null,0,-1000,0]
[null,null,null,null,null,null,null,null,null,null,null,null,0,-1000,0]
[null,null,null,null,null,null,null,null,null,null,null,null,0,-1000,0]
[null,null,null,null,null,null,null,null,null,null,null,null,0,-1000,0]
[null,null,null,null,null,null,null,null,null,null,null,null,0,-1000,0]
[null,null,null,null,null,null,null,null,null,null,null,null,0,-1000,0]
[null,null,null,null,null,null,null,null,null,null,null,null,0,-1000,0]
[null,null,null,null,null,null,null,null,null,null,null,null,0,-1000,0]
[null,null,null,null,null,null,null,null,null,null,null,null,0,-1000,0]
[null,null,null,null,null,null,null,null,null,null,null,null,0,-1000,0]
[null,null,null,null,null,null,null,null,null,null,null,null,0,-1000,0]
[null,null,null,null,null,null,null,null,null,null,null,null,0,-1000,0]
[null,null,null,null,null,null,null,null,null,null,null,null,0,-1000,0]
[null,null,null,null,null,null,null,null,null,null,null,null,0,-1000,0]
[null,null,null,null,null,null,null,null,null,null,null,null,0,-1000,0]
[null,null,null,null,null,null,null,null,null,null,null,null,0,-1000,0]
[null,null,null,null,null,null,null,null,null,null,null,null,0,-1000,0]
[305,"SEN",null,"Lampe","Pia","Mettingen",34.299999999999997,34.159999999999997,34.299999999999997,34.46,null,null,{"$f":"(G190*$G$4+H190*$H$4+I190*$I$4+J190*$J$4+K190*$K$4+L190*$L$4)","v":137.22},{"$f":"IF(M190>0,M190*-1,-1000)","v":-137.22},{"$f":"IF(M190>0,RANK(N190,N:N),0)","v":1}]
[310,"SEN",null,"Meyer","Henry","Mettingen",34.24,34.340000000000003,34.31,34.44,null,null,{"$f":"(G191*$G$4+H191*$H$4+I191*$I$4+J191*$J$4+K191*$K$4+L191*$L$4)","v":137.33000000000001},{"$f":"IF(M191>0,M191*-1,-1000)","v":-137.33000000000001},{"$f":"IF(M191>0,RANK(N191,N:N),0)","v":2}]
[306,"SEN",null,"Freudenstein","Rieke","Mettingen",34.299999999999997,34.340000000000003,34.43,34.33,null,null,{"$f":"(G192*$G$4+H192*$H$4+I192*$I$4+J192*$J$4+K192*$K$4+L192*$L$4)","v":137.4},{"$f":"IF(M192>0,M192*-1,-1000)","v":-137.4},{"$f":"IF(M192>0,RANK(N192,N:N),0)","v":3}]
[325,"SEN",null,"Meyer","Johann","Mettingen",34.39,34.369999999999997,34.479999999999997,34.32,null,null,{"$f":"(G193*$G$4+H193*$H$4+I193*$I$4+J193*$J$4+K193*$K$4+L193*$L$4)","v":137.56},{"$f":"IF(M193>0,M193*-1,-1000)","v":-137.56},{"$f":"IF(M193>0,RANK(N193,N:N),0)","v":4}]
[307,"SEN",null,"Neuhaus","Robin","Mettingen",34.43,34.31,34.6,34.229999999999997,null,null,{"$f":"(G194*$G$4+H194*$H$4+I194*$I$4+J194*$J$4+K194*$K$4+L194*$L$4)","v":137.57},{"$f":"IF(M194>0,M194*-1,-1000)","v":-137.57},{"$f":"IF(M194>0,RANK(N194,N:N),0)","v":5}]
[302,"SEN",null,"Gößling","Jule","Mettingen",34.299999999999997,34.44,34.409999999999997,34.43,null,null,{"$f":"(G195*$G$4+H195*$H$4+I195*$I$4+J195*$J$4+K195*$K$4+L195*$L$4)","v":137.58000000000001},{"$f":"IF(M195>0,M195*-1,-1000)","v":-137.58000000000001},{"$f":"IF(M195>0,RANK(N195,N:N),0)","v":6}]
[324,"SEN",null,"Zaruba","Max","Mettingen",34.33,34.46,34.409999999999997,34.44,null,null,{"$f":"(G196*$G$4+H196*$H$4+I196*$I$4+J196*$J$4+K196*$K$4+L196*$L$4)","v":137.63999999999999},{"$f":"IF(M196>0,M196*-1,-1000)","v":-137.63999999999999},{"$f":"IF(M196>0,RANK(N196,N:N),0)","v":7}]
[303,"SEN",null,"Kessling","Sophie","Mettingen",34.43,34.450000000000003,34.65,34.28,null,null,{"$f":"(G197*$G$4+H197*$H$4+I197*$I$4+J197*$J$4+K197*$K$4+L197*$L$4)","v":137.81},{"$f":"IF(M197>0,M197*-1,-1000)","v":-137.81},{"$f":"IF(M197>0,RANK(N197,N:N),0)","v":8}]
[308,"SEN",null,"Becker","Robin","Bergkamen",34.43,34.49,34.44,34.619999999999997,null,null,{"$f":"(G198*$G$4+H198*$H$4+I198*$I$4+J198*$J$4+K198*$K$4+L198*$L$4)","v":137.97999999999999},{"$f":"IF(M198>0,M198*-1,-1000)","v":-137.97999999999999},{"$f":"IF(M198>0,RANK(N198,N:N),0)","v":9}]
[309,"SEN",null,"Lutterbach","Eric","Simmerath",34.6,34.340000000000003,34.619999999999997,34.520000000000003,null,null,{"$f":"(G199*$G$4+H199*$H$4+I199*$I$4+J199*$J$4+K199*$K$4+L199*$L$4)","v":138.08000000000001},{"$f":"IF(M199>0,M199*-1,-1000)","v":-138.08000000000001},{"$f":"IF(M199>0,RANK(N199,N:N),0)","v":10}]
[304,"SEN",null,"Lutterbach","Roman","Simmerath",34.450000000000003,34.54,34.450000000000003,34.86,null,null,{"$f":"(G200*$G$4+H200*$H$4+I200*$I$4+J200*$J$4+K200*$K$4+L200*$L$4)","v":138.30000000000001},{"$f":"IF(M200>0,M200*-1,-1000)","v":-138.30000000000001},{"$f":"IF(M200>0,RANK(N200,N:N),0)","v":11}]
[320,"SEN",null,"Ricker","Sarah","Billerbeck",34.44,34.68,34.64,34.72,null,null,{"$f":"(G201*$G$4+H201*$H$4+I201*$I$4+J201*$J$4+K201*$K$4+L201*$L$4)","v":138.47999999999999},{"$f":"IF(M201>0,M201*-1,-1000)","v":-138.47999999999999},{"$f":"IF(M201>0,RANK(N201,N:N),0)","v":12}]
[315,"SEN",null,"Lammers","Laura","ConAction",34.6,34.549999999999997,34.729999999999997,34.64,null,null,{"$f":"(G202*$G$4+H202*$H$4+I202*$I$4+J202*$J$4+K202*$K$4+L202*$L$4)","v":138.52000000000001},{"$f":"IF(M202>0,M202*-1,-1000)","v":-138.52000000000001},{"$f":"IF(M202>0,RANK(N202,N:N),0)","v":13}]
[321,"SEN",null,"Steinberg","Kimberly","Billerbeck",39.43,35.04,38.630000000000003,36.799999999999997,null,null,{"$f":"(G203*$G$4+H203*$H$4+I203*$I$4+J203*$J$4+K203*$K$4+L203*$L$4)","v":149.9},{"$f":"IF(M203>0,M203*-1,-1000)","v":-149.9},{"$f":"IF(M203>0,RANK(N203,N:N),0)","v":14}]

{"sheet":"NRW-Elite-XL","index":4,"n_rows":203,"n_cols":17,"rows_kept":203,"cut":false,"hidden":false,"merged":[]}
["DSKD  Derby 25.06.2017 Mettingen/Osnabrück"]
["  NRW-Qualifikation Elite XL - Klasse  "]
[]
["Wird der Lauf gewertet?   dann 0 oder 1 eintragen",null,null,null,null,null,1,1,1,1,1,1]
["Bestzeit je Lauf",null,null,null,null,null,{"$f":"MIN(G9:G203)","v":34.54},34.61,34.54,34.65,0,0,null,null,null,"Platz","Urkunde"]
[]
["Start\nNummer","Gruppe","startet","Name","Vorname","Verein","Lauf 1","Lauf 2","Lauf 3","Lauf 4","Lauf 5","Lauf 6","Summe der gewerteten Läufe",null,null,{"$f":"IF(M9>0,RANK(N9,N:N),0)","v":0}]
[null,null,null,null,null,null,null,null,null,null,null,null,null,null,null,{"$f":"IF(M10>0,RANK(N10,N:N),0)","v":1}]
[510,"EXL",null,null,null,null,null,null,null,null,null,null,{"$f":"(G9*$G$4+H9*$H$4+I9*$I$4+J9*$J$4+K9*$K$4+L9*$L$4)","v":0},{"$f":"IF(M9>0,M9*-1,-1000)","v":-1000},{"$f":"IF(M9>0,RANK(N9,N:N),0)","v":0}]
[502,"EXL",null,"Schmidt","Marvin","ConAction",34.54,34.61,34.54,34.770000000000003,null,null,{"$f":"(G10*$G$4+H10*$H$4+I10*$I$4+J10*$J$4+K10*$K$4+L10*$L$4)","v":138.46},{"$f":"IF(M10>0,M10*-1,-1000)","v":-138.46},{"$f":"IF(M10>0,RANK(N10,N:N),0)","v":1}]
[503,"EXL",null,"Wetter","Sabrina","Billerbeck",null,null,null,null,null,null,{"$f":"(G11*$G$4+H11*$H$4+I11*$I$4+J11*$J$4+K11*$K$4+L11*$L$4)","v":0},{"$f":"IF(M11>0,M11*-1,-1000)","v":-1000},{"$f":"IF(M11>0,RANK(N11,N:N),0)","v":0},{"$f":"IF(M13>0,RANK(N13,N:N),0)","v":3}]
[507,"EXL",null,"Marx","Fabian","ConAction",34.64,34.799999999999997,34.729999999999997,34.67,null,null,{"$f":"(G12*$G$4+H12*$H$4+I12*$I$4+J12*$J$4+K12*$K$4+L12*$L$4)","v":138.84},{"$f":"IF(M12>0,M12*-1,-1000)","v":-138.84},{"$f":"IF(M12>0,RANK(N12,N:N),0)","v":2}]
[506,"EXL",null,"Elges","Erik","Stromberg",34.68,34.729999999999997,34.86,34.65,null,null,{"$f":"(G13*$G$4+H13*$H$4+I13*$I$4+J13*$J$4+K13*$K$4+L13*$L$4)","v":138.91999999999999},{"$f":"IF(M13>0,M13*-1,-1000)","v":-138.91999999999999},{"$f":"IF(M13>0,RANK(N13,N:N),0)","v":3}]
[501,"EXL",null,"Ricker","Jana-Lena","Billerbeck",34.78,34.65,34.729999999999997,34.799999999999997,null,null,{"$f":"(G14*$G$4+H14*$H$4+I14*$I$4+J14*$J$4+K14*$K$4+L14*$L$4)","v":138.96},{"$f":"IF(M14>0,M14*-1,-1000)","v":-138.96},{"$f":"IF(M14>0,RANK(N14,N:N),0)","v":4}]
[505,"EXL",null,"Niessen","Nicolas","Simmerath",34.89,34.83,34.79,34.840000000000003,null,null,{"$f":"(G15*$G$4+H15*$H$4+I15*$I$4+J15*$J$4+K15*$K$4+L15*$L$4)","v":139.35},{"$f":"IF(M15>0,M15*-1,-1000)","v":-139.35},{"$f":"IF(M15>0,RANK(N15,N:N),0)","v":5},{"$f":"IF(M17>0,RANK(N17,N:N),0)","v":0}]
[508,"EXL",null,null,null,null,null,null,null,null,null,null,{"$f":"(G16*$G$4+H16*$H$4+I16*$I$4+J16*$J$4+K16*$K$4+L16*$L$4)","v":0},{"$f":"IF(M16>0,M16*-1,-1000)","v":-1000},{"$f":"IF(M16>0,RANK(N16,N:N),0)","v":0}]
[509,"EXL",null,null,null,null,null,null,null,null,null,null,{"$f":"(G17*$G$4+H17*$H$4+I17*$I$4+J17*$J$4+K17*$K$4+L17*$L$4)","v":0},{"$f":"IF(M17>0,M17*-1,-1000)","v":-1000},{"$f":"IF(M17>0,RANK(N17,N:N),0)","v":0}]
[504,"EXL",null,"Schlösser","Timon","Stromberg",35.049999999999997,34.78,34.950000000000003,34.86,null,null,{"$f":"(G18*$G$4+H18*$H$4+I18*$I$4+J18*$J$4+K18*$K$4+L18*$L$4)","v":139.63999999999999},{"$f":"IF(M18>0,M18*-1,-1000)","v":-139.63999999999999},{"$f":"IF(M18>0,RANK(N18,N:N),0)","v":6}]
[511,"EXL",null,null,null,null,null,null,null,null,null,null,{"$f":"(G19*$G$4+H19*$H$4+I19*$I$4+J19*$J$4+K19*$K$4+L19*$L$4)","v":0},{"$f":"IF(M19>0,M19*-1,-1000)","v":-1000},{"$f":"IF(M19>0,RANK(N19,N:N),0)","v":0}]
[512,"EXL",null,null,null,null,null,null,null,null,null,null,0,-1000,0]
[513,"EXL",null,null,null,null,null,null,null,null,null,null,0,-1000,0]
[514,"EXL",null,null,null,null,null,null,null,null,null,null,0,-1000,0]
[515,"EXL",null,null,null,null,null,null,null,null,null,null,0,-1000,0]
[516,"EXL",null,null,null,null,null,null,null,null,null,null,0,-1000,0]
[517,"EXL",null,null,null,null,null,null,null,null,null,null,0,-1000,0]
[518,"EXL",null,null,null,null,null,null,null,null,null,null,0,-1000,0]
[519,"EXL",null,null,null,null,null,null,null,null,null,null,0,-1000,0]
[520,"EXL",null,null,null,null,null,null,null,null,null,null,0,-1000,0]
[521,"EXL",null,null,null,null,null,null,null,null,null,null,0,-1000,0]
[522,"EXL",null,null,null,null,null,null,null,null,null,null,0,-1000,0]
[523,"EXL",null,null,null,null,null,null,null,null,null,null,0,-1000,0]
[524,"EXL",null,null,null,null,null,null,null,null,null,null,0,-1000,0]
[525,"EXL",null,null,null,null,null,null,null,null,null,null,0,-1000,0]
[526,"EXL",null,null,null,null,null,null,null,null,null,null,0,-1000,0]
[null,null,null,null,null,null,null,null,null,null,null,null,0,-1000,0]
[null,null,null,null,null,"Mettingen",null,null,null,null,null,null,0,-1000,0]
[null,null,null,null,null,null,null,null,null,null,null,null,0,-1000,0]
[null,null,null,null,null,null,null,null,null,null,null,null,0,-1000,0]
[null,null,null,null,null,null,null,null,null,null,null,null,0,-1000,0]
[null,null,null,null,null,null,null,null,null,null,null,null,0,-1000,0]
[null,null,null,null,null,null,null,null,null,null,null,null,{"$f":"(G41*$G$4+H41*$H$4+I41*$I$4+J41*$J$4+K41*$K$4+L41*$L$4)","v":0},{"$f":"IF(M41>0,M41*-1,-1000)","v":-1000},{"$f":"IF(M41>0,RANK(N41,N:N),0)","v":0}]
[null,null,null,null,null,null,null,null,null,null,null,null,0,-1000,0]
[null,null,null,null,null,null,null,null,null,null,null,null,0,-1000,0]
[null,null,null,null,null,null,null,null,null,null,null,null,0,-1000,0]
[null,null,null,null,null,null,null,null,null,null,null,null,0,-1000,0]
[null,null,null,null,null,null,null,null,null,null,null,null,0,-1000,0]
[null,null,null,null,null,null,null,null,null,null,null,null,0,-1000,0]
[null,null,null,null,null,null,null,null,null,null,null,null,0,-1000,0]
[null,null,null,null,null,null,null,null,null,null,null,null,0,-1000,0]
[null,null,null,null,null,null,null,null,null,null,null,null,0,-1000,0]
[null,null,null,null,null,null,null,null,null,null,null,null,0,-1000,0]
[null,null,null,null,null,null,null,null,null,null,null,null,0,-1000,0]
[null,null,null,null,null,null,null,null,null,null,null,null,0,-1000,0]
[null,null,null,null,null,null,null,null,null,null,null,null,0,-1000,0]
[null,null,null,null,null,null,null,null,null,null,null,null,0,-1000,0]
[null,null,null,null,null,null,null,null,null,null,null,null,0,-1000,0]
[null,null,null,null,null,null,null,null,null,null,null,null,0,-1000,0]
[null,null,null,null,null,null,null,null,null,null,null,null,0,-1000,0]
[null,null,null,null,null,null,null,null,null,null,null,null,0,-1000,0]
[null,null,null,null,null,null,null,null,null,null,null,null,0,-1000,0]
[null,null,null,null,null,null,null,null,null,null,null,null,0,-1000,0]
[null,null,null,null,null,null,null,null,null,null,null,null,0,-1000,0]
[null,null,null,null,null,null,null,null,null,null,null,null,0,-1000,0]
[null,null,null,null,null,null,null,null,null,null,null,null,0,-1000,0]
[null,null,null,null,null,null,null,null,null,null,null,null,0,-1000,0]
[null,null,null,null,null,null,null,null,null,null,null,null,0,-1000,0]
[null,null,null,null,null,null,null,null,null,null,null,null,0,-1000,0]
[null,null,null,null,null,null,null,null,null,null,null,null,0,-1000,0]
[null,null,null,null,null,null,null,null,null,null,null,null,0,-1000,0]
[null,null,null,null,null,null,null,null,null,null,null,null,0,-1000,0]
[null,null,null,null,null,null,null,null,null,null,null,null,0,-1000,0]
[null,null,null,null,null,null,null,null,null,null,null,null,0,-1000,0]
[null,null,null,null,null,null,null,null,null,null,null,null,{"$f":"(G73*$G$4+H73*$H$4+I73*$I$4+J73*$J$4+K73*$K$4+L73*$L$4)","v":0},{"$f":"IF(M73>0,M73*-1,-1000)","v":-1000},{"$f":"IF(M73>0,RANK(N73,N:N),0)","v":0}]
[null,null,null,null,null,null,null,null,null,null,null,null,0,-1000,0]
[null,null,null,null,null,null,null,null,null,null,null,null,0,-1000,0]
[null,null,null,null,null,null,null,null,null,null,null,null,0,-1000,0]
[null,null,null,null,null,null,null,null,null,null,null,null,0,-1000,0]
[null,null,null,null,null,null,null,null,null,null,null,null,0,-1000,0]
[null,null,null,null,null,null,null,null,null,null,null,null,0,-1000,0]
[null,null,null,null,null,null,null,null,null,null,null,null,0,-1000,0]
[null,null,null,null,null,null,null,null,null,null,null,null,0,-1000,0]
[null,null,null,null,null,null,null,null,null,null,null,null,0,-1000,0]
[null,null,null,null,null,null,null,null,null,null,null,null,0,-1000,0]
[null,null,null,null,null,null,null,null,null,null,null,null,0,-1000,0]
[null,null,null,null,null,null,null,null,null,null,null,null,0,-1000,0]
[null,null,null,null,null,null,null,null,null,null,null,null,0,-1000,0]
[null,null,null,null,null,null,null,null,null,null,null,null,0,-1000,0]
[null,null,null,null,null,null,null,null,null,null,null,null,0,-1000,0]
[null,null,null,null,null,null,null,null,null,null,null,null,0,-1000,0]
[null,null,null,null,null,null,null,null,null,null,null,null,0,-1000,0]
[null,null,null,null,null,null,null,null,null,null,null,null,0,-1000,0]
[null,null,null,null,null,null,null,null,null,null,null,null,0,-1000,0]
[null,null,null,null,null,null,null,null,null,null,null,null,0,-1000,0]
[null,null,null,null,null,null,null,null,null,null,null,null,0,-1000,0]
[null,null,null,null,null,null,null,null,null,null,null,null,0,-1000,0]
[null,null,null,null,null,null,null,null,null,null,null,null,0,-1000,0]
[null,null,null,null,null,null,null,null,null,null,null,null,0,-1000,0]
[null,null,null,null,null,null,null,null,null,null,null,null,0,-1000,0]
[null,null,null,null,null,null,null,null,null,null,null,null,0,-1000,0]
[null,null,null,null,null,null,null,null,null,null,null,null,0,-1000,0]
[null,null,null,null,null,null,null,null,null,null,null,null,0,-1000,0]
[null,null,null,null,null,null,null,null,null,null,null,null,0,-1000,0]
[null,null,null,null,null,null,null,null,null,null,null,null,0,-1000,0]
[null,null,null,null,null,null,null,null,null,null,null,null,0,-1000,0]
[null,null,null,null,null,null,null,null,null,null,null,null,{"$f":"(G105*$G$4+H105*$H$4+I105*$I$4+J105*$J$4+K105*$K$4+L105*$L$4)","v":0},{"$f":"IF(M105>0,M105*-1,-1000)","v":-1000},{"$f":"IF(M105>0,RANK(N105,N:N),0)","v":0}]
[null,null,null,null,null,null,null,null,null,null,null,null,0,-1000,0]
[null,null,null,null,null,null,null,null,null,null,null,null,0,-1000,0]
[null,null,null,null,null,null,null,null,null,null,null,null,0,-1000,0]
[null,null,null,null,null,null,null,null,null,null,null,null,0,-1000,0]
[null,null,null,null,null,null,null,null,null,null,null,null,0,-1000,0]
[null,null,null,null,null,null,null,null,null,null,null,null,0,-1000,0]
[null,null,null,null,null,null,null,null,null,null,null,null,0,-1000,0]
[null,null,null,null,null,null,null,null,null,null,null,null,0,-1000,0]
[null,null,null,null,null,null,null,null,null,null,null,null,0,-1000,0]
[null,null,null,null,null,null,null,null,null,null,null,null,0,-1000,0]
[null,null,null,null,null,null,null,null,null,null,null,null,0,-1000,0]
[null,null,null,null,null,null,null,null,null,null,null,null,0,-1000,0]
[null,null,null,null,null,null,null,null,null,null,null,null,0,-1000,0]
[null,null,null,null,null,null,null,null,null,null,null,null,0,-1000,0]
[null,null,null,null,null,null,null,null,null,null,null,null,0,-1000,0]
[null,null,null,null,null,null,null,null,null,null,null,null,0,-1000,0]
[null,null,null,null,null,null,null,null,null,null,null,null,0,-1000,0]
[null,null,null,null,null,null,null,null,null,null,null,null,0,-1000,0]
[null,null,null,null,null,null,null,null,null,null,null,null,0,-1000,0]
[null,null,null,null,null,null,null,null,null,null,null,null,0,-1000,0]
[null,null,null,null,null,null,null,null,null,null,null,null,0,-1000,0]
[null,null,null,null,null,null,null,null,null,null,null,null,0,-1000,0]
[null,null,null,null,null,null,null,null,null,null,null,null,0,-1000,0]
[null,null,null,null,null,null,null,null,null,null,null,null,0,-1000,0]
[null,null,null,null,null,null,null,null,null,null,null,null,0,-1000,0]
[null,null,null,null,null,null,null,null,null,null,null,null,0,-1000,0]
[null,null,null,null,null,null,null,null,null,null,null,null,0,-1000,0]
[null,null,null,null,null,null,null,null,null,null,null,null,0,-1000,0]
[null,null,null,null,null,null,null,null,null,null,null,null,0,-1000,0]
[null,null,null,null,null,null,null,null,null,null,null,null,0,-1000,0]
[null,null,null,null,null,null,null,null,null,null,null,null,0,-1000,0]
[null,null,null,null,null,null,null,null,null,null,null,null,{"$f":"(G137*$G$4+H137*$H$4+I137*$I$4+J137*$J$4+K137*$K$4+L137*$L$4)","v":0},{"$f":"IF(M137>0,M137*-1,-1000)","v":-1000},{"$f":"IF(M137>0,RANK(N137,N:N),0)","v":0}]
[null,null,null,null,null,null,null,null,null,null,null,null,0,-1000,0]
[null,null,null,null,null,null,null,null,null,null,null,null,0,-1000,0]
[null,null,null,null,null,null,null,null,null,null,null,null,0,-1000,0]
[null,null,null,null,null,null,null,null,null,null,null,null,0,-1000,0]
[null,null,null,null,null,null,null,null,null,null,null,null,0,-1000,0]
[null,null,null,null,null,null,null,null,null,null,null,null,0,-1000,0]
[null,null,null,null,null,null,null,null,null,null,null,null,0,-1000,0]
[null,null,null,null,null,null,null,null,null,null,null,null,0,-1000,0]
[null,null,null,null,null,null,null,null,null,null,null,null,0,-1000,0]
[null,null,null,null,null,null,null,null,null,null,null,null,0,-1000,0]
[null,null,null,null,null,null,null,null,null,null,null,null,0,-1000,0]
[null,null,null,null,null,null,null,null,null,null,null,null,0,-1000,0]
[null,null,null,null,null,null,null,null,null,null,null,null,0,-1000,0]
[null,null,null,null,null,null,null,null,null,null,null,null,0,-1000,0]
[null,null,null,null,null,null,null,null,null,null,null,null,0,-1000,0]
[null,null,null,null,null,null,null,null,null,null,null,null,0,-1000,0]
[null,null,null,null,null,null,null,null,null,null,null,null,0,-1000,0]
[null,null,null,null,null,null,null,null,null,null,null,null,0,-1000,0]
[null,null,null,null,null,null,null,null,null,null,null,null,0,-1000,0]
[null,null,null,null,null,null,null,null,null,null,null,null,0,-1000,0]
[null,null,null,null,null,null,null,null,null,null,null,null,0,-1000,0]
[null,null,null,null,null,null,null,null,null,null,null,null,0,-1000,0]
[null,null,null,null,null,null,null,null,null,null,null,null,0,-1000,0]
[null,null,null,null,null,null,null,null,null,null,null,null,0,-1000,0]
[null,null,null,null,null,null,null,null,null,null,null,null,0,-1000,0]
[null,null,null,null,null,null,null,null,null,null,null,null,0,-1000,0]
[null,null,null,null,null,null,null,null,null,null,null,null,0,-1000,0]
[null,null,null,null,null,null,null,null,null,null,null,null,0,-1000,0]
[null,null,null,null,null,null,null,null,null,null,null,null,0,-1000,0]
[null,null,null,null,null,null,null,null,null,null,null,null,0,-1000,0]
[null,null,null,null,null,null,null,null,null,null,null,null,0,-1000,0]
[null,null,null,null,null,null,null,null,null,null,null,null,{"$f":"(G169*$G$4+H169*$H$4+I169*$I$4+J169*$J$4+K169*$K$4+L169*$L$4)","v":0},{"$f":"IF(M169>0,M169*-1,-1000)","v":-1000},{"$f":"IF(M169>0,RANK(N169,N:N),0)","v":0}]
[null,null,null,null,null,null,null,null,null,null,null,null,0,-1000,0]
[null,null,null,null,null,null,null,null,null,null,null,null,0,-1000,0]
[null,null,null,null,null,null,null,null,null,null,null,null,0,-1000,0]
[null,null,null,null,null,null,null,null,null,null,null,null,0,-1000,0]
[null,null,null,null,null,null,null,null,null,null,null,null,0,-1000,0]
[null,null,null,null,null,null,null,null,null,null,null,null,0,-1000,0]
[null,null,null,null,null,null,null,null,null,null,null,null,0,-1000,0]
[null,null,null,null,null,null,null,null,null,null,null,null,0,-1000,0]
[null,null,null,null,null,null,null,null,null,null,null,null,0,-1000,0]
[null,null,null,null,null,null,null,null,null,null,null,null,0,-1000,0]
[null,null,null,null,null,null,null,null,null,null,null,null,0,-1000,0]
[null,null,null,null,null,null,null,null,null,null,null,null,0,-1000,0]
[null,null,null,null,null,null,null,null,null,null,null,null,0,-1000,0]
[null,null,null,null,null,null,null,null,null,null,null,null,0,-1000,0]
[null,null,null,null,null,null,null,null,null,null,null,null,0,-1000,0]
[null,null,null,null,null,null,null,null,null,null,null,null,0,-1000,0]
[null,null,null,null,null,null,null,null,null,null,null,null,0,-1000,0]
[null,null,null,null,null,null,null,null,null,null,null,null,0,-1000,0]
[null,null,null,null,null,null,null,null,null,null,null,null,0,-1000,0]
[null,null,null,null,null,null,null,null,null,null,null,null,0,-1000,0]
[null,null,null,null,null,null,null,null,null,null,null,null,0,-1000,0]
[null,null,null,null,null,null,null,null,null,null,null,null,0,-1000,0]
[null,null,null,null,null,null,null,null,null,null,null,null,0,-1000,0]
[null,null,null,null,null,null,null,null,null,null,null,null,0,-1000,0]
[null,null,null,null,null,null,null,null,null,null,null,null,0,-1000,0]
[null,null,null,null,null,null,null,null,null,null,null,null,0,-1000,0]
[null,null,null,null,null,null,null,null,null,null,null,null,0,-1000,0]
[null,null,null,null,null,null,null,null,null,null,null,null,0,-1000,0]
[null,null,null,null,null,null,null,null,null,null,null,null,0,-1000,0]
[null,null,null,null,null,null,null,null,null,null,null,null,0,-1000,0]
[null,null,null,null,null,null,null,null,null,null,null,null,0,-1000,0]
[null,null,null,null,null,null,null,null,null,null,null,null,{"$f":"(G201*$G$4+H201*$H$4+I201*$I$4+J201*$J$4+K201*$K$4+L201*$L$4)","v":0},{"$f":"IF(M201>0,M201*-1,-1000)","v":-1000},{"$f":"IF(M201>0,RANK(N201,N:N),0)","v":0}]
[null,null,null,null,null,null,null,null,null,null,null,null,0,-1000,0]
[null,null,null,null,null,null,null,null,null,null,null,null,0,-1000,0]

{"sheet":"NRW-Elite-XL-18","index":5,"n_rows":203,"n_cols":16,"rows_kept":203,"cut":false,"hidden":false,"merged":[]}
["DSKD  Derby 25.06.2017 Mettingen/Osnabrück"]
["  NRW-Qualifikation Elite XL ü18 - Klasse  "]
[]
["Wird der Lauf gewertet?   dann 0 oder 1 eintragen",null,null,null,null,null,1,1,1,1,1,1]
["Bestzeit je Lauf",null,null,null,null,null,{"$f":"MIN(G9:G203)","v":34.35},34.54,34.44,34.450000000000003,0,100]
[]
["Start\nNummer","Gruppe","startet","Name","Vorname","Verein","Lauf 1","Lauf 2","Lauf 3","Lauf 4","Lauf 5","Lauf 6","Summe der gewerteten Läufe",null,"Platz","Urkunde"]
[]
[704,"EXL18",null,"Näther","Jacqueline","Xanten",null,null,null,null,null,null,{"$f":"(G9*$G$4+H9*$H$4+I9*$I$4+J9*$J$4+K9*$K$4+L9*$L$4)","v":0},{"$f":"IF(M9>0,M9*-1,-1000)","v":-1000},{"$f":"IF(M9>0,RANK(N9,N:N),0)","v":0}]
[706,"EXL18",null,"Ricker","Oliver","Billerbeck",null,null,null,null,null,null,0,-1000,0]
[710,"EXL18",null,"Roeben","Frank","Simmerath",null,null,null,null,null,null,0,-1000,0]
[711,"EXL18",null,"Leismann","Pascal","Mettingen",null,null,null,null,null,null,0,-1000,0]
[713,"EXL18",null,"Isaac","Marvin","Simmerath",null,null,null,null,null,null,0,-1000,0]
[715,"EXL18",null,"Lance","Arnold","Klüsserath",null,null,null,null,null,null,0,-1000,0]
[716,"EXL18",null,"Ricker","Claudia","Billerbeck",null,null,null,null,null,null,0,-1000,0]
[717,"EXL18",null,"Brüggemann","Jenny","Havixbeck",null,null,null,null,null,null,0,-1000,0]
[718,"EXL18",null,"Stagge","Jonas",null,null,null,null,null,null,null,0,-1000,0]
[719,"EXL18",null,"Meyer","Patrick","Simmerath",null,null,null,null,null,null,0,-1000,0]
[720,"EXL18",null,"Wetter","Sebastian","Billerbeck",null,null,null,null,null,null,0,-1000,0]
[724,"EXL18",null,null,null,null,null,null,null,null,null,null,0,-1000,0]
[726,"EXL18",null,null,null,null,null,null,null,null,null,null,0,-1000,0]
[727,"EXL18",null,null,null,null,null,null,null,null,null,null,0,-1000,0]
[728,"EXL18",null,null,null,null,null,null,null,null,null,null,0,-1000,0]
[729,"EXL18",null,null,null,null,null,null,null,null,null,null,0,-1000,0]
[null,null,null,null,null,null,null,null,null,null,null,null,0,-1000,0]
[null,null,null,null,null,null,null,null,null,null,null,null,0,-1000,0]
[null,null,null,null,null,null,null,null,null,null,null,null,0,-1000,0]
[null,null,null,null,null,null,null,null,null,null,null,null,0,-1000,0]
[null,null,null,null,null,null,null,null,null,null,null,null,0,-1000,0]
[null,null,null,null,null,null,null,null,null,null,null,null,0,-1000,0]
[null,null,null,null,null,null,null,null,null,null,null,null,0,-1000,0]
[null,null,null,null,null,null,null,null,null,null,null,null,0,-1000,0]
[null,null,null,null,null,null,null,null,null,null,null,null,0,-1000,0]
[null,null,null,null,null,null,null,null,null,null,null,null,0,-1000,0]
[null,null,null,null,null,null,null,null,null,null,null,null,0,-1000,0]
[null,null,null,null,null,"Mettingen",null,null,null,null,null,null,0,-1000,0]
[null,null,null,null,null,null,null,null,null,null,null,null,0,-1000,0]
[null,null,null,null,null,null,null,null,null,null,null,null,0,-1000,0]
[null,null,null,null,null,null,null,null,null,null,null,null,0,-1000,0]
[null,null,null,null,null,null,null,null,null,null,null,null,0,-1000,0]
[null,null,null,null,null,null,null,null,null,null,null,null,{"$f":"(G41*$G$4+H41*$H$4+I41*$I$4+J41*$J$4+K41*$K$4+L41*$L$4)","v":0},{"$f":"IF(M41>0,M41*-1,-1000)","v":-1000},{"$f":"IF(M41>0,RANK(N41,N:N),0)","v":0}]
[null,null,null,null,null,null,null,null,null,null,null,null,0,-1000,0]
[null,null,null,null,null,null,null,null,null,null,null,null,0,-1000,0]
[null,null,null,null,null,null,null,null,null,null,null,null,0,-1000,0]
[null,null,null,null,null,null,null,null,null,null,null,null,0,-1000,0]
[null,null,null,null,null,null,null,null,null,null,null,null,0,-1000,0]
[null,null,null,null,null,null,null,null,null,null,null,null,0,-1000,0]
[null,null,null,null,null,null,null,null,null,null,null,null,0,-1000,0]
[null,null,null,null,null,null,null,null,null,null,null,null,0,-1000,0]
[null,null,null,null,null,null,null,null,null,null,null,null,0,-1000,0]
[null,null,null,null,null,null,null,null,null,null,null,null,0,-1000,0]
[null,null,null,null,null,null,null,null,null,null,null,null,0,-1000,0]
[null,null,null,null,null,null,null,null,null,null,null,null,0,-1000,0]
[null,null,null,null,null,null,null,null,null,null,null,null,0,-1000,0]
[null,null,null,null,null,null,null,null,null,null,null,null,0,-1000,0]
[null,null,null,null,null,null,null,null,null,null,null,null,0,-1000,0]
[null,null,null,null,null,null,null,null,null,null,null,null,0,-1000,0]
[null,null,null,null,null,null,null,null,null,null,null,null,0,-1000,0]
[null,null,null,null,null,null,null,null,null,null,null,null,0,-1000,0]
[null,null,null,null,null,null,null,null,null,null,null,null,0,-1000,0]
[null,null,null,null,null,null,null,null,null,null,null,null,0,-1000,0]
[null,null,null,null,null,null,null,null,null,null,null,null,0,-1000,0]
[null,null,null,null,null,null,null,null,null,null,null,null,0,-1000,0]
[null,null,null,null,null,null,null,null,null,null,null,null,0,-1000,0]
[null,null,null,null,null,null,null,null,null,null,null,null,0,-1000,0]
[null,null,null,null,null,null,null,null,null,null,null,null,0,-1000,0]
[null,null,null,null,null,null,null,null,null,null,null,null,0,-1000,0]
[null,null,null,null,null,null,null,null,null,null,null,null,0,-1000,0]
[null,null,null,null,null,null,null,null,null,null,null,null,0,-1000,0]
[null,null,null,null,null,null,null,null,null,null,null,null,0,-1000,0]
[null,null,null,null,null,null,null,null,null,null,null,null,0,-1000,0]
[null,null,null,null,null,null,null,null,null,null,null,null,0,-1000,0]
[null,null,null,null,null,null,null,null,null,null,null,null,{"$f":"(G73*$G$4+H73*$H$4+I73*$I$4+J73*$J$4+K73*$K$4+L73*$L$4)","v":0},{"$f":"IF(M73>0,M73*-1,-1000)","v":-1000},{"$f":"IF(M73>0,RANK(N73,N:N),0)","v":0}]
[null,null,null,null,null,null,null,null,null,null,null,null,0,-1000,0]
[null,null,null,null,null,null,null,null,null,null,null,null,0,-1000,0]
[null,null,null,null,null,null,null,null,null,null,null,null,0,-1000,0]
[null,null,null,null,null,null,null,null,null,null,null,null,0,-1000,0]
[null,null,null,null,null,null,null,null,null,null,null,null,0,-1000,0]
[null,null,null,null,null,null,null,null,null,null,null,null,0,-1000,0]
[null,null,null,null,null,null,null,null,null,null,null,null,0,-1000,0]
[null,null,null,null,null,null,null,null,null,null,null,null,0,-1000,0]
[null,null,null,null,null,null,null,null,null,null,null,null,0,-1000,0]
[null,null,null,null,null,null,null,null,null,null,null,null,0,-1000,0]
[null,null,null,null,null,null,null,null,null,null,null,null,0,-1000,0]
[null,null,null,null,null,null,null,null,null,null,null,null,0,-1000,0]
[null,null,null,null,null,null,null,null,null,null,null,null,0,-1000,0]
[null,null,null,null,null,null,null,null,null,null,null,null,0,-1000,0]
[null,null,null,null,null,null,null,null,null,null,null,null,0,-1000,0]
[null,null,null,null,null,null,null,null,null,null,null,null,0,-1000,0]
[null,null,null,null,null,null,null,null,null,null,null,null,0,-1000,0]
[null,null,null,null,null,null,null,null,null,null,null,null,0,-1000,0]
[null,null,null,null,null,null,null,null,null,null,null,null,0,-1000,0]
[null,null,null,null,null,null,null,null,null,null,null,null,0,-1000,0]
[null,null,null,null,null,null,null,null,null,null,null,null,0,-1000,0]
[null,null,null,null,null,null,null,null,null,null,null,null,0,-1000,0]
[null,null,null,null,null,null,null,null,null,null,null,null,0,-1000,0]
[null,null,null,null,null,null,null,null,null,null,null,null,0,-1000,0]
[null,null,null,null,null,null,null,null,null,null,null,null,0,-1000,0]
[null,null,null,null,null,null,null,null,null,null,null,null,0,-1000,0]
[null,null,null,null,null,null,null,null,null,null,null,null,0,-1000,0]
[null,null,null,null,null,null,null,null,null,null,null,null,0,-1000,0]
[null,null,null,null,null,null,null,null,null,null,null,null,0,-1000,0]
[null,null,null,null,null,null,null,null,null,null,null,null,0,-1000,0]
[null,null,null,null,null,null,null,null,null,null,null,null,0,-1000,0]
[null,null,null,null,null,null,null,null,null,null,null,null,{"$f":"(G105*$G$4+H105*$H$4+I105*$I$4+J105*$J$4+K105*$K$4+L105*$L$4)","v":0},{"$f":"IF(M105>0,M105*-1,-1000)","v":-1000},{"$f":"IF(M105>0,RANK(N105,N:N),0)","v":0}]
[null,null,null,null,null,null,null,null,null,null,null,null,0,-1000,0]
[null,null,null,null,null,null,null,null,null,null,null,null,0,-1000,0]
[null,null,null,null,null,null,null,null,null,null,null,null,0,-1000,0]
[null,null,null,null,null,null,null,null,null,null,null,null,0,-1000,0]
[null,null,null,null,null,null,null,null,null,null,null,null,0,-1000,0]
[null,null,null,null,null,null,null,null,null,null,null,null,0,-1000,0]
[null,null,null,null,null,null,null,null,null,null,null,null,0,-1000,0]
[null,null,null,null,null,null,null,null,null,null,null,null,0,-1000,0]
[null,null,null,null,null,null,null,null,null,null,null,null,0,-1000,0]
[null,null,null,null,null,null,null,null,null,null,null,null,0,-1000,0]
[null,null,null,null,null,null,null,null,null,null,null,null,0,-1000,0]
[null,null,null,null,null,null,null,null,null,null,null,null,0,-1000,0]
[null,null,null,null,null,null,null,null,null,null,null,null,0,-1000,0]
[null,null,null,null,null,null,null,null,null,null,null,null,0,-1000,0]
[null,null,null,null,null,null,null,null,null,null,null,null,0,-1000,0]
[null,null,null,null,null,null,null,null,null,null,null,null,0,-1000,0]
[null,null,null,null,null,null,null,null,null,null,null,null,0,-1000,0]
[null,null,null,null,null,null,null,null,null,null,null,null,0,-1000,0]
[null,null,null,null,null,null,null,null,null,null,null,null,0,-1000,0]
[null,null,null,null,null,null,null,null,null,null,null,null,0,-1000,0]
[null,null,null,null,null,null,null,null,null,null,null,null,0,-1000,0]
[null,null,null,null,null,null,null,null,null,null,null,null,0,-1000,0]
[null,null,null,null,null,null,null,null,null,null,null,null,0,-1000,0]
[null,null,null,null,null,null,null,null,null,null,null,null,0,-1000,0]
[null,null,null,null,null,null,null,null,null,null,null,null,0,-1000,0]
[null,null,null,null,null,null,null,null,null,null,null,null,0,-1000,0]
[null,null,null,null,null,null,null,null,null,null,null,null,0,-1000,0]
[null,null,null,null,null,null,null,null,null,null,null,null,0,-1000,0]
[null,null,null,null,null,null,null,null,null,null,null,null,0,-1000,0]
[null,null,null,null,null,null,null,null,null,null,null,null,0,-1000,0]
[null,null,null,null,null,null,null,null,null,null,null,null,0,-1000,0]
[null,null,null,null,null,null,null,null,null,null,null,null,{"$f":"(G137*$G$4+H137*$H$4+I137*$I$4+J137*$J$4+K137*$K$4+L137*$L$4)","v":0},{"$f":"IF(M137>0,M137*-1,-1000)","v":-1000},{"$f":"IF(M137>0,RANK(N137,N:N),0)","v":0}]
[null,null,null,null,null,null,null,null,null,null,null,null,0,-1000,0]
[null,null,null,null,null,null,null,null,null,null,null,null,0,-1000,0]
[null,null,null,null,null,null,null,null,null,null,null,null,0,-1000,0]
[null,null,null,null,null,null,null,null,null,null,null,null,0,-1000,0]
[null,null,null,null,null,null,null,null,null,null,null,null,0,-1000,0]
[null,null,null,null,null,null,null,null,null,null,null,null,0,-1000,0]
[null,null,null,null,null,null,null,null,null,null,null,null,0,-1000,0]
[null,null,null,null,null,null,null,null,null,null,null,null,0,-1000,0]
[null,null,null,null,null,null,null,null,null,null,null,null,0,-1000,0]
[null,null,null,null,null,null,null,null,null,null,null,null,0,-1000,0]
[null,null,null,null,null,null,null,null,null,null,null,null,0,-1000,0]
[null,null,null,null,null,null,null,null,null,null,null,null,0,-1000,0]
[null,null,null,null,null,null,null,null,null,null,null,null,0,-1000,0]
[null,null,null,null,null,null,null,null,null,null,null,null,0,-1000,0]
[null,null,null,null,null,null,null,null,null,null,null,null,0,-1000,0]
[null,null,null,null,null,null,null,null,null,null,null,null,0,-1000,0]
[null,null,null,null,null,null,null,null,null,null,null,null,0,-1000,0]
[null,null,null,null,null,null,null,null,null,null,null,null,0,-1000,0]
[null,null,null,null,null,null,null,null,null,null,null,null,0,-1000,0]
[null,null,null,null,null,null,null,null,null,null,null,null,0,-1000,0]
[null,null,null,null,null,null,null,null,null,null,null,null,0,-1000,0]
[null,null,null,null,null,null,null,null,null,null,null,null,0,-1000,0]
[null,null,null,null,null,null,null,null,null,null,null,null,0,-1000,0]
[null,null,null,null,null,null,null,null,null,null,null,null,0,-1000,0]
[null,null,null,null,null,null,null,null,null,null,null,null,0,-1000,0]
[null,null,null,null,null,null,null,null,null,null,null,null,0,-1000,0]
[null,null,null,null,null,null,null,null,null,null,null,null,0,-1000,0]
[null,null,null,null,null,null,null,null,null,null,null,null,0,-1000,0]
[null,null,null,null,null,null,null,null,null,null,null,null,0,-1000,0]
[null,null,null,null,null,null,null,null,null,null,null,null,0,-1000,0]
[null,null,null,null,null,null,null,null,null,null,null,null,0,-1000,0]
[null,null,null,null,null,null,null,null,null,null,null,null,{"$f":"(G169*$G$4+H169*$H$4+I169*$I$4+J169*$J$4+K169*$K$4+L169*$L$4)","v":0},{"$f":"IF(M169>0,M169*-1,-1000)","v":-1000},{"$f":"IF(M169>0,RANK(N169,N:N),0)","v":0}]
[null,null,null,null,null,null,null,null,null,null,null,null,0,-1000,0]
[null,null,null,null,null,null,null,null,null,null,null,null,0,-1000,0]
[null,null,null,null,null,null,null,null,null,null,null,null,0,-1000,0]
[null,null,null,null,null,null,null,null,null,null,null,null,0,-1000,0]
[null,null,null,null,null,null,null,null,null,null,null,null,0,-1000,0]
[null,null,null,null,null,null,null,null,null,null,null,null,0,-1000,0]
[null,null,null,null,null,null,null,null,null,null,null,null,0,-1000,0]
[null,null,null,null,null,null,null,null,null,null,null,null,0,-1000,0]
[null,null,null,null,null,null,null,null,null,null,null,null,0,-1000,0]
[null,null,null,null,null,null,null,null,null,null,null,null,0,-1000,0]
[null,null,null,null,null,null,null,null,null,null,null,null,0,-1000,0]
[null,null,null,null,null,null,null,null,null,null,null,null,0,-1000,0]
[null,null,null,null,null,null,null,null,null,null,null,null,0,-1000,0]
[null,null,null,null,null,null,null,null,null,null,null,null,0,-1000,0]
[null,null,null,null,null,null,null,null,null,null,null,null,0,-1000,0]
[null,null,null,null,null,null,null,null,null,null,null,null,0,-1000,0]
[null,null,null,null,null,null,null,null,null,null,null,null,0,-1000,0]
[null,null,null,null,null,null,null,null,null,null,null,null,0,-1000,0]
[null,null,null,null,null,null,null,null,null,null,null,null,0,-1000,0]
[null,null,null,null,null,null,null,null,null,null,null,null,0,-1000,0]
[702,"EXL18",null,"Voß","Marie-Charlotte","Bergkamen",34.35,34.54,34.44,34.520000000000003,null,null,{"$f":"(G190*$G$4+H190*$H$4+I190*$I$4+J190*$J$4+K190*$K$4+L190*$L$4)","v":137.85},{"$f":"IF(M190>0,M190*-1,-1000)","v":-137.85},{"$f":"IF(M190>0,RANK(N190,N:N),0)","v":1}]
[712,"EXL18",null,"Rohls","Sebastian","Stromberg",34.46,34.590000000000003,34.619999999999997,34.450000000000003,null,null,{"$f":"(G191*$G$4+H191*$H$4+I191*$I$4+J191*$J$4+K191*$K$4+L191*$L$4)","v":138.12},{"$f":"IF(M191>0,M191*-1,-1000)","v":-138.12},{"$f":"IF(M191>0,RANK(N191,N:N),0)","v":2}]
[701,"EXL18",null,"Wettendorf","Kathrin","Stromberg",34.54,34.54,34.67,34.58,null,null,{"$f":"(G192*$G$4+H192*$H$4+I192*$I$4+J192*$J$4+K192*$K$4+L192*$L$4)","v":138.33000000000001},{"$f":"IF(M192>0,M192*-1,-1000)","v":-138.33000000000001},{"$f":"IF(M192>0,RANK(N192,N:N),0)","v":3}]
[703,"EXL18",null,"Schmidt","Imke","ConAction",34.6,34.61,34.590000000000003,34.53,null,null,{"$f":"(G193*$G$4+H193*$H$4+I193*$I$4+J193*$J$4+K193*$K$4+L193*$L$4)","v":138.33000000000001},{"$f":"IF(M193>0,M193*-1,-1000)","v":-138.33000000000001},{"$f":"IF(M193>0,RANK(N193,N:N),0)","v":3}]
[722,"EXL18",null,"van Loo","Julian","ConAction",34.5,34.700000000000003,34.61,34.56,null,null,{"$f":"(G194*$G$4+H194*$H$4+I194*$I$4+J194*$J$4+K194*$K$4+L194*$L$4)","v":138.37},{"$f":"IF(M194>0,M194*-1,-1000)","v":-138.37},{"$f":"IF(M194>0,RANK(N194,N:N),0)","v":5}]
[725,"EXL18",null,"Leismann","Pascal","Mettingen",34.49,34.65,34.75,34.590000000000003,null,null,{"$f":"(G195*$G$4+H195*$H$4+I195*$I$4+J195*$J$4+K195*$K$4+L195*$L$4)","v":138.47999999999999},{"$f":"IF(M195>0,M195*-1,-1000)","v":-138.47999999999999},{"$f":"IF(M195>0,RANK(N195,N:N),0)","v":6}]
[705,"EXL18",null,"Freudenstein","Thomas","Mettingen",34.549999999999997,34.74,34.58,34.659999999999997,null,null,{"$f":"(G196*$G$4+H196*$H$4+I196*$I$4+J196*$J$4+K196*$K$4+L196*$L$4)","v":138.53},{"$f":"IF(M196>0,M196*-1,-1000)","v":-138.53},{"$f":"IF(M196>0,RANK(N196,N:N),0)","v":7}]
[721,"EXL18",null,"Leismann","Dominik","Mettingen",34.590000000000003,34.67,34.74,34.549999999999997,null,null,{"$f":"(G197*$G$4+H197*$H$4+I197*$I$4+J197*$J$4+K197*$K$4+L197*$L$4)","v":138.55000000000001},{"$f":"IF(M197>0,M197*-1,-1000)","v":-138.55000000000001},{"$f":"IF(M197>0,RANK(N197,N:N),0)","v":8}]
[709,"EXL18",null,"Schröer","Sabrina","Mettingen",34.78,34.75,35.020000000000003,34.590000000000003,null,null,{"$f":"(G198*$G$4+H198*$H$4+I198*$I$4+J198*$J$4+K198*$K$4+L198*$L$4)","v":139.13999999999999},{"$f":"IF(M198>0,M198*-1,-1000)","v":-139.13999999999999},{"$f":"IF(M198>0,RANK(N198,N:N),0)","v":9}]
[707,"EXL18",null,"Lange","Florian","Mettingen",34.75,34.65,35.04,34.72,null,null,{"$f":"(G199*$G$4+H199*$H$4+I199*$I$4+J199*$J$4+K199*$K$4+L199*$L$4)","v":139.16},{"$f":"IF(M199>0,M199*-1,-1000)","v":-139.16},{"$f":"IF(M199>0,RANK(N199,N:N),0)","v":10}]
[714,"EXL18",null,"Ricker","Kristina","Billerbeck",34.58,35.06,34.79,34.840000000000003,null,null,{"$f":"(G200*$G$4+H200*$H$4+I200*$I$4+J200*$J$4+K200*$K$4+L200*$L$4)","v":139.27000000000001},{"$f":"IF(M200>0,M200*-1,-1000)","v":-139.27000000000001},{"$f":"IF(M200>0,RANK(N200,N:N),0)","v":11}]
[708,"EXL18",null,"Kelch","Maria","Bergkamen",34.79,34.86,35.06,34.880000000000003,null,null,{"$f":"(G201*$G$4+H201*$H$4+I201*$I$4+J201*$J$4+K201*$K$4+L201*$L$4)","v":139.59},{"$f":"IF(M201>0,M201*-1,-1000)","v":-139.59},{"$f":"IF(M201>0,RANK(N201,N:N),0)","v":12}]
[723,"EXL18",null,"Sulitze","Jessica","Bergkamen",35.04,34.799999999999997,35.11,34.840000000000003,null,null,{"$f":"(G202*$G$4+H202*$H$4+I202*$I$4+J202*$J$4+K202*$K$4+L202*$L$4)","v":139.79},{"$f":"IF(M202>0,M202*-1,-1000)","v":-139.79},{"$f":"IF(M202>0,RANK(N202,N:N),0)","v":13}]
[725,"EXL18",null,"Leismann","Pascal","SV Losaurach",34.49,34.65,34.75,34.590000000000003,null,100,{"$f":"(G203*$G$4+H203*$H$4+I203*$I$4+J203*$J$4+K203*$K$4+L203*$L$4)","v":238.48},{"$f":"IF(M203>0,M203*-1,-1000)","v":-238.48},{"$f":"IF(M203>0,RANK(N203,N:N),0)","v":14}]

{"sheet":"NRW-Open","index":7,"n_rows":202,"n_cols":15,"rows_kept":202,"cut":false,"hidden":false,"merged":[]}
["DSKD  Derby 25.06.2017 Mettingen/Osnabrück"]
["  NRW-Qualifikation Open - Klasse  "]
[]
[null,null,null,null,null,null,1,1,1,1,1,1,1]
["Bestzeit je Lauf",null,null,null,null,null,{"$f":"MIN(G9:G202)","v":34.68},34.479999999999997,34.85,34.61,0,0,0]
[]
["Start\nNummer","Gruppe","startet","Name","Vorname","Verein","Lauf 1","Lauf 2","Lauf 3","Lauf 4","Lauf 5","Lauf 6","Summe",null,"Platz"]
[]
[907,"Open",null,"Crook","Florian","Mettingen",35.44,35.520000000000003,35.4,35.51,null,null,{"$f":"IF($G$4=1,\nIF(H9>1,(ABS(G9-H9)),0)+\nIF(I9>1,(ABS(G9-I9)),0)+\nIF(J9>1,(ABS(G9-J9)),0)+\nIF(K9>1,(ABS(G9-K9)),0)+\nIF(L9>1,(ABS(G9-L9)),0),\n\nIF(I9>1,(ABS(H9-I9)),0)+\nIF(J9>1,(ABS(H9-J9)),0)+\nIF(K9>1,(ABS(H9-K9)),0) )","v":0.19},{"$f":"IF(M9>0,M9*-1,-1000)","v":-0.19},{"$f":"IF(M9>0,RANK(N9,N:N),0)","v":1}]
[921,"Open",null,"Wetter","Sabrina","Billerbeck",34.86,35.049999999999997,34.97,34.92,null,null,{"$f":"IF($G$4=1,\nIF(H10>1,(ABS(G10-H10)),0)+\nIF(I10>1,(ABS(G10-I10)),0)+\nIF(J10>1,(ABS(G10-J10)),0)+\nIF(K10>1,(ABS(G10-K10)),0)+\nIF(L10>1,(ABS(G10-L10)),0),\n\nIF(I10>1,(ABS(H10-I10)),0)+\nIF(J10>1,(ABS(H10-J10)),0)+\nIF(K10>1,(ABS(H10-K10)),0) )","v":0.36},{"$f":"IF(M10>0,M10*-1,-1000)","v":-0.36},{"$f":"IF(M10>0,RANK(N10,N:N),0)","v":2}]
[903,"Open",null,"Ricker","Andreas","Billerbeck",null,null,null,null,null,null,{"$f":"IF($G$4=1,\nIF(H11>1,(ABS(G11-H11)),0)+\nIF(I11>1,(ABS(G11-I11)),0)+\nIF(J11>1,(ABS(G11-J11)),0)+\nIF(K11>1,(ABS(G11-K11)),0)+\nIF(L11>1,(ABS(G11-L11)),0),\n\nIF(I11>1,(ABS(H11-I11)),0)+\nIF(J11>1,(ABS(H11-J11)),0)+\nIF(K11>1,(ABS(H11-K11)),0) )","v":0},{"$f":"IF(M11>0,M11*-1,-1000)","v":-1000},{"$f":"IF(M11>0,RANK(N11,N:N),0)","v":0}]
[901,"Open",null,"Schmidt","Michael","ConAction",34.68,34.479999999999997,34.85,34.61,null,null,{"$f":"IF($G$4=1,\nIF(H12>1,(ABS(G12-H12)),0)+\nIF(I12>1,(ABS(G12-I12)),0)+\nIF(J12>1,(ABS(G12-J12)),0)+\nIF(K12>1,(ABS(G12-K12)),0)+\nIF(L12>1,(ABS(G12-L12)),0),\n\nIF(I12>1,(ABS(H12-I12)),0)+\nIF(J12>1,(ABS(H12-J12)),0)+\nIF(K12>1,(ABS(H12-K12)),0) )","v":0.44},{"$f":"IF(M12>0,M12*-1,-1000)","v":-0.44},{"$f":"IF(M12>0,RANK(N12,N:N),0)","v":3}]
[905,"Open",null,"Heuermann","Holger",null,null,null,null,null,null,null,{"$f":"IF($G$4=1,\nIF(H13>1,(ABS(G13-H13)),0)+\nIF(I13>1,(ABS(G13-I13)),0)+\nIF(J13>1,(ABS(G13-J13)),0)+\nIF(K13>1,(ABS(G13-K13)),0)+\nIF(L13>1,(ABS(G13-L13)),0),\n\nIF(I13>1,(ABS(H13-I13)),0)+\nIF(J13>1,(ABS(H13-J13)),0)+\nIF(K13>1,(ABS(H13-K13)),0) )","v":0},{"$f":"IF(M13>0,M13*-1,-1000)","v":-1000},{"$f":"IF(M13>0,RANK(N13,N:N),0)","v":0}]
[906,"Open",null,"Drücker","Gavin","Schloß Holte-Stuckenbrock",36.11,35.75,36.04,35.94,null,null,{"$f":"IF($G$4=1,\nIF(H14>1,(ABS(G14-H14)),0)+\nIF(I14>1,(ABS(G14-I14)),0)+\nIF(J14>1,(ABS(G14-J14)),0)+\nIF(K14>1,(ABS(G14-K14)),0)+\nIF(L14>1,(ABS(G14-L14)),0),\n\nIF(I14>1,(ABS(H14-I14)),0)+\nIF(J14>1,(ABS(H14-J14)),0)+\nIF(K14>1,(ABS(H14-K14)),0) )","v":0.6},{"$f":"IF(M14>0,M14*-1,-1000)","v":-0.6},{"$f":"IF(M14>0,RANK(N14,N:N),0)","v":4}]
[904,"Open",null,"Gerigk-Lorenz","Frank","Overath",36.17,35.4,36.04,36.049999999999997,null,null,{"$f":"IF($G$4=1,\nIF(H15>1,(ABS(G15-H15)),0)+\nIF(I15>1,(ABS(G15-I15)),0)+\nIF(J15>1,(ABS(G15-J15)),0)+\nIF(K15>1,(ABS(G15-K15)),0)+\nIF(L15>1,(ABS(G15-L15)),0),\n\nIF(I15>1,(ABS(H15-I15)),0)+\nIF(J15>1,(ABS(H15-J15)),0)+\nIF(K15>1,(ABS(H15-K15)),0) )","v":1.02},{"$f":"IF(M15>0,M15*-1,-1000)","v":-1.02},{"$f":"IF(M15>0,RANK(N15,N:N),0)","v":5}]
[902,"Open",null,"Gaidosch","Udo","Overath",36.65,36.130000000000003,36.94,36.369999999999997,null,null,{"$f":"IF($G$4=1,\nIF(H16>1,(ABS(G16-H16)),0)+\nIF(I16>1,(ABS(G16-I16)),0)+\nIF(J16>1,(ABS(G16-J16)),0)+\nIF(K16>1,(ABS(G16-K16)),0)+\nIF(L16>1,(ABS(G16-L16)),0),\n\nIF(I16>1,(ABS(H16-I16)),0)+\nIF(J16>1,(ABS(H16-J16)),0)+\nIF(K16>1,(ABS(H16-K16)),0) )","v":1.0900000000000001},{"$f":"IF(M16>0,M16*-1,-1000)","v":-1.0900000000000001},{"$f":"IF(M16>0,RANK(N16,N:N),0)","v":6}]
[909,"Open",null,"Pufal","Max","Lengerich",null,null,null,null,null,null,{"$f":"IF($G$4=1,\nIF(H17>1,(ABS(G17-H17)),0)+\nIF(I17>1,(ABS(G17-I17)),0)+\nIF(J17>1,(ABS(G17-J17)),0)+\nIF(K17>1,(ABS(G17-K17)),0)+\nIF(L17>1,(ABS(G17-L17)),0),\n\nIF(I17>1,(ABS(H17-I17)),0)+\nIF(J17>1,(ABS(H17-J17)),0)+\nIF(K17>1,(ABS(H17-K17)),0) )","v":0},{"$f":"IF(M17>0,M17*-1,-1000)","v":-1000},{"$f":"IF(M17>0,RANK(N17,N:N),0)","v":0}]
[910,"Open",null,"Heuermann","Emily","Simmerath",null,null,null,null,null,null,{"$f":"IF($G$4=1,\nIF(H18>1,(ABS(G18-H18)),0)+\nIF(I18>1,(ABS(G18-I18)),0)+\nIF(J18>1,(ABS(G18-J18)),0)+\nIF(K18>1,(ABS(G18-K18)),0)+\nIF(L18>1,(ABS(G18-L18)),0),\n\nIF(I18>1,(ABS(H18-I18)),0)+\nIF(J18>1,(ABS(H18-J18)),0)+\nIF(K18>1,(ABS(H18-K18)),0) )","v":0},{"$f":"IF(M18>0,M18*-1,-1000)","v":-1000},{"$f":"IF(M18>0,RANK(N18,N:N),0)","v":0}]
[911,"Open",null,"Meyhoff","Thomas","Mettingen",null,null,null,null,null,null,{"$f":"IF($G$4=1,\nIF(H19>1,(ABS(G19-H19)),0)+\nIF(I19>1,(ABS(G19-I19)),0)+\nIF(J19>1,(ABS(G19-J19)),0)+\nIF(K19>1,(ABS(G19-K19)),0)+\nIF(L19>1,(ABS(G19-L19)),0),\n\nIF(I19>1,(ABS(H19-I19)),0)+\nIF(J19>1,(ABS(H19-J19)),0)+\nIF(K19>1,(ABS(H19-K19)),0) )","v":0},{"$f":"IF(M19>0,M19*-1,-1000)","v":-1000},{"$f":"IF(M19>0,RANK(N19,N:N),0)","v":0}]
[912,"Open",null,"Pahlings","Anna","ConAction",null,null,null,null,null,null,{"$f":"IF($G$4=1,\nIF(H20>1,(ABS(G20-H20)),0)+\nIF(I20>1,(ABS(G20-I20)),0)+\nIF(J20>1,(ABS(G20-J20)),0)+\nIF(K20>1,(ABS(G20-K20)),0)+\nIF(L20>1,(ABS(G20-L20)),0),\n\nIF(I20>1,(ABS(H20-I20)),0)+\nIF(J20>1,(ABS(H20-J20)),0)+\nIF(K20>1,(ABS(H20-K20)),0) )","v":0},{"$f":"IF(M20>0,M20*-1,-1000)","v":-1000},{"$f":"IF(M20>0,RANK(N20,N:N),0)","v":0}]
[913,"Open",null,"Pahlings","Kai","ConAction",null,null,null,null,null,null,{"$f":"IF($G$4=1,\nIF(H21>1,(ABS(G21-H21)),0)+\nIF(I21>1,(ABS(G21-I21)),0)+\nIF(J21>1,(ABS(G21-J21)),0)+\nIF(K21>1,(ABS(G21-K21)),0)+\nIF(L21>1,(ABS(G21-L21)),0),\n\nIF(I21>1,(ABS(H21-I21)),0)+\nIF(J21>1,(ABS(H21-J21)),0)+\nIF(K21>1,(ABS(H21-K21)),0) )","v":0},{"$f":"IF(M21>0,M21*-1,-1000)","v":-1000},{"$f":"IF(M21>0,RANK(N21,N:N),0)","v":0}]
[914,"Open",null,"Enders","Simon","Billerbeck",null,null,null,null,null,null,{"$f":"IF($G$4=1,\nIF(H22>1,(ABS(G22-H22)),0)+\nIF(I22>1,(ABS(G22-I22)),0)+\nIF(J22>1,(ABS(G22-J22)),0)+\nIF(K22>1,(ABS(G22-K22)),0)+\nIF(L22>1,(ABS(G22-L22)),0),\n\nIF(I22>1,(ABS(H22-I22)),0)+\nIF(J22>1,(ABS(H22-J22)),0)+\nIF(K22>1,(ABS(H22-K22)),0) )","v":0},{"$f":"IF(M22>0,M22*-1,-1000)","v":-1000},{"$f":"IF(M22>0,RANK(N22,N:N),0)","v":0}]
[915,"Open",null,"Szabowski","Peter","Billerbeck",null,null,null,null,null,null,{"$f":"IF($G$4=1,\nIF(H23>1,(ABS(G23-H23)),0)+\nIF(I23>1,(ABS(G23-I23)),0)+\nIF(J23>1,(ABS(G23-J23)),0)+\nIF(K23>1,(ABS(G23-K23)),0)+\nIF(L23>1,(ABS(G23-L23)),0),\n\nIF(I23>1,(ABS(H23-I23)),0)+\nIF(J23>1,(ABS(H23-J23)),0)+\nIF(K23>1,(ABS(H23-K23)),0) )","v":0},{"$f":"IF(M23>0,M23*-1,-1000)","v":-1000},{"$f":"IF(M23>0,RANK(N23,N:N),0)","v":0}]
[916,"Open",null,"Szabowski","Marco","Billerbeck",null,null,null,null,null,null,{"$f":"IF($G$4=1,\nIF(H24>1,(ABS(G24-H24)),0)+\nIF(I24>1,(ABS(G24-I24)),0)+\nIF(J24>1,(ABS(G24-J24)),0)+\nIF(K24>1,(ABS(G24-K24)),0)+\nIF(L24>1,(ABS(G24-L24)),0),\n\nIF(I24>1,(ABS(H24-I24)),0)+\nIF(J24>1,(ABS(H24-J24)),0)+\nIF(K24>1,(ABS(H24-K24)),0) )","v":0},{"$f":"IF(M24>0,M24*-1,-1000)","v":-1000},{"$f":"IF(M24>0,RANK(N24,N:N),0)","v":0}]
[917,"Open",null,"Schlösser","Jürgen","Stromberg",null,null,null,null,null,null,{"$f":"IF($G$4=1,\nIF(H25>1,(ABS(G25-H25)),0)+\nIF(I25>1,(ABS(G25-I25)),0)+\nIF(J25>1,(ABS(G25-J25)),0)+\nIF(K25>1,(ABS(G25-K25)),0)+\nIF(L25>1,(ABS(G25-L25)),0),\n\nIF(I25>1,(ABS(H25-I25)),0)+\nIF(J25>1,(ABS(H25-J25)),0)+\nIF(K25>1,(ABS(H25-K25)),0) )","v":0},{"$f":"IF(M25>0,M25*-1,-1000)","v":-1000},{"$f":"IF(M25>0,RANK(N25,N:N),0)","v":0}]
[918,"Open",null,"Szabowski","Mara","Billerbeck",null,null,null,null,null,null,{"$f":"IF($G$4=1,\nIF(H26>1,(ABS(G26-H26)),0)+\nIF(I26>1,(ABS(G26-I26)),0)+\nIF(J26>1,(ABS(G26-J26)),0)+\nIF(K26>1,(ABS(G26-K26)),0)+\nIF(L26>1,(ABS(G26-L26)),0),\n\nIF(I26>1,(ABS(H26-I26)),0)+\nIF(J26>1,(ABS(H26-J26)),0)+\nIF(K26>1,(ABS(H26-K26)),0) )","v":0},{"$f":"IF(M26>0,M26*-1,-1000)","v":-1000},{"$f":"IF(M26>0,RANK(N26,N:N),0)","v":0}]
[919,"Open",null,"Pahlings","Iris","ConAction",null,null,null,null,null,null,{"$f":"IF($G$4=1,\nIF(H27>1,(ABS(G27-H27)),0)+\nIF(I27>1,(ABS(G27-I27)),0)+\nIF(J27>1,(ABS(G27-J27)),0)+\nIF(K27>1,(ABS(G27-K27)),0)+\nIF(L27>1,(ABS(G27-L27)),0),\n\nIF(I27>1,(ABS(H27-I27)),0)+\nIF(J27>1,(ABS(H27-J27)),0)+\nIF(K27>1,(ABS(H27-K27)),0) )","v":0},{"$f":"IF(M27>0,M27*-1,-1000)","v":-1000},{"$f":"IF(M27>0,RANK(N27,N:N),0)","v":0}]
[920,"Open",null,"Pahlings","Detlev","ConAction",null,null,null,null,null,null,{"$f":"IF($G$4=1,\nIF(H28>1,(ABS(G28-H28)),0)+\nIF(I28>1,(ABS(G28-I28)),0)+\nIF(J28>1,(ABS(G28-J28)),0)+\nIF(K28>1,(ABS(G28-K28)),0)+\nIF(L28>1,(ABS(G28-L28)),0),\n\nIF(I28>1,(ABS(H28-I28)),0)+\nIF(J28>1,(ABS(H28-J28)),0)+\nIF(K28>1,(ABS(H28-K28)),0) )","v":0},{"$f":"IF(M28>0,M28*-1,-1000)","v":-1000},{"$f":"IF(M28>0,RANK(N28,N:N),0)","v":0}]
[908,"Open",null,"Drücker","Guido","Schloß Holte-Stuckenbrock",34.92,35.22,35.19,35.450000000000003,null,null,{"$f":"IF($G$4=1,\nIF(H29>1,(ABS(G29-H29)),0)+\nIF(I29>1,(ABS(G29-I29)),0)+\nIF(J29>1,(ABS(G29-J29)),0)+\nIF(K29>1,(ABS(G29-K29)),0)+\nIF(L29>1,(ABS(G29-L29)),0),\n\nIF(I29>1,(ABS(H29-I29)),0)+\nIF(J29>1,(ABS(H29-J29)),0)+\nIF(K29>1,(ABS(H29-K29)),0) )","v":1.1000000000000001},{"$f":"IF(M29>0,M29*-1,-1000)","v":-1.1000000000000001},{"$f":"IF(M29>0,RANK(N29,N:N),0)","v":7}]
[922,"Open",null,null,null,null,null,null,null,null,null,null,{"$f":"IF($G$4=1,\nIF(H30>1,(ABS(G30-H30)),0)+\nIF(I30>1,(ABS(G30-I30)),0)+\nIF(J30>1,(ABS(G30-J30)),0)+\nIF(K30>1,(ABS(G30-K30)),0)+\nIF(L30>1,(ABS(G30-L30)),0),\n\nIF(I30>1,(ABS(H30-I30)),0)+\nIF(J30>1,(ABS(H30-J30)),0)+\nIF(K30>1,(ABS(H30-K30)),0) )","v":0},{"$f":"IF(M30>0,M30*-1,-1000)","v":-1000},{"$f":"IF(M30>0,RANK(N30,N:N),0)","v":0}]
[923,"Open",null,null,null,null,null,null,null,null,null,null,0,-1000,0]
[924,"Open",null,null,null,null,null,null,null,null,null,null,0,-1000,0]
[925,"Open",null,null,null,null,null,null,null,null,null,null,0,-1000,0]
[926,"Open",null,null,null,null,null,null,null,null,null,null,0,-1000,0]
[927,"Open",null,null,null,null,null,null,null,null,null,null,0,-1000,0]
[928,"Open",null,null,null,"Mettingen",null,null,null,null,null,null,0,-1000,0]
[null,null,null,null,null,null,null,null,null,null,null,null,0,-1000,0]
[null,null,null,null,null,null,null,null,null,null,null,null,0,-1000,0]
[null,null,null,null,null,null,null,null,null,null,null,null,0,-1000,0]
[null,null,null,null,null,null,null,null,null,null,null,null,0,-1000,0]
[null,null,null,null,null,null,null,null,null,null,null,null,{"$f":"IF($G$4=1,\nIF(H41>1,(ABS(G41-H41)),0)+\nIF(I41>1,(ABS(G41-I41)),0)+\nIF(J41>1,(ABS(G41-J41)),0)+\nIF(K41>1,(ABS(G41-K41)),0)+\nIF(L41>1,(ABS(G41-L41)),0),\n\nIF(I41>1,(ABS(H41-I41)),0)+\nIF(J41>1,(ABS(H41-J41)),0)+\nIF(K41>1,(ABS(H41-K41)),0) )","v":0},{"$f":"IF(M41>0,M41*-1,-1000)","v":-1000},{"$f":"IF(M41>0,RANK(N41,N:N),0)","v":0}]
[null,null,null,null,null,null,null,null,null,null,null,null,0,-1000,0]
[null,null,null,null,null,null,null,null,null,null,null,null,0,-1000,0]
[null,null,null,null,null,null,null,null,null,null,null,null,0,-1000,0]
[null,null,null,null,null,null,null,null,null,null,null,null,0,-1000,0]
[null,null,null,null,null,null,null,null,null,null,null,null,0,-1000,0]
[null,null,null,null,null,null,null,null,null,null,null,null,0,-1000,0]
[null,null,null,null,null,null,null,null,null,null,null,null,0,-1000,0]
[null,null,null,null,null,null,null,null,null,null,null,null,0,-1000,0]
[null,null,null,null,null,null,null,null,null,null,null,null,0,-1000,0]
[null,null,null,null,null,null,null,null,null,null,null,null,0,-1000,0]
[null,null,null,null,null,null,null,null,null,null,null,null,0,-1000,0]
[null,null,null,null,null,null,null,null,null,null,null,null,0,-1000,0]
[null,null,null,null,null,null,null,null,null,null,null,null,0,-1000,0]
[null,null,null,null,null,null,null,null,null,null,null,null,0,-1000,0]
[null,null,null,null,null,null,null,null,null,null,null,null,0,-1000,0]
[null,null,null,null,null,null,null,null,null,null,null,null,0,-1000,0]
[null,null,null,null,null,null,null,null,null,null,null,null,0,-1000,0]
[null,null,null,null,null,null,null,null,null,null,null,null,0,-1000,0]
[null,null,null,null,null,null,null,null,null,null,null,null,0,-1000,0]
[null,null,null,null,null,null,null,null,null,null,null,null,0,-1000,0]
[null,null,null,null,null,null,null,null,null,null,null,null,0,-1000,0]
[null,null,null,null,null,null,null,null,null,null,null,null,0,-1000,0]
[null,null,null,null,null,null,null,null,null,null,null,null,0,-1000,0]
[null,null,null,null,null,null,null,null,null,null,null,null,0,-1000,0]
[null,null,null,null,null,null,null,null,null,null,null,null,0,-1000,0]
[null,null,null,null,null,null,null,null,null,null,null,null,0,-1000,0]
[null,null,null,null,null,null,null,null,null,null,null,null,0,-1000,0]
[null,null,null,null,null,null,null,null,null,null,null,null,0,-1000,0]
[null,null,null,null,null,null,null,null,null,null,null,null,0,-1000,0]
[null,null,null,null,null,null,null,null,null,null,null,null,0,-1000,0]
[null,null,null,null,null,null,null,null,null,null,null,null,0,-1000,0]
[null,null,null,null,null,null,null,null,null,null,null,null,{"$f":"IF($G$4=1,\nIF(H73>1,(ABS(G73-H73)),0)+\nIF(I73>1,(ABS(G73-I73)),0)+\nIF(J73>1,(ABS(G73-J73)),0)+\nIF(K73>1,(ABS(G73-K73)),0)+\nIF(L73>1,(ABS(G73-L73)),0),\n\nIF(I73>1,(ABS(H73-I73)),0)+\nIF(J73>1,(ABS(H73-J73)),0)+\nIF(K73>1,(ABS(H73-K73)),0) )","v":0},{"$f":"IF(M73>0,M73*-1,-1000)","v":-1000},{"$f":"IF(M73>0,RANK(N73,N:N),0)","v":0}]
[null,null,null,null,null,null,null,null,null,null,null,null,0,-1000,0]
[null,null,null,null,null,null,null,null,null,null,null,null,0,-1000,0]
[null,null,null,null,null,null,null,null,null,null,null,null,0,-1000,0]
[null,null,null,null,null,null,null,null,null,null,null,null,0,-1000,0]
[null,null,null,null,null,null,null,null,null,null,null,null,0,-1000,0]
[null,null,null,null,null,null,null,null,null,null,null,null,0,-1000,0]
[null,null,null,null,null,null,null,null,null,null,null,null,0,-1000,0]
[null,null,null,null,null,null,null,null,null,null,null,null,0,-1000,0]
[null,null,null,null,null,null,null,null,null,null,null,null,0,-1000,0]
[null,null,null,null,null,null,null,null,null,null,null,null,0,-1000,0]
[null,null,null,null,null,null,null,null,null,null,null,null,0,-1000,0]
[null,null,null,null,null,null,null,null,null,null,null,null,0,-1000,0]
[null,null,null,null,null,null,null,null,null,null,null,null,0,-1000,0]
[null,null,null,null,null,null,null,null,null,null,null,null,0,-1000,0]
[null,null,null,null,null,null,null,null,null,null,null,null,0,-1000,0]
[null,null,null,null,null,null,null,null,null,null,null,null,0,-1000,0]
[null,null,null,null,null,null,null,null,null,null,null,null,0,-1000,0]
[null,null,null,null,null,null,null,null,null,null,null,null,0,-1000,0]
[null,null,null,null,null,null,null,null,null,null,null,null,0,-1000,0]
[null,null,null,null,null,null,null,null,null,null,null,null,0,-1000,0]
[null,null,null,null,null,null,null,null,null,null,null,null,0,-1000,0]
[null,null,null,null,null,null,null,null,null,null,null,null,0,-1000,0]
[null,null,null,null,null,null,null,null,null,null,null,null,0,-1000,0]
[null,null,null,null,null,null,null,null,null,null,null,null,0,-1000,0]
[null,null,null,null,null,null,null,null,null,null,null,null,0,-1000,0]
[null,null,null,null,null,null,null,null,null,null,null,null,0,-1000,0]
[null,null,null,null,null,null,null,null,null,null,null,null,0,-1000,0]
[null,null,null,null,null,null,null,null,null,null,null,null,0,-1000,0]
[null,null,null,null,null,null,null,null,null,null,null,null,0,-1000,0]
[null,null,null,null,null,null,null,null,null,null,null,null,0,-1000,0]
[null,null,null,null,null,null,null,null,null,null,null,null,0,-1000,0]
[null,null,null,null,null,null,null,null,null,null,null,null,{"$f":"IF($G$4=1,\nIF(H105>1,(ABS(G105-H105)),0)+\nIF(I105>1,(ABS(G105-I105)),0)+\nIF(J105>1,(ABS(G105-J105)),0)+\nIF(K105>1,(ABS(G105-K105)),0)+\nIF(L105>1,(ABS(G105-L105)),0),\n\nIF(I105>1,(ABS(H105-I105)),0)+\nIF(J105>1,(ABS(H105-J105)),0)+\nIF(K105>1,(ABS(H105-K105)),0) )","v":0},{"$f":"IF(M105>0,M105*-1,-1000)","v":-1000},{"$f":"IF(M105>0,RANK(N105,N:N),0)","v":0}]
[null,null,null,null,null,null,null,null,null,null,null,null,0,-1000,0]
[null,null,null,null,null,null,null,null,null,null,null,null,0,-1000,0]
[null,null,null,null,null,null,null,null,null,null,null,null,0,-1000,0]
[null,null,null,null,null,null,null,null,null,null,null,null,0,-1000,0]
[null,null,null,null,null,null,null,null,null,null,null,null,0,-1000,0]
[null,null,null,null,null,null,null,null,null,null,null,null,0,-1000,0]
[null,null,null,null,null,null,null,null,null,null,null,null,0,-1000,0]
[null,null,null,null,null,null,null,null,null,null,null,null,0,-1000,0]
[null,null,null,null,null,null,null,null,null,null,null,null,0,-1000,0]
[null,null,null,null,null,null,null,null,null,null,null,null,0,-1000,0]
[null,null,null,null,null,null,null,null,null,null,null,null,0,-1000,0]
[null,null,null,null,null,null,null,null,null,null,null,null,0,-1000,0]
[null,null,null,null,null,null,null,null,null,null,null,null,0,-1000,0]
[null,null,null,null,null,null,null,null,null,null,null,null,0,-1000,0]
[null,null,null,null,null,null,null,null,null,null,null,null,0,-1000,0]
[null,null,null,null,null,null,null,null,null,null,null,null,0,-1000,0]
[null,null,null,null,null,null,null,null,null,null,null,null,0,-1000,0]
[null,null,null,null,null,null,null,null,null,null,null,null,0,-1000,0]
[null,null,null,null,null,null,null,null,null,null,null,null,0,-1000,0]
[null,null,null,null,null,null,null,null,null,null,null,null,0,-1000,0]
[null,null,null,null,null,null,null,null,null,null,null,null,0,-1000,0]
[null,null,null,null,null,null,null,null,null,null,null,null,0,-1000,0]
[null,null,null,null,null,null,null,null,null,null,null,null,0,-1000,0]
[null,null,null,null,null,null,null,null,null,null,null,null,0,-1000,0]
[null,null,null,null,null,null,null,null,null,null,null,null,0,-1000,0]
[null,null,null,null,null,null,null,null,null,null,null,null,0,-1000,0]
[null,null,null,null,null,null,null,null,null,null,null,null,0,-1000,0]
[null,null,null,null,null,null,null,null,null,null,null,null,0,-1000,0]
[null,null,null,null,null,null,null,null,null,null,null,null,0,-1000,0]
[null,null,null,null,null,null,null,null,null,null,null,null,0,-1000,0]
[null,null,null,null,null,null,null,null,null,null,null,null,0,-1000,0]
[null,null,null,null,null,null,null,null,null,null,null,null,{"$f":"IF($G$4=1,\nIF(H137>1,(ABS(G137-H137)),0)+\nIF(I137>1,(ABS(G137-I137)),0)+\nIF(J137>1,(ABS(G137-J137)),0)+\nIF(K137>1,(ABS(G137-K137)),0)+\nIF(L137>1,(ABS(G137-L137)),0),\n\nIF(I137>1,(ABS(H137-I137)),0)+\nIF(J137>1,(ABS(H137-J137)),0)+\nIF(K137>1,(ABS(H137-K137)),0) )","v":0},{"$f":"IF(M137>0,M137*-1,-1000)","v":-1000},{"$f":"IF(M137>0,RANK(N137,N:N),0)","v":0}]
[null,null,null,null,null,null,null,null,null,null,null,null,0,-1000,0]
[null,null,null,null,null,null,null,null,null,null,null,null,0,-1000,0]
[null,null,null,null,null,null,null,null,null,null,null,null,0,-1000,0]
[null,null,null,null,null,null,null,null,null,null,null,null,0,-1000,0]
[null,null,null,null,null,null,null,null,null,null,null,null,0,-1000,0]
[null,null,null,null,null,null,null,null,null,null,null,null,0,-1000,0]
[null,null,null,null,null,null,null,null,null,null,null,null,0,-1000,0]
[null,null,null,null,null,null,null,null,null,null,null,null,0,-1000,0]
[null,null,null,null,null,null,null,null,null,null,null,null,0,-1000,0]
[null,null,null,null,null,null,null,null,null,null,null,null,0,-1000,0]
[null,null,null,null,null,null,null,null,null,null,null,null,0,-1000,0]
[null,null,null,null,null,null,null,null,null,null,null,null,0,-1000,0]
[null,null,null,null,null,null,null,null,null,null,null,null,0,-1000,0]
[null,null,null,null,null,null,null,null,null,null,null,null,0,-1000,0]
[null,null,null,null,null,null,null,null,null,null,null,null,0,-1000,0]
[null,null,null,null,null,null,null,null,null,null,null,null,0,-1000,0]
[null,null,null,null,null,null,null,null,null,null,null,null,0,-1000,0]
[null,null,null,null,null,null,null,null,null,null,null,null,0,-1000,0]
[null,null,null,null,null,null,null,null,null,null,null,null,0,-1000,0]
[null,null,null,null,null,null,null,null,null,null,null,null,0,-1000,0]
[null,null,null,null,null,null,null,null,null,null,null,null,0,-1000,0]
[null,null,null,null,null,null,null,null,null,null,null,null,0,-1000,0]
[null,null,null,null,null,null,null,null,null,null,null,null,0,-1000,0]
[null,null,null,null,null,null,null,null,null,null,null,null,0,-1000,0]
[null,null,null,null,null,null,null,null,null,null,null,null,0,-1000,0]
[null,null,null,null,null,null,null,null,null,null,null,null,0,-1000,0]
[null,null,null,null,null,null,null,null,null,null,null,null,0,-1000,0]
[null,null,null,null,null,null,null,null,null,null,null,null,0,-1000,0]
[null,null,null,null,null,null,null,null,null,null,null,null,0,-1000,0]
[null,null,null,null,null,null,null,null,null,null,null,null,0,-1000,0]
[null,null,null,null,null,null,null,null,null,null,null,null,0,-1000,0]
[null,null,null,null,null,null,null,null,null,null,null,null,{"$f":"IF($G$4=1,\nIF(H169>1,(ABS(G169-H169)),0)+\nIF(I169>1,(ABS(G169-I169)),0)+\nIF(J169>1,(ABS(G169-J169)),0)+\nIF(K169>1,(ABS(G169-K169)),0)+\nIF(L169>1,(ABS(G169-L169)),0),\n\nIF(I169>1,(ABS(H169-I169)),0)+\nIF(J169>1,(ABS(H169-J169)),0)+\nIF(K169>1,(ABS(H169-K169)),0) )","v":0},{"$f":"IF(M169>0,M169*-1,-1000)","v":-1000},{"$f":"IF(M169>0,RANK(N169,N:N),0)","v":0}]
[null,null,null,null,null,null,null,null,null,null,null,null,0,-1000,0]
[null,null,null,null,null,null,null,null,null,null,null,null,0,-1000,0]
[null,null,null,null,null,null,null,null,null,null,null,null,0,-1000,0]
[null,null,null,null,null,null,null,null,null,null,null,null,0,-1000,0]
[null,null,null,null,null,null,null,null,null,null,null,null,0,-1000,0]
[null,null,null,null,null,null,null,null,null,null,null,null,0,-1000,0]
[null,null,null,null,null,null,null,null,null,null,null,null,0,-1000,0]
[null,null,null,null,null,null,null,null,null,null,null,null,0,-1000,0]
[null,null,null,null,null,null,null,null,null,null,null,null,0,-1000,0]
[null,null,null,null,null,null,null,null,null,null,null,null,0,-1000,0]
[null,null,null,null,null,null,null,null,null,null,null,null,0,-1000,0]
[null,null,null,null,null,null,null,null,null,null,null,null,0,-1000,0]
[null,null,null,null,null,null,null,null,null,null,null,null,0,-1000,0]
[null,null,null,null,null,null,null,null,null,null,null,null,0,-1000,0]
[null,null,null,null,null,null,null,null,null,null,null,null,0,-1000,0]
[null,null,null,null,null,null,null,null,null,null,null,null,0,-1000,0]
[null,null,null,null,null,null,null,null,null,null,null,null,0,-1000,0]
[null,null,null,null,null,null,null,null,null,null,null,null,0,-1000,0]
[null,null,null,null,null,null,null,null,null,null,null,null,0,-1000,0]
[null,null,null,null,null,null,null,null,null,null,null,null,0,-1000,0]
[null,null,null,null,null,null,null,null,null,null,null,null,0,-1000,0]
[null,null,null,null,null,null,null,null,null,null,null,null,0,-1000,0]
[null,null,null,null,null,null,null,null,null,null,null,null,0,-1000,0]
[null,null,null,null,null,null,null,null,null,null,null,null,0,-1000,0]
[null,null,null,null,null,null,null,null,null,null,null,null,0,-1000,0]
[null,null,null,null,null,null,null,null,null,null,null,null,0,-1000,0]
[null,null,null,null,null,null,null,null,null,null,null,null,0,-1000,0]
[null,null,null,null,null,null,null,null,null,null,null,null,0,-1000,0]
[null,null,null,null,null,null,null,null,null,null,null,null,0,-1000,0]
[null,null,null,null,null,null,null,null,null,null,null,null,0,-1000,0]
[null,null,null,null,null,null,null,null,null,null,null,null,0,-1000,0]
[null,null,null,null,null,null,null,null,null,null,null,null,{"$f":"IF($G$4=1,\nIF(H201>1,(ABS(G201-H201)),0)+\nIF(I201>1,(ABS(G201-I201)),0)+\nIF(J201>1,(ABS(G201-J201)),0)+\nIF(K201>1,(ABS(G201-K201)),0)+\nIF(L201>1,(ABS(G201-L201)),0),\n\nIF(I201>1,(ABS(H201-I201)),0)+\nIF(J201>1,(ABS(H201-J201)),0)+\nIF(K201>1,(ABS(H201-K201)),0) )","v":0},{"$f":"IF(M201>0,M201*-1,-1000)","v":-1000},{"$f":"IF(M201>0,RANK(N201,N:N),0)","v":0}]
[null,null,null,null,null,null,null,null,null,null,null,null,0,-1000,0]

{"sheet":"Ort-Junior","index":8,"n_rows":38,"n_cols":16,"rows_kept":38,"cut":false,"hidden":true,"merged":[]}
["DSKD  Derby 25.06.2017 Mettingen/Osnabrück"]
[" Vorläufe   JUNIOR - Klasse  "]
[]
["Wird der Lauf gewertet?   dann 0 oder 1 eintragen",null,null,null,null,null,1,1,1,1,1,1]
["Bestzeit je Lauf",null,null,null,null,null,{"$f":"MIN(G9:G38)","v":35.24},35.17,35.369999999999997,35.25,0,200]
[]
["Start\nNummer","Gruppe","startet","Name","Vorname","Verein","Lauf 1","Lauf 2","Lauf 3","Lauf 4","Lauf 5","Lauf 6","Summe der gewerteten Läufe",null,"Platz","Urkunde"]
[]
[102,"JUN",null,"Zaruba","Max","Mettingen",null,null,null,null,null,null,{"$f":"(G9*$G$4+H9*$H$4+I9*$I$4+J9*$J$4+K9*$K$4+L9*$L$4)","v":0},{"$f":"IF(M9>0,M9*-1,-1000)","v":-1000},{"$f":"IF(M9>0,RANK(N9,N:N),0)","v":0}]
[103,"JUN",null,"Meyer","Johann","Mettingen",null,null,null,null,null,null,0,-1000,0]
[104,"JUN",null,"Lampe","Ida","Mettingen",35.24,35.25,35.369999999999997,35.25,null,null,{"$f":"(G11*$G$4+H11*$H$4+I11*$I$4+J11*$J$4+K11*$K$4+L11*$L$4)","v":141.11000000000001},{"$f":"IF(M11>0,M11*-1,-1000)","v":-141.11000000000001},{"$f":"IF(M11>0,RANK(N11,N:N),0)","v":1}]
[105,"JUN",null,"Freudenstein","Romy","Mettingen",35.36,35.17,35.44,35.340000000000003,null,null,141.31,-141.31,2]
[106,"JUN",null,"Meyhoff","Moritz","Mettingen",null,null,null,null,null,null,0,-1000,0]
[108,"JUN",null,"Plath","Marvin","Mettingen",35.380000000000003,35.520000000000003,35.4,35.49,null,null,141.79,-141.79,3]
[125,"JUN",null,"Plath","Johanna","Mettingen",35.44,35.520000000000003,35.44,35.549999999999997,null,null,141.94999999999999,-141.94999999999999,4]
[117,"JUN",null,"Crook","Florian","Mettingen",null,null,null,null,null,null,0,-1000,0]
[118,"JUN",null,"Kockmeyer","Emily","Mettingen",null,null,null,null,null,null,0,-1000,0]
[119,"JUN",null,"Schlag","Lucas","Mettingen",null,null,null,null,null,null,0,-1000,0]
[109,"JUN",null,"Gahler","Hendrik","Mettingen",35.590000000000003,35.409999999999997,35.51,35.450000000000003,null,null,141.96,-141.96,5]
[128,"JUN",null,"Pufahl","Maximilian","Mettingen",35.799999999999997,35.299999999999997,35.51,35.43,null,null,142.04,-142.04,6]
[113,"JUN",null,"Bednarski","Max","Mettingen",35.54,35.659999999999997,35.97,35.630000000000003,null,null,142.80000000000001,-142.80000000000001,7]
[129,"JUN",null,"Bednarski","Jonathan","Mettingen",35.700000000000003,null,null,null,null,200,235.7,-235.7,8]
[null,null,null,null,null,null,null,null,null,null,null,null,0,-1000,0]
[null,null,null,null,null,null,null,null,null,null,null,null,0,-1000,0]
[null,null,null,null,null,null,null,null,null,null,null,null,0,-1000,0]
[null,null,null,null,null,null,null,null,null,null,null,null,0,-1000,0]
[null,null,null,null,null,null,null,null,null,null,null,null,0,-1000,0]
[null,null,null,null,null,null,null,null,null,null,null,null,0,-1000,0]
[null,null,null,null,null,null,null,null,null,null,null,null,0,-1000,0]
[null,null,null,null,null,null,null,null,null,null,null,null,0,-1000,0]
[null,null,null,null,null,null,null,null,null,null,null,null,0,-1000,0]
[null,null,null,null,null,null,null,null,null,null,null,null,0,-1000,0]
[null,null,null,null,null,null,null,null,null,null,null,null,0,-1000,0]
[null,null,null,null,null,null,null,null,null,null,null,null,0,-1000,0]
[null,null,null,null,null,null,null,null,null,null,null,null,0,-1000,0]
[null,null,null,null,null,null,null,null,null,null,null,null,0,-1000,0]
[null,null,null,null,null,null,null,null,null,null,null,null,0,-1000,0]
[null,null,null,null,null,null,null,null,null,null,null,null,0,-1000,0]

{"sheet":"Ort-Senior","index":9,"n_rows":40,"n_cols":16,"rows_kept":40,"cut":false,"hidden":true,"merged":[]}
["DSKD  Derby 25.06.2017 Mettingen/Osnabrück"]
["  Vorläufe SENIOR - Klasse  "]
[]
["Wird der Lauf gewertet?   dann 0 oder 1 eintragen",null,null,null,null,null,1,1,1,1,0,0]
["Bestzeit je Lauf",null,null,null,null,null,{"$f":"MIN(G9:G40)","v":34.24},34.159999999999997,34.299999999999997,34.229999999999997,0,0]
[]
["Start\nNummer","Gruppe","startet","Name","Vorname","Verein","Lauf 1","Lauf 2","Lauf 3","Lauf 4","Lauf 5","Lauf 6","Summe der gewerteten Läufe",null,"Platz","Urkunde"]
[]
[301,"SEN",null,"Zaruba","Pia","Mettingen",null,null,null,null,null,null,{"$f":"(G9*$G$4+H9*$H$4+I9*$I$4+J9*$J$4+K9*$K$4+L9*$L$4)","v":0},{"$f":"IF(M9>0,M9*-1,-1000)","v":-1000},{"$f":"IF(M9>0,RANK(N9,N:N),0)","v":0}]
[302,"SEN",null,"Gößling","Jule","Mettingen",34.299999999999997,34.44,34.409999999999997,34.43,null,null,137.58000000000001,-137.58000000000001,6]
[303,"SEN",null,"Kessling","Sophie","Mettingen",34.43,34.450000000000003,34.65,34.28,null,null,137.81,-137.81,8]
[305,"SEN",null,"Lampe","Pia","Mettingen",34.299999999999997,34.159999999999997,34.299999999999997,34.46,null,null,137.22,-137.22,1]
[306,"SEN",null,"Freudenstein","Rieke","Mettingen",34.299999999999997,34.340000000000003,34.43,34.33,null,null,137.4,-137.4,3]
[307,"SEN",null,"Neuhaus","Robin","Mettingen",34.43,34.31,34.6,34.229999999999997,null,null,137.57,-137.57,5]
[310,"SEN",null,"Meyer","Henry","Mettingen",34.24,34.340000000000003,34.31,34.44,null,null,137.33000000000001,-137.33000000000001,2]
[316,"SEN",null,"Niermann","David","Mettingen",null,null,null,null,null,null,0,-1000,0]
[317,"SEN",null,"Sälter","Hennes","Mettingen",null,null,null,null,null,null,0,-1000,0]
[324,"SEN",null,"Zaruba","Max","Mettingen",34.33,34.46,34.409999999999997,34.44,null,null,137.63999999999999,-137.63999999999999,7]
[325,"SEN",null,"Meyer","Johann","Mettingen",34.39,34.369999999999997,34.479999999999997,34.32,null,null,137.56,-137.56,4]
[null,null,null,null,null,null,null,null,null,null,null,null,0,-1000,0]
[null,null,null,null,null,null,null,null,null,null,null,null,0,-1000,0]
[null,null,null,null,null,null,null,null,null,null,null,null,0,-1000,0]
[null,null,null,null,null,null,null,null,null,null,null,null,0,-1000,0]
[null,null,null,null,null,null,null,null,null,null,null,null,0,-1000,0]
[null,null,null,null,null,null,null,null,null,null,null,null,0,-1000,0]
[null,null,null,null,null,null,null,null,null,null,null,null,0,-1000,0]
[null,null,null,null,null,null,null,null,null,null,null,null,0,-1000,0]
[null,null,null,null,null,null,null,null,null,null,null,null,0,-1000,0]
[null,null,null,null,null,null,null,null,null,null,null,null,0,-1000,0]
[null,null,null,null,null,null,null,null,null,null,null,null,0,-1000,0]
[null,null,null,null,null,null,null,null,null,null,null,null,0,-1000,0]
[null,null,null,null,null,null,null,null,null,null,null,null,0,-1000,0]
[null,null,null,null,null,null,null,null,null,null,null,null,0,-1000,0]
[null,null,null,null,null,null,null,null,null,null,null,null,0,-1000,0]
[null,null,null,null,null,null,null,null,null,null,null,null,0,-1000,0]
[null,null,null,null,null,null,null,null,null,null,null,null,0,-1000,0]
[null,null,null,null,null,null,null,null,null,null,null,null,0,-1000,0]
[null,null,null,null,null,null,null,null,null,null,null,null,0,-1000,0]
[null,null,null,null,null,null,null,null,null,null,null,null,0,-1000,0]
[null,null,null,null,null,null,null,null,null,null,null,null,0,-1000,0]

{"sheet":"Ort-Elite-XL","index":10,"n_rows":37,"n_cols":16,"rows_kept":37,"cut":false,"hidden":true,"merged":[]}
["DSKD  Derby 25.06.2017 Mettingen/Osnabrück"]
["  Vorläufe Elite XL- Klasse  "]
[]
["Wird der Lauf gewertet?   dann 0 oder 1 eintragen",null,null,null,null,null,1,1,1,1,0,0]
["Bestzeit je Lauf",null,null,null,null,null,{"$f":"MIN(G9:G37)","v":0},0,0,0,0,0]
[]
["Start\nNummer","Gruppe","startet","Name","Vorname","Verein","Lauf 1","Lauf 2","Lauf 3","Lauf 4","Lauf 5","Lauf 6","Summe der gewerteten Läufe",null,"Platz","Urkunde"]
[]
[null,null,null,null,null,null,null,null,null,null,null,null,{"$f":"(G9*$G$4+H9*$H$4+I9*$I$4+J9*$J$4+K9*$K$4+L9*$L$4)","v":0},{"$f":"IF(M9>0,M9*-1,-1000)","v":-1000},{"$f":"IF(M9>0,RANK(N9,N:N),0)","v":0}]
[null,null,null,null,null,null,null,null,null,null,null,null,0,-1000,0]
[null,null,null,null,null,null,null,null,null,null,null,null,0,-1000,0]
[null,null,null,null,null,null,null,null,null,null,null,null,0,-1000,0]
[null,null,null,null,null,null,null,null,null,null,null,null,0,-1000,0]
[null,null,null,null,null,null,null,null,null,null,null,null,0,-1000,0]
[null,null,null,null,null,null,null,null,null,null,null,null,0,-1000,0]
[null,null,null,null,null,null,null,null,null,null,null,null,0,-1000,0]
[null,null,null,null,null,null,null,null,null,null,null,null,0,-1000,0]
[null,null,null,null,null,null,null,null,null,null,null,null,0,-1000,0]
[null,null,null,null,null,null,null,null,null,null,null,null,0,-1000,0]
[null,null,null,null,null,null,null,null,null,null,null,null,0,-1000,0]
[null,null,null,null,null,null,null,null,null,null,null,null,0,-1000,0]
[null,null,null,null,null,null,null,null,null,null,null,null,0,-1000,0]
[null,null,null,null,null,null,null,null,null,null,null,null,0,-1000,0]
[null,null,null,null,null,null,null,null,null,null,null,null,0,-1000,0]
[null,null,null,null,null,null,null,null,null,null,null,null,0,-1000,0]
[null,null,null,null,null,null,null,null,null,null,null,null,0,-1000,0]
[null,null,null,null,null,null,null,null,null,null,null,null,0,-1000,0]
[null,null,null,null,null,null,null,null,null,null,null,null,0,-1000,0]
[null,null,null,null,null,null,null,null,null,null,null,null,0,-1000,0]
[null,null,null,null,null,null,null,null,null,null,null,null,0,-1000,0]
[null,null,null,null,null,null,null,null,null,null,null,null,0,-1000,0]
[null,null,null,null,null,null,null,null,null,null,null,null,0,-1000,0]
[null,null,null,null,null,null,null,null,null,null,null,null,0,-1000,0]
[null,null,null,null,null,null,null,null,null,null,null,null,0,-1000,0]
[null,null,null,null,null,null,null,null,null,null,null,null,0,-1000,0]
[null,null,null,null,null,null,null,null,null,null,null,null,0,-1000,0]
[null,null,null,null,null,null,null,null,null,null,null,null,0,-1000,0]

{"sheet":"Ort-Elite-XL-18","index":11,"n_rows":203,"n_cols":16,"rows_kept":203,"cut":false,"hidden":true,"merged":[]}
["DSKD  Derby 25.06.2017 Mettingen/Osnabrück"]
[" Vorläufe  Elite XL ü18- Klasse  "]
[]
["Wird der Lauf gewertet?   dann 0 oder 1 eintragen",null,null,null,null,null,1,1,1,1,0,0]
["Bestzeit je Lauf",null,null,null,null,null,{"$f":"MIN(G9:G203)","v":34.49},34.65,34.58,34.549999999999997,0,0]
[]
["Start\nNummer","Gruppe","startet","Name","Vorname","Verein","Lauf 1","Lauf 2","Lauf 3","Lauf 4","Lauf 5","Lauf 6","Summe der gewerteten Läufe",null,"Platz","Urkunde"]
[]
[705,"EXL18",null,"Freudenstein","Thomas","Mettingen",34.549999999999997,34.74,34.58,34.659999999999997,null,null,{"$f":"(G9*$G$4+H9*$H$4+I9*$I$4+J9*$J$4+K9*$K$4+L9*$L$4)","v":138.53},{"$f":"IF(M9>0,M9*-1,-1000)","v":-138.53},{"$f":"IF(M9>0,RANK(N9,N:N),0)","v":2}]
[707,"EXL18",null,"Lange","Florian","Mettingen",34.75,34.65,35.04,34.72,null,null,139.16,-139.16,5]
[709,"EXL18",null,"Schröer","Sabrina","Mettingen",34.78,34.75,35.020000000000003,34.590000000000003,null,null,139.13999999999999,-139.13999999999999,4]
[711,"EXL18",null,"Leismann","Pascal","Mettingen",null,null,null,null,null,null,0,-1000,0]
[721,"EXL18",null,"Leismann","Dominik","Mettingen",34.590000000000003,34.67,34.74,34.549999999999997,null,null,138.55000000000001,-138.55000000000001,3]
[725,"EXL18",null,"Leismann","Pascal","Mettingen",34.49,34.65,34.75,34.590000000000003,null,null,138.47999999999999,-138.47999999999999,1]
[null,null,null,null,null,null,null,null,null,null,null,null,0,-1000,0]
[null,null,null,null,null,null,null,null,null,null,null,null,0,-1000,0]
[null,null,null,null,null,null,null,null,null,null,null,null,0,-1000,0]
[null,null,null,null,null,null,null,null,null,null,null,null,0,-1000,0]
[null,null,null,null,null,null,null,null,null,null,null,null,0,-1000,0]
[null,null,null,null,null,null,null,null,null,null,null,null,0,-1000,0]
[null,null,null,null,null,null,null,null,null,null,null,null,0,-1000,0]
[null,null,null,null,null,null,null,null,null,null,null,null,0,-1000,0]
[null,null,null,null,null,null,null,null,null,null,null,null,0,-1000,0]
[null,null,null,null,null,null,null,null,null,null,null,null,0,-1000,0]
[null,null,null,null,null,null,null,null,null,null,null,null,0,-1000,0]
[null,null,null,null,null,null,null,null,null,null,null,null,0,-1000,0]
[null,null,null,null,null,null,null,null,null,null,null,null,0,-1000,0]
[null,null,null,null,null,null,null,null,null,null,null,null,0,-1000,0]
[null,null,null,null,null,null,null,null,null,null,null,null,0,-1000,0]
[null,null,null,null,null,null,null,null,null,null,null,null,0,-1000,0]
[null,null,null,null,null,null,null,null,null,null,null,null,0,-1000,0]
[null,null,null,null,null,null,null,null,null,null,null,null,0,-1000,0]
[null,null,null,null,null,null,null,null,null,null,null,null,0,-1000,0]
[null,null,null,null,null,null,null,null,null,null,null,null,0,-1000,0]
[null,null,null,null,null,null,null,null,null,null,null,null,0,-1000,0]
[null,null,null,null,null,null,null,null,null,null,null,null,0,-1000,0]
[null,null,null,null,null,null,null,null,null,null,null,null,0,-1000,0]
[null,null,null,null,null,null,null,null,null,null,null,null,0,-1000,0]
[null,null,null,null,null,null,null,null,null,null,null,null,0,-1000,0]
[null,null,null,null,null,null,null,null,null,null,null,null,0,-1000,0]
[null,null,null,null,null,null,null,null,null,null,null,null,{"$f":"(G41*$G$4+H41*$H$4+I41*$I$4+J41*$J$4+K41*$K$4+L41*$L$4)","v":0},{"$f":"IF(M41>0,M41*-1,-1000)","v":-1000},{"$f":"IF(M41>0,RANK(N41,N:N),0)","v":0}]
[null,null,null,null,null,null,null,null,null,null,null,null,0,-1000,0]
[null,null,null,null,null,null,null,null,null,null,null,null,0,-1000,0]
[null,null,null,null,null,null,null,null,null,null,null,null,0,-1000,0]
[null,null,null,null,null,null,null,null,null,null,null,null,0,-1000,0]
[null,null,null,null,null,null,null,null,null,null,null,null,0,-1000,0]
[null,null,null,null,null,null,null,null,null,null,null,null,0,-1000,0]
[null,null,null,null,null,null,null,null,null,null,null,null,0,-1000,0]
[null,null,null,null,null,null,null,null,null,null,null,null,0,-1000,0]
[null,null,null,null,null,null,null,null,null,null,null,null,0,-1000,0]
[null,null,null,null,null,null,null,null,null,null,null,null,0,-1000,0]
[null,null,null,null,null,null,null,null,null,null,null,null,0,-1000,0]
[null,null,null,null,null,null,null,null,null,null,null,null,0,-1000,0]
[null,null,null,null,null,null,null,null,null,null,null,null,0,-1000,0]
[null,null,null,null,null,null,null,null,null,null,null,null,0,-1000,0]
[null,null,null,null,null,null,null,null,null,null,null,null,0,-1000,0]
[null,null,null,null,null,null,null,null,null,null,null,null,0,-1000,0]
[null,null,null,null,null,null,null,null,null,null,null,null,0,-1000,0]
[null,null,null,null,null,null,null,null,null,null,null,null,0,-1000,0]
[null,null,null,null,null,null,null,null,null,null,null,null,0,-1000,0]
[null,null,null,null,null,null,null,null,null,null,null,null,0,-1000,0]
[null,null,null,null,null,null,null,null,null,null,null,null,0,-1000,0]
[null,null,null,null,null,null,null,null,null,null,null,null,0,-1000,0]
[null,null,null,null,null,null,null,null,null,null,null,null,0,-1000,0]
[null,null,null,null,null,null,null,null,null,null,null,null,0,-1000,0]
[null,null,null,null,null,null,null,null,null,null,null,null,0,-1000,0]
[null,null,null,null,null,null,null,null,null,null,null,null,0,-1000,0]
[null,null,null,null,null,null,null,null,null,null,null,null,0,-1000,0]
[null,null,null,null,null,null,null,null,null,null,null,null,0,-1000,0]
[null,null,null,null,null,null,null,null,null,null,null,null,0,-1000,0]
[null,null,null,null,null,null,null,null,null,null,null,null,0,-1000,0]
[null,null,null,null,null,null,null,null,null,null,null,null,0,-1000,0]
[null,null,null,null,null,null,null,null,null,null,null,null,{"$f":"(G73*$G$4+H73*$H$4+I73*$I$4+J73*$J$4+K73*$K$4+L73*$L$4)","v":0},{"$f":"IF(M73>0,M73*-1,-1000)","v":-1000},{"$f":"IF(M73>0,RANK(N73,N:N),0)","v":0}]
[null,null,null,null,null,null,null,null,null,null,null,null,0,-1000,0]
[null,null,null,null,null,null,null,null,null,null,null,null,0,-1000,0]
[null,null,null,null,null,null,null,null,null,null,null,null,0,-1000,0]
[null,null,null,null,null,null,null,null,null,null,null,null,0,-1000,0]
[null,null,null,null,null,null,null,null,null,null,null,null,0,-1000,0]
[null,null,null,null,null,null,null,null,null,null,null,null,0,-1000,0]
[null,null,null,null,null,null,null,null,null,null,null,null,0,-1000,0]
[null,null,null,null,null,null,null,null,null,null,null,null,0,-1000,0]
[null,null,null,null,null,null,null,null,null,null,null,null,0,-1000,0]
[null,null,null,null,null,null,null,null,null,null,null,null,0,-1000,0]
[null,null,null,null,null,null,null,null,null,null,null,null,0,-1000,0]
[null,null,null,null,null,null,null,null,null,null,null,null,0,-1000,0]
[null,null,null,null,null,null,null,null,null,null,null,null,0,-1000,0]
[null,null,null,null,null,null,null,null,null,null,null,null,0,-1000,0]
[null,null,null,null,null,null,null,null,null,null,null,null,0,-1000,0]
[null,null,null,null,null,null,null,null,null,null,null,null,0,-1000,0]
[null,null,null,null,null,null,null,null,null,null,null,null,0,-1000,0]
[null,null,null,null,null,null,null,null,null,null,null,null,0,-1000,0]
[null,null,null,null,null,null,null,null,null,null,null,null,0,-1000,0]
[null,null,null,null,null,null,null,null,null,null,null,null,0,-1000,0]
[null,null,null,null,null,null,null,null,null,null,null,null,0,-1000,0]
[null,null,null,null,null,null,null,null,null,null,null,null,0,-1000,0]
[null,null,null,null,null,null,null,null,null,null,null,null,0,-1000,0]
[null,null,null,null,null,null,null,null,null,null,null,null,0,-1000,0]
[null,null,null,null,null,null,null,null,null,null,null,null,0,-1000,0]
[null,null,null,null,null,null,null,null,null,null,null,null,0,-1000,0]
[null,null,null,null,null,null,null,null,null,null,null,null,0,-1000,0]
[null,null,null,null,null,null,null,null,null,null,null,null,0,-1000,0]
[null,null,null,null,null,null,null,null,null,null,null,null,0,-1000,0]
[null,null,null,null,null,null,null,null,null,null,null,null,0,-1000,0]
[null,null,null,null,null,null,null,null,null,null,null,null,0,-1000,0]
[null,null,null,null,null,null,null,null,null,null,null,null,{"$f":"(G105*$G$4+H105*$H$4+I105*$I$4+J105*$J$4+K105*$K$4+L105*$L$4)","v":0},{"$f":"IF(M105>0,M105*-1,-1000)","v":-1000},{"$f":"IF(M105>0,RANK(N105,N:N),0)","v":0}]
[null,null,null,null,null,null,null,null,null,null,null,null,0,-1000,0]
[null,null,null,null,null,null,null,null,null,null,null,null,0,-1000,0]
[null,null,null,null,null,null,null,null,null,null,null,null,0,-1000,0]
[null,null,null,null,null,null,null,null,null,null,null,null,0,-1000,0]
[null,null,null,null,null,null,null,null,null,null,null,null,0,-1000,0]
[null,null,null,null,null,null,null,null,null,null,null,null,0,-1000,0]
[null,null,null,null,null,null,null,null,null,null,null,null,0,-1000,0]
[null,null,null,null,null,null,null,null,null,null,null,null,0,-1000,0]
[null,null,null,null,null,null,null,null,null,null,null,null,0,-1000,0]
[null,null,null,null,null,null,null,null,null,null,null,null,0,-1000,0]
[null,null,null,null,null,null,null,null,null,null,null,null,0,-1000,0]
[null,null,null,null,null,null,null,null,null,null,null,null,0,-1000,0]
[null,null,null,null,null,null,null,null,null,null,null,null,0,-1000,0]
[null,null,null,null,null,null,null,null,null,null,null,null,0,-1000,0]
[null,null,null,null,null,null,null,null,null,null,null,null,0,-1000,0]
[null,null,null,null,null,null,null,null,null,null,null,null,0,-1000,0]
[null,null,null,null,null,null,null,null,null,null,null,null,0,-1000,0]
[null,null,null,null,null,null,null,null,null,null,null,null,0,-1000,0]
[null,null,null,null,null,null,null,null,null,null,null,null,0,-1000,0]
[null,null,null,null,null,null,null,null,null,null,null,null,0,-1000,0]
[null,null,null,null,null,null,null,null,null,null,null,null,0,-1000,0]
[null,null,null,null,null,null,null,null,null,null,null,null,0,-1000,0]
[null,null,null,null,null,null,null,null,null,null,null,null,0,-1000,0]
[null,null,null,null,null,null,null,null,null,null,null,null,0,-1000,0]
[null,null,null,null,null,null,null,null,null,null,null,null,0,-1000,0]
[null,null,null,null,null,null,null,null,null,null,null,null,0,-1000,0]
[null,null,null,null,null,null,null,null,null,null,null,null,0,-1000,0]
[null,null,null,null,null,null,null,null,null,null,null,null,0,-1000,0]
[null,null,null,null,null,null,null,null,null,null,null,null,0,-1000,0]
[null,null,null,null,null,null,null,null,null,null,null,null,0,-1000,0]
[null,null,null,null,null,null,null,null,null,null,null,null,0,-1000,0]
[null,null,null,null,null,null,null,null,null,null,null,null,{"$f":"(G137*$G$4+H137*$H$4+I137*$I$4+J137*$J$4+K137*$K$4+L137*$L$4)","v":0},{"$f":"IF(M137>0,M137*-1,-1000)","v":-1000},{"$f":"IF(M137>0,RANK(N137,N:N),0)","v":0}]
[null,null,null,null,null,null,null,null,null,null,null,null,0,-1000,0]
[null,null,null,null,null,null,null,null,null,null,null,null,0,-1000,0]
[null,null,null,null,null,null,null,null,null,null,null,null,0,-1000,0]
[null,null,null,null,null,null,null,null,null,null,null,null,0,-1000,0]
[null,null,null,null,null,null,null,null,null,null,null,null,0,-1000,0]
[null,null,null,null,null,null,null,null,null,null,null,null,0,-1000,0]
[null,null,null,null,null,null,null,null,null,null,null,null,0,-1000,0]
[null,null,null,null,null,null,null,null,null,null,null,null,0,-1000,0]
[null,null,null,null,null,null,null,null,null,null,null,null,0,-1000,0]
[null,null,null,null,null,null,null,null,null,null,null,null,0,-1000,0]
[null,null,null,null,null,null,null,null,null,null,null,null,0,-1000,0]
[null,null,null,null,null,null,null,null,null,null,null,null,0,-1000,0]
[null,null,null,null,null,null,null,null,null,null,null,null,0,-1000,0]
[null,null,null,null,null,null,null,null,null,null,null,null,0,-1000,0]
[null,null,null,null,null,null,null,null,null,null,null,null,0,-1000,0]
[null,null,null,null,null,null,null,null,null,null,null,null,0,-1000,0]
[null,null,null,null,null,null,null,null,null,null,null,null,0,-1000,0]
[null,null,null,null,null,null,null,null,null,null,null,null,0,-1000,0]
[null,null,null,null,null,null,null,null,null,null,null,null,0,-1000,0]
[null,null,null,null,null,null,null,null,null,null,null,null,0,-1000,0]
[null,null,null,null,null,null,null,null,null,null,null,null,0,-1000,0]
[null,null,null,null,null,null,null,null,null,null,null,null,0,-1000,0]
[null,null,null,null,null,null,null,null,null,null,null,null,0,-1000,0]
[null,null,null,null,null,null,null,null,null,null,null,null,0,-1000,0]
[null,null,null,null,null,null,null,null,null,null,null,null,0,-1000,0]
[null,null,null,null,null,null,null,null,null,null,null,null,0,-1000,0]
[null,null,null,null,null,null,null,null,null,null,null,null,0,-1000,0]
[null,null,null,null,null,null,null,null,null,null,null,null,0,-1000,0]
[null,null,null,null,null,null,null,null,null,null,null,null,0,-1000,0]
[null,null,null,null,null,null,null,null,null,null,null,null,0,-1000,0]
[null,null,null,null,null,null,null,null,null,null,null,null,0,-1000,0]
[null,null,null,null,null,null,null,null,null,null,null,null,{"$f":"(G169*$G$4+H169*$H$4+I169*$I$4+J169*$J$4+K169*$K$4+L169*$L$4)","v":0},{"$f":"IF(M169>0,M169*-1,-1000)","v":-1000},{"$f":"IF(M169>0,RANK(N169,N:N),0)","v":0}]
[null,null,null,null,null,null,null,null,null,null,null,null,0,-1000,0]
[null,null,null,null,null,null,null,null,null,null,null,null,0,-1000,0]
[null,null,null,null,null,null,null,null,null,null,null,null,0,-1000,0]
[null,null,null,null,null,null,null,null,null,null,null,null,0,-1000,0]
[null,null,null,null,null,null,null,null,null,null,null,null,0,-1000,0]
[null,null,null,null,null,null,null,null,null,null,null,null,0,-1000,0]
[null,null,null,null,null,null,null,null,null,null,null,null,0,-1000,0]
[null,null,null,null,null,null,null,null,null,null,null,null,0,-1000,0]
[null,null,null,null,null,null,null,null,null,null,null,null,0,-1000,0]
[null,null,null,null,null,null,null,null,null,null,null,null,0,-1000,0]
[null,null,null,null,null,null,null,null,null,null,null,null,0,-1000,0]
[null,null,null,null,null,null,null,null,null,null,null,null,0,-1000,0]
[null,null,null,null,null,null,null,null,null,null,null,null,0,-1000,0]
[null,null,null,null,null,null,null,null,null,null,null,null,0,-1000,0]
[null,null,null,null,null,null,null,null,null,null,null,null,0,-1000,0]
[null,null,null,null,null,null,null,null,null,null,null,null,0,-1000,0]
[null,null,null,null,null,null,null,null,null,null,null,null,0,-1000,0]
[null,null,null,null,null,null,null,null,null,null,null,null,0,-1000,0]
[null,null,null,null,null,null,null,null,null,null,null,null,0,-1000,0]
[null,null,null,null,null,null,null,null,null,null,null,null,0,-1000,0]
[null,null,null,null,null,null,null,null,null,null,null,null,0,-1000,0]
[null,null,null,null,null,null,null,null,null,null,null,null,0,-1000,0]
[null,null,null,null,null,null,null,null,null,null,null,null,0,-1000,0]
[null,null,null,null,null,null,null,null,null,null,null,null,0,-1000,0]
[null,null,null,null,null,null,null,null,null,null,null,null,0,-1000,0]
[null,null,null,null,null,null,null,null,null,null,null,null,0,-1000,0]
[null,null,null,null,null,null,null,null,null,null,null,null,0,-1000,0]
[null,null,null,null,null,null,null,null,null,null,null,null,0,-1000,0]
[null,null,null,null,null,null,null,null,null,null,null,null,0,-1000,0]
[null,null,null,null,null,null,null,null,null,null,null,null,0,-1000,0]
[null,null,null,null,null,null,null,null,null,null,null,null,0,-1000,0]
[null,null,null,null,null,null,null,null,null,null,null,null,{"$f":"(G201*$G$4+H201*$H$4+I201*$I$4+J201*$J$4+K201*$K$4+L201*$L$4)","v":0},{"$f":"IF(M201>0,M201*-1,-1000)","v":-1000},{"$f":"IF(M201>0,RANK(N201,N:N),0)","v":0}]
[null,null,null,null,null,null,null,null,null,null,null,null,{"$f":"(G202*$G$4+H202*$H$4+I202*$I$4+J202*$J$4+K202*$K$4+L202*$L$4)","v":0},{"$f":"IF(M202>0,M202*-1,-1000)","v":-1000},{"$f":"IF(M202>0,RANK(N202,N:N),0)","v":0}]
[null,null,null,null,null,null,null,null,null,null,null,null,{"$f":"(G203*$G$4+H203*$H$4+I203*$I$4+J203*$J$4+K203*$K$4+L203*$L$4)","v":0},{"$f":"IF(M203>0,M203*-1,-1000)","v":-1000},{"$f":"IF(M203>0,RANK(N203,N:N),0)","v":0}]

{"sheet":"Ort-Open","index":12,"n_rows":202,"n_cols":15,"rows_kept":202,"cut":false,"hidden":true,"merged":[]}
["DSKD  Derby 25.06.2017 Mettingen/Osnabrück"]
["Vorläufe Open - Klasse"]
[]
[null,null,null,null,null,null,1,1,1,1,1,1,1]
["Bestzeit je Lauf",null,null,null,null,null,{"$f":"MIN(G9:G202)","v":35.44},35.520000000000003,35.4,35.51,0,0,0]
[]
["Start\nNummer","Gruppe","startet","Name","Vorname","Verein","Lauf 1","Lauf 2","Lauf 3","Lauf 4","Lauf 5","Lauf 6","Summe",null,"Platz"]
[]
[907,"Open",null,"Crook","Florian","Mettingen",35.44,35.520000000000003,35.4,35.51,null,null,{"$f":"IF($G$4=1,\nIF(H9>1,(ABS(G9-H9)),0)+\nIF(I9>1,(ABS(G9-I9)),0)+\nIF(J9>1,(ABS(G9-J9)),0)+\nIF(K9>1,(ABS(G9-K9)),0)+\nIF(L9>1,(ABS(G9-L9)),0),\n\nIF(I9>1,(ABS(H9-I9)),0)+\nIF(J9>1,(ABS(H9-J9)),0)+\nIF(K9>1,(ABS(H9-K9)),0) )","v":0.19},{"$f":"IF(M9>0,M9*-1,-1000)","v":-0.19},{"$f":"IF(M9>0,RANK(N9,N:N),0)","v":1}]
[911,"Open",null,"Meyhoff","Thomas","Mettingen",null,null,null,null,null,null,0,-1000,0]
[null,null,null,null,null,null,null,null,null,null,null,null,0,-1000,0]
[null,null,null,null,null,null,null,null,null,null,null,null,0,-1000,0]
[null,null,null,null,null,null,null,null,null,null,null,null,0,-1000,0]
[null,null,null,null,null,null,null,null,null,null,null,null,0,-1000,0]
[null,null,null,null,null,null,null,null,null,null,null,null,0,-1000,0]
[null,null,null,null,null,null,null,null,null,null,null,null,0,-1000,0]
[null,null,null,null,null,null,null,null,null,null,null,null,0,-1000,0]
[null,null,null,null,null,null,null,null,null,null,null,null,0,-1000,0]
[null,null,null,null,null,null,null,null,null,null,null,null,0,-1000,0]
[null,null,null,null,null,null,null,null,null,null,null,null,0,-1000,0]
[null,null,null,null,null,null,null,null,null,null,null,null,0,-1000,0]
[null,null,null,null,null,null,null,null,null,null,null,null,0,-1000,0]
[null,null,null,null,null,null,null,null,null,null,null,null,0,-1000,0]
[null,null,null,null,null,null,null,null,null,null,null,null,0,-1000,0]
[null,null,null,null,null,null,null,null,null,null,null,null,0,-1000,0]
[null,null,null,null,null,null,null,null,null,null,null,null,0,-1000,0]
[null,null,null,null,null,null,null,null,null,null,null,null,0,-1000,0]
[null,null,null,null,null,null,null,null,null,null,null,null,0,-1000,0]
[null,null,null,null,null,null,null,null,null,null,null,null,0,-1000,0]
[null,null,null,null,null,null,null,null,null,null,null,null,0,-1000,0]
[null,null,null,null,null,null,null,null,null,null,null,null,0,-1000,0]
[null,null,null,null,null,null,null,null,null,null,null,null,0,-1000,0]
[null,null,null,null,null,null,null,null,null,null,null,null,0,-1000,0]
[null,null,null,null,null,null,null,null,null,null,null,null,0,-1000,0]
[null,null,null,null,null,null,null,null,null,null,null,null,0,-1000,0]
[null,null,null,null,null,null,null,null,null,null,null,null,0,-1000,0]
[null,null,null,null,null,null,null,null,null,null,null,null,0,-1000,0]
[null,null,null,null,null,null,null,null,null,null,null,null,0,-1000,0]
[null,null,null,null,null,null,null,null,null,null,null,null,0,-1000,0]
[null,null,null,null,null,null,null,null,null,null,null,null,0,-1000,0]
[null,null,null,null,null,null,null,null,null,null,null,null,{"$f":"IF($G$4=1,\nIF(H41>1,(ABS(G41-H41)),0)+\nIF(I41>1,(ABS(G41-I41)),0)+\nIF(J41>1,(ABS(G41-J41)),0)+\nIF(K41>1,(ABS(G41-K41)),0)+\nIF(L41>1,(ABS(G41-L41)),0),\n\nIF(I41>1,(ABS(H41-I41)),0)+\nIF(J41>1,(ABS(H41-J41)),0)+\nIF(K41>1,(ABS(H41-K41)),0) )","v":0},{"$f":"IF(M41>0,M41*-1,-1000)","v":-1000},{"$f":"IF(M41>0,RANK(N41,N:N),0)","v":0}]
[null,null,null,null,null,null,null,null,null,null,null,null,0,-1000,0]
[null,null,null,null,null,null,null,null,null,null,null,null,0,-1000,0]
[null,null,null,null,null,null,null,null,null,null,null,null,0,-1000,0]
[null,null,null,null,null,null,null,null,null,null,null,null,0,-1000,0]
[null,null,null,null,null,null,null,null,null,null,null,null,0,-1000,0]
[null,null,null,null,null,null,null,null,null,null,null,null,0,-1000,0]
[null,null,null,null,null,null,null,null,null,null,null,null,0,-1000,0]
[null,null,null,null,null,null,null,null,null,null,null,null,0,-1000,0]
[null,null,null,null,null,null,null,null,null,null,null,null,0,-1000,0]
[null,null,null,null,null,null,null,null,null,null,null,null,0,-1000,0]
[null,null,null,null,null,null,null,null,null,null,null,null,0,-1000,0]
[null,null,null,null,null,null,null,null,null,null,null,null,0,-1000,0]
[null,null,null,null,null,null,null,null,null,null,null,null,0,-1000,0]
[null,null,null,null,null,null,null,null,null,null,null,null,0,-1000,0]
[null,null,null,null,null,null,null,null,null,null,null,null,0,-1000,0]
[null,null,null,null,null,null,null,null,null,null,null,null,0,-1000,0]
[null,null,null,null,null,null,null,null,null,null,null,null,0,-1000,0]
[null,null,null,null,null,null,null,null,null,null,null,null,0,-1000,0]
[null,null,null,null,null,null,null,null,null,null,null,null,0,-1000,0]
[null,null,null,null,null,null,null,null,null,null,null,null,0,-1000,0]
[null,null,null,null,null,null,null,null,null,null,null,null,0,-1000,0]
[null,null,null,null,null,null,null,null,null,null,null,null,0,-1000,0]
[null,null,null,null,null,null,null,null,null,null,null,null,0,-1000,0]
[null,null,null,null,null,null,null,null,null,null,null,null,0,-1000,0]
[null,null,null,null,null,null,null,null,null,null,null,null,0,-1000,0]
[null,null,null,null,null,null,null,null,null,null,null,null,0,-1000,0]
[null,null,null,null,null,null,null,null,null,null,null,null,0,-1000,0]
[null,null,null,null,null,null,null,null,null,null,null,null,0,-1000,0]
[null,null,null,null,null,null,null,null,null,null,null,null,0,-1000,0]
[null,null,null,null,null,null,null,null,null,null,null,null,0,-1000,0]
[null,null,null,null,null,null,null,null,null,null,null,null,0,-1000,0]
[null,null,null,null,null,null,null,null,null,null,null,null,{"$f":"IF($G$4=1,\nIF(H73>1,(ABS(G73-H73)),0)+\nIF(I73>1,(ABS(G73-I73)),0)+\nIF(J73>1,(ABS(G73-J73)),0)+\nIF(K73>1,(ABS(G73-K73)),0)+\nIF(L73>1,(ABS(G73-L73)),0),\n\nIF(I73>1,(ABS(H73-I73)),0)+\nIF(J73>1,(ABS(H73-J73)),0)+\nIF(K73>1,(ABS(H73-K73)),0) )","v":0},{"$f":"IF(M73>0,M73*-1,-1000)","v":-1000},{"$f":"IF(M73>0,RANK(N73,N:N),0)","v":0}]
[null,null,null,null,null,null,null,null,null,null,null,null,0,-1000,0]
[null,null,null,null,null,null,null,null,null,null,null,null,0,-1000,0]
[null,null,null,null,null,null,null,null,null,null,null,null,0,-1000,0]
[null,null,null,null,null,null,null,null,null,null,null,null,0,-1000,0]
[null,null,null,null,null,null,null,null,null,null,null,null,0,-1000,0]
[null,null,null,null,null,null,null,null,null,null,null,null,0,-1000,0]
[null,null,null,null,null,null,null,null,null,null,null,null,0,-1000,0]
[null,null,null,null,null,null,null,null,null,null,null,null,0,-1000,0]
[null,null,null,null,null,null,null,null,null,null,null,null,0,-1000,0]
[null,null,null,null,null,null,null,null,null,null,null,null,0,-1000,0]
[null,null,null,null,null,null,null,null,null,null,null,null,0,-1000,0]
[null,null,null,null,null,null,null,null,null,null,null,null,0,-1000,0]
[null,null,null,null,null,null,null,null,null,null,null,null,0,-1000,0]
[null,null,null,null,null,null,null,null,null,null,null,null,0,-1000,0]
[null,null,null,null,null,null,null,null,null,null,null,null,0,-1000,0]
[null,null,null,null,null,null,null,null,null,null,null,null,0,-1000,0]
[null,null,null,null,null,null,null,null,null,null,null,null,0,-1000,0]
[null,null,null,null,null,null,null,null,null,null,null,null,0,-1000,0]
[null,null,null,null,null,null,null,null,null,null,null,null,0,-1000,0]
[null,null,null,null,null,null,null,null,null,null,null,null,0,-1000,0]
[null,null,null,null,null,null,null,null,null,null,null,null,0,-1000,0]
[null,null,null,null,null,null,null,null,null,null,null,null,0,-1000,0]
[null,null,null,null,null,null,null,null,null,null,null,null,0,-1000,0]
[null,null,null,null,null,null,null,null,null,null,null,null,0,-1000,0]
[null,null,null,null,null,null,null,null,null,null,null,null,0,-1000,0]
[null,null,null,null,null,null,null,null,null,null,null,null,0,-1000,0]
[null,null,null,null,null,null,null,null,null,null,null,null,0,-1000,0]
[null,null,null,null,null,null,null,null,null,null,null,null,0,-1000,0]
[null,null,null,null,null,null,null,null,null,null,null,null,0,-1000,0]
[null,null,null,null,null,null,null,null,null,null,null,null,0,-1000,0]
[null,null,null,null,null,null,null,null,null,null,null,null,0,-1000,0]
[null,null,null,null,null,null,null,null,null,null,null,null,{"$f":"IF($G$4=1,\nIF(H105>1,(ABS(G105-H105)),0)+\nIF(I105>1,(ABS(G105-I105)),0)+\nIF(J105>1,(ABS(G105-J105)),0)+\nIF(K105>1,(ABS(G105-K105)),0)+\nIF(L105>1,(ABS(G105-L105)),0),\n\nIF(I105>1,(ABS(H105-I105)),0)+\nIF(J105>1,(ABS(H105-J105)),0)+\nIF(K105>1,(ABS(H105-K105)),0) )","v":0},{"$f":"IF(M105>0,M105*-1,-1000)","v":-1000},{"$f":"IF(M105>0,RANK(N105,N:N),0)","v":0}]
[null,null,null,null,null,null,null,null,null,null,null,null,0,-1000,0]
[null,null,null,null,null,null,null,null,null,null,null,null,0,-1000,0]
[null,null,null,null,null,null,null,null,null,null,null,null,0,-1000,0]
[null,null,null,null,null,null,null,null,null,null,null,null,0,-1000,0]
[null,null,null,null,null,null,null,null,null,null,null,null,0,-1000,0]
[null,null,null,null,null,null,null,null,null,null,null,null,0,-1000,0]
[null,null,null,null,null,null,null,null,null,null,null,null,0,-1000,0]
[null,null,null,null,null,null,null,null,null,null,null,null,0,-1000,0]
[null,null,null,null,null,null,null,null,null,null,null,null,0,-1000,0]
[null,null,null,null,null,null,null,null,null,null,null,null,0,-1000,0]
[null,null,null,null,null,null,null,null,null,null,null,null,0,-1000,0]
[null,null,null,null,null,null,null,null,null,null,null,null,0,-1000,0]
[null,null,null,null,null,null,null,null,null,null,null,null,0,-1000,0]
[null,null,null,null,null,null,null,null,null,null,null,null,0,-1000,0]
[null,null,null,null,null,null,null,null,null,null,null,null,0,-1000,0]
[null,null,null,null,null,null,null,null,null,null,null,null,0,-1000,0]
[null,null,null,null,null,null,null,null,null,null,null,null,0,-1000,0]
[null,null,null,null,null,null,null,null,null,null,null,null,0,-1000,0]
[null,null,null,null,null,null,null,null,null,null,null,null,0,-1000,0]
[null,null,null,null,null,null,null,null,null,null,null,null,0,-1000,0]
[null,null,null,null,null,null,null,null,null,null,null,null,0,-1000,0]
[null,null,null,null,null,null,null,null,null,null,null,null,0,-1000,0]
[null,null,null,null,null,null,null,null,null,null,null,null,0,-1000,0]
[null,null,null,null,null,null,null,null,null,null,null,null,0,-1000,0]
[null,null,null,null,null,null,null,null,null,null,null,null,0,-1000,0]
[null,null,null,null,null,null,null,null,null,null,null,null,0,-1000,0]
[null,null,null,null,null,null,null,null,null,null,null,null,0,-1000,0]
[null,null,null,null,null,null,null,null,null,null,null,null,0,-1000,0]
[null,null,null,null,null,null,null,null,null,null,null,null,0,-1000,0]
[null,null,null,null,null,null,null,null,null,null,null,null,0,-1000,0]
[null,null,null,null,null,null,null,null,null,null,null,null,0,-1000,0]
[null,null,null,null,null,null,null,null,null,null,null,null,{"$f":"IF($G$4=1,\nIF(H137>1,(ABS(G137-H137)),0)+\nIF(I137>1,(ABS(G137-I137)),0)+\nIF(J137>1,(ABS(G137-J137)),0)+\nIF(K137>1,(ABS(G137-K137)),0)+\nIF(L137>1,(ABS(G137-L137)),0),\n\nIF(I137>1,(ABS(H137-I137)),0)+\nIF(J137>1,(ABS(H137-J137)),0)+\nIF(K137>1,(ABS(H137-K137)),0) )","v":0},{"$f":"IF(M137>0,M137*-1,-1000)","v":-1000},{"$f":"IF(M137>0,RANK(N137,N:N),0)","v":0}]
[null,null,null,null,null,null,null,null,null,null,null,null,0,-1000,0]
[null,null,null,null,null,null,null,null,null,null,null,null,0,-1000,0]
[null,null,null,null,null,null,null,null,null,null,null,null,0,-1000,0]
[null,null,null,null,null,null,null,null,null,null,null,null,0,-1000,0]
[null,null,null,null,null,null,null,null,null,null,null,null,0,-1000,0]
[null,null,null,null,null,null,null,null,null,null,null,null,0,-1000,0]
[null,null,null,null,null,null,null,null,null,null,null,null,0,-1000,0]
[null,null,null,null,null,null,null,null,null,null,null,null,0,-1000,0]
[null,null,null,null,null,null,null,null,null,null,null,null,0,-1000,0]
[null,null,null,null,null,null,null,null,null,null,null,null,0,-1000,0]
[null,null,null,null,null,null,null,null,null,null,null,null,0,-1000,0]
[null,null,null,null,null,null,null,null,null,null,null,null,0,-1000,0]
[null,null,null,null,null,null,null,null,null,null,null,null,0,-1000,0]
[null,null,null,null,null,null,null,null,null,null,null,null,0,-1000,0]
[null,null,null,null,null,null,null,null,null,null,null,null,0,-1000,0]
[null,null,null,null,null,null,null,null,null,null,null,null,0,-1000,0]
[null,null,null,null,null,null,null,null,null,null,null,null,0,-1000,0]
[null,null,null,null,null,null,null,null,null,null,null,null,0,-1000,0]
[null,null,null,null,null,null,null,null,null,null,null,null,0,-1000,0]
[null,null,null,null,null,null,null,null,null,null,null,null,0,-1000,0]
[null,null,null,null,null,null,null,null,null,null,null,null,0,-1000,0]
[null,null,null,null,null,null,null,null,null,null,null,null,0,-1000,0]
[null,null,null,null,null,null,null,null,null,null,null,null,0,-1000,0]
[null,null,null,null,null,null,null,null,null,null,null,null,0,-1000,0]
[null,null,null,null,null,null,null,null,null,null,null,null,0,-1000,0]
[null,null,null,null,null,null,null,null,null,null,null,null,0,-1000,0]
[null,null,null,null,null,null,null,null,null,null,null,null,0,-1000,0]
[null,null,null,null,null,null,null,null,null,null,null,null,0,-1000,0]
[null,null,null,null,null,null,null,null,null,null,null,null,0,-1000,0]
[null,null,null,null,null,null,null,null,null,null,null,null,0,-1000,0]
[null,null,null,null,null,null,null,null,null,null,null,null,0,-1000,0]
[null,null,null,null,null,null,null,null,null,null,null,null,{"$f":"IF($G$4=1,\nIF(H169>1,(ABS(G169-H169)),0)+\nIF(I169>1,(ABS(G169-I169)),0)+\nIF(J169>1,(ABS(G169-J169)),0)+\nIF(K169>1,(ABS(G169-K169)),0)+\nIF(L169>1,(ABS(G169-L169)),0),\n\nIF(I169>1,(ABS(H169-I169)),0)+\nIF(J169>1,(ABS(H169-J169)),0)+\nIF(K169>1,(ABS(H169-K169)),0) )","v":0},{"$f":"IF(M169>0,M169*-1,-1000)","v":-1000},{"$f":"IF(M169>0,RANK(N169,N:N),0)","v":0}]
[null,null,null,null,null,null,null,null,null,null,null,null,0,-1000,0]
[null,null,null,null,null,null,null,null,null,null,null,null,0,-1000,0]
[null,null,null,null,null,null,null,null,null,null,null,null,0,-1000,0]
[null,null,null,null,null,null,null,null,null,null,null,null,0,-1000,0]
[null,null,null,null,null,null,null,null,null,null,null,null,0,-1000,0]
[null,null,null,null,null,null,null,null,null,null,null,null,0,-1000,0]
[null,null,null,null,null,null,null,null,null,null,null,null,0,-1000,0]
[null,null,null,null,null,null,null,null,null,null,null,null,0,-1000,0]
[null,null,null,null,null,null,null,null,null,null,null,null,0,-1000,0]
[null,null,null,null,null,null,null,null,null,null,null,null,0,-1000,0]
[null,null,null,null,null,null,null,null,null,null,null,null,0,-1000,0]
[null,null,null,null,null,null,null,null,null,null,null,null,0,-1000,0]
[null,null,null,null,null,null,null,null,null,null,null,null,0,-1000,0]
[null,null,null,null,null,null,null,null,null,null,null,null,0,-1000,0]
[null,null,null,null,null,null,null,null,null,null,null,null,0,-1000,0]
[null,null,null,null,null,null,null,null,null,null,null,null,0,-1000,0]
[null,null,null,null,null,null,null,null,null,null,null,null,0,-1000,0]
[null,null,null,null,null,null,null,null,null,null,null,null,0,-1000,0]
[null,null,null,null,null,null,null,null,null,null,null,null,0,-1000,0]
[null,null,null,null,null,null,null,null,null,null,null,null,0,-1000,0]
[null,null,null,null,null,null,null,null,null,null,null,null,0,-1000,0]
[null,null,null,null,null,null,null,null,null,null,null,null,0,-1000,0]
[null,null,null,null,null,null,null,null,null,null,null,null,0,-1000,0]
[null,null,null,null,null,null,null,null,null,null,null,null,0,-1000,0]
[null,null,null,null,null,null,null,null,null,null,null,null,0,-1000,0]
[null,null,null,null,null,null,null,null,null,null,null,null,0,-1000,0]
[null,null,null,null,null,null,null,null,null,null,null,null,0,-1000,0]
[null,null,null,null,null,null,null,null,null,null,null,null,0,-1000,0]
[null,null,null,null,null,null,null,null,null,null,null,null,0,-1000,0]
[null,null,null,null,null,null,null,null,null,null,null,null,0,-1000,0]
[null,null,null,null,null,null,null,null,null,null,null,null,0,-1000,0]
[null,null,null,null,null,null,null,null,null,null,null,null,{"$f":"IF($G$4=1,\nIF(H201>1,(ABS(G201-H201)),0)+\nIF(I201>1,(ABS(G201-I201)),0)+\nIF(J201>1,(ABS(G201-J201)),0)+\nIF(K201>1,(ABS(G201-K201)),0)+\nIF(L201>1,(ABS(G201-L201)),0),\n\nIF(I201>1,(ABS(H201-I201)),0)+\nIF(J201>1,(ABS(H201-J201)),0)+\nIF(K201>1,(ABS(H201-K201)),0) )","v":0},{"$f":"IF(M201>0,M201*-1,-1000)","v":-1000},{"$f":"IF(M201>0,RANK(N201,N:N),0)","v":0}]
[null,null,null,null,null,null,null,null,null,null,null,null,{"$f":"IF($G$4=1,\nIF(H202>1,(ABS(G202-H202)),0)+\nIF(I202>1,(ABS(G202-I202)),0)+\nIF(J202>1,(ABS(G202-J202)),0)+\nIF(K202>1,(ABS(G202-K202)),0)+\nIF(L202>1,(ABS(G202-L202)),0),\n\nIF(I202>1,(ABS(H202-I202)),0)+\nIF(J202>1,(ABS(H202-J202)),0)+\nIF(K202>1,(ABS(H202-K202)),0) )","v":0},{"$f":"IF(M202>0,M202*-1,-1000)","v":-1000},{"$f":"IF(M202>0,RANK(N202,N:N),0)","v":0}]

{"sheet":"Gast-Junior","index":13,"n_rows":202,"n_cols":16,"rows_kept":202,"cut":false,"hidden":true,"merged":[]}
["DSKD  Derby 25.06.2017 Mettingen/Osnabrück"]
[" Gäste JUNIOR - Klasse  "]
[]
["Wird der Lauf gewertet?   dann 0 oder 1 eintragen",null,null,null,null,null,1,1,1,1,0,0]
["Bestzeit je Lauf",null,null,null,null,null,{"$f":"MIN(G9:G202)","v":0},0,0,0,0,0]
[]
["Start\nNummer","Gruppe","startet","Name","Vorname","Verein","Lauf 1","Lauf 2","Lauf 3","Lauf 4","Lauf 5","Lauf 6","Summe der gewerteten Läufe",null,"Platz","Urkunde"]
[]
[null,null,null,null,null,null,null,null,null,null,null,null,{"$f":"(G9*$G$4+H9*$H$4+I9*$I$4+J9*$J$4+K9*$K$4+L9*$L$4)","v":0},{"$f":"IF(M9>0,M9*-1,-1000)","v":-1000},{"$f":"IF(M9>0,RANK(N9,N:N),0)","v":0}]
[null,null,null,null,null,null,null,null,null,null,null,null,0,-1000,0]
[null,null,null,null,null,null,null,null,null,null,null,null,0,-1000,0]
[null,null,null,null,null,null,null,null,null,null,null,null,0,-1000,0]
[null,null,null,null,null,null,null,null,null,null,null,null,0,-1000,0]
[null,null,null,null,null,null,null,null,null,null,null,null,0,-1000,0]
[null,null,null,null,null,null,null,null,null,null,null,null,0,-1000,0]
[null,null,null,null,null,null,null,null,null,null,null,null,0,-1000,0]
[null,null,null,null,null,null,null,null,null,null,null,null,0,-1000,0]
[null,null,null,null,null,null,null,null,null,null,null,null,0,-1000,0]
[null,null,null,null,null,null,null,null,null,null,null,null,0,-1000,0]
[null,null,null,null,null,null,null,null,null,null,null,null,0,-1000,0]
[null,null,null,null,null,null,null,null,null,null,null,null,0,-1000,0]
[null,null,null,null,null,null,null,null,null,null,null,null,0,-1000,0]
[null,null,null,null,null,null,null,null,null,null,null,null,0,-1000,0]
[null,null,null,null,null,null,null,null,null,null,null,null,0,-1000,0]
[null,null,null,null,null,null,null,null,null,null,null,null,0,-1000,0]
[null,null,null,null,null,null,null,null,null,null,null,null,0,-1000,0]
[null,null,null,null,null,null,null,null,null,null,null,null,0,-1000,0]
[null,null,null,null,null,null,null,null,null,null,null,null,0,-1000,0]
[null,null,null,null,null,null,null,null,null,null,null,null,0,-1000,0]
[null,null,null,null,null,null,null,null,null,null,null,null,0,-1000,0]
[null,null,null,null,null,null,null,null,null,null,null,null,0,-1000,0]
[null,null,null,null,null,null,null,null,null,null,null,null,0,-1000,0]
[null,null,null,null,null,null,null,null,null,null,null,null,0,-1000,0]
[null,null,null,null,null,null,null,null,null,null,null,null,0,-1000,0]
[null,null,null,null,null,null,null,null,null,null,null,null,0,-1000,0]
[null,null,null,null,null,null,null,null,null,null,null,null,0,-1000,0]
[null,null,null,null,null,null,null,null,null,null,null,null,0,-1000,0]
[null,null,null,null,null,null,null,null,null,null,null,null,0,-1000,0]
[null,null,null,null,null,null,null,null,null,null,null,null,0,-1000,0]
[null,null,null,null,null,null,null,null,null,null,null,null,0,-1000,0]
[null,null,null,null,null,null,null,null,null,null,null,null,{"$f":"(G41*$G$4+H41*$H$4+I41*$I$4+J41*$J$4+K41*$K$4+L41*$L$4)","v":0},{"$f":"IF(M41>0,M41*-1,-1000)","v":-1000},{"$f":"IF(M41>0,RANK(N41,N:N),0)","v":0}]
[null,null,null,null,null,null,null,null,null,null,null,null,0,-1000,0]
[null,null,null,null,null,null,null,null,null,null,null,null,0,-1000,0]
[null,null,null,null,null,null,null,null,null,null,null,null,0,-1000,0]
[null,null,null,null,null,null,null,null,null,null,null,null,0,-1000,0]
[null,null,null,null,null,null,null,null,null,null,null,null,0,-1000,0]
[null,null,null,null,null,null,null,null,null,null,null,null,0,-1000,0]
[null,null,null,null,null,null,null,null,null,null,null,null,0,-1000,0]
[null,null,null,null,null,null,null,null,null,null,null,null,0,-1000,0]
[null,null,null,null,null,null,null,null,null,null,null,null,0,-1000,0]
[null,null,null,null,null,null,null,null,null,null,null,null,0,-1000,0]
[null,null,null,null,null,null,null,null,null,null,null,null,0,-1000,0]
[null,null,null,null,null,null,null,null,null,null,null,null,0,-1000,0]
[null,null,null,null,null,null,null,null,null,null,null,null,0,-1000,0]
[null,null,null,null,null,null,null,null,null,null,null,null,0,-1000,0]
[null,null,null,null,null,null,null,null,null,null,null,null,0,-1000,0]
[null,null,null,null,null,null,null,null,null,null,null,null,0,-1000,0]
[null,null,null,null,null,null,null,null,null,null,null,null,0,-1000,0]
[null,null,null,null,null,null,null,null,null,null,null,null,0,-1000,0]
[null,null,null,null,null,null,null,null,null,null,null,null,0,-1000,0]
[null,null,null,null,null,null,null,null,null,null,null,null,0,-1000,0]
[null,null,null,null,null,null,null,null,null,null,null,null,0,-1000,0]
[null,null,null,null,null,null,null,null,null,null,null,null,0,-1000,0]
[null,null,null,null,null,null,null,null,null,null,null,null,0,-1000,0]
[null,null,null,null,null,null,null,null,null,null,null,null,0,-1000,0]
[null,null,null,null,null,null,null,null,null,null,null,null,0,-1000,0]
[null,null,null,null,null,null,null,null,null,null,null,null,0,-1000,0]
[null,null,null,null,null,null,null,null,null,null,null,null,0,-1000,0]
[null,null,null,null,null,null,null,null,null,null,null,null,0,-1000,0]
[null,null,null,null,null,null,null,null,null,null,null,null,0,-1000,0]
[null,null,null,null,null,null,null,null,null,null,null,null,0,-1000,0]
[null,null,null,null,null,null,null,null,null,null,null,null,0,-1000,0]
[null,null,null,null,null,null,null,null,null,null,null,null,{"$f":"(G73*$G$4+H73*$H$4+I73*$I$4+J73*$J$4+K73*$K$4+L73*$L$4)","v":0},{"$f":"IF(M73>0,M73*-1,-1000)","v":-1000},{"$f":"IF(M73>0,RANK(N73,N:N),0)","v":0}]
[null,null,null,null,null,null,null,null,null,null,null,null,0,-1000,0]
[null,null,null,null,null,null,null,null,null,null,null,null,0,-1000,0]
[null,null,null,null,null,null,null,null,null,null,null,null,0,-1000,0]
[null,null,null,null,null,null,null,null,null,null,null,null,0,-1000,0]
[null,null,null,null,null,null,null,null,null,null,null,null,0,-1000,0]
[null,null,null,null,null,null,null,null,null,null,null,null,0,-1000,0]
[null,null,null,null,null,null,null,null,null,null,null,null,0,-1000,0]
[null,null,null,null,null,null,null,null,null,null,null,null,0,-1000,0]
[null,null,null,null,null,null,null,null,null,null,null,null,0,-1000,0]
[null,null,null,null,null,null,null,null,null,null,null,null,0,-1000,0]
[null,null,null,null,null,null,null,null,null,null,null,null,0,-1000,0]
[null,null,null,null,null,null,null,null,null,null,null,null,0,-1000,0]
[null,null,null,null,null,null,null,null,null,null,null,null,0,-1000,0]
[null,null,null,null,null,null,null,null,null,null,null,null,0,-1000,0]
[null,null,null,null,null,null,null,null,null,null,null,null,0,-1000,0]
[null,null,null,null,null,null,null,null,null,null,null,null,0,-1000,0]
[null,null,null,null,null,null,null,null,null,null,null,null,0,-1000,0]
[null,null,null,null,null,null,null,null,null,null,null,null,0,-1000,0]
[null,null,null,null,null,null,null,null,null,null,null,null,0,-1000,0]
[null,null,null,null,null,null,null,null,null,null,null,null,0,-1000,0]
[null,null,null,null,null,null,null,null,null,null,null,null,0,-1000,0]
[null,null,null,null,null,null,null,null,null,null,null,null,0,-1000,0]
[null,null,null,null,null,null,null,null,null,null,null,null,0,-1000,0]
[null,null,null,null,null,null,null,null,null,null,null,null,0,-1000,0]
[null,null,null,null,null,null,null,null,null,null,null,null,0,-1000,0]
[null,null,null,null,null,null,null,null,null,null,null,null,0,-1000,0]
[null,null,null,null,null,null,null,null,null,null,null,null,0,-1000,0]
[null,null,null,null,null,null,null,null,null,null,null,null,0,-1000,0]
[null,null,null,null,null,null,null,null,null,null,null,null,0,-1000,0]
[null,null,null,null,null,null,null,null,null,null,null,null,0,-1000,0]
[null,null,null,null,null,null,null,null,null,null,null,null,0,-1000,0]
[null,null,null,null,null,null,null,null,null,null,null,null,{"$f":"(G105*$G$4+H105*$H$4+I105*$I$4+J105*$J$4+K105*$K$4+L105*$L$4)","v":0},{"$f":"IF(M105>0,M105*-1,-1000)","v":-1000},{"$f":"IF(M105>0,RANK(N105,N:N),0)","v":0}]
[null,null,null,null,null,null,null,null,null,null,null,null,0,-1000,0]
[null,null,null,null,null,null,null,null,null,null,null,null,0,-1000,0]
[null,null,null,null,null,null,null,null,null,null,null,null,0,-1000,0]
[null,null,null,null,null,null,null,null,null,null,null,null,0,-1000,0]
[null,null,null,null,null,null,null,null,null,null,null,null,0,-1000,0]
[null,null,null,null,null,null,null,null,null,null,null,null,0,-1000,0]
[null,null,null,null,null,null,null,null,null,null,null,null,0,-1000,0]
[null,null,null,null,null,null,null,null,null,null,null,null,0,-1000,0]
[null,null,null,null,null,null,null,null,null,null,null,null,0,-1000,0]
[null,null,null,null,null,null,null,null,null,null,null,null,0,-1000,0]
[null,null,null,null,null,null,null,null,null,null,null,null,0,-1000,0]
[null,null,null,null,null,null,null,null,null,null,null,null,0,-1000,0]
[null,null,null,null,null,null,null,null,null,null,null,null,0,-1000,0]
[null,null,null,null,null,null,null,null,null,null,null,null,0,-1000,0]
[null,null,null,null,null,null,null,null,null,null,null,null,0,-1000,0]
[null,null,null,null,null,null,null,null,null,null,null,null,0,-1000,0]
[null,null,null,null,null,null,null,null,null,null,null,null,0,-1000,0]
[null,null,null,null,null,null,null,null,null,null,null,null,0,-1000,0]
[null,null,null,null,null,null,null,null,null,null,null,null,0,-1000,0]
[null,null,null,null,null,null,null,null,null,null,null,null,0,-1000,0]
[null,null,null,null,null,null,null,null,null,null,null,null,0,-1000,0]
[null,null,null,null,null,null,null,null,null,null,null,null,0,-1000,0]
[null,null,null,null,null,null,null,null,null,null,null,null,0,-1000,0]
[null,null,null,null,null,null,null,null,null,null,null,null,0,-1000,0]
[null,null,null,null,null,null,null,null,null,null,null,null,0,-1000,0]
[null,null,null,null,null,null,null,null,null,null,null,null,0,-1000,0]
[null,null,null,null,null,null,null,null,null,null,null,null,0,-1000,0]
[null,null,null,null,null,null,null,null,null,null,null,null,0,-1000,0]
[null,null,null,null,null,null,null,null,null,null,null,null,0,-1000,0]
[null,null,null,null,null,null,null,null,null,null,null,null,0,-1000,0]
[null,null,null,null,null,null,null,null,null,null,null,null,0,-1000,0]
[null,null,null,null,null,null,null,null,null,null,null,null,{"$f":"(G137*$G$4+H137*$H$4+I137*$I$4+J137*$J$4+K137*$K$4+L137*$L$4)","v":0},{"$f":"IF(M137>0,M137*-1,-1000)","v":-1000},{"$f":"IF(M137>0,RANK(N137,N:N),0)","v":0}]
[null,null,null,null,null,null,null,null,null,null,null,null,0,-1000,0]
[null,null,null,null,null,null,null,null,null,null,null,null,0,-1000,0]
[null,null,null,null,null,null,null,null,null,null,null,null,0,-1000,0]
[null,null,null,null,null,null,null,null,null,null,null,null,0,-1000,0]
[null,null,null,null,null,null,null,null,null,null,null,null,0,-1000,0]
[null,null,null,null,null,null,null,null,null,null,null,null,0,-1000,0]
[null,null,null,null,null,null,null,null,null,null,null,null,0,-1000,0]
[null,null,null,null,null,null,null,null,null,null,null,null,0,-1000,0]
[null,null,null,null,null,null,null,null,null,null,null,null,0,-1000,0]
[null,null,null,null,null,null,null,null,null,null,null,null,0,-1000,0]
[null,null,null,null,null,null,null,null,null,null,null,null,0,-1000,0]
[null,null,null,null,null,null,null,null,null,null,null,null,0,-1000,0]
[null,null,null,null,null,null,null,null,null,null,null,null,0,-1000,0]
[null,null,null,null,null,null,null,null,null,null,null,null,0,-1000,0]
[null,null,null,null,null,null,null,null,null,null,null,null,0,-1000,0]
[null,null,null,null,null,null,null,null,null,null,null,null,0,-1000,0]
[null,null,null,null,null,null,null,null,null,null,null,null,0,-1000,0]
[null,null,null,null,null,null,null,null,null,null,null,null,0,-1000,0]
[null,null,null,null,null,null,null,null,null,null,null,null,0,-1000,0]
[null,null,null,null,null,null,null,null,null,null,null,null,0,-1000,0]
[null,null,null,null,null,null,null,null,null,null,null,null,0,-1000,0]
[null,null,null,null,null,null,null,null,null,null,null,null,0,-1000,0]
[null,null,null,null,null,null,null,null,null,null,null,null,0,-1000,0]
[null,null,null,null,null,null,null,null,null,null,null,null,0,-1000,0]
[null,null,null,null,null,null,null,null,null,null,null,null,0,-1000,0]
[null,null,null,null,null,null,null,null,null,null,null,null,0,-1000,0]
[null,null,null,null,null,null,null,null,null,null,null,null,0,-1000,0]
[null,null,null,null,null,null,null,null,null,null,null,null,0,-1000,0]
[null,null,null,null,null,null,null,null,null,null,null,null,0,-1000,0]
[null,null,null,null,null,null,null,null,null,null,null,null,0,-1000,0]
[null,null,null,null,null,null,null,null,null,null,null,null,0,-1000,0]
[null,null,null,null,null,null,null,null,null,null,null,null,{"$f":"(G169*$G$4+H169*$H$4+I169*$I$4+J169*$J$4+K169*$K$4+L169*$L$4)","v":0},{"$f":"IF(M169>0,M169*-1,-1000)","v":-1000},{"$f":"IF(M169>0,RANK(N169,N:N),0)","v":0}]
[null,null,null,null,null,null,null,null,null,null,null,null,0,-1000,0]
[null,null,null,null,null,null,null,null,null,null,null,null,0,-1000,0]
[null,null,null,null,null,null,null,null,null,null,null,null,0,-1000,0]
[null,null,null,null,null,null,null,null,null,null,null,null,0,-1000,0]
[null,null,null,null,null,null,null,null,null,null,null,null,0,-1000,0]
[null,null,null,null,null,null,null,null,null,null,null,null,0,-1000,0]
[null,null,null,null,null,null,null,null,null,null,null,null,0,-1000,0]
[null,null,null,null,null,null,null,null,null,null,null,null,0,-1000,0]
[null,null,null,null,null,null,null,null,null,null,null,null,0,-1000,0]
[null,null,null,null,null,null,null,null,null,null,null,null,0,-1000,0]
[null,null,null,null,null,null,null,null,null,null,null,null,0,-1000,0]
[null,null,null,null,null,null,null,null,null,null,null,null,0,-1000,0]
[null,null,null,null,null,null,null,null,null,null,null,null,0,-1000,0]
[null,null,null,null,null,null,null,null,null,null,null,null,0,-1000,0]
[null,null,null,null,null,null,null,null,null,null,null,null,0,-1000,0]
[null,null,null,null,null,null,null,null,null,null,null,null,0,-1000,0]
[null,null,null,null,null,null,null,null,null,null,null,null,0,-1000,0]
[null,null,null,null,null,null,null,null,null,null,null,null,0,-1000,0]
[null,null,null,null,null,null,null,null,null,null,null,null,0,-1000,0]
[null,null,null,null,null,null,null,null,null,null,null,null,0,-1000,0]
[null,null,null,null,null,null,null,null,null,null,null,null,0,-1000,0]
[null,null,null,null,null,null,null,null,null,null,null,null,0,-1000,0]
[null,null,null,null,null,null,null,null,null,null,null,null,0,-1000,0]
[null,null,null,null,null,null,null,null,null,null,null,null,0,-1000,0]
[null,null,null,null,null,null,null,null,null,null,null,null,0,-1000,0]
[null,null,null,null,null,null,null,null,null,null,null,null,0,-1000,0]
[null,null,null,null,null,null,null,null,null,null,null,null,0,-1000,0]
[null,null,null,null,null,null,null,null,null,null,null,null,0,-1000,0]
[null,null,null,null,null,null,null,null,null,null,null,null,0,-1000,0]
[null,null,null,null,null,null,null,null,null,null,null,null,0,-1000,0]
[null,null,null,null,null,null,null,null,null,null,null,null,0,-1000,0]
[null,null,null,null,null,null,null,null,null,null,null,null,{"$f":"(G201*$G$4+H201*$H$4+I201*$I$4+J201*$J$4+K201*$K$4+L201*$L$4)","v":0},{"$f":"IF(M201>0,M201*-1,-1000)","v":-1000},{"$f":"IF(M201>0,RANK(N201,N:N),0)","v":0}]
[null,null,null,null,null,null,null,null,null,null,null,null,{"$f":"(G202*$G$4+H202*$H$4+I202*$I$4+J202*$J$4+K202*$K$4+L202*$L$4)","v":0},{"$f":"IF(M202>0,M202*-1,-1000)","v":-1000},{"$f":"IF(M202>0,RANK(N202,N:N),0)","v":0}]

{"sheet":"Gast-Senior","index":14,"n_rows":203,"n_cols":16,"rows_kept":203,"cut":false,"hidden":true,"merged":[]}
["DSKD  Derby 25.06.2017 Mettingen/Osnabrück"]
[" Gäste SENIOR - Klasse  "]
[]
["Wird der Lauf gewertet?   dann 0 oder 1 eintragen",null,null,null,null,null,1,1,1,1,0,0]
["Bestzeit je Lauf",null,null,null,null,null,{"$f":"MIN(G9:G203)","v":0},0,0,0,0,0]
[]
["Start\nNummer","Gruppe","startet","Name","Vorname","Verein","Lauf 1","Lauf 2","Lauf 3","Lauf 4","Lauf 5","Lauf 6","Summe der gewerteten Läufe",null,"Platz","Urkunde"]
[]
[null,null,null,null,null,null,null,null,null,null,null,null,{"$f":"(G9*$G$4+H9*$H$4+I9*$I$4+J9*$J$4+K9*$K$4+L9*$L$4)","v":0},{"$f":"IF(M9>0,M9*-1,-1000)","v":-1000},{"$f":"IF(M9>0,RANK(N9,N:N),0)","v":0}]
[null,null,null,null,null,null,null,null,null,null,null,null,0,-1000,0]
[null,null,null,null,null,null,null,null,null,null,null,null,0,-1000,0]
[null,null,null,null,null,null,null,null,null,null,null,null,0,-1000,0]
[null,null,null,null,null,null,null,null,null,null,null,null,0,-1000,0]
[null,null,null,null,null,null,null,null,null,null,null,null,0,-1000,0]
[null,null,null,null,null,null,null,null,null,null,null,null,0,-1000,0]
[null,null,null,null,null,null,null,null,null,null,null,null,0,-1000,0]
[null,null,null,null,null,null,null,null,null,null,null,null,0,-1000,0]
[null,null,null,null,null,null,null,null,null,null,null,null,0,-1000,0]
[null,null,null,null,null,null,null,null,null,null,null,null,0,-1000,0]
[null,null,null,null,null,null,null,null,null,null,null,null,0,-1000,0]
[null,null,null,null,null,null,null,null,null,null,null,null,0,-1000,0]
[null,null,null,null,null,null,null,null,null,null,null,null,0,-1000,0]
[null,null,null,null,null,null,null,null,null,null,null,null,0,-1000,0]
[null,null,null,null,null,null,null,null,null,null,null,null,0,-1000,0]
[null,null,null,null,null,null,null,null,null,null,null,null,0,-1000,0]
[null,null,null,null,null,null,null,null,null,null,null,null,0,-1000,0]
[null,null,null,null,null,null,null,null,null,null,null,null,0,-1000,0]
[null,null,null,null,null,null,null,null,null,null,null,null,0,-1000,0]
[null,null,null,null,null,null,null,null,null,null,null,null,0,-1000,0]
[null,null,null,null,null,null,null,null,null,null,null,null,0,-1000,0]
[null,null,null,null,null,null,null,null,null,null,null,null,0,-1000,0]
[null,null,null,null,null,null,null,null,null,null,null,null,0,-1000,0]
[null,null,null,null,null,null,null,null,null,null,null,null,0,-1000,0]
[null,null,null,null,null,null,null,null,null,null,null,null,0,-1000,0]
[null,null,null,null,null,null,null,null,null,null,null,null,0,-1000,0]
[null,null,null,null,null,null,null,null,null,null,null,null,0,-1000,0]
[null,null,null,null,null,null,null,null,null,null,null,null,0,-1000,0]
[null,null,null,null,null,null,null,null,null,null,null,null,0,-1000,0]
[null,null,null,null,null,null,null,null,null,null,null,null,0,-1000,0]
[null,null,null,null,null,null,null,null,null,null,null,null,0,-1000,0]
[null,null,null,null,null,null,null,null,null,null,null,null,{"$f":"(G41*$G$4+H41*$H$4+I41*$I$4+J41*$J$4+K41*$K$4+L41*$L$4)","v":0},{"$f":"IF(M41>0,M41*-1,-1000)","v":-1000},{"$f":"IF(M41>0,RANK(N41,N:N),0)","v":0}]
[null,null,null,null,null,null,null,null,null,null,null,null,0,-1000,0]
[null,null,null,null,null,null,null,null,null,null,null,null,0,-1000,0]
[null,null,null,null,null,null,null,null,null,null,null,null,0,-1000,0]
[null,null,null,null,null,null,null,null,null,null,null,null,0,-1000,0]
[null,null,null,null,null,null,null,null,null,null,null,null,0,-1000,0]
[null,null,null,null,null,null,null,null,null,null,null,null,0,-1000,0]
[null,null,null,null,null,null,null,null,null,null,null,null,0,-1000,0]
[null,null,null,null,null,null,null,null,null,null,null,null,0,-1000,0]
[null,null,null,null,null,null,null,null,null,null,null,null,0,-1000,0]
[null,null,null,null,null,null,null,null,null,null,null,null,0,-1000,0]
[null,null,null,null,null,null,null,null,null,null,null,null,0,-1000,0]
[null,null,null,null,null,null,null,null,null,null,null,null,0,-1000,0]
[null,null,null,null,null,null,null,null,null,null,null,null,0,-1000,0]
[null,null,null,null,null,null,null,null,null,null,null,null,0,-1000,0]
[null,null,null,null,null,null,null,null,null,null,null,null,0,-1000,0]
[null,null,null,null,null,null,null,null,null,null,null,null,0,-1000,0]
[null,null,null,null,null,null,null,null,null,null,null,null,0,-1000,0]
[null,null,null,null,null,null,null,null,null,null,null,null,0,-1000,0]
[null,null,null,null,null,null,null,null,null,null,null,null,0,-1000,0]
[null,null,null,null,null,null,null,null,null,null,null,null,0,-1000,0]
[null,null,null,null,null,null,null,null,null,null,null,null,0,-1000,0]
[null,null,null,null,null,null,null,null,null,null,null,null,0,-1000,0]
[null,null,null,null,null,null,null,null,null,null,null,null,0,-1000,0]
[null,null,null,null,null,null,null,null,null,null,null,null,0,-1000,0]
[null,null,null,null,null,null,null,null,null,null,null,null,0,-1000,0]
[null,null,null,null,null,null,null,null,null,null,null,null,0,-1000,0]
[null,null,null,null,null,null,null,null,null,null,null,null,0,-1000,0]
[null,null,null,null,null,null,null,null,null,null,null,null,0,-1000,0]
[null,null,null,null,null,null,null,null,null,null,null,null,0,-1000,0]
[null,null,null,null,null,null,null,null,null,null,null,null,0,-1000,0]
[null,null,null,null,null,null,null,null,null,null,null,null,0,-1000,0]
[null,null,null,null,null,null,null,null,null,null,null,null,{"$f":"(G73*$G$4+H73*$H$4+I73*$I$4+J73*$J$4+K73*$K$4+L73*$L$4)","v":0},{"$f":"IF(M73>0,M73*-1,-1000)","v":-1000},{"$f":"IF(M73>0,RANK(N73,N:N),0)","v":0}]
[null,null,null,null,null,null,null,null,null,null,null,null,0,-1000,0]
[null,null,null,null,null,null,null,null,null,null,null,null,0,-1000,0]
[null,null,null,null,null,null,null,null,null,null,null,null,0,-1000,0]
[null,null,null,null,null,null,null,null,null,null,null,null,0,-1000,0]
[null,null,null,null,null,null,null,null,null,null,null,null,0,-1000,0]
[null,null,null,null,null,null,null,null,null,null,null,null,0,-1000,0]
[null,null,null,null,null,null,null,null,null,null,null,null,0,-1000,0]
[null,null,null,null,null,null,null,null,null,null,null,null,0,-1000,0]
[null,null,null,null,null,null,null,null,null,null,null,null,0,-1000,0]
[null,null,null,null,null,null,null,null,null,null,null,null,0,-1000,0]
[null,null,null,null,null,null,null,null,null,null,null,null,0,-1000,0]
[null,null,null,null,null,null,null,null,null,null,null,null,0,-1000,0]
[null,null,null,null,null,null,null,null,null,null,null,null,0,-1000,0]
[null,null,null,null,null,null,null,null,null,null,null,null,0,-1000,0]
[null,null,null,null,null,null,null,null,null,null,null,null,0,-1000,0]
[null,null,null,null,null,null,null,null,null,null,null,null,0,-1000,0]
[null,null,null,null,null,null,null,null,null,null,null,null,0,-1000,0]
[null,null,null,null,null,null,null,null,null,null,null,null,0,-1000,0]
[null,null,null,null,null,null,null,null,null,null,null,null,0,-1000,0]
[null,null,null,null,null,null,null,null,null,null,null,null,0,-1000,0]
[null,null,null,null,null,null,null,null,null,null,null,null,0,-1000,0]
[null,null,null,null,null,null,null,null,null,null,null,null,0,-1000,0]
[null,null,null,null,null,null,null,null,null,null,null,null,0,-1000,0]
[null,null,null,null,null,null,null,null,null,null,null,null,0,-1000,0]
[null,null,null,null,null,null,null,null,null,null,null,null,0,-1000,0]
[null,null,null,null,null,null,null,null,null,null,null,null,0,-1000,0]
[null,null,null,null,null,null,null,null,null,null,null,null,0,-1000,0]
[null,null,null,null,null,null,null,null,null,null,null,null,0,-1000,0]
[null,null,null,null,null,null,null,null,null,null,null,null,0,-1000,0]
[null,null,null,null,null,null,null,null,null,null,null,null,0,-1000,0]
[null,null,null,null,null,null,null,null,null,null,null,null,0,-1000,0]
[null,null,null,null,null,null,null,null,null,null,null,null,{"$f":"(G105*$G$4+H105*$H$4+I105*$I$4+J105*$J$4+K105*$K$4+L105*$L$4)","v":0},{"$f":"IF(M105>0,M105*-1,-1000)","v":-1000},{"$f":"IF(M105>0,RANK(N105,N:N),0)","v":0}]
[null,null,null,null,null,null,null,null,null,null,null,null,0,-1000,0]
[null,null,null,null,null,null,null,null,null,null,null,null,0,-1000,0]
[null,null,null,null,null,null,null,null,null,null,null,null,0,-1000,0]
[null,null,null,null,null,null,null,null,null,null,null,null,0,-1000,0]
[null,null,null,null,null,null,null,null,null,null,null,null,0,-1000,0]
[null,null,null,null,null,null,null,null,null,null,null,null,0,-1000,0]
[null,null,null,null,null,null,null,null,null,null,null,null,0,-1000,0]
[null,null,null,null,null,null,null,null,null,null,null,null,0,-1000,0]
[null,null,null,null,null,null,null,null,null,null,null,null,0,-1000,0]
[null,null,null,null,null,null,null,null,null,null,null,null,0,-1000,0]
[null,null,null,null,null,null,null,null,null,null,null,null,0,-1000,0]
[null,null,null,null,null,null,null,null,null,null,null,null,0,-1000,0]
[null,null,null,null,null,null,null,null,null,null,null,null,0,-1000,0]
[null,null,null,null,null,null,null,null,null,null,null,null,0,-1000,0]
[null,null,null,null,null,null,null,null,null,null,null,null,0,-1000,0]
[null,null,null,null,null,null,null,null,null,null,null,null,0,-1000,0]
[null,null,null,null,null,null,null,null,null,null,null,null,0,-1000,0]
[null,null,null,null,null,null,null,null,null,null,null,null,0,-1000,0]
[null,null,null,null,null,null,null,null,null,null,null,null,0,-1000,0]
[null,null,null,null,null,null,null,null,null,null,null,null,0,-1000,0]
[null,null,null,null,null,null,null,null,null,null,null,null,0,-1000,0]
[null,null,null,null,null,null,null,null,null,null,null,null,0,-1000,0]
[null,null,null,null,null,null,null,null,null,null,null,null,0,-1000,0]
[null,null,null,null,null,null,null,null,null,null,null,null,0,-1000,0]
[null,null,null,null,null,null,null,null,null,null,null,null,0,-1000,0]
[null,null,null,null,null,null,null,null,null,null,null,null,0,-1000,0]
[null,null,null,null,null,null,null,null,null,null,null,null,0,-1000,0]
[null,null,null,null,null,null,null,null,null,null,null,null,0,-1000,0]
[null,null,null,null,null,null,null,null,null,null,null,null,0,-1000,0]
[null,null,null,null,null,null,null,null,null,null,null,null,0,-1000,0]
[null,null,null,null,null,null,null,null,null,null,null,null,0,-1000,0]
[null,null,null,null,null,null,null,null,null,null,null,null,{"$f":"(G137*$G$4+H137*$H$4+I137*$I$4+J137*$J$4+K137*$K$4+L137*$L$4)","v":0},{"$f":"IF(M137>0,M137*-1,-1000)","v":-1000},{"$f":"IF(M137>0,RANK(N137,N:N),0)","v":0}]
[null,null,null,null,null,null,null,null,null,null,null,null,0,-1000,0]
[null,null,null,null,null,null,null,null,null,null,null,null,0,-1000,0]
[null,null,null,null,null,null,null,null,null,null,null,null,0,-1000,0]
[null,null,null,null,null,null,null,null,null,null,null,null,0,-1000,0]
[null,null,null,null,null,null,null,null,null,null,null,null,0,-1000,0]
[null,null,null,null,null,null,null,null,null,null,null,null,0,-1000,0]
[null,null,null,null,null,null,null,null,null,null,null,null,0,-1000,0]
[null,null,null,null,null,null,null,null,null,null,null,null,0,-1000,0]
[null,null,null,null,null,null,null,null,null,null,null,null,0,-1000,0]
[null,null,null,null,null,null,null,null,null,null,null,null,0,-1000,0]
[null,null,null,null,null,null,null,null,null,null,null,null,0,-1000,0]
[null,null,null,null,null,null,null,null,null,null,null,null,0,-1000,0]
[null,null,null,null,null,null,null,null,null,null,null,null,0,-1000,0]
[null,null,null,null,null,null,null,null,null,null,null,null,0,-1000,0]
[null,null,null,null,null,null,null,null,null,null,null,null,0,-1000,0]
[null,null,null,null,null,null,null,null,null,null,null,null,0,-1000,0]
[null,null,null,null,null,null,null,null,null,null,null,null,0,-1000,0]
[null,null,null,null,null,null,null,null,null,null,null,null,0,-1000,0]
[null,null,null,null,null,null,null,null,null,null,null,null,0,-1000,0]
[null,null,null,null,null,null,null,null,null,null,null,null,0,-1000,0]
[null,null,null,null,null,null,null,null,null,null,null,null,0,-1000,0]
[null,null,null,null,null,null,null,null,null,null,null,null,0,-1000,0]
[null,null,null,null,null,null,null,null,null,null,null,null,0,-1000,0]
[null,null,null,null,null,null,null,null,null,null,null,null,0,-1000,0]
[null,null,null,null,null,null,null,null,null,null,null,null,0,-1000,0]
[null,null,null,null,null,null,null,null,null,null,null,null,0,-1000,0]
[null,null,null,null,null,null,null,null,null,null,null,null,0,-1000,0]
[null,null,null,null,null,null,null,null,null,null,null,null,0,-1000,0]
[null,null,null,null,null,null,null,null,null,null,null,null,0,-1000,0]
[null,null,null,null,null,null,null,null,null,null,null,null,0,-1000,0]
[null,null,null,null,null,null,null,null,null,null,null,null,0,-1000,0]
[null,null,null,null,null,null,null,null,null,null,null,null,{"$f":"(G169*$G$4+H169*$H$4+I169*$I$4+J169*$J$4+K169*$K$4+L169*$L$4)","v":0},{"$f":"IF(M169>0,M169*-1,-1000)","v":-1000},{"$f":"IF(M169>0,RANK(N169,N:N),0)","v":0}]
[null,null,null,null,null,null,null,null,null,null,null,null,0,-1000,0]
[null,null,null,null,null,null,null,null,null,null,null,null,0,-1000,0]
[null,null,null,null,null,null,null,null,null,null,null,null,0,-1000,0]
[null,null,null,null,null,null,null,null,null,null,null,null,0,-1000,0]
[null,null,null,null,null,null,null,null,null,null,null,null,0,-1000,0]
[null,null,null,null,null,null,null,null,null,null,null,null,0,-1000,0]
[null,null,null,null,null,null,null,null,null,null,null,null,0,-1000,0]
[null,null,null,null,null,null,null,null,null,null,null,null,0,-1000,0]
[null,null,null,null,null,null,null,null,null,null,null,null,0,-1000,0]
[null,null,null,null,null,null,null,null,null,null,null,null,0,-1000,0]
[null,null,null,null,null,null,null,null,null,null,null,null,0,-1000,0]
[null,null,null,null,null,null,null,null,null,null,null,null,0,-1000,0]
[null,null,null,null,null,null,null,null,null,null,null,null,0,-1000,0]
[null,null,null,null,null,null,null,null,null,null,null,null,0,-1000,0]
[null,null,null,null,null,null,null,null,null,null,null,null,0,-1000,0]
[null,null,null,null,null,null,null,null,null,null,null,null,0,-1000,0]
[null,null,null,null,null,null,null,null,null,null,null,null,0,-1000,0]
[null,null,null,null,null,null,null,null,null,null,null,null,0,-1000,0]
[null,null,null,null,null,null,null,null,null,null,null,null,0,-1000,0]
[null,null,null,null,null,null,null,null,null,null,null,null,0,-1000,0]
[null,null,null,null,null,null,null,null,null,null,null,null,0,-1000,0]
[null,null,null,null,null,null,null,null,null,null,null,null,0,-1000,0]
[null,null,null,null,null,null,null,null,null,null,null,null,0,-1000,0]
[null,null,null,null,null,null,null,null,null,null,null,null,0,-1000,0]
[null,null,null,null,null,null,null,null,null,null,null,null,0,-1000,0]
[null,null,null,null,null,null,null,null,null,null,null,null,0,-1000,0]
[null,null,null,null,null,null,null,null,null,null,null,null,0,-1000,0]
[null,null,null,null,null,null,null,null,null,null,null,null,0,-1000,0]
[null,null,null,null,null,null,null,null,null,null,null,null,0,-1000,0]
[null,null,null,null,null,null,null,null,null,null,null,null,0,-1000,0]
[null,null,null,null,null,null,null,null,null,null,null,null,0,-1000,0]
[null,null,null,null,null,null,null,null,null,null,null,null,{"$f":"(G201*$G$4+H201*$H$4+I201*$I$4+J201*$J$4+K201*$K$4+L201*$L$4)","v":0},{"$f":"IF(M201>0,M201*-1,-1000)","v":-1000},{"$f":"IF(M201>0,RANK(N201,N:N),0)","v":0}]
[null,null,null,null,null,null,null,null,null,null,null,null,{"$f":"(G202*$G$4+H202*$H$4+I202*$I$4+J202*$J$4+K202*$K$4+L202*$L$4)","v":0},{"$f":"IF(M202>0,M202*-1,-1000)","v":-1000},{"$f":"IF(M202>0,RANK(N202,N:N),0)","v":0}]
[null,null,null,null,null,null,null,null,null,null,null,null,{"$f":"(G203*$G$4+H203*$H$4+I203*$I$4+J203*$J$4+K203*$K$4+L203*$L$4)","v":0},{"$f":"IF(M203>0,M203*-1,-1000)","v":-1000},{"$f":"IF(M203>0,RANK(N203,N:N),0)","v":0}]

{"sheet":"Gast-Elite-XL","index":15,"n_rows":221,"n_cols":16,"rows_kept":221,"cut":false,"hidden":true,"merged":[]}
["DSKD  Derby 25.06.2017 Mettingen/Osnabrück"]
["Gäste Elite XL - Klasse  "]
[]
["Wird der Lauf gewertet?   dann 0 oder 1 eintragen",null,null,null,null,null,1,1,1,1,0,0]
["Bestzeit je Lauf",null,null,null,null,null,{"$f":"MIN(G9:G221)","v":0},0,0,0,0,0]
[]
["Start\nNummer","Gruppe","startet","Name","Vorname","Verein","Lauf 1","Lauf 2","Lauf 3","Lauf 4","Lauf 5","Lauf 6","Summe der gewerteten Läufe",null,"Platz","Urkunde"]
[]
[null,null,null,null,null,null,null,null,null,null,null,null,{"$f":"(G9*$G$4+H9*$H$4+I9*$I$4+J9*$J$4+K9*$K$4+L9*$L$4)","v":0},{"$f":"IF(M9>0,M9*-1,-1000)","v":-1000},{"$f":"IF(M9>0,RANK(N9,N:N),0)","v":0}]
[null,null,null,null,null,null,null,null,null,null,null,null,0,-1000,0]
[null,null,null,null,null,null,null,null,null,null,null,null,0,-1000,0]
[null,null,null,null,null,null,null,null,null,null,null,null,0,-1000,0]
[null,null,null,null,null,null,null,null,null,null,null,null,0,-1000,0]
[null,null,null,null,null,null,null,null,null,null,null,null,0,-1000,0]
[null,null,null,null,null,null,null,null,null,null,null,null,0,-1000,0]
[null,null,null,null,null,null,null,null,null,null,null,null,0,-1000,0]
[null,null,null,null,null,null,null,null,null,null,null,null,0,-1000,0]
[null,null,null,null,null,null,null,null,null,null,null,null,0,-1000,0]
[null,null,null,null,null,null,null,null,null,null,null,null,0,-1000,0]
[null,null,null,null,null,null,null,null,null,null,null,null,0,-1000,0]
[null,null,null,null,null,null,null,null,null,null,null,null,0,-1000,0]
[null,null,null,null,null,null,null,null,null,null,null,null,0,-1000,0]
[null,null,null,null,null,null,null,null,null,null,null,null,0,-1000,0]
[null,null,null,null,null,null,null,null,null,null,null,null,0,-1000,0]
[null,null,null,null,null,null,null,null,null,null,null,null,0,-1000,0]
[null,null,null,null,null,null,null,null,null,null,null,null,0,-1000,0]
[null,null,null,null,null,null,null,null,null,null,null,null,0,-1000,0]
[null,null,null,null,null,null,null,null,null,null,null,null,0,-1000,0]
[null,null,null,null,null,null,null,null,null,null,null,null,0,-1000,0]
[null,null,null,null,null,null,null,null,null,null,null,null,0,-1000,0]
[null,null,null,null,null,null,null,null,null,null,null,null,0,-1000,0]
[null,null,null,null,null,null,null,null,null,null,null,null,0,-1000,0]
[null,null,null,null,null,null,null,null,null,null,null,null,0,-1000,0]
[null,null,null,null,null,null,null,null,null,null,null,null,0,-1000,0]
[null,null,null,null,null,null,null,null,null,null,null,null,0,-1000,0]
[null,null,null,null,null,null,null,null,null,null,null,null,0,-1000,0]
[null,null,null,null,null,null,null,null,null,null,null,null,0,-1000,0]
[null,null,null,null,null,null,null,null,null,null,null,null,0,-1000,0]
[null,null,null,null,null,null,null,null,null,null,null,null,0,-1000,0]
[null,null,null,null,null,null,null,null,null,null,null,null,0,-1000,0]
[null,null,null,null,null,null,null,null,null,null,null,null,{"$f":"(G41*$G$4+H41*$H$4+I41*$I$4+J41*$J$4+K41*$K$4+L41*$L$4)","v":0},{"$f":"IF(M41>0,M41*-1,-1000)","v":-1000},{"$f":"IF(M41>0,RANK(N41,N:N),0)","v":0}]
[null,null,null,null,null,null,null,null,null,null,null,null,0,-1000,0]
[null,null,null,null,null,null,null,null,null,null,null,null,0,-1000,0]
[null,null,null,null,null,null,null,null,null,null,null,null,0,-1000,0]
[null,null,null,null,null,null,null,null,null,null,null,null,0,-1000,0]
[null,null,null,null,null,null,null,null,null,null,null,null,0,-1000,0]
[null,null,null,null,null,null,null,null,null,null,null,null,0,-1000,0]
[null,null,null,null,null,null,null,null,null,null,null,null,0,-1000,0]
[null,null,null,null,null,null,null,null,null,null,null,null,0,-1000,0]
[null,null,null,null,null,null,null,null,null,null,null,null,0,-1000,0]
[null,null,null,null,null,null,null,null,null,null,null,null,0,-1000,0]
[null,null,null,null,null,null,null,null,null,null,null,null,0,-1000,0]
[null,null,null,null,null,null,null,null,null,null,null,null,0,-1000,0]
[null,null,null,null,null,null,null,null,null,null,null,null,0,-1000,0]
[null,null,null,null,null,null,null,null,null,null,null,null,0,-1000,0]
[null,null,null,null,null,null,null,null,null,null,null,null,0,-1000,0]
[null,null,null,null,null,null,null,null,null,null,null,null,0,-1000,0]
[null,null,null,null,null,null,null,null,null,null,null,null,0,-1000,0]
[null,null,null,null,null,null,null,null,null,null,null,null,0,-1000,0]
[null,null,null,null,null,null,null,null,null,null,null,null,0,-1000,0]
[null,null,null,null,null,null,null,null,null,null,null,null,0,-1000,0]
[null,null,null,null,null,null,null,null,null,null,null,null,0,-1000,0]
[null,null,null,null,null,null,null,null,null,null,null,null,0,-1000,0]
[null,null,null,null,null,null,null,null,null,null,null,null,0,-1000,0]
[null,null,null,null,null,null,null,null,null,null,null,null,0,-1000,0]
[null,null,null,null,null,null,null,null,null,null,null,null,0,-1000,0]
[null,null,null,null,null,null,null,null,null,null,null,null,0,-1000,0]
[null,null,null,null,null,null,null,null,null,null,null,null,0,-1000,0]
[null,null,null,null,null,null,null,null,null,null,null,null,0,-1000,0]
[null,null,null,null,null,null,null,null,null,null,null,null,0,-1000,0]
[null,null,null,null,null,null,null,null,null,null,null,null,0,-1000,0]
[null,null,null,null,null,null,null,null,null,null,null,null,0,-1000,0]
[null,null,null,null,null,null,null,null,null,null,null,null,{"$f":"(G73*$G$4+H73*$H$4+I73*$I$4+J73*$J$4+K73*$K$4+L73*$L$4)","v":0},{"$f":"IF(M73>0,M73*-1,-1000)","v":-1000},{"$f":"IF(M73>0,RANK(N73,N:N),0)","v":0}]
[null,null,null,null,null,null,null,null,null,null,null,null,0,-1000,0]
[null,null,null,null,null,null,null,null,null,null,null,null,0,-1000,0]
[null,null,null,null,null,null,null,null,null,null,null,null,0,-1000,0]
[null,null,null,null,null,null,null,null,null,null,null,null,0,-1000,0]
[null,null,null,null,null,null,null,null,null,null,null,null,0,-1000,0]
[null,null,null,null,null,null,null,null,null,null,null,null,0,-1000,0]
[null,null,null,null,null,null,null,null,null,null,null,null,0,-1000,0]
[null,null,null,null,null,null,null,null,null,null,null,null,0,-1000,0]
[null,null,null,null,null,null,null,null,null,null,null,null,0,-1000,0]
[null,null,null,null,null,null,null,null,null,null,null,null,0,-1000,0]
[null,null,null,null,null,null,null,null,null,null,null,null,0,-1000,0]
[null,null,null,null,null,null,null,null,null,null,null,null,0,-1000,0]
[null,null,null,null,null,null,null,null,null,null,null,null,0,-1000,0]
[null,null,null,null,null,null,null,null,null,null,null,null,0,-1000,0]
[null,null,null,null,null,null,null,null,null,null,null,null,0,-1000,0]
[null,null,null,null,null,null,null,null,null,null,null,null,0,-1000,0]
[null,null,null,null,null,null,null,null,null,null,null,null,0,-1000,0]
[null,null,null,null,null,null,null,null,null,null,null,null,0,-1000,0]
[null,null,null,null,null,null,null,null,null,null,null,null,0,-1000,0]
[null,null,null,null,null,null,null,null,null,null,null,null,0,-1000,0]
[null,null,null,null,null,null,null,null,null,null,null,null,0,-1000,0]
[null,null,null,null,null,null,null,null,null,null,null,null,0,-1000,0]
[null,null,null,null,null,null,null,null,null,null,null,null,0,-1000,0]
[null,null,null,null,null,null,null,null,null,null,null,null,0,-1000,0]
[null,null,null,null,null,null,null,null,null,null,null,null,0,-1000,0]
[null,null,null,null,null,null,null,null,null,null,null,null,0,-1000,0]
[null,null,null,null,null,null,null,null,null,null,null,null,0,-1000,0]
[null,null,null,null,null,null,null,null,null,null,null,null,0,-1000,0]
[null,null,null,null,null,null,null,null,null,null,null,null,0,-1000,0]
[null,null,null,null,null,null,null,null,null,null,null,null,0,-1000,0]
[null,null,null,null,null,null,null,null,null,null,null,null,0,-1000,0]
[null,null,null,null,null,null,null,null,null,null,null,null,{"$f":"(G105*$G$4+H105*$H$4+I105*$I$4+J105*$J$4+K105*$K$4+L105*$L$4)","v":0},{"$f":"IF(M105>0,M105*-1,-1000)","v":-1000},{"$f":"IF(M105>0,RANK(N105,N:N),0)","v":0}]
[null,null,null,null,null,null,null,null,null,null,null,null,0,-1000,0]
[null,null,null,null,null,null,null,null,null,null,null,null,0,-1000,0]
[null,null,null,null,null,null,null,null,null,null,null,null,0,-1000,0]
[null,null,null,null,null,null,null,null,null,null,null,null,0,-1000,0]
[null,null,null,null,null,null,null,null,null,null,null,null,0,-1000,0]
[null,null,null,null,null,null,null,null,null,null,null,null,0,-1000,0]
[null,null,null,null,null,null,null,null,null,null,null,null,0,-1000,0]
[null,null,null,null,null,null,null,null,null,null,null,null,0,-1000,0]
[null,null,null,null,null,null,null,null,null,null,null,null,0,-1000,0]
[null,null,null,null,null,null,null,null,null,null,null,null,0,-1000,0]
[null,null,null,null,null,null,null,null,null,null,null,null,0,-1000,0]
[null,null,null,null,null,null,null,null,null,null,null,null,0,-1000,0]
[null,null,null,null,null,null,null,null,null,null,null,null,0,-1000,0]
[null,null,null,null,null,null,null,null,null,null,null,null,0,-1000,0]
[null,null,null,null,null,null,null,null,null,null,null,null,0,-1000,0]
[null,null,null,null,null,null,null,null,null,null,null,null,0,-1000,0]
[null,null,null,null,null,null,null,null,null,null,null,null,0,-1000,0]
[null,null,null,null,null,null,null,null,null,null,null,null,0,-1000,0]
[null,null,null,null,null,null,null,null,null,null,null,null,0,-1000,0]
[null,null,null,null,null,null,null,null,null,null,null,null,0,-1000,0]
[null,null,null,null,null,null,null,null,null,null,null,null,0,-1000,0]
[null,null,null,null,null,null,null,null,null,null,null,null,0,-1000,0]
[null,null,null,null,null,null,null,null,null,null,null,null,0,-1000,0]
[null,null,null,null,null,null,null,null,null,null,null,null,0,-1000,0]
[null,null,null,null,null,null,null,null,null,null,null,null,0,-1000,0]
[null,null,null,null,null,null,null,null,null,null,null,null,0,-1000,0]
[null,null,null,null,null,null,null,null,null,null,null,null,0,-1000,0]
[null,null,null,null,null,null,null,null,null,null,null,null,0,-1000,0]
[null,null,null,null,null,null,null,null,null,null,null,null,0,-1000,0]
[null,null,null,null,null,null,null,null,null,null,null,null,0,-1000,0]
[null,null,null,null,null,null,null,null,null,null,null,null,0,-1000,0]
[null,null,null,null,null,null,null,null,null,null,null,null,{"$f":"(G137*$G$4+H137*$H$4+I137*$I$4+J137*$J$4+K137*$K$4+L137*$L$4)","v":0},{"$f":"IF(M137>0,M137*-1,-1000)","v":-1000},{"$f":"IF(M137>0,RANK(N137,N:N),0)","v":0}]
[null,null,null,null,null,null,null,null,null,null,null,null,0,-1000,0]
[null,null,null,null,null,null,null,null,null,null,null,null,0,-1000,0]
[null,null,null,null,null,null,null,null,null,null,null,null,0,-1000,0]
[null,null,null,null,null,null,null,null,null,null,null,null,0,-1000,0]
[null,null,null,null,null,null,null,null,null,null,null,null,0,-1000,0]
[null,null,null,null,null,null,null,null,null,null,null,null,0,-1000,0]
[null,null,null,null,null,null,null,null,null,null,null,null,0,-1000,0]
[null,null,null,null,null,null,null,null,null,null,null,null,0,-1000,0]
[null,null,null,null,null,null,null,null,null,null,null,null,0,-1000,0]
[null,null,null,null,null,null,null,null,null,null,null,null,0,-1000,0]
[null,null,null,null,null,null,null,null,null,null,null,null,0,-1000,0]
[null,null,null,null,null,null,null,null,null,null,null,null,0,-1000,0]
[null,null,null,null,null,null,null,null,null,null,null,null,0,-1000,0]
[null,null,null,null,null,null,null,null,null,null,null,null,0,-1000,0]
[null,null,null,null,null,null,null,null,null,null,null,null,0,-1000,0]
[null,null,null,null,null,null,null,null,null,null,null,null,0,-1000,0]
[null,null,null,null,null,null,null,null,null,null,null,null,0,-1000,0]
[null,null,null,null,null,null,null,null,null,null,null,null,0,-1000,0]
[null,null,null,null,null,null,null,null,null,null,null,null,0,-1000,0]
[null,null,null,null,null,null,null,null,null,null,null,null,0,-1000,0]
[null,null,null,null,null,null,null,null,null,null,null,null,0,-1000,0]
[null,null,null,null,null,null,null,null,null,null,null,null,0,-1000,0]
[null,null,null,null,null,null,null,null,null,null,null,null,0,-1000,0]
[null,null,null,null,null,null,null,null,null,null,null,null,0,-1000,0]
[null,null,null,null,null,null,null,null,null,null,null,null,0,-1000,0]
[null,null,null,null,null,null,null,null,null,null,null,null,0,-1000,0]
[null,null,null,null,null,null,null,null,null,null,null,null,0,-1000,0]
[null,null,null,null,null,null,null,null,null,null,null,null,0,-1000,0]
[null,null,null,null,null,null,null,null,null,null,null,null,0,-1000,0]
[null,null,null,null,null,null,null,null,null,null,null,null,0,-1000,0]
[null,null,null,null,null,null,null,null,null,null,null,null,0,-1000,0]
[null,null,null,null,null,null,null,null,null,null,null,null,{"$f":"(G169*$G$4+H169*$H$4+I169*$I$4+J169*$J$4+K169*$K$4+L169*$L$4)","v":0},{"$f":"IF(M169>0,M169*-1,-1000)","v":-1000},{"$f":"IF(M169>0,RANK(N169,N:N),0)","v":0}]
[null,null,null,null,null,null,null,null,null,null,null,null,0,-1000,0]
[null,null,null,null,null,null,null,null,null,null,null,null,0,-1000,0]
[null,null,null,null,null,null,null,null,null,null,null,null,0,-1000,0]
[null,null,null,null,null,null,null,null,null,null,null,null,0,-1000,0]
[null,null,null,null,null,null,null,null,null,null,null,null,0,-1000,0]
[null,null,null,null,null,null,null,null,null,null,null,null,0,-1000,0]
[null,null,null,null,null,null,null,null,null,null,null,null,0,-1000,0]
[null,null,null,null,null,null,null,null,null,null,null,null,0,-1000,0]
[null,null,null,null,null,null,null,null,null,null,null,null,0,-1000,0]
[null,null,null,null,null,null,null,null,null,null,null,null,0,-1000,0]
[null,null,null,null,null,null,null,null,null,null,null,null,0,-1000,0]
[null,null,null,null,null,null,null,null,null,null,null,null,0,-1000,0]
[null,null,null,null,null,null,null,null,null,null,null,null,0,-1000,0]
[null,null,null,null,null,null,null,null,null,null,null,null,0,-1000,0]
[null,null,null,null,null,null,null,null,null,null,null,null,0,-1000,0]
[null,null,null,null,null,null,null,null,null,null,null,null,0,-1000,0]
[null,null,null,null,null,null,null,null,null,null,null,null,0,-1000,0]
[null,null,null,null,null,null,null,null,null,null,null,null,0,-1000,0]
[null,null,null,null,null,null,null,null,null,null,null,null,0,-1000,0]
[null,null,null,null,null,null,null,null,null,null,null,null,0,-1000,0]
[null,null,null,null,null,null,null,null,null,null,null,null,0,-1000,0]
[null,null,null,null,null,null,null,null,null,null,null,null,0,-1000,0]
[null,null,null,null,null,null,null,null,null,null,null,null,0,-1000,0]
[null,null,null,null,null,null,null,null,null,null,null,null,0,-1000,0]
[null,null,null,null,null,null,null,null,null,null,null,null,0,-1000,0]
[null,null,null,null,null,null,null,null,null,null,null,null,0,-1000,0]
[null,null,null,null,null,null,null,null,null,null,null,null,0,-1000,0]
[null,null,null,null,null,null,null,null,null,null,null,null,0,-1000,0]
[null,null,null,null,null,null,null,null,null,null,null,null,0,-1000,0]
[null,null,null,null,null,null,null,null,null,null,null,null,0,-1000,0]
[null,null,null,null,null,null,null,null,null,null,null,null,0,-1000,0]
[null,null,null,null,null,null,null,null,null,null,null,null,{"$f":"(G201*$G$4+H201*$H$4+I201*$I$4+J201*$J$4+K201*$K$4+L201*$L$4)","v":0},{"$f":"IF(M201>0,M201*-1,-1000)","v":-1000},{"$f":"IF(M201>0,RANK(N201,N:N),0)","v":0}]
[null,null,null,null,null,null,null,null,null,null,null,null,{"$f":"(G202*$G$4+H202*$H$4+I202*$I$4+J202*$J$4+K202*$K$4+L202*$L$4)","v":0},{"$f":"IF(M202>0,M202*-1,-1000)","v":-1000},{"$f":"IF(M202>0,RANK(N202,N:N),0)","v":0}]
[null,null,null,null,null,null,null,null,null,null,null,null,{"$f":"(G203*$G$4+H203*$H$4+I203*$I$4+J203*$J$4+K203*$K$4+L203*$L$4)","v":0},{"$f":"IF(M203>0,M203*-1,-1000)","v":-1000},{"$f":"IF(M203>0,RANK(N203,N:N),0)","v":0}]
[null,null,null,null,null,null,null,null,null,null,null,null,{"$f":"(G204*$G$4+H204*$H$4+I204*$I$4+J204*$J$4+K204*$K$4+L204*$L$4)","v":0},{"$f":"IF(M204>0,M204*-1,-1000)","v":-1000},{"$f":"IF(M204>0,RANK(N204,N:N),0)","v":0}]
[null,null,null,null,null,null,null,null,null,null,null,null,0,-1000,0]
[null,null,null,null,null,null,null,null,null,null,null,null,0,-1000,0]
[null,null,null,null,null,null,null,null,null,null,null,null,0,-1000,0]
[null,null,null,null,null,null,null,null,null,null,null,null,0,-1000,0]
[null,null,null,null,null,null,null,null,null,null,null,null,0,-1000,0]
[null,null,null,null,null,null,null,null,null,null,null,null,0,-1000,0]
[null,null,null,null,null,null,null,null,null,null,null,null,0,-1000,0]
[null,null,null,null,null,null,null,null,null,null,null,null,0,-1000,0]
[null,null,null,null,null,null,null,null,null,null,null,null,0,-1000,0]
[null,null,null,null,null,null,null,null,null,null,null,null,0,-1000,0]
[null,null,null,null,null,null,null,null,null,null,null,null,0,-1000,0]
[null,null,null,null,null,null,null,null,null,null,null,null,0,-1000,0]
[null,null,null,null,null,null,null,null,null,null,null,null,0,-1000,0]
[null,null,null,null,null,null,null,null,null,null,null,null,0,-1000,0]
[null,null,null,null,null,null,null,null,null,null,null,null,{"$f":"(G219*$G$4+H219*$H$4+I219*$I$4+J219*$J$4+K219*$K$4+L219*$L$4)","v":0},{"$f":"IF(M219>0,M219*-1,-1000)","v":-1000},0]
[null,null,null,null,null,null,null,null,null,null,null,null,{"$f":"(G220*$G$4+H220*$H$4+I220*$I$4+J220*$J$4+K220*$K$4+L220*$L$4)","v":0},{"$f":"IF(M220>0,M220*-1,-1000)","v":-1000},0]
[null,null,null,null,null,null,null,null,null,null,null,null,{"$f":"(G221*$G$4+H221*$H$4+I221*$I$4+J221*$J$4+K221*$K$4+L221*$L$4)","v":0},{"$f":"IF(M221>0,M221*-1,-1000)","v":-1000},0]

{"sheet":"Gast-Elite-XL-18","index":16,"n_rows":221,"n_cols":16,"rows_kept":221,"cut":false,"hidden":true,"merged":[]}
["DSKD  Derby 25.06.2017 Mettingen/Osnabrück"]
["Gäste Elite XL ü18 - Klasse  "]
[]
["Wird der Lauf gewertet?   dann 0 oder 1 eintragen",null,null,null,null,null,1,1,1,1,0,0]
["Bestzeit je Lauf",null,null,null,null,null,{"$f":"MIN(G9:G221)","v":0},0,0,0,0,0]
[]
["Start\nNummer","Gruppe","startet","Name","Vorname","Verein","Lauf 1","Lauf 2","Lauf 3","Lauf 4","Lauf 5","Lauf 6","Summe der gewerteten Läufe",null,"Platz","Urkunde"]
[]
[null,null,null,null,null,null,null,null,null,null,null,null,{"$f":"(G9*$G$4+H9*$H$4+I9*$I$4+J9*$J$4+K9*$K$4+L9*$L$4)","v":0},{"$f":"IF(M9>0,M9*-1,-1000)","v":-1000},{"$f":"IF(M9>0,RANK(N9,N:N),0)","v":0}]
[null,null,null,null,null,null,null,null,null,null,null,null,0,-1000,0]
[null,null,null,null,null,null,null,null,null,null,null,null,0,-1000,0]
[null,null,null,null,null,null,null,null,null,null,null,null,0,-1000,0]
[null,null,null,null,null,null,null,null,null,null,null,null,0,-1000,0]
[null,null,null,null,null,null,null,null,null,null,null,null,0,-1000,0]
[null,null,null,null,null,null,null,null,null,null,null,null,0,-1000,0]
[null,null,null,null,null,null,null,null,null,null,null,null,0,-1000,0]
[null,null,null,null,null,null,null,null,null,null,null,null,0,-1000,0]
[null,null,null,null,null,null,null,null,null,null,null,null,0,-1000,0]
[null,null,null,null,null,null,null,null,null,null,null,null,0,-1000,0]
[null,null,null,null,null,null,null,null,null,null,null,null,0,-1000,0]
[null,null,null,null,null,null,null,null,null,null,null,null,0,-1000,0]
[null,null,null,null,null,null,null,null,null,null,null,null,0,-1000,0]
[null,null,null,null,null,null,null,null,null,null,null,null,0,-1000,0]
[null,null,null,null,null,null,null,null,null,null,null,null,0,-1000,0]
[null,null,null,null,null,null,null,null,null,null,null,null,0,-1000,0]
[null,null,null,null,null,null,null,null,null,null,null,null,0,-1000,0]
[null,null,null,null,null,null,null,null,null,null,null,null,0,-1000,0]
[null,null,null,null,null,null,null,null,null,null,null,null,0,-1000,0]
[null,null,null,null,null,null,null,null,null,null,null,null,0,-1000,0]
[null,null,null,null,null,null,null,null,null,null,null,null,0,-1000,0]
[null,null,null,null,null,null,null,null,null,null,null,null,0,-1000,0]
[null,null,null,null,null,null,null,null,null,null,null,null,0,-1000,0]
[null,null,null,null,null,null,null,null,null,null,null,null,0,-1000,0]
[null,null,null,null,null,null,null,null,null,null,null,null,0,-1000,0]
[null,null,null,null,null,null,null,null,null,null,null,null,0,-1000,0]
[null,null,null,null,null,null,null,null,null,null,null,null,0,-1000,0]
[null,null,null,null,null,null,null,null,null,null,null,null,0,-1000,0]
[null,null,null,null,null,null,null,null,null,null,null,null,0,-1000,0]
[null,null,null,null,null,null,null,null,null,null,null,null,0,-1000,0]
[null,null,null,null,null,null,null,null,null,null,null,null,0,-1000,0]
[null,null,null,null,null,null,null,null,null,null,null,null,{"$f":"(G41*$G$4+H41*$H$4+I41*$I$4+J41*$J$4+K41*$K$4+L41*$L$4)","v":0},{"$f":"IF(M41>0,M41*-1,-1000)","v":-1000},{"$f":"IF(M41>0,RANK(N41,N:N),0)","v":0}]
[null,null,null,null,null,null,null,null,null,null,null,null,0,-1000,0]
[null,null,null,null,null,null,null,null,null,null,null,null,0,-1000,0]
[null,null,null,null,null,null,null,null,null,null,null,null,0,-1000,0]
[null,null,null,null,null,null,null,null,null,null,null,null,0,-1000,0]
[null,null,null,null,null,null,null,null,null,null,null,null,0,-1000,0]
[null,null,null,null,null,null,null,null,null,null,null,null,0,-1000,0]
[null,null,null,null,null,null,null,null,null,null,null,null,0,-1000,0]
[null,null,null,null,null,null,null,null,null,null,null,null,0,-1000,0]
[null,null,null,null,null,null,null,null,null,null,null,null,0,-1000,0]
[null,null,null,null,null,null,null,null,null,null,null,null,0,-1000,0]
[null,null,null,null,null,null,null,null,null,null,null,null,0,-1000,0]
[null,null,null,null,null,null,null,null,null,null,null,null,0,-1000,0]
[null,null,null,null,null,null,null,null,null,null,null,null,0,-1000,0]
[null,null,null,null,null,null,null,null,null,null,null,null,0,-1000,0]
[null,null,null,null,null,null,null,null,null,null,null,null,0,-1000,0]
[null,null,null,null,null,null,null,null,null,null,null,null,0,-1000,0]
[null,null,null,null,null,null,null,null,null,null,null,null,0,-1000,0]
[null,null,null,null,null,null,null,null,null,null,null,null,0,-1000,0]
[null,null,null,null,null,null,null,null,null,null,null,null,0,-1000,0]
[null,null,null,null,null,null,null,null,null,null,null,null,0,-1000,0]
[null,null,null,null,null,null,null,null,null,null,null,null,0,-1000,0]
[null,null,null,null,null,null,null,null,null,null,null,null,0,-1000,0]
[null,null,null,null,null,null,null,null,null,null,null,null,0,-1000,0]
[null,null,null,null,null,null,null,null,null,null,null,null,0,-1000,0]
[null,null,null,null,null,null,null,null,null,null,null,null,0,-1000,0]
[null,null,null,null,null,null,null,null,null,null,null,null,0,-1000,0]
[null,null,null,null,null,null,null,null,null,null,null,null,0,-1000,0]
[null,null,null,null,null,null,null,null,null,null,null,null,0,-1000,0]
[null,null,null,null,null,null,null,null,null,null,null,null,0,-1000,0]
[null,null,null,null,null,null,null,null,null,null,null,null,0,-1000,0]
[null,null,null,null,null,null,null,null,null,null,null,null,0,-1000,0]
[null,null,null,null,null,null,null,null,null,null,null,null,{"$f":"(G73*$G$4+H73*$H$4+I73*$I$4+J73*$J$4+K73*$K$4+L73*$L$4)","v":0},{"$f":"IF(M73>0,M73*-1,-1000)","v":-1000},{"$f":"IF(M73>0,RANK(N73,N:N),0)","v":0}]
[null,null,null,null,null,null,null,null,null,null,null,null,0,-1000,0]
[null,null,null,null,null,null,null,null,null,null,null,null,0,-1000,0]
[null,null,null,null,null,null,null,null,null,null,null,null,0,-1000,0]
[null,null,null,null,null,null,null,null,null,null,null,null,0,-1000,0]
[null,null,null,null,null,null,null,null,null,null,null,null,0,-1000,0]
[null,null,null,null,null,null,null,null,null,null,null,null,0,-1000,0]
[null,null,null,null,null,null,null,null,null,null,null,null,0,-1000,0]
[null,null,null,null,null,null,null,null,null,null,null,null,0,-1000,0]
[null,null,null,null,null,null,null,null,null,null,null,null,0,-1000,0]
[null,null,null,null,null,null,null,null,null,null,null,null,0,-1000,0]
[null,null,null,null,null,null,null,null,null,null,null,null,0,-1000,0]
[null,null,null,null,null,null,null,null,null,null,null,null,0,-1000,0]
[null,null,null,null,null,null,null,null,null,null,null,null,0,-1000,0]
[null,null,null,null,null,null,null,null,null,null,null,null,0,-1000,0]
[null,null,null,null,null,null,null,null,null,null,null,null,0,-1000,0]
[null,null,null,null,null,null,null,null,null,null,null,null,0,-1000,0]
[null,null,null,null,null,null,null,null,null,null,null,null,0,-1000,0]
[null,null,null,null,null,null,null,null,null,null,null,null,0,-1000,0]
[null,null,null,null,null,null,null,null,null,null,null,null,0,-1000,0]
[null,null,null,null,null,null,null,null,null,null,null,null,0,-1000,0]
[null,null,null,null,null,null,null,null,null,null,null,null,0,-1000,0]
[null,null,null,null,null,null,null,null,null,null,null,null,0,-1000,0]
[null,null,null,null,null,null,null,null,null,null,null,null,0,-1000,0]
[null,null,null,null,null,null,null,null,null,null,null,null,0,-1000,0]
[null,null,null,null,null,null,null,null,null,null,null,null,0,-1000,0]
[null,null,null,null,null,null,null,null,null,null,null,null,0,-1000,0]
[null,null,null,null,null,null,null,null,null,null,null,null,0,-1000,0]
[null,null,null,null,null,null,null,null,null,null,null,null,0,-1000,0]
[null,null,null,null,null,null,null,null,null,null,null,null,0,-1000,0]
[null,null,null,null,null,null,null,null,null,null,null,null,0,-1000,0]
[null,null,null,null,null,null,null,null,null,null,null,null,0,-1000,0]
[null,null,null,null,null,null,null,null,null,null,null,null,{"$f":"(G105*$G$4+H105*$H$4+I105*$I$4+J105*$J$4+K105*$K$4+L105*$L$4)","v":0},{"$f":"IF(M105>0,M105*-1,-1000)","v":-1000},{"$f":"IF(M105>0,RANK(N105,N:N),0)","v":0}]
[null,null,null,null,null,null,null,null,null,null,null,null,0,-1000,0]
[null,null,null,null,null,null,null,null,null,null,null,null,0,-1000,0]
[null,null,null,null,null,null,null,null,null,null,null,null,0,-1000,0]
[null,null,null,null,null,null,null,null,null,null,null,null,0,-1000,0]
[null,null,null,null,null,null,null,null,null,null,null,null,0,-1000,0]
[null,null,null,null,null,null,null,null,null,null,null,null,0,-1000,0]
[null,null,null,null,null,null,null,null,null,null,null,null,0,-1000,0]
[null,null,null,null,null,null,null,null,null,null,null,null,0,-1000,0]
[null,null,null,null,null,null,null,null,null,null,null,null,0,-1000,0]
[null,null,null,null,null,null,null,null,null,null,null,null,0,-1000,0]
[null,null,null,null,null,null,null,null,null,null,null,null,0,-1000,0]
[null,null,null,null,null,null,null,null,null,null,null,null,0,-1000,0]
[null,null,null,null,null,null,null,null,null,null,null,null,0,-1000,0]
[null,null,null,null,null,null,null,null,null,null,null,null,0,-1000,0]
[null,null,null,null,null,null,null,null,null,null,null,null,0,-1000,0]
[null,null,null,null,null,null,null,null,null,null,null,null,0,-1000,0]
[null,null,null,null,null,null,null,null,null,null,null,null,0,-1000,0]
[null,null,null,null,null,null,null,null,null,null,null,null,0,-1000,0]
[null,null,null,null,null,null,null,null,null,null,null,null,0,-1000,0]
[null,null,null,null,null,null,null,null,null,null,null,null,0,-1000,0]
[null,null,null,null,null,null,null,null,null,null,null,null,0,-1000,0]
[null,null,null,null,null,null,null,null,null,null,null,null,0,-1000,0]
[null,null,null,null,null,null,null,null,null,null,null,null,0,-1000,0]
[null,null,null,null,null,null,null,null,null,null,null,null,0,-1000,0]
[null,null,null,null,null,null,null,null,null,null,null,null,0,-1000,0]
[null,null,null,null,null,null,null,null,null,null,null,null,0,-1000,0]
[null,null,null,null,null,null,null,null,null,null,null,null,0,-1000,0]
[null,null,null,null,null,null,null,null,null,null,null,null,0,-1000,0]
[null,null,null,null,null,null,null,null,null,null,null,null,0,-1000,0]
[null,null,null,null,null,null,null,null,null,null,null,null,0,-1000,0]
[null,null,null,null,null,null,null,null,null,null,null,null,0,-1000,0]
[null,null,null,null,null,null,null,null,null,null,null,null,{"$f":"(G137*$G$4+H137*$H$4+I137*$I$4+J137*$J$4+K137*$K$4+L137*$L$4)","v":0},{"$f":"IF(M137>0,M137*-1,-1000)","v":-1000},{"$f":"IF(M137>0,RANK(N137,N:N),0)","v":0}]
[null,null,null,null,null,null,null,null,null,null,null,null,0,-1000,0]
[null,null,null,null,null,null,null,null,null,null,null,null,0,-1000,0]
[null,null,null,null,null,null,null,null,null,null,null,null,0,-1000,0]
[null,null,null,null,null,null,null,null,null,null,null,null,0,-1000,0]
[null,null,null,null,null,null,null,null,null,null,null,null,0,-1000,0]
[null,null,null,null,null,null,null,null,null,null,null,null,0,-1000,0]
[null,null,null,null,null,null,null,null,null,null,null,null,0,-1000,0]
[null,null,null,null,null,null,null,null,null,null,null,null,0,-1000,0]
[null,null,null,null,null,null,null,null,null,null,null,null,0,-1000,0]
[null,null,null,null,null,null,null,null,null,null,null,null,0,-1000,0]
[null,null,null,null,null,null,null,null,null,null,null,null,0,-1000,0]
[null,null,null,null,null,null,null,null,null,null,null,null,0,-1000,0]
[null,null,null,null,null,null,null,null,null,null,null,null,0,-1000,0]
[null,null,null,null,null,null,null,null,null,null,null,null,0,-1000,0]
[null,null,null,null,null,null,null,null,null,null,null,null,0,-1000,0]
[null,null,null,null,null,null,null,null,null,null,null,null,0,-1000,0]
[null,null,null,null,null,null,null,null,null,null,null,null,0,-1000,0]
[null,null,null,null,null,null,null,null,null,null,null,null,0,-1000,0]
[null,null,null,null,null,null,null,null,null,null,null,null,0,-1000,0]
[null,null,null,null,null,null,null,null,null,null,null,null,0,-1000,0]
[null,null,null,null,null,null,null,null,null,null,null,null,0,-1000,0]
[null,null,null,null,null,null,null,null,null,null,null,null,0,-1000,0]
[null,null,null,null,null,null,null,null,null,null,null,null,0,-1000,0]
[null,null,null,null,null,null,null,null,null,null,null,null,0,-1000,0]
[null,null,null,null,null,null,null,null,null,null,null,null,0,-1000,0]
[null,null,null,null,null,null,null,null,null,null,null,null,0,-1000,0]
[null,null,null,null,null,null,null,null,null,null,null,null,0,-1000,0]
[null,null,null,null,null,null,null,null,null,null,null,null,0,-1000,0]
[null,null,null,null,null,null,null,null,null,null,null,null,0,-1000,0]
[null,null,null,null,null,null,null,null,null,null,null,null,0,-1000,0]
[null,null,null,null,null,null,null,null,null,null,null,null,0,-1000,0]
[null,null,null,null,null,null,null,null,null,null,null,null,{"$f":"(G169*$G$4+H169*$H$4+I169*$I$4+J169*$J$4+K169*$K$4+L169*$L$4)","v":0},{"$f":"IF(M169>0,M169*-1,-1000)","v":-1000},{"$f":"IF(M169>0,RANK(N169,N:N),0)","v":0}]
[null,null,null,null,null,null,null,null,null,null,null,null,0,-1000,0]
[null,null,null,null,null,null,null,null,null,null,null,null,0,-1000,0]
[null,null,null,null,null,null,null,null,null,null,null,null,0,-1000,0]
[null,null,null,null,null,null,null,null,null,null,null,null,0,-1000,0]
[null,null,null,null,null,null,null,null,null,null,null,null,0,-1000,0]
[null,null,null,null,null,null,null,null,null,null,null,null,0,-1000,0]
[null,null,null,null,null,null,null,null,null,null,null,null,0,-1000,0]
[null,null,null,null,null,null,null,null,null,null,null,null,0,-1000,0]
[null,null,null,null,null,null,null,null,null,null,null,null,0,-1000,0]
[null,null,null,null,null,null,null,null,null,null,null,null,0,-1000,0]
[null,null,null,null,null,null,null,null,null,null,null,null,0,-1000,0]
[null,null,null,null,null,null,null,null,null,null,null,null,0,-1000,0]
[null,null,null,null,null,null,null,null,null,null,null,null,0,-1000,0]
[null,null,null,null,null,null,null,null,null,null,null,null,0,-1000,0]
[null,null,null,null,null,null,null,null,null,null,null,null,0,-1000,0]
[null,null,null,null,null,null,null,null,null,null,null,null,0,-1000,0]
[null,null,null,null,null,null,null,null,null,null,null,null,0,-1000,0]
[null,null,null,null,null,null,null,null,null,null,null,null,0,-1000,0]
[null,null,null,null,null,null,null,null,null,null,null,null,0,-1000,0]
[null,null,null,null,null,null,null,null,null,null,null,null,0,-1000,0]
[null,null,null,null,null,null,null,null,null,null,null,null,0,-1000,0]
[null,null,null,null,null,null,null,null,null,null,null,null,0,-1000,0]
[null,null,null,null,null,null,null,null,null,null,null,null,0,-1000,0]
[null,null,null,null,null,null,null,null,null,null,null,null,0,-1000,0]
[null,null,null,null,null,null,null,null,null,null,null,null,0,-1000,0]
[null,null,null,null,null,null,null,null,null,null,null,null,0,-1000,0]
[null,null,null,null,null,null,null,null,null,null,null,null,0,-1000,0]
[null,null,null,null,null,null,null,null,null,null,null,null,0,-1000,0]
[null,null,null,null,null,null,null,null,null,null,null,null,0,-1000,0]
[null,null,null,null,null,null,null,null,null,null,null,null,0,-1000,0]
[null,null,null,null,null,null,null,null,null,null,null,null,0,-1000,0]
[null,null,null,null,null,null,null,null,null,null,null,null,{"$f":"(G201*$G$4+H201*$H$4+I201*$I$4+J201*$J$4+K201*$K$4+L201*$L$4)","v":0},{"$f":"IF(M201>0,M201*-1,-1000)","v":-1000},{"$f":"IF(M201>0,RANK(N201,N:N),0)","v":0}]
[null,null,null,null,null,null,null,null,null,null,null,null,{"$f":"(G202*$G$4+H202*$H$4+I202*$I$4+J202*$J$4+K202*$K$4+L202*$L$4)","v":0},{"$f":"IF(M202>0,M202*-1,-1000)","v":-1000},{"$f":"IF(M202>0,RANK(N202,N:N),0)","v":0}]
[null,null,null,null,null,null,null,null,null,null,null,null,{"$f":"(G203*$G$4+H203*$H$4+I203*$I$4+J203*$J$4+K203*$K$4+L203*$L$4)","v":0},{"$f":"IF(M203>0,M203*-1,-1000)","v":-1000},{"$f":"IF(M203>0,RANK(N203,N:N),0)","v":0}]
[null,null,null,null,null,null,null,null,null,null,null,null,{"$f":"(G204*$G$4+H204*$H$4+I204*$I$4+J204*$J$4+K204*$K$4+L204*$L$4)","v":0},{"$f":"IF(M204>0,M204*-1,-1000)","v":-1000},{"$f":"IF(M204>0,RANK(N204,N:N),0)","v":0}]
[null,null,null,null,null,null,null,null,null,null,null,null,0,-1000,0]
[null,null,null,null,null,null,null,null,null,null,null,null,0,-1000,0]
[null,null,null,null,null,null,null,null,null,null,null,null,0,-1000,0]
[null,null,null,null,null,null,null,null,null,null,null,null,0,-1000,0]
[null,null,null,null,null,null,null,null,null,null,null,null,0,-1000,0]
[null,null,null,null,null,null,null,null,null,null,null,null,0,-1000,0]
[null,null,null,null,null,null,null,null,null,null,null,null,0,-1000,0]
[null,null,null,null,null,null,null,null,null,null,null,null,0,-1000,0]
[null,null,null,null,null,null,null,null,null,null,null,null,0,-1000,0]
[null,null,null,null,null,null,null,null,null,null,null,null,0,-1000,0]
[null,null,null,null,null,null,null,null,null,null,null,null,0,-1000,0]
[null,null,null,null,null,null,null,null,null,null,null,null,0,-1000,0]
[null,null,null,null,null,null,null,null,null,null,null,null,0,-1000,0]
[null,null,null,null,null,null,null,null,null,null,null,null,0,-1000,0]
[null,null,null,null,null,null,null,null,null,null,null,null,0,-1000,0]
[null,null,null,null,null,null,null,null,null,null,null,null,0,-1000,0]
[null,null,null,null,null,null,null,null,null,null,null,null,0,-1000,0]

{"sheet":"Gast-Open","index":17,"n_rows":202,"n_cols":15,"rows_kept":202,"cut":false,"hidden":true,"merged":[]}
["DSKD  Derby 25.06.2017 Mettingen/Osnabrück"]
["Open - Klasse  "]
[]
[null,null,null,null,null,null,1,1,1,1,1,1,1]
["Bestzeit je Lauf",null,null,null,null,null,{"$f":"MIN(G9:G202)","v":0},0,0,0,0,0,0]
[]
["Start\nNummer","Gruppe","startet","Name","Vorname","Verein","Lauf 1","Lauf 2","Lauf 3","Lauf 4","Lauf 5","Lauf 6","Summe",null,"Platz"]
[]
[null,null,null,null,null,null,null,null,null,null,null,null,{"$f":"IF($G$4=1,\nIF(H9>1,(ABS(G9-H9)),0)+\nIF(I9>1,(ABS(G9-I9)),0)+\nIF(J9>1,(ABS(G9-J9)),0)+\nIF(K9>1,(ABS(G9-K9)),0)+\nIF(L9>1,(ABS(G9-L9)),0),\n\nIF(I9>1,(ABS(H9-I9)),0)+\nIF(J9>1,(ABS(H9-J9)),0)+\nIF(K9>1,(ABS(H9-K9)),0) )","v":0},{"$f":"IF(M9>0,M9*-1,-1000)","v":-1000},{"$f":"IF(M9>0,RANK(N9,N:N),0)","v":0}]
[null,null,null,null,null,null,null,null,null,null,null,null,0,-1000,0]
[null,null,null,null,null,null,null,null,null,null,null,null,0,-1000,0]
[null,null,null,null,null,null,null,null,null,null,null,null,0,-1000,0]
[null,null,null,null,null,null,null,null,null,null,null,null,0,-1000,0]
[null,null,null,null,null,null,null,null,null,null,null,null,0,-1000,0]
[null,null,null,null,null,null,null,null,null,null,null,null,0,-1000,0]
[null,null,null,null,null,null,null,null,null,null,null,null,0,-1000,0]
[null,null,null,null,null,null,null,null,null,null,null,null,0,-1000,0]
[null,null,null,null,null,null,null,null,null,null,null,null,0,-1000,0]
[null,null,null,null,null,null,null,null,null,null,null,null,0,-1000,0]
[null,null,null,null,null,null,null,null,null,null,null,null,0,-1000,0]
[null,null,null,null,null,null,null,null,null,null,null,null,0,-1000,0]
[null,null,null,null,null,null,null,null,null,null,null,null,0,-1000,0]
[null,null,null,null,null,null,null,null,null,null,null,null,0,-1000,0]
[null,null,null,null,null,null,null,null,null,null,null,null,0,-1000,0]
[null,null,null,null,null,null,null,null,null,null,null,null,0,-1000,0]
[null,null,null,null,null,null,null,null,null,null,null,null,0,-1000,0]
[null,null,null,null,null,null,null,null,null,null,null,null,0,-1000,0]
[null,null,null,null,null,null,null,null,null,null,null,null,0,-1000,0]
[null,null,null,null,null,null,null,null,null,null,null,null,0,-1000,0]
[null,null,null,null,null,null,null,null,null,null,null,null,0,-1000,0]
[null,null,null,null,null,null,null,null,null,null,null,null,0,-1000,0]
[null,null,null,null,null,null,null,null,null,null,null,null,0,-1000,0]
[null,null,null,null,null,null,null,null,null,null,null,null,0,-1000,0]
[null,null,null,null,null,null,null,null,null,null,null,null,0,-1000,0]
[null,null,null,null,null,null,null,null,null,null,null,null,0,-1000,0]
[null,null,null,null,null,null,null,null,null,null,null,null,0,-1000,0]
[null,null,null,null,null,null,null,null,null,null,null,null,0,-1000,0]
[null,null,null,null,null,null,null,null,null,null,null,null,0,-1000,0]
[null,null,null,null,null,null,null,null,null,null,null,null,0,-1000,0]
[null,null,null,null,null,null,null,null,null,null,null,null,0,-1000,0]
[null,null,null,null,null,null,null,null,null,null,null,null,{"$f":"IF($G$4=1,\nIF(H41>1,(ABS(G41-H41)),0)+\nIF(I41>1,(ABS(G41-I41)),0)+\nIF(J41>1,(ABS(G41-J41)),0)+\nIF(K41>1,(ABS(G41-K41)),0)+\nIF(L41>1,(ABS(G41-L41)),0),\n\nIF(I41>1,(ABS(H41-I41)),0)+\nIF(J41>1,(ABS(H41-J41)),0)+\nIF(K41>1,(ABS(H41-K41)),0) )","v":0},{"$f":"IF(M41>0,M41*-1,-1000)","v":-1000},{"$f":"IF(M41>0,RANK(N41,N:N),0)","v":0}]
[null,null,null,null,null,null,null,null,null,null,null,null,0,-1000,0]
[null,null,null,null,null,null,null,null,null,null,null,null,0,-1000,0]
[null,null,null,null,null,null,null,null,null,null,null,null,0,-1000,0]
[null,null,null,null,null,null,null,null,null,null,null,null,0,-1000,0]
[null,null,null,null,null,null,null,null,null,null,null,null,0,-1000,0]
[null,null,null,null,null,null,null,null,null,null,null,null,0,-1000,0]
[null,null,null,null,null,null,null,null,null,null,null,null,0,-1000,0]
[null,null,null,null,null,null,null,null,null,null,null,null,0,-1000,0]
[null,null,null,null,null,null,null,null,null,null,null,null,0,-1000,0]
[null,null,null,null,null,null,null,null,null,null,null,null,0,-1000,0]
[null,null,null,null,null,null,null,null,null,null,null,null,0,-1000,0]
[null,null,null,null,null,null,null,null,null,null,null,null,0,-1000,0]
[null,null,null,null,null,null,null,null,null,null,null,null,0,-1000,0]
[null,null,null,null,null,null,null,null,null,null,null,null,0,-1000,0]
[null,null,null,null,null,null,null,null,null,null,null,null,0,-1000,0]
[null,null,null,null,null,null,null,null,null,null,null,null,0,-1000,0]
[null,null,null,null,null,null,null,null,null,null,null,null,0,-1000,0]
[null,null,null,null,null,null,null,null,null,null,null,null,0,-1000,0]
[null,null,null,null,null,null,null,null,null,null,null,null,0,-1000,0]
[null,null,null,null,null,null,null,null,null,null,null,null,0,-1000,0]
[null,null,null,null,null,null,null,null,null,null,null,null,0,-1000,0]
[null,null,null,null,null,null,null,null,null,null,null,null,0,-1000,0]
[null,null,null,null,null,null,null,null,null,null,null,null,0,-1000,0]
[null,null,null,null,null,null,null,null,null,null,null,null,0,-1000,0]
[null,null,null,null,null,null,null,null,null,null,null,null,0,-1000,0]
[null,null,null,null,null,null,null,null,null,null,null,null,0,-1000,0]
[null,null,null,null,null,null,null,null,null,null,null,null,0,-1000,0]
[null,null,null,null,null,null,null,null,null,null,null,null,0,-1000,0]
[null,null,null,null,null,null,null,null,null,null,null,null,0,-1000,0]
[null,null,null,null,null,null,null,null,null,null,null,null,0,-1000,0]
[null,null,null,null,null,null,null,null,null,null,null,null,0,-1000,0]
[null,null,null,null,null,null,null,null,null,null,null,null,{"$f":"IF($G$4=1,\nIF(H73>1,(ABS(G73-H73)),0)+\nIF(I73>1,(ABS(G73-I73)),0)+\nIF(J73>1,(ABS(G73-J73)),0)+\nIF(K73>1,(ABS(G73-K73)),0)+\nIF(L73>1,(ABS(G73-L73)),0),\n\nIF(I73>1,(ABS(H73-I73)),0)+\nIF(J73>1,(ABS(H73-J73)),0)+\nIF(K73>1,(ABS(H73-K73)),0) )","v":0},{"$f":"IF(M73>0,M73*-1,-1000)","v":-1000},{"$f":"IF(M73>0,RANK(N73,N:N),0)","v":0}]
[null,null,null,null,null,null,null,null,null,null,null,null,0,-1000,0]
[null,null,null,null,null,null,null,null,null,null,null,null,0,-1000,0]
[null,null,null,null,null,null,null,null,null,null,null,null,0,-1000,0]
[null,null,null,null,null,null,null,null,null,null,null,null,0,-1000,0]
[null,null,null,null,null,null,null,null,null,null,null,null,0,-1000,0]
[null,null,null,null,null,null,null,null,null,null,null,null,0,-1000,0]
[null,null,null,null,null,null,null,null,null,null,null,null,0,-1000,0]
[null,null,null,null,null,null,null,null,null,null,null,null,0,-1000,0]
[null,null,null,null,null,null,null,null,null,null,null,null,0,-1000,0]
[null,null,null,null,null,null,null,null,null,null,null,null,0,-1000,0]
[null,null,null,null,null,null,null,null,null,null,null,null,0,-1000,0]
[null,null,null,null,null,null,null,null,null,null,null,null,0,-1000,0]
[null,null,null,null,null,null,null,null,null,null,null,null,0,-1000,0]
[null,null,null,null,null,null,null,null,null,null,null,null,0,-1000,0]
[null,null,null,null,null,null,null,null,null,null,null,null,0,-1000,0]
[null,null,null,null,null,null,null,null,null,null,null,null,0,-1000,0]
[null,null,null,null,null,null,null,null,null,null,null,null,0,-1000,0]
[null,null,null,null,null,null,null,null,null,null,null,null,0,-1000,0]
[null,null,null,null,null,null,null,null,null,null,null,null,0,-1000,0]
[null,null,null,null,null,null,null,null,null,null,null,null,0,-1000,0]
[null,null,null,null,null,null,null,null,null,null,null,null,0,-1000,0]
[null,null,null,null,null,null,null,null,null,null,null,null,0,-1000,0]
[null,null,null,null,null,null,null,null,null,null,null,null,0,-1000,0]
[null,null,null,null,null,null,null,null,null,null,null,null,0,-1000,0]
[null,null,null,null,null,null,null,null,null,null,null,null,0,-1000,0]
[null,null,null,null,null,null,null,null,null,null,null,null,0,-1000,0]
[null,null,null,null,null,null,null,null,null,null,null,null,0,-1000,0]
[null,null,null,null,null,null,null,null,null,null,null,null,0,-1000,0]
[null,null,null,null,null,null,null,null,null,null,null,null,0,-1000,0]
[null,null,null,null,null,null,null,null,null,null,null,null,0,-1000,0]
[null,null,null,null,null,null,null,null,null,null,null,null,0,-1000,0]
[null,null,null,null,null,null,null,null,null,null,null,null,{"$f":"IF($G$4=1,\nIF(H105>1,(ABS(G105-H105)),0)+\nIF(I105>1,(ABS(G105-I105)),0)+\nIF(J105>1,(ABS(G105-J105)),0)+\nIF(K105>1,(ABS(G105-K105)),0)+\nIF(L105>1,(ABS(G105-L105)),0),\n\nIF(I105>1,(ABS(H105-I105)),0)+\nIF(J105>1,(ABS(H105-J105)),0)+\nIF(K105>1,(ABS(H105-K105)),0) )","v":0},{"$f":"IF(M105>0,M105*-1,-1000)","v":-1000},{"$f":"IF(M105>0,RANK(N105,N:N),0)","v":0}]
[null,null,null,null,null,null,null,null,null,null,null,null,0,-1000,0]
[null,null,null,null,null,null,null,null,null,null,null,null,0,-1000,0]
[null,null,null,null,null,null,null,null,null,null,null,null,0,-1000,0]
[null,null,null,null,null,null,null,null,null,null,null,null,0,-1000,0]
[null,null,null,null,null,null,null,null,null,null,null,null,0,-1000,0]
[null,null,null,null,null,null,null,null,null,null,null,null,0,-1000,0]
[null,null,null,null,null,null,null,null,null,null,null,null,0,-1000,0]
[null,null,null,null,null,null,null,null,null,null,null,null,0,-1000,0]
[null,null,null,null,null,null,null,null,null,null,null,null,0,-1000,0]
[null,null,null,null,null,null,null,null,null,null,null,null,0,-1000,0]
[null,null,null,null,null,null,null,null,null,null,null,null,0,-1000,0]
[null,null,null,null,null,null,null,null,null,null,null,null,0,-1000,0]
[null,null,null,null,null,null,null,null,null,null,null,null,0,-1000,0]
[null,null,null,null,null,null,null,null,null,null,null,null,0,-1000,0]
[null,null,null,null,null,null,null,null,null,null,null,null,0,-1000,0]
[null,null,null,null,null,null,null,null,null,null,null,null,0,-1000,0]
[null,null,null,null,null,null,null,null,null,null,null,null,0,-1000,0]
[null,null,null,null,null,null,null,null,null,null,null,null,0,-1000,0]
[null,null,null,null,null,null,null,null,null,null,null,null,0,-1000,0]
[null,null,null,null,null,null,null,null,null,null,null,null,0,-1000,0]
[null,null,null,null,null,null,null,null,null,null,null,null,0,-1000,0]
[null,null,null,null,null,null,null,null,null,null,null,null,0,-1000,0]
[null,null,null,null,null,null,null,null,null,null,null,null,0,-1000,0]
[null,null,null,null,null,null,null,null,null,null,null,null,0,-1000,0]
[null,null,null,null,null,null,null,null,null,null,null,null,0,-1000,0]
[null,null,null,null,null,null,null,null,null,null,null,null,0,-1000,0]
[null,null,null,null,null,null,null,null,null,null,null,null,0,-1000,0]
[null,null,null,null,null,null,null,null,null,null,null,null,0,-1000,0]
[null,null,null,null,null,null,null,null,null,null,null,null,0,-1000,0]
[null,null,null,null,null,null,null,null,null,null,null,null,0,-1000,0]
[null,null,null,null,null,null,null,null,null,null,null,null,0,-1000,0]
[null,null,null,null,null,null,null,null,null,null,null,null,{"$f":"IF($G$4=1,\nIF(H137>1,(ABS(G137-H137)),0)+\nIF(I137>1,(ABS(G137-I137)),0)+\nIF(J137>1,(ABS(G137-J137)),0)+\nIF(K137>1,(ABS(G137-K137)),0)+\nIF(L137>1,(ABS(G137-L137)),0),\n\nIF(I137>1,(ABS(H137-I137)),0)+\nIF(J137>1,(ABS(H137-J137)),0)+\nIF(K137>1,(ABS(H137-K137)),0) )","v":0},{"$f":"IF(M137>0,M137*-1,-1000)","v":-1000},{"$f":"IF(M137>0,RANK(N137,N:N),0)","v":0}]
[null,null,null,null,null,null,null,null,null,null,null,null,0,-1000,0]
[null,null,null,null,null,null,null,null,null,null,null,null,0,-1000,0]
[null,null,null,null,null,null,null,null,null,null,null,null,0,-1000,0]
[null,null,null,null,null,null,null,null,null,null,null,null,0,-1000,0]
[null,null,null,null,null,null,null,null,null,null,null,null,0,-1000,0]
[null,null,null,null,null,null,null,null,null,null,null,null,0,-1000,0]
[null,null,null,null,null,null,null,null,null,null,null,null,0,-1000,0]
[null,null,null,null,null,null,null,null,null,null,null,null,0,-1000,0]
[null,null,null,null,null,null,null,null,null,null,null,null,0,-1000,0]
[null,null,null,null,null,null,null,null,null,null,null,null,0,-1000,0]
[null,null,null,null,null,null,null,null,null,null,null,null,0,-1000,0]
[null,null,null,null,null,null,null,null,null,null,null,null,0,-1000,0]
[null,null,null,null,null,null,null,null,null,null,null,null,0,-1000,0]
[null,null,null,null,null,null,null,null,null,null,null,null,0,-1000,0]
[null,null,null,null,null,null,null,null,null,null,null,null,0,-1000,0]
[null,null,null,null,null,null,null,null,null,null,null,null,0,-1000,0]
[null,null,null,null,null,null,null,null,null,null,null,null,0,-1000,0]
[null,null,null,null,null,null,null,null,null,null,null,null,0,-1000,0]
[null,null,null,null,null,null,null,null,null,null,null,null,0,-1000,0]
[null,null,null,null,null,null,null,null,null,null,null,null,0,-1000,0]
[null,null,null,null,null,null,null,null,null,null,null,null,0,-1000,0]
[null,null,null,null,null,null,null,null,null,null,null,null,0,-1000,0]
[null,null,null,null,null,null,null,null,null,null,null,null,0,-1000,0]
[null,null,null,null,null,null,null,null,null,null,null,null,0,-1000,0]
[null,null,null,null,null,null,null,null,null,null,null,null,0,-1000,0]
[null,null,null,null,null,null,null,null,null,null,null,null,0,-1000,0]
[null,null,null,null,null,null,null,null,null,null,null,null,0,-1000,0]
[null,null,null,null,null,null,null,null,null,null,null,null,0,-1000,0]
[null,null,null,null,null,null,null,null,null,null,null,null,0,-1000,0]
[null,null,null,null,null,null,null,null,null,null,null,null,0,-1000,0]
[null,null,null,null,null,null,null,null,null,null,null,null,0,-1000,0]
[null,null,null,null,null,null,null,null,null,null,null,null,{"$f":"IF($G$4=1,\nIF(H169>1,(ABS(G169-H169)),0)+\nIF(I169>1,(ABS(G169-I169)),0)+\nIF(J169>1,(ABS(G169-J169)),0)+\nIF(K169>1,(ABS(G169-K169)),0)+\nIF(L169>1,(ABS(G169-L169)),0),\n\nIF(I169>1,(ABS(H169-I169)),0)+\nIF(J169>1,(ABS(H169-J169)),0)+\nIF(K169>1,(ABS(H169-K169)),0) )","v":0},{"$f":"IF(M169>0,M169*-1,-1000)","v":-1000},{"$f":"IF(M169>0,RANK(N169,N:N),0)","v":0}]
[null,null,null,null,null,null,null,null,null,null,null,null,0,-1000,0]
[null,null,null,null,null,null,null,null,null,null,null,null,0,-1000,0]
[null,null,null,null,null,null,null,null,null,null,null,null,0,-1000,0]
[null,null,null,null,null,null,null,null,null,null,null,null,0,-1000,0]
[null,null,null,null,null,null,null,null,null,null,null,null,0,-1000,0]
[null,null,null,null,null,null,null,null,null,null,null,null,0,-1000,0]
[null,null,null,null,null,null,null,null,null,null,null,null,0,-1000,0]
[null,null,null,null,null,null,null,null,null,null,null,null,0,-1000,0]
[null,null,null,null,null,null,null,null,null,null,null,null,0,-1000,0]
[null,null,null,null,null,null,null,null,null,null,null,null,0,-1000,0]
[null,null,null,null,null,null,null,null,null,null,null,null,0,-1000,0]
[null,null,null,null,null,null,null,null,null,null,null,null,0,-1000,0]
[null,null,null,null,null,null,null,null,null,null,null,null,0,-1000,0]
[null,null,null,null,null,null,null,null,null,null,null,null,0,-1000,0]
[null,null,null,null,null,null,null,null,null,null,null,null,0,-1000,0]
[null,null,null,null,null,null,null,null,null,null,null,null,0,-1000,0]
[null,null,null,null,null,null,null,null,null,null,null,null,0,-1000,0]
[null,null,null,null,null,null,null,null,null,null,null,null,0,-1000,0]
[null,null,null,null,null,null,null,null,null,null,null,null,0,-1000,0]
[null,null,null,null,null,null,null,null,null,null,null,null,0,-1000,0]
[null,null,null,null,null,null,null,null,null,null,null,null,0,-1000,0]
[null,null,null,null,null,null,null,null,null,null,null,null,0,-1000,0]
[null,null,null,null,null,null,null,null,null,null,null,null,0,-1000,0]
[null,null,null,null,null,null,null,null,null,null,null,null,0,-1000,0]
[null,null,null,null,null,null,null,null,null,null,null,null,0,-1000,0]
[null,null,null,null,null,null,null,null,null,null,null,null,0,-1000,0]
[null,null,null,null,null,null,null,null,null,null,null,null,0,-1000,0]
[null,null,null,null,null,null,null,null,null,null,null,null,0,-1000,0]
[null,null,null,null,null,null,null,null,null,null,null,null,0,-1000,0]
[null,null,null,null,null,null,null,null,null,null,null,null,0,-1000,0]
[null,null,null,null,null,null,null,null,null,null,null,null,0,-1000,0]
[null,null,null,null,null,null,null,null,null,null,null,null,{"$f":"IF($G$4=1,\nIF(H201>1,(ABS(G201-H201)),0)+\nIF(I201>1,(ABS(G201-I201)),0)+\nIF(J201>1,(ABS(G201-J201)),0)+\nIF(K201>1,(ABS(G201-K201)),0)+\nIF(L201>1,(ABS(G201-L201)),0),\n\nIF(I201>1,(ABS(H201-I201)),0)+\nIF(J201>1,(ABS(H201-J201)),0)+\nIF(K201>1,(ABS(H201-K201)),0) )","v":0},{"$f":"IF(M201>0,M201*-1,-1000)","v":-1000},{"$f":"IF(M201>0,RANK(N201,N:N),0)","v":0}]
[null,null,null,null,null,null,null,null,null,null,null,null,{"$f":"IF($G$4=1,\nIF(H202>1,(ABS(G202-H202)),0)+\nIF(I202>1,(ABS(G202-I202)),0)+\nIF(J202>1,(ABS(G202-J202)),0)+\nIF(K202>1,(ABS(G202-K202)),0)+\nIF(L202>1,(ABS(G202-L202)),0),\n\nIF(I202>1,(ABS(H202-I202)),0)+\nIF(J202>1,(ABS(H202-J202)),0)+\nIF(K202>1,(ABS(H202-K202)),0) )","v":0},{"$f":"IF(M202>0,M202*-1,-1000)","v":-1000},{"$f":"IF(M202>0,RANK(N202,N:N),0)","v":0}]

{"sheet":"Ort-End-Junior","index":18,"n_rows":27,"n_cols":16,"rows_kept":27,"cut":false,"hidden":true,"merged":[]}
["DSKD  Derby 25.06.2017 Mettingen/Osnabrück"]
[" Endläufe JUNIOR - Klasse  "]
[]
["Wird der Lauf gewertet?   dann 0 oder 1 eintragen",null,null,null,null,null,1,1,1,1,0,0]
["Bestzeit je Lauf",null,null,null,null,null,{"$f":"MIN(G9:G27)","v":0},0,0,0,0,0]
[]
["Start\nNummer","Gruppe","startet","Name","Vorname","Verein","Lauf 1","Lauf 2","Lauf 3","Lauf 4","Stechen 1","Stechen 2","Summe der gewerteten Läufe",null,"Platz","Urkunde"]
[]
[null,null,null,null,null,null,null,null,null,null,null,null,{"$f":"(G9*$G$4+H9*$H$4+I9*$I$4+J9*$J$4+K9*$K$4+L9*$L$4)","v":0},{"$f":"IF(M9>0,M9*-1,-1000)","v":-1000},{"$f":"IF(M9>0,RANK(N9,N:N),0)","v":0}]
[null,null,null,null,null,null,null,null,null,null,null,null,0,-1000,0]
[null,null,null,null,null,null,null,null,null,null,null,null,0,-1000,0]
[null,null,null,null,null,null,null,null,null,null,null,null,0,-1000,0]
[null,null,null,null,null,null,null,null,null,null,null,null,0,-1000,0]
[null,null,null,null,null,null,null,null,null,null,null,null,0,-1000,0]
[null,null,null,null,null,null,null,null,null,null,null,null,0,-1000,0]
[null,null,null,null,null,null,null,null,null,null,null,null,0,-1000,0]
[null,null,null,null,null,null,null,null,null,null,null,null,0,-1000,0]
[null,null,null,null,null,null,null,null,null,null,null,null,0,-1000,0]
[null,null,null,null,null,null,null,null,null,null,null,null,0,-1000,0]
[null,null,null,null,null,null,null,null,null,null,null,null,0,-1000,0]
[null,null,null,null,null,null,null,null,null,null,null,null,0,-1000,0]
[null,null,null,null,null,null,null,null,null,null,null,null,0,-1000,0]
[null,null,null,null,null,null,null,null,null,null,null,null,0,-1000,0]
[null,null,null,null,null,null,null,null,null,null,null,null,0,-1000,0]
[null,null,null,null,null,null,null,null,null,null,null,null,0,-1000,0]
[null,null,null,null,null,null,null,null,null,null,null,null,0,-1000,0]
[null,null,null,null,null,null,null,null,null,null,null,null,0,-1000,0]

{"sheet":"Ort-End-Senior","index":19,"n_rows":26,"n_cols":16,"rows_kept":26,"cut":false,"hidden":true,"merged":[]}
["DSKD  Derby 25.06.2017 Mettingen/Osnabrück"]
[" Endläufe SENIOR - Klasse  "]
[]
["Wird der Lauf gewertet?   dann 0 oder 1 eintragen",null,null,null,null,null,1,1,1,1,1,1]
["Bestzeit je Lauf",null,null,null,null,null,{"$f":"MIN(G9:G26)","v":0},0,0,0,0,0]
[]
["Start\nNummer","Gruppe","startet","Name","Vorname","Verein","Lauf 1","Lauf 2","Lauf 3","Lauf 4","Stechen 1","Stechen 2","Summe der gewerteten Läufe",null,"Platz","Urkunde"]
[]
[null,null,null,null,null,null,null,null,null,null,null,null,{"$f":"(G9*$G$4+H9*$H$4+I9*$I$4+J9*$J$4+K9*$K$4+L9*$L$4)","v":0},{"$f":"IF(M9>0,M9*-1,-1000)","v":-1000},{"$f":"IF(M9>0,RANK(N9,N:N),0)","v":0}]
[null,null,null,null,null,null,null,null,null,null,null,null,0,-1000,0]
[null,null,null,null,null,null,null,null,null,null,null,null,0,-1000,0]
[null,null,null,null,null,null,null,null,null,null,null,null,0,-1000,0]
[null,null,null,null,null,null,null,null,null,null,null,null,0,-1000,0]
[null,null,null,null,null,null,null,null,null,null,null,null,0,-1000,0]
[null,null,null,null,null,null,null,null,null,null,null,null,0,-1000,0]
[null,null,null,null,null,null,null,null,null,null,null,null,0,-1000,0]
[null,null,null,null,null,null,null,null,null,null,null,null,0,-1000,0]
[null,null,null,null,null,null,null,null,null,null,null,null,0,-1000,0]
[null,null,null,null,null,null,null,null,null,null,null,null,0,-1000,0]
[null,null,null,null,null,null,null,null,null,null,null,null,0,-1000,0]
[null,null,null,null,null,null,null,null,null,null,null,null,0,-1000,0]
[null,null,null,null,null,null,null,null,null,null,null,null,0,-1000,0]
[null,null,null,null,null,null,null,null,null,null,null,null,0,-1000,0]
[null,null,null,null,null,null,null,null,null,null,null,null,0,-1000,0]
[null,null,null,null,null,null,null,null,null,null,null,null,0,-1000,0]
[null,null,null,null,null,null,null,null,null,null,null,null,0,-1000,0]

{"sheet":"Ort-End-Elite-XL","index":20,"n_rows":21,"n_cols":16,"rows_kept":21,"cut":false,"hidden":true,"merged":[]}
["DSKD  Derby 25.06.2017 Mettingen/Osnabrück"]
[" Endläufe Elite XL - Klasse  "]
[]
["Wird der Lauf gewertet?   dann 0 oder 1 eintragen",null,null,null,null,null,1,1,1,1,0,0]
["Bestzeit je Lauf",null,null,null,null,null,{"$f":"MIN(G9:G21)","v":0},0,0,0,0,0]
[]
["Start\nNummer","Gruppe","startet","Name","Vorname","Verein","Lauf 1","Lauf 2","Lauf 3","Lauf 4","Stechen 1","Stechen 2","Summe der gewerteten Läufe",null,"Platz","Urkunde"]
[]
[null,null,null,null,null,null,null,null,null,null,null,null,{"$f":"(G9*$G$4+H9*$H$4+I9*$I$4+J9*$J$4+K9*$K$4+L9*$L$4)","v":0},{"$f":"IF(M9>0,M9*-1,-1000)","v":-1000},{"$f":"IF(M9>0,RANK(N9,N:N),0)","v":0}]
[null,null,null,null,null,null,null,null,null,null,null,null,0,-1000,0]
[null,null,null,null,null,null,null,null,null,null,null,null,0,-1000,0]
[null,null,null,null,null,null,null,null,null,null,null,null,0,-1000,0]
[null,null,null,null,null,null,null,null,null,null,null,null,0,-1000,0]
[null,null,null,null,null,null,null,null,null,null,null,null,0,-1000,0]
[null,null,null,null,null,null,null,null,null,null,null,null,0,-1000,0]
[null,null,null,null,null,null,null,null,null,null,null,null,0,-1000,0]
[null,null,null,null,null,null,null,null,null,null,null,null,0,-1000,0]
[null,null,null,null,null,null,null,null,null,null,null,null,0,-1000,0]
[null,null,null,null,null,null,null,null,null,null,null,null,0,-1000,0]
[null,null,null,null,null,null,null,null,null,null,null,null,0,-1000,0]
[null,null,null,null,null,null,null,null,null,null,null,null,0,-1000,0]

{"sheet":"Ort-End-Elite-XL-18","index":21,"n_rows":21,"n_cols":16,"rows_kept":21,"cut":false,"hidden":true,"merged":[]}
["DSKD  Derby 25.06.2017 Mettingen/Osnabrück"]
[" Endläufe Elite XL ü 18 - Klasse  "]
[]
["Wird der Lauf gewertet?   dann 0 oder 1 eintragen",null,null,null,null,null,1,1,1,1,0,0]
["Bestzeit je Lauf",null,null,null,null,null,{"$f":"MIN(G9:G21)","v":0},0,0,0,0,0]
[]
["Start\nNummer","Gruppe","startet","Name","Vorname","Verein","Lauf 1","Lauf 2","Lauf 3","Lauf 4","Stechen 1","Stechen 2","Summe der gewerteten Läufe",null,"Platz","Urkunde"]
[]
[null,null,null,null,null,null,null,null,null,null,null,null,{"$f":"(G9*$G$4+H9*$H$4+I9*$I$4+J9*$J$4+K9*$K$4+L9*$L$4)","v":0},{"$f":"IF(M9>0,M9*-1,-1000)","v":-1000},{"$f":"IF(M9>0,RANK(N9,N:N),0)","v":0}]
[null,null,null,null,null,null,null,null,null,null,null,null,0,-1000,0]
[null,null,null,null,null,null,null,null,null,null,null,null,0,-1000,0]
[null,null,null,null,null,null,null,null,null,null,null,null,0,-1000,0]
[null,null,null,null,null,null,null,null,null,null,null,null,0,-1000,0]
[null,null,null,null,null,null,null,null,null,null,null,null,0,-1000,0]
[null,null,null,null,null,null,null,null,null,null,null,null,0,-1000,0]
[null,null,null,null,null,null,null,null,null,null,null,null,0,-1000,0]
[null,null,null,null,null,null,null,null,null,null,null,null,0,-1000,0]
[null,null,null,null,null,null,null,null,null,null,null,null,0,-1000,0]
[null,null,null,null,null,null,null,null,null,null,null,null,0,-1000,0]
[null,null,null,null,null,null,null,null,null,null,null,null,0,-1000,0]
[null,null,null,null,null,null,null,null,null,null,null,null,0,-1000,0]

{"sheet":"Ort-End-Open","index":22,"n_rows":202,"n_cols":15,"rows_kept":202,"cut":false,"hidden":true,"merged":[]}
["DSKD  Derby 25.06.2017 Mettingen/Osnabrück"]
[" Endläufe Open - Klasse  "]
[]
[null,null,null,null,null,null,1,1,1,1,1,1,1]
["Bestzeit je Lauf",null,null,null,null,null,{"$f":"MIN(G9:G202)","v":0},0,0,0,0,0,0]
[]
["Start\nNummer","Gruppe","startet","Name","Vorname","Verein","Lauf 1","Lauf 2","Lauf 3","Lauf 4","Lauf 5","Lauf 6","Summe",null,"Platz"]
[]
[null,null,null,null,null,null,null,null,null,null,null,null,{"$f":"IF($G$4=1,\nIF(H9>1,(ABS(G9-H9)),0)+\nIF(I9>1,(ABS(G9-I9)),0)+\nIF(J9>1,(ABS(G9-J9)),0)+\nIF(K9>1,(ABS(G9-K9)),0)+\nIF(L9>1,(ABS(G9-L9)),0),\n\nIF(I9>1,(ABS(H9-I9)),0)+\nIF(J9>1,(ABS(H9-J9)),0)+\nIF(K9>1,(ABS(H9-K9)),0) )","v":0},{"$f":"IF(M9>0,M9*-1,-1000)","v":-1000},{"$f":"IF(M9>0,RANK(N9,N:N),0)","v":0}]
[null,null,null,null,null,null,null,null,null,null,null,null,0,-1000,0]
[null,null,null,null,null,null,null,null,null,null,null,null,0,-1000,0]
[null,null,null,null,null,null,null,null,null,null,null,null,0,-1000,0]
[null,null,null,null,null,null,null,null,null,null,null,null,0,-1000,0]
[null,null,null,null,null,null,null,null,null,null,null,null,0,-1000,0]
[null,null,null,null,null,null,null,null,null,null,null,null,0,-1000,0]
[null,null,null,null,null,null,null,null,null,null,null,null,0,-1000,0]
[null,null,null,null,null,null,null,null,null,null,null,null,0,-1000,0]
[null,null,null,null,null,null,null,null,null,null,null,null,0,-1000,0]
[null,null,null,null,null,null,null,null,null,null,null,null,0,-1000,0]
[null,null,null,null,null,null,null,null,null,null,null,null,0,-1000,0]
[null,null,null,null,null,null,null,null,null,null,null,null,0,-1000,0]
[null,null,null,null,null,null,null,null,null,null,null,null,0,-1000,0]
[null,null,null,null,null,null,null,null,null,null,null,null,0,-1000,0]
[null,null,null,null,null,null,null,null,null,null,null,null,0,-1000,0]
[null,null,null,null,null,null,null,null,null,null,null,null,0,-1000,0]
[null,null,null,null,null,null,null,null,null,null,null,null,0,-1000,0]
[null,null,null,null,null,null,null,null,null,null,null,null,0,-1000,0]
[null,null,null,null,null,null,null,null,null,null,null,null,0,-1000,0]
[null,null,null,null,null,null,null,null,null,null,null,null,0,-1000,0]
[null,null,null,null,null,null,null,null,null,null,null,null,0,-1000,0]
[null,null,null,null,null,null,null,null,null,null,null,null,0,-1000,0]
[null,null,null,null,null,null,null,null,null,null,null,null,0,-1000,0]
[null,null,null,null,null,null,null,null,null,null,null,null,0,-1000,0]
[null,null,null,null,null,null,null,null,null,null,null,null,0,-1000,0]
[null,null,null,null,null,null,null,null,null,null,null,null,0,-1000,0]
[null,null,null,null,null,null,null,null,null,null,null,null,0,-1000,0]
[null,null,null,null,null,null,null,null,null,null,null,null,0,-1000,0]
[null,null,null,null,null,null,null,null,null,null,null,null,0,-1000,0]
[null,null,null,null,null,null,null,null,null,null,null,null,0,-1000,0]
[null,null,null,null,null,null,null,null,null,null,null,null,0,-1000,0]
[null,null,null,null,null,null,null,null,null,null,null,null,{"$f":"IF($G$4=1,\nIF(H41>1,(ABS(G41-H41)),0)+\nIF(I41>1,(ABS(G41-I41)),0)+\nIF(J41>1,(ABS(G41-J41)),0)+\nIF(K41>1,(ABS(G41-K41)),0)+\nIF(L41>1,(ABS(G41-L41)),0),\n\nIF(I41>1,(ABS(H41-I41)),0)+\nIF(J41>1,(ABS(H41-J41)),0)+\nIF(K41>1,(ABS(H41-K41)),0) )","v":0},{"$f":"IF(M41>0,M41*-1,-1000)","v":-1000},{"$f":"IF(M41>0,RANK(N41,N:N),0)","v":0}]
[null,null,null,null,null,null,null,null,null,null,null,null,0,-1000,0]
[null,null,null,null,null,null,null,null,null,null,null,null,0,-1000,0]
[null,null,null,null,null,null,null,null,null,null,null,null,0,-1000,0]
[null,null,null,null,null,null,null,null,null,null,null,null,0,-1000,0]
[null,null,null,null,null,null,null,null,null,null,null,null,0,-1000,0]
[null,null,null,null,null,null,null,null,null,null,null,null,0,-1000,0]
[null,null,null,null,null,null,null,null,null,null,null,null,0,-1000,0]
[null,null,null,null,null,null,null,null,null,null,null,null,0,-1000,0]
[null,null,null,null,null,null,null,null,null,null,null,null,0,-1000,0]
[null,null,null,null,null,null,null,null,null,null,null,null,0,-1000,0]
[null,null,null,null,null,null,null,null,null,null,null,null,0,-1000,0]
[null,null,null,null,null,null,null,null,null,null,null,null,0,-1000,0]
[null,null,null,null,null,null,null,null,null,null,null,null,0,-1000,0]
[null,null,null,null,null,null,null,null,null,null,null,null,0,-1000,0]
[null,null,null,null,null,null,null,null,null,null,null,null,0,-1000,0]
[null,null,null,null,null,null,null,null,null,null,null,null,0,-1000,0]
[null,null,null,null,null,null,null,null,null,null,null,null,0,-1000,0]
[null,null,null,null,null,null,null,null,null,null,null,null,0,-1000,0]
[null,null,null,null,null,null,null,null,null,null,null,null,0,-1000,0]
[null,null,null,null,null,null,null,null,null,null,null,null,0,-1000,0]
[null,null,null,null,null,null,null,null,null,null,null,null,0,-1000,0]
[null,null,null,null,null,null,null,null,null,null,null,null,0,-1000,0]
[null,null,null,null,null,null,null,null,null,null,null,null,0,-1000,0]
[null,null,null,null,null,null,null,null,null,null,null,null,0,-1000,0]
[null,null,null,null,null,null,null,null,null,null,null,null,0,-1000,0]
[null,null,null,null,null,null,null,null,null,null,null,null,0,-1000,0]
[null,null,null,null,null,null,null,null,null,null,null,null,0,-1000,0]
[null,null,null,null,null,null,null,null,null,null,null,null,0,-1000,0]
[null,null,null,null,null,null,null,null,null,null,null,null,0,-1000,0]
[null,null,null,null,null,null,null,null,null,null,null,null,0,-1000,0]
[null,null,null,null,null,null,null,null,null,null,null,null,0,-1000,0]
[null,null,null,null,null,null,null,null,null,null,null,null,{"$f":"IF($G$4=1,\nIF(H73>1,(ABS(G73-H73)),0)+\nIF(I73>1,(ABS(G73-I73)),0)+\nIF(J73>1,(ABS(G73-J73)),0)+\nIF(K73>1,(ABS(G73-K73)),0)+\nIF(L73>1,(ABS(G73-L73)),0),\n\nIF(I73>1,(ABS(H73-I73)),0)+\nIF(J73>1,(ABS(H73-J73)),0)+\nIF(K73>1,(ABS(H73-K73)),0) )","v":0},{"$f":"IF(M73>0,M73*-1,-1000)","v":-1000},{"$f":"IF(M73>0,RANK(N73,N:N),0)","v":0}]
[null,null,null,null,null,null,null,null,null,null,null,null,0,-1000,0]
[null,null,null,null,null,null,null,null,null,null,null,null,0,-1000,0]
[null,null,null,null,null,null,null,null,null,null,null,null,0,-1000,0]
[null,null,null,null,null,null,null,null,null,null,null,null,0,-1000,0]
[null,null,null,null,null,null,null,null,null,null,null,null,0,-1000,0]
[null,null,null,null,null,null,null,null,null,null,null,null,0,-1000,0]
[null,null,null,null,null,null,null,null,null,null,null,null,0,-1000,0]
[null,null,null,null,null,null,null,null,null,null,null,null,0,-1000,0]
[null,null,null,null,null,null,null,null,null,null,null,null,0,-1000,0]
[null,null,null,null,null,null,null,null,null,null,null,null,0,-1000,0]
[null,null,null,null,null,null,null,null,null,null,null,null,0,-1000,0]
[null,null,null,null,null,null,null,null,null,null,null,null,0,-1000,0]
[null,null,null,null,null,null,null,null,null,null,null,null,0,-1000,0]
[null,null,null,null,null,null,null,null,null,null,null,null,0,-1000,0]
[null,null,null,null,null,null,null,null,null,null,null,null,0,-1000,0]
[null,null,null,null,null,null,null,null,null,null,null,null,0,-1000,0]
[null,null,null,null,null,null,null,null,null,null,null,null,0,-1000,0]
[null,null,null,null,null,null,null,null,null,null,null,null,0,-1000,0]
[null,null,null,null,null,null,null,null,null,null,null,null,0,-1000,0]
[null,null,null,null,null,null,null,null,null,null,null,null,0,-1000,0]
[null,null,null,null,null,null,null,null,null,null,null,null,0,-1000,0]
[null,null,null,null,null,null,null,null,null,null,null,null,0,-1000,0]
[null,null,null,null,null,null,null,null,null,null,null,null,0,-1000,0]
[null,null,null,null,null,null,null,null,null,null,null,null,0,-1000,0]
[null,null,null,null,null,null,null,null,null,null,null,null,0,-1000,0]
[null,null,null,null,null,null,null,null,null,null,null,null,0,-1000,0]
[null,null,null,null,null,null,null,null,null,null,null,null,0,-1000,0]
[null,null,null,null,null,null,null,null,null,null,null,null,0,-1000,0]
[null,null,null,null,null,null,null,null,null,null,null,null,0,-1000,0]
[null,null,null,null,null,null,null,null,null,null,null,null,0,-1000,0]
[null,null,null,null,null,null,null,null,null,null,null,null,0,-1000,0]
[null,null,null,null,null,null,null,null,null,null,null,null,{"$f":"IF($G$4=1,\nIF(H105>1,(ABS(G105-H105)),0)+\nIF(I105>1,(ABS(G105-I105)),0)+\nIF(J105>1,(ABS(G105-J105)),0)+\nIF(K105>1,(ABS(G105-K105)),0)+\nIF(L105>1,(ABS(G105-L105)),0),\n\nIF(I105>1,(ABS(H105-I105)),0)+\nIF(J105>1,(ABS(H105-J105)),0)+\nIF(K105>1,(ABS(H105-K105)),0) )","v":0},{"$f":"IF(M105>0,M105*-1,-1000)","v":-1000},{"$f":"IF(M105>0,RANK(N105,N:N),0)","v":0}]
[null,null,null,null,null,null,null,null,null,null,null,null,0,-1000,0]
[null,null,null,null,null,null,null,null,null,null,null,null,0,-1000,0]
[null,null,null,null,null,null,null,null,null,null,null,null,0,-1000,0]
[null,null,null,null,null,null,null,null,null,null,null,null,0,-1000,0]
[null,null,null,null,null,null,null,null,null,null,null,null,0,-1000,0]
[null,null,null,null,null,null,null,null,null,null,null,null,0,-1000,0]
[null,null,null,null,null,null,null,null,null,null,null,null,0,-1000,0]
[null,null,null,null,null,null,null,null,null,null,null,null,0,-1000,0]
[null,null,null,null,null,null,null,null,null,null,null,null,0,-1000,0]
[null,null,null,null,null,null,null,null,null,null,null,null,0,-1000,0]
[null,null,null,null,null,null,null,null,null,null,null,null,0,-1000,0]
[null,null,null,null,null,null,null,null,null,null,null,null,0,-1000,0]
[null,null,null,null,null,null,null,null,null,null,null,null,0,-1000,0]
[null,null,null,null,null,null,null,null,null,null,null,null,0,-1000,0]
[null,null,null,null,null,null,null,null,null,null,null,null,0,-1000,0]
[null,null,null,null,null,null,null,null,null,null,null,null,0,-1000,0]
[null,null,null,null,null,null,null,null,null,null,null,null,0,-1000,0]
[null,null,null,null,null,null,null,null,null,null,null,null,0,-1000,0]
[null,null,null,null,null,null,null,null,null,null,null,null,0,-1000,0]
[null,null,null,null,null,null,null,null,null,null,null,null,0,-1000,0]
[null,null,null,null,null,null,null,null,null,null,null,null,0,-1000,0]
[null,null,null,null,null,null,null,null,null,null,null,null,0,-1000,0]
[null,null,null,null,null,null,null,null,null,null,null,null,0,-1000,0]
[null,null,null,null,null,null,null,null,null,null,null,null,0,-1000,0]
[null,null,null,null,null,null,null,null,null,null,null,null,0,-1000,0]
[null,null,null,null,null,null,null,null,null,null,null,null,0,-1000,0]
[null,null,null,null,null,null,null,null,null,null,null,null,0,-1000,0]
[null,null,null,null,null,null,null,null,null,null,null,null,0,-1000,0]
[null,null,null,null,null,null,null,null,null,null,null,null,0,-1000,0]
[null,null,null,null,null,null,null,null,null,null,null,null,0,-1000,0]
[null,null,null,null,null,null,null,null,null,null,null,null,0,-1000,0]
[null,null,null,null,null,null,null,null,null,null,null,null,{"$f":"IF($G$4=1,\nIF(H137>1,(ABS(G137-H137)),0)+\nIF(I137>1,(ABS(G137-I137)),0)+\nIF(J137>1,(ABS(G137-J137)),0)+\nIF(K137>1,(ABS(G137-K137)),0)+\nIF(L137>1,(ABS(G137-L137)),0),\n\nIF(I137>1,(ABS(H137-I137)),0)+\nIF(J137>1,(ABS(H137-J137)),0)+\nIF(K137>1,(ABS(H137-K137)),0) )","v":0},{"$f":"IF(M137>0,M137*-1,-1000)","v":-1000},{"$f":"IF(M137>0,RANK(N137,N:N),0)","v":0}]
[null,null,null,null,null,null,null,null,null,null,null,null,0,-1000,0]
[null,null,null,null,null,null,null,null,null,null,null,null,0,-1000,0]
[null,null,null,null,null,null,null,null,null,null,null,null,0,-1000,0]
[null,null,null,null,null,null,null,null,null,null,null,null,0,-1000,0]
[null,null,null,null,null,null,null,null,null,null,null,null,0,-1000,0]
[null,null,null,null,null,null,null,null,null,null,null,null,0,-1000,0]
[null,null,null,null,null,null,null,null,null,null,null,null,0,-1000,0]
[null,null,null,null,null,null,null,null,null,null,null,null,0,-1000,0]
[null,null,null,null,null,null,null,null,null,null,null,null,0,-1000,0]
[null,null,null,null,null,null,null,null,null,null,null,null,0,-1000,0]
[null,null,null,null,null,null,null,null,null,null,null,null,0,-1000,0]
[null,null,null,null,null,null,null,null,null,null,null,null,0,-1000,0]
[null,null,null,null,null,null,null,null,null,null,null,null,0,-1000,0]
[null,null,null,null,null,null,null,null,null,null,null,null,0,-1000,0]
[null,null,null,null,null,null,null,null,null,null,null,null,0,-1000,0]
[null,null,null,null,null,null,null,null,null,null,null,null,0,-1000,0]
[null,null,null,null,null,null,null,null,null,null,null,null,0,-1000,0]
[null,null,null,null,null,null,null,null,null,null,null,null,0,-1000,0]
[null,null,null,null,null,null,null,null,null,null,null,null,0,-1000,0]
[null,null,null,null,null,null,null,null,null,null,null,null,0,-1000,0]
[null,null,null,null,null,null,null,null,null,null,null,null,0,-1000,0]
[null,null,null,null,null,null,null,null,null,null,null,null,0,-1000,0]
[null,null,null,null,null,null,null,null,null,null,null,null,0,-1000,0]
[null,null,null,null,null,null,null,null,null,null,null,null,0,-1000,0]
[null,null,null,null,null,null,null,null,null,null,null,null,0,-1000,0]
[null,null,null,null,null,null,null,null,null,null,null,null,0,-1000,0]
[null,null,null,null,null,null,null,null,null,null,null,null,0,-1000,0]
[null,null,null,null,null,null,null,null,null,null,null,null,0,-1000,0]
[null,null,null,null,null,null,null,null,null,null,null,null,0,-1000,0]
[null,null,null,null,null,null,null,null,null,null,null,null,0,-1000,0]
[null,null,null,null,null,null,null,null,null,null,null,null,0,-1000,0]
[null,null,null,null,null,null,null,null,null,null,null,null,{"$f":"IF($G$4=1,\nIF(H169>1,(ABS(G169-H169)),0)+\nIF(I169>1,(ABS(G169-I169)),0)+\nIF(J169>1,(ABS(G169-J169)),0)+\nIF(K169>1,(ABS(G169-K169)),0)+\nIF(L169>1,(ABS(G169-L169)),0),\n\nIF(I169>1,(ABS(H169-I169)),0)+\nIF(J169>1,(ABS(H169-J169)),0)+\nIF(K169>1,(ABS(H169-K169)),0) )","v":0},{"$f":"IF(M169>0,M169*-1,-1000)","v":-1000},{"$f":"IF(M169>0,RANK(N169,N:N),0)","v":0}]
[null,null,null,null,null,null,null,null,null,null,null,null,0,-1000,0]
[null,null,null,null,null,null,null,null,null,null,null,null,0,-1000,0]
[null,null,null,null,null,null,null,null,null,null,null,null,0,-1000,0]
[null,null,null,null,null,null,null,null,null,null,null,null,0,-1000,0]
[null,null,null,null,null,null,null,null,null,null,null,null,0,-1000,0]
[null,null,null,null,null,null,null,null,null,null,null,null,0,-1000,0]
[null,null,null,null,null,null,null,null,null,null,null,null,0,-1000,0]
[null,null,null,null,null,null,null,null,null,null,null,null,0,-1000,0]
[null,null,null,null,null,null,null,null,null,null,null,null,0,-1000,0]
[null,null,null,null,null,null,null,null,null,null,null,null,0,-1000,0]
[null,null,null,null,null,null,null,null,null,null,null,null,0,-1000,0]
[null,null,null,null,null,null,null,null,null,null,null,null,0,-1000,0]
[null,null,null,null,null,null,null,null,null,null,null,null,0,-1000,0]
[null,null,null,null,null,null,null,null,null,null,null,null,0,-1000,0]
[null,null,null,null,null,null,null,null,null,null,null,null,0,-1000,0]
[null,null,null,null,null,null,null,null,null,null,null,null,0,-1000,0]
[null,null,null,null,null,null,null,null,null,null,null,null,0,-1000,0]
[null,null,null,null,null,null,null,null,null,null,null,null,0,-1000,0]
[null,null,null,null,null,null,null,null,null,null,null,null,0,-1000,0]
[null,null,null,null,null,null,null,null,null,null,null,null,0,-1000,0]
[null,null,null,null,null,null,null,null,null,null,null,null,0,-1000,0]
[null,null,null,null,null,null,null,null,null,null,null,null,0,-1000,0]
[null,null,null,null,null,null,null,null,null,null,null,null,0,-1000,0]
[null,null,null,null,null,null,null,null,null,null,null,null,0,-1000,0]
[null,null,null,null,null,null,null,null,null,null,null,null,0,-1000,0]
[null,null,null,null,null,null,null,null,null,null,null,null,0,-1000,0]
[null,null,null,null,null,null,null,null,null,null,null,null,0,-1000,0]
[null,null,null,null,null,null,null,null,null,null,null,null,0,-1000,0]
[null,null,null,null,null,null,null,null,null,null,null,null,0,-1000,0]
[null,null,null,null,null,null,null,null,null,null,null,null,0,-1000,0]
[null,null,null,null,null,null,null,null,null,null,null,null,0,-1000,0]
[null,null,null,null,null,null,null,null,null,null,null,null,{"$f":"IF($G$4=1,\nIF(H201>1,(ABS(G201-H201)),0)+\nIF(I201>1,(ABS(G201-I201)),0)+\nIF(J201>1,(ABS(G201-J201)),0)+\nIF(K201>1,(ABS(G201-K201)),0)+\nIF(L201>1,(ABS(G201-L201)),0),\n\nIF(I201>1,(ABS(H201-I201)),0)+\nIF(J201>1,(ABS(H201-J201)),0)+\nIF(K201>1,(ABS(H201-K201)),0) )","v":0},{"$f":"IF(M201>0,M201*-1,-1000)","v":-1000},{"$f":"IF(M201>0,RANK(N201,N:N),0)","v":0}]
[null,null,null,null,null,null,null,null,null,null,null,null,{"$f":"IF($G$4=1,\nIF(H202>1,(ABS(G202-H202)),0)+\nIF(I202>1,(ABS(G202-I202)),0)+\nIF(J202>1,(ABS(G202-J202)),0)+\nIF(K202>1,(ABS(G202-K202)),0)+\nIF(L202>1,(ABS(G202-L202)),0),\n\nIF(I202>1,(ABS(H202-I202)),0)+\nIF(J202>1,(ABS(H202-J202)),0)+\nIF(K202>1,(ABS(H202-K202)),0) )","v":0},{"$f":"IF(M202>0,M202*-1,-1000)","v":-1000},{"$f":"IF(M202>0,RANK(N202,N:N),0)","v":0}]

{"sheet":"Version","index":23,"n_rows":19,"n_cols":3,"rows_kept":19,"cut":false,"hidden":true,"merged":[]}
[]
["Version","Datum","Bemerkung"]
[]
["3.1","2004-07-04","Korrektur der Zuordnung\nPR ist der Wert der Bahn 1  (aus ALGE-Timer Parcour Rot)\nPB ist der Wert der Bahn 2  (aus ALGE-Timer Parcour Blau)\n"]
["3.2","2005-06-12","Finaler Stand des OrtsDerby Mettingen 2005\n"]
["3.3","2006-05-21","Wegfall der NRW-Elite-Klasse\nEinführung der Elite XL Klasse in NRW\nEinführung des Ortsdery Elite XL in Mettingen\nNamen der Registerblätter überarbeitet\nDefinition Vorlauf wird zu Hauptlauf\nKommentarzeilen in die Programmierung eingefügt"]
["3.4","2008-05-27","Vorbereitung der Tabellen auf das Derby 2008 Mettingen"]
[null,null,"Lauf 5 nicht möglich ?"]
[]
["3.5","2009-05-27","Vorbereitung der Tabellen auf das Derby 2009 Mettingen"]
["3.6","2010-06-10","Vorbereitung der Tabellen auf das Derby 2010 Mettingen"]
["3.7","2011-09-28","Vorbereitung der Tabellen auf das Derby 2011 Mettingen"]
["3.8","2013-05-31","Vorbereitung der Tabellen auf das Derby 2013 Mettingen"]
[]
["4.0","2014-05-11","Erweiterung auf die Klassen EliteXL18 und Open"]
["5.0","2015-06-09","verworfen"]
["6.0","2016-04-19","entwickelt aus der Version 4.0\ndie Version 5.0 aus Rennen 2015 in Mettingen mit Ergebnissen auf der Eingabeseite wurde verworfen\nneues Registerblatt \"Gesamt\" für die Weitergabe an Live-Auswertungen\ndie Tabelle \"Anzeige\" ist für einen weiteren Rechner zur Strecken-Info mit Live-Daten\nLäufe sind bis 9 Minuten möglich (lange Strecken oder Fun-Klasse)\nz.B. 5014 PB  00:09:50.141\nZeitschlag 60 Sek je 1 Minute\neine 4 stellige Anzeige am Zielturm zeigt die Sekunden nicht an, hier nur 50:14\nneue Registerblätter\n- NRW-Open\n- Gast-Open (alt Open)\n- Ort-Open\n- Ort-End-Open\nRegisterblatt für das Startprotokoll jetzt mit Lauf-Nr und Uhrzeit"]
["6.1","2016-05-29","Open-Klasse auf 1 + 5 Läufe erweitert\nOpen-Wertung mit Lauf 1 als Referenzlauf, beim allen weiteren Läufen werden die absoluten Differenzen zum ersten Lauf addiert.Der Lauf 1 kann auch durch Null-Kennzeichnung zum Probelauf gemacht werden. Dann ist Lauf 2 der Referenzlauf. Lauf 6 geht in beiden Fällen nicht in die Berechnung ein. "]
["6.2","2017-03-07","Vorbereitung Derby 2017 Mettingen\nZusammengehörige Register farbig gekennzeichnet\nAuf der Gesamt-Tabelle werden die gefahrenen Bahnen farblich markiert.\nIn dem Hinweis-Registerblatt wurde das Problem mit den chinesischen Schriftzeichen auf der RS232 Schnittstelle erklärt und die Lösung beschrieben.\n\n"]

{"sheet":"Hinweise","index":24,"n_rows":86,"n_cols":4,"rows_kept":86,"cut":false,"hidden":true,"merged":[[85,0,85,5],[78,1,78,2],[78,3,80,5],[79,1,79,2],[80,1,80,2],[82,1,82,2],[82,3,83,5],[83,1,83,2]]}
[]
[null,"Hinweise zur Benutzung dieser Tabellen mit einem ALGE-Timer"]
[]
[null,"Prüfen des ALGE-TIMERS nach Betriebsanleitung ob noch ausreichend frei Speicherplätze frei sind. Maximal 8000 Zeiten können gespeichert werden. Bei 100 Startern ergeben sich 400-600 Einträge ohne Endläufe. Eventuell löschen des Speicherinhaltes um die ermittelten Daten sicher aufzeichnen zu können."]
[]
[]
[null,"Inbetriebnahme des ALGE-Timer"]
[]
[1,"Timer mit dem Seriellen-Kabel an die COM1 Schnittstelle anschließen, und Anschaltbox anschließen."]
[2,"Kabel der Ziellichtschranken und des Startendschalters anschließen an die Anschaltbox."]
[3,"linken Kippschalter auf \"C-timer\" stellen also nach unten"]
[4,"rechten Kippschaltern nicht festhalten "]
[5,"EIN/AUS-Schalter auf Rückseite einschalten, nach 1 sec Kippschalter lösen"]
[6,"eventuell mit der gelben Taste drücken bis \"Pr.4\" angezeigt wird."]
[7,"Um den Timer auf 0:00:00 zustellen rote und gelbe Taste gleichzeitig drücken."]
[8,"Vor jeder neuen Messung muß so der Timer auf 0:00:00 gestellt werden!"]
[]
[]
[null,"Inbetriebnahme Großanzeige"]
[]
[1,"jetzt wird überprüft ob die externe Groß-Anzeige auch richtig mitläuft"]
[2,"Taste \"delay time\" 4x drücken"]
[3,"die Anzeige zeigt LF  CH1-2,  wenn zwischen LF und CH1-2  kein A steht dann"]
[4,"A einschalten durch Taster drücken auf \"program+line test\""]
[5,"um den Timer auf 0:00:00 zustellen rote und gelbe Taste gleichzeitig drücken"]
[]
[]
[null,"Listenerstellung"]
[]
[1]
[2]
[3,"Gruppieren der Teilnehmer für die einzelnen Wettbewerbe. (JuniorOrt, JuniorGast, SeniorOrt, SeniorGast, Elite, NRW)"]
[4,"Kopieren der Teilnehmer je Wettbewerb in die jeweilige Wertungstabelle."]
[5,"Erstellung und Ausdruck einer Protokollliste für jeden Durchlauf"]
[]
[]
[null,"Listenauswertung"]
[]
[1,"In jeder Liste die Wertungsläufe setzen (0 = nicht werten;  1 = Lauf werten)"]
[null,"Nur die mit einer \"1\" im Wertungsfeld markierten Läufe werden zum Gesamtergebnis addiert und in die Spalter \"Summe der gewerteten Läuf\" eingetragen."]
[2,"Mit den drei Schaltflächen kann die Liste sortiert und gedruckt werden."]
[null,"In allen Listen ist der erste Lauf mit 99,00 eingetragen damit die Sortierung nach Platz einen richtigen Ausdruck ergibt."]
[3,"Um einen Teilnehmer zu sperren muß in letzten Wertungslauf \"99\" eingetragen werden."]
[]
[]
[null,"Rennwertung"]
[1,"Zuerst den DSKD - Ordner öffnen"]
[2,"Im DSKD - Ordner die Datei ALGE.BAT starten"]
[3,"Danach die entsprechende Excel-Anwendung auswählen und starten."]
[]
[null,"Betriebsbildschirm"]
[null,"Kontrollanzeige für Zeitübernahme"]
[]
[]
[1,"Laufnummer vor jeden neuen Durchlauf eingeben und mit ENTER übernehmen, oder mit Mausclick auf Übernahme"]
[2,"Startnummern abfragen und in die Felder für Bahn 1 und Bahn 2 eintragen"]
[3,"Rennen starten und mit ALGE-Timer Zeit stoppen, "]
[4,"Zeiten mit Klick auf Button in Zeitenübenahme starten."]
[null,"Danach mit Punkt 2 neu beginnen bis alle Rennen des Durchlaufs erfasst sind. Nach dem letzten Rennen des Durchlaufs mit Punkt 1 anfangen."]
[]
[]
[null,"4800 n 8 1"]
[]
[null,"ALGE-Timer-T4 Einstellung der Linefeed mittels Hyperterminal von WINDOWS."]
[null,"Einschalten des ECHOBEFEHLS im Hyperterminal um die Eingaben angezeigt zu bekommen."]
[]
[null,"ALGE WERT","Hyperterminal"]
[null," 92 (hex)","ALT + 0146 (dez)"]
[null,"0 (dez)","0 (dez)"]
[null,"RETURN (0D) (hex)","ALT + 0013 (dez)"]
[null,"Absenden der Daten durch Betätigen mit ENTER."]
[]
[null,"Win 10 Software RS232 SSt\n4800 Baud\n1 Startbit\n8 Bit\nKein Parity Bit\n1 Stopbit\n\nBeim Problemen mit der RS232 Software gibt es nur chinesische Schriftzeichen. \nDie Software wird am Renntag nicht wieder beendet sondern nur mit dem Stopp-Button angehalten. \nBei  Problemen einmal die Baud-Rate ändern und starten und stoppen. \nDann die Baud-Rate wieder auf 4800 stellen und starten.  Mit geänderten Parametern startet die Aufzeinung dann neu und mit korrekten Daten.\nLäuft nur über die Com3-Schnittstelle.\nDie Option Append to file muss abgeschaltet sein."]
[]
[]
[]
[]
[]
["101\nbis\n299","JUNIOREN aus NRW",null,"Diese Startnummern werden zum Start der Rennsaison vom Landesverband-NRW vergeben. Ein neuer Fahrer, der zum ersten Mal bei einem NRW-Derby startet, erhält vom aktuellen Veranstalter die nächste freie Nummer aus diesem Kontingent. Am Abend des Renntages werden die Ergebnislisten an den Landesverband gemeldet. Der neue Fahrer wird in die NRW-Qualifikationliste eingetragen und fährt in diesem Jahr bei allen Rennen dann nur  noch mit dieser Startnummer."]
["301\nbis\n499","SENIOREN aus NRW"]
["501\nbis\n599","Elite XL aus NRW"]
[]
["601\nbis\n699","Junioren-Gäste nicht NRW",null,"Diese Nummern werden einmalig vom aktuelle Veranstalter vergeben. Danach sind die Startnummern wieder frei und können am nächsten Renntag neu vergeben werden ."]
["701\nbis\n799","Senioren-Gäste nicht NRW"]
[]
["Tip:\nZur Erstellung der weiteren Wertungslisten in dieser Excel-Tabelle muss kein Eintrag noch eimal getippt werden. Hierzu wird über die Filter in dieser Tabelle die jeweilige Liste zusammengestellt. \nZ.B. den Filter setzen auf \"Klasse = J \" und \"Meldung = j \" \"Ort = Mettingen\".\nNun hat man eine Tabelle mit allen gemeldeten Mettinger JUNIOR-Fahrern. Mit der Maus werden alle Fahrer mit allen Spalten von der Startnummer bis zum Verein markiert. Dann \"Strg + C\" drücken (kopieren in die Zwischenablage). Jetzt auf das Reisterblatt JuniorOrt wechseln. Mit der Maus das erste Startnummern-Feld markieren. Über den Menüpunkt \"Bearbeiten - Inhalte einfügen - Werte - ok\" werden die Daten dann aus der Zwischenablage in einem Rutsch in die Tabelle übertragen. Wenn die Liste der Gäste-Fahrer in Mettingen erstellt werden soll, so gibt es eine besonder Filtermöglichkeit. Hierzu wird der Vereins-Filter angeklickt, \" Benutzerdefiniert\" auswählen, \"entspricht nicht\" wählen,  \"Mettingen\" wählen. Nun ist es eine Liste aller Fahrer, die nicht aus Mettingen sind. Fertig ist die JUNIOR-Gästeliste. \n\nZum Ausdrucken der jeweiligen Starterlisten sollte der Filter auf der Startnummer auf \"nichtleere\" stehen. Das spart Papier.\n"]

{"sheet":"Protokoll","index":25,"n_rows":39,"n_cols":11,"rows_kept":39,"cut":false,"hidden":true,"merged":[]}
[]
["Lauf\nNr",null,null,"Start\nUhrzeit",null,null,"Lauf\nNr",null,null,"Start\nUhrzeit"]
["Bahn 1",null,null,"Bahn 2",null,null,"Bahn 1",null,null,"Bahn 2"]
["Start\nNummer","Zeit",null,"Start\nNummer","Zeit",null,"Start\nNummer","Zeit",null,"Start\nNummer","Zeit"]
[null,null,null,null,null,1]
[null,null,null,null,null,2]
[null,null,null,null,null,3]
[null,null,null,null,null,4]
[null,null,null,null,null,5]
[null,null,null,null,null,6]
[null,null,null,null,null,7]
[null,null,null,null,null,8]
[null,null,null,null,null,9]
[null,null,null,null,null,10]
[null,null,null,null,null,11]
[null,null,null,null,null,12]
[null,null,null,null,null,13]
[null,null,null,null,null,14]
[null,null,null,null,null,15]
[null,null,null,null,null,16]
[null,null,null,null,null,17]
[null,null,null,null,null,18]
[null,null,null,null,null,19]
[null,null,null,null,null,20]
[null,null,null,null,null,21]
[null,null,null,null,null,22]
[null,null,null,null,null,23]
[null,null,null,null,null,24]
[null,null,null,null,null,25]
[null,null,null,null,null,26]
[null,null,null,null,null,27]
[null,null,null,null,null,28]
[null,null,null,null,null,29]
[null,null,null,null,null,30]
[null,null,null,null,null,31]
[null,null,null,null,null,32]
[null,null,null,null,null,33]
[null,null,null,null,null,34]
[null,null,null,null,null,35]